Workbook

Sheet Admin (hidden)
B2: Tabel 3c: Inflationsantagelser, Danmark | H2: Lister - Som anvendes til at vælge beregningsforudsætninger | W2: Liste - Ark
B3: Generel inflation (BVT-deflatoren) | C3: Prisindeks 2014=1 opdateret fra 2021 | D3: Stigning i % | E3: Prisindeks 2015=1 | F3: Stigning i % 2019 opdatering | H3: Type | I3: Placering | J3: Scenarier | M3: Valg | O3: Enhed | Q3: CO2-pris | S3: Elpris | U3: AVV1 på træpiller eller kul | W3: Ark der skjules
B4: 2005 | C4: 0.791708532 | D4: 0.02686258699 | H4: Udtag | I4: Central | J4: ENS's priser fra 2017 | M4: Ja | O4: GJ | Q4: Kvotepris | S4: ENS's elpris | U4: Slået til | W4: Samlet hovedstaden -alle værker
B5: 2006 | C5: 0.809270954 | D5: 0.02218293889 | H5: Keddel | I5: Decentral | J5: Lave priser | M5: Nej | O5: MWh | Q5: Fortrængningspris | S5: Lav elpris | U5: Nej, som VPH | W5: AMV1træ
B6: 2007 | C6: 0.8321691395 | D6: 0.02829483177 | H6: Modtryk | J6: Egne priser | W6: AMV1træBP
B7: 2008 | C7: 0.8714661228 | D7: 0.04722235116 | W7: AMV3kul
B8: 2009 | C8: 0.8757076944 | D8: 0.004867167531 | I8: Priser fra 2019 udgivelse | W8: AVV1træ
B9: 2010 | C9: 0.877 | D9: =C9/C8-1 -> 0.001475727109 | W9: AVV1kul
B10: 2011 | C10: 0.881 | D10: 0.0043 | W10: AMV4træ
B11: 2012 | C11: 0.903 | D11: 0.0243 | W11: AMV4træBP
B12: 2013 | C12: 0.913 | D12: 0.0111 | W12: AVV2træ
B13: 2014 | C13: 0.925 | D13: 0.014 | W13: AVV2halm
B14: 2015 | C14: 0.931 | D14: 0.0061 | E14: 1 | W14: AVV2gasGT
B15: 2016 | C15: 0.934 | D15: 0.0032 | E15: =C15/$C$14 -> 1.003222342 | W15: KKV
B16: 2017 | C16: 0.946 | D16: 0.0124 | E16: =C16/$C$14 -> 1.016111708 | W16: HCVgas
B17: 2018 | C17: 0.953 | D17: 0.0077 | E17: 1.023630505 | W17: SPolie
B18: 2019 | C18: 0.963 | D18: 0.0104 | E18: =C18/$C$14 -> 1.034371643 | W18: SPgas
B19: 2020 | C19: 0.99 | D19: 0.0283 | E19: 1.063372718 | F19: 0.02253136576 | W19: GeoEL
B20: 2021 | C20: 1 | D20: 0.01 | E20: 1.074113856 | F20: 0.01382813443 | W20: GeoVa
B21: 2022 | C21: 1.012 | D21: 0.0115 | E21: 1.087003222 | F21: 0.01735533781 | W21: VP
B22: 2023 | C22: 1.028 | D22: 0.0161 | E22: 1.104189044 | F22: 0.01602594604 | W22: Sol
B23: 2024 | C23: 1.043 | D23: 0.0152 | E23: 1.120300752 | F23: 0.01419523217 | W23: VPHgrunddata
B24: 2025 | C24: 1.064 | D24: 0.0194 | E24: 1.142857143 | F24: 0.01466349105 | W24: Elafregningspris
B25: 2026 | C25: 1.083 | D25: 0.0179 | E25: 1.163265306 | F25: 0.01846595125 | W25: Tekniske data
B26: 2027 | C26: 1.101 | D26: 0.0167 | E26: 1.182599356 | F26: 0.01837384518
B27: 2028 | C27: 1.119 | D27: 0.0166 | E27: 1.201933405 | F27: 0.01867542203
B28: 2029 | C28: 1.138 | D28: 0.0167 | E28: 1.222341568 | F28: 0.01842471877
B29: 2030 | C29: 1.157 | D29: 0.0167 | E29: 1.242749731 | F29: 0.01898248049
B30: 2031 | C30: 1.178 | D30: 0.0179 | E30: 1.265306122 | F30: 0.02003794043
B31: 2032 | C31: 1.198 | D31: 0.0176 | E31: 1.2867884 | F31: 0.02018108477
B32: 2033 | C32: 1.22 | D32: 0.018 | E32: 1.310418904 | F32: 0.01989167492
B33: 2034 | C33: 1.241 | D33: 0.0177 | E33: 1.332975295 | F33: 0.02004810024
B34: 2035 | C34: 1.264 | D34: 0.0179 | E34: =C34/$C$14 -> 1.357679914 | F34: 0.01967725425
B35: 2036 | C35: 1.289 | D35: 0.02 | F35: 0.01994664264
B36: 2037 | C36: 1.315 | D36: 0.0203 | F36: 0.01963187568
B37: 2038 | C37: 1.341 | D37: 0.02 | F37: 0.01984433564
B38: 2039 | C38: 1.368 | D38: 0.0202 | F38: 0.01957450903
B39: 2040 | C39: 1.396 | D39: 0.0199 | F39: 0.01966238143
B40: 2041 | C40: 1.424 | D40: 0.02
B41: 2042 | C41: 1.452 | D41: 0.0197
B42: 2043 | C42: 1.481 | D42: 0.02
B43: 2044 | C43: 1.51 | D43: 0.0197
B44: 2045 | C44: 1.54 | D44: 0.0199
B45: 2046 | C45: =C44*(1+D45) -> 1.570646 | D45: 0.0199
B46: 2047 | C46: =C45*(1+D46) -> 1.601901855 | D46: 0.0199
B47: 2048 | C47: =C46*(1+D47) -> 1.633779702 | D47: 0.0199
B48: 2049 | C48: =C47*(1+D48) -> 1.666291918 | D48: 0.0199
B49: 2050 | C49: =C48*(1+D49) -> 1.699451128 | D49: 0.0199

Sheet Sammenligning
C3: Sammenligning af grundscenarie (individuel opvarmning med gas) og projekt-tiltag (konvertering til fjernvarme) i hovedstadsområdet
D6: Indstillinger for resultat | I6: Indstillinger for VE-gasandel i gasnettet
E7: Standard | F7: Andet valg | G7: Anvendt | I7: Anvend pris med indfasning af VE-gas | N7: Ja
D8: Generelle | I8: Anvendt VE-gas pris (2021) | N8: - | O8: Pris for blandet gas fra ENS anvendes i stedet
D9: Vis resultater som | E9: GJ | G9: =IF(ISBLANK(F9),E9,F9) -> GJ
D10: Price year | E10: 2021 | G10: =IF(ISBLANK(F10),E10,F10) -> 2021
D11: Diskonteringsrente | E11: 0.035 | G11: =IF(ISBLANK(F11),E11,F11) -> 0.035
D12: Følsomhedsanalyser
D13: Brændsels-og CO-priser | E13: ENS's priser fra 2022 | G13: =IF(ISBLANK(F13),E13,F13) -> ENS's priser fra 2022
D14: Anvendte CO2-pris til individuel gas | E14: Kvotepris | F14: Fortrængningspris | G14: =IF(ISBLANK(F14),E14,F14) -> Fortrængningspris
D15: El-salgspris, i forhold til normal pris | E15: Modeloptimeret | G15: =IF(ISBLANK(F15),E15,F15) -> Modeloptimeret
D16: Elkøbspris, i forhold til normal pris | E16: Modeloptimeret | G16: =IF(ISBLANK(F16),E16,F16) -> Modeloptimeret
D17: AVV1 køres kun på træpiller (modsat VPH) | E17: Slået til | G17: =IF(ISBLANK(F17),E17,F17) -> Slået til
D18: Skatteforvridning af provenue undtaget | E18: Nej | G18: =IF(ISBLANK(F18),E18,F18) -> Nej
D19: EURDKK | G19: 7.42
D20: Prisjustering (fra 2014 til valgte år) | G20: =VLOOKUP(Prisår,Inflation,2,FALSE)/VLOOKUP(2014,Inflation,2,FALSE) -> 1.081081081
D21: Prisjustering (fra 2011 til valgte år) | G21: =VLOOKUP(Prisår,Inflation,2,FALSE)/VLOOKUP(2011,Inflation,2,FALSE) -> 1.13507378
C23: Samfundsøkonomiske beregningspriser for fjernvarme i hovedstadsområdet (med gældende nettoafgiftsfaktor på 1,28 indregnet)
E24: ="Enhed: "&Sammenligning!G10&"-kr/"&Sammenligning!$G$9 -> Enhed: 2021-kr/GJ | F24: Nutidsværdi | G24: 2020 | H24: 2021 | I24: 2022 | J24: 2023 | K24: 2024 | L24: 2025 | M24: 2026 | N24: 2027 | O24: 2028 | P24: 2029 | Q24: 2030 | R24: 2031 | S24: 2032 | T24: 2033 | U24: 2034 | V24: 2035 | W24: 2036 | X24: 2037 | Y24: 2038 | Z24: 2039 | AA24: 2040 | AB24: 2041 | AC24: 2042 | AD24: 2043 | AE24: 2044 | AF24: 2045 | AG24: 2046 | AH24: 2047 | AI24: 2048 | AJ24: 2049 | AK24: 2050
C25: Fjernvarmepris ab net | F25: 2023-2042
D26: Kapitalomkostninger og fast D&V | F26: =NPV(Rente,J26:AC26)/$F$54 -> 14.10650888 | G26: =G42*1.28 -> 0 | H26: =H42*1.28 -> 0 | I26: 0 | J26: 0 | K26: 0 | L26: 0 | M26: 0 | N26: 0 | O26: 0 | P26: 0 | Q26: 4.167083981 | R26: 8.317027589 | S26: 12.57365844 | T26: 16.45898885 | U26: 32.93327539 | V26: 33.08763809 | W26: 32.99254551 | X26: 32.89799795 | Y26: 32.80399074 | Z26: 32.71051925 | AA26: =AA42*1.28 -> 32.61757892 | AB26: =AB42*1.28 -> 32.61757892 | AC26: 32.61757892 | AD26: 32.61757892 | AE26: =AE42*1.28 -> 32.61757892 | AF26: 32.61757892 | AG26: 32.61757892 | AH26: 32.61757892 | AI26: 32.61757892 | AJ26: 32.61757892 | AK26: 32.61757892
D27: Elsalg | F27: -43.92099018 | G27: =G43*1.28 -> -39.36764978 | H27: =H43*1.28 -> -38.54711199 | I27: =I43*1.28 -> -135.521583 | J27: -71.2312121 | K27: -60.60587829 | L27: -58.23898153 | M27: -56.66734523 | N27: -53.75973463 | O27: -50.62793482 | P27: -45.29245074 | Q27: -37.98253135 | R27: -40.07758119 | S27: -39.58003341 | T27: -40.51069489 | U27: -31.09482223 | V27: -34.16243599 | W27: -33.04408892 | X27: -31.92593719 | Y27: -30.80797912 | Z27: -29.69021306 | AA27: =AA43*1.28 -> -28.57263738 | AB27: =AB43*1.28 -> -28.57263738 | AC27: -28.57263738 | AD27: -28.57263738 | AE27: =AE43*1.28 -> -28.57263738 | AF27: -28.57263738 | AG27: -28.57263738 | AH27: -28.57263738 | AI27: -28.57263738 | AJ27: -28.57263738 | AK27: -28.57263738
D28: Energiomkostninger og var. D&V | F28: 119.7144126 | G28: =G44*1.28 -> 121.9039975 | H28: =H44*1.28 -> 119.6043951 | I28: =I44*1.28 -> 174.7575963 | J28: 152.0312227 | K28: 133.3408759 | L28: 131.4863425 | M28: 131.4642102 | N28: 131.1471296 | O28: 130.8184355 | P28: 130.0559767 | Q28: 129.1116906 | R28: 128.0098116 | S28: 123.6546789 | T28: 118.086047 | U28: 105.3305271 | V28: 104.8243536 | W28: 102.6634406 | X28: 100.468004 | Y28: 98.32890323 | Z28: 96.20123491 | AA28: =AA44*1.28 -> 94.09534738 | AB28: =AB44*1.28 -> 94.09534738 | AC28: 94.09534738 | AD28: 94.09534738 | AE28: =AE44*1.28 -> 94.09534738 | AF28: 94.09534738 | AG28: 94.09534738 | AH28: 94.09534738 | AI28: 94.09534738 | AJ28: 94.09534738 | AK28: 94.09534738
D29: Miljøomkostninger | F29: 6.645909054 | G29: ='Samlet hovedstaden -alle værker'!I35*1.28+SUM('Samlet hovedstaden -alle værker'!I36:I40) -> 6.337772862 | H29: ='Samlet hovedstaden -alle værker'!J35*1.28+SUM('Samlet hovedstaden -alle værker'!J36:J40) -> 5.974603777 | I29: ='Samlet hovedstaden -alle værker'!K35*1.28+SUM('Samlet hovedstaden -alle værker'!K36:K40) -> 13.92917203 | J29: ='Samlet hovedstaden -alle værker'!L35*1.28+SUM('Samlet hovedstaden -alle værker'!L36:L40) -> 13.34026545 | K29: ='Samlet hovedstaden -alle værker'!M35*1.28+SUM('Samlet hovedstaden -alle værker'!M36:M40) -> 12.99192095 | L29: ='Samlet hovedstaden -alle værker'!N35*1.28+SUM('Samlet hovedstaden -alle værker'!N36:N40) -> 12.65675017 | M29: ='Samlet hovedstaden -alle værker'!O35*1.28+SUM('Samlet hovedstaden -alle værker'!O36:O40) -> 11.90288729 | N29: ='Samlet hovedstaden -alle værker'!P35*1.28+SUM('Samlet hovedstaden -alle værker'!P36:P40) -> 11.12488846 | O29: ='Samlet hovedstaden -alle værker'!Q35*1.28+SUM('Samlet hovedstaden -alle værker'!Q36:Q40) -> 10.29953299 | P29: ='Samlet hovedstaden -alle værker'!R35*1.28+SUM('Samlet hovedstaden -alle værker'!R36:R40) -> 9.433530703 | Q29: ='Samlet hovedstaden -alle værker'!S35*1.28+SUM('Samlet hovedstaden -alle værker'!S36:S40) -> 8.50674902 | R29: ='Samlet hovedstaden -alle værker'!T35*1.28+SUM('Samlet hovedstaden -alle værker'!T36:T40) -> 7.438800837 | S29: ='Samlet hovedstaden -alle værker'!U35*1.28+SUM('Samlet hovedstaden -alle værker'!U36:U40) -> 6.529189825 | T29: ='Samlet hovedstaden -alle værker'!V35*1.28+SUM('Samlet hovedstaden -alle værker'!V36:V40) -> 5.91897874 | U29: ='Samlet hovedstaden -alle værker'!W35*1.28+SUM('Samlet hovedstaden -alle værker'!W36:W40) -> 0.3554041902 | V29: ='Samlet hovedstaden -alle værker'!X35*1.28+SUM('Samlet hovedstaden -alle værker'!X36:X40) -> 0.386118655 | W29: ='Samlet hovedstaden -alle værker'!Y35*1.28+SUM('Samlet hovedstaden -alle værker'!Y36:Y40) -> 0.3792992153 | X29: ='Samlet hovedstaden -alle værker'!Z35*1.28+SUM('Samlet hovedstaden -alle værker'!Z36:Z40) -> 0.3719522782 | Y29: ='Samlet hovedstaden -alle værker'!AA35*1.28+SUM('Samlet hovedstaden -alle værker'!AA36:AA40) -> 0.3640919244 | Z29: ='Samlet hovedstaden -alle værker'!AB35*1.28+SUM('Samlet hovedstaden -alle værker'!AB36:AB40) -> 0.3556394033 | AA29: ='Samlet hovedstaden -alle værker'!AC35*1.28+SUM('Samlet hovedstaden -alle værker'!AC36:AC40) -> 0.3465167127 | AB29: ='Samlet hovedstaden -alle værker'!AD35*1.28+SUM('Samlet hovedstaden -alle værker'!AD36:AD40) -> 0.3465167127 | AC29: ='Samlet hovedstaden -alle værker'!AE35*1.28+SUM('Samlet hovedstaden -alle værker'!AE36:AE40) -> 0.3465167127 | AD29: ='Samlet hovedstaden -alle værker'!AF35*1.28+SUM('Samlet hovedstaden -alle værker'!AF36:AF40) -> 0.3465167127 | AE29: ='Samlet hovedstaden -alle værker'!AG35*1.28+SUM('Samlet hovedstaden -alle værker'!AG36:AG40) -> 0.3465167127 | AF29: ='Samlet hovedstaden -alle værker'!AH35*1.28+SUM('Samlet hovedstaden -alle værker'!AH36:AH40) -> 0.3465167127 | AG29: ='Samlet hovedstaden -alle værker'!AI35*1.28+SUM('Samlet hovedstaden -alle værker'!AI36:AI40) -> 0.3465167127 | AH29: ='Samlet hovedstaden -alle værker'!AJ35*1.28+SUM('Samlet hovedstaden -alle værker'!AJ36:AJ40) -> 0.3465167127 | AI29: ='Samlet hovedstaden -alle værker'!AK35*1.28+SUM('Samlet hovedstaden -alle værker'!AK36:AK40) -> 0.3465167127 | AJ29: ='Samlet hovedstaden -alle værker'!AL35*1.28+SUM('Samlet hovedstaden -alle værker'!AL36:AL40) -> 0.3465167127 | AK29: ='Samlet hovedstaden -alle værker'!AM35*1.28+SUM('Samlet hovedstaden -alle værker'!AM36:AM40) -> 0.3465167127
D30: Total, produktion | F30: 96.54584037 | G30: =SUM(G26:G29) -> 88.87412057 | H30: =SUM(H26:H29) -> 87.03188692 | I30: =SUM(I26:I29) -> 53.16518535 | J30: 94.14027602 | K30: 85.72691852 | L30: 85.90411116 | M30: 86.6997523 | N30: 88.51228348 | O30: 90.49003369 | P30: 94.19705665 | Q30: 103.8029922 | R30: =SUM(R26:R29) -> 103.6880589 | S30: 103.1774938 | T30: 99.95331966 | U30: 107.5243844 | V30: 104.1356743 | W30: 102.9911964 | X30: 101.8120171 | Y30: 100.6890068 | Z30: 99.5771805 | AA30: =SUM(AA26:AA29) -> 98.48680564 | AB30: =SUM(AB26:AB29) -> 98.48680564 | AC30: 98.48680564 | AD30: 98.48680564 | AE30: =SUM(AE26:AE29) -> 98.48680564 | AF30: 98.48680564 | AG30: 98.48680564 | AH30: 98.48680564 | AI30: 98.48680564 | AJ30: 98.48680564 | AK30: 98.48680564
D31: Varmetransmissionsomkostning | F31: 2.49862206 | G31: =G47*1.28 -> 2.287747635 | H31: =H47*1.28 -> 2.252852228 | I31: =I47*1.28 -> 5.308036518 | J31: 3.218982542 | K31: 2.867522203 | L31: 2.798544006 | M31: 2.765697245 | N31: 2.693434372 | O31: 2.624456175 | P31: 2.48649978 | Q31: 2.276280512 | R31: 2.276280512 | S31: 2.276280512 | T31: 2.276280512 | U31: 2.276280512 | V31: 2.276280512 | W31: 2.276280512 | X31: 2.276280512 | Y31: 2.276280512 | Z31: 2.276280512 | AA31: =AA47*1.28 -> 2.276280512 | AB31: =AB47*1.28 -> 2.276280512 | AC31: 2.276280512 | AD31: 2.276280512 | AE31: =AE47*1.28 -> 2.276280512 | AF31: 2.276280512 | AG31: 2.276280512 | AH31: 2.276280512 | AI31: 2.276280512 | AJ31: 2.276280512 | AK31: 2.276280512
D32: Samfundsøkonomiske pris i alt (uden afgifter) | F32: 99.04446242 | G32: =SUM(G30:G31) -> 91.16186821 | H32: =SUM(H30:H31) -> 89.28473915 | I32: =SUM(I30:I31) -> 58.47322187 | J32: 97.35925856 | K32: 88.59444072 | L32: 88.70265516 | M32: 89.46544954 | N32: 91.20571785 | O32: 93.11448987 | P32: 96.68355643 | Q32: 106.0792727 | R32: =SUM(R30:R31) -> 105.9643394 | S32: 105.4537743 | T32: 102.2296002 | U32: 109.8006649 | V32: 106.4119549 | W32: 105.2674769 | X32: 104.0882976 | Y32: 102.9652873 | Z32: 101.853461 | AA32: =SUM(AA30:AA31) -> 100.7630862 | AB32: =SUM(AB30:AB31) -> 100.7630862 | AC32: 100.7630862 | AD32: 100.7630862 | AE32: =SUM(AE30:AE31) -> 100.7630862 | AF32: 100.7630862 | AG32: 100.7630862 | AH32: 100.7630862 | AI32: 100.7630862 | AJ32: 100.7630862 | AK32: 100.7630862
D33: Afgifter | F33: 6.857527761 | G33: =G49 -> 14.78853898 | H33: =H49 -> 13.37926559 | I33: =I49 -> 12.52478919 | J33: 11.91168722 | K33: 11.45034145 | L33: 11.0280576 | M33: 10.21300897 | N33: 9.395308085 | O33: 8.574941984 | P33: 7.751897614 | Q33: 6.926161839 | R33: 5.61642852 | S33: 4.689868537 | T33: 4.005014232 | U33: 4.965339487 | V33: 4.695178292 | W33: 4.349185098 | X33: 4.005174947 | Y33: 3.663130839 | Z33: 3.323035967 | AA33: =AA49 -> 2.984873717 | AB33: =AB49 -> 2.984873717 | AC33: 2.984873717 | AD33: 2.984873717 | AE33: =AE49 -> 2.984873717 | AF33: 2.984873717 | AG33: 2.984873717 | AH33: 2.984873717 | AI33: 2.984873717 | AJ33: 2.984873717 | AK33: 2.984873717
D34: Eltilskud | F34: -9.132329843 | G34: =G50 -> -12.91567998 | H34: =H50 -> -12.91341565 | I34: =I50 -> -12.84443459 | J34: -12.70395523 | K34: -12.56533175 | L34: -12.27971722 | M34: -12.05540434 | N34: -11.84955076 | O34: -11.65029172 | P34: -11.44724594 | Q34: -11.25084146 | R34: -11.28090325 | S34: -10.59865481 | T34: -10.04584615 | U34: -5.047553578 | V34: -5.035010198 | W34: -4.915733726 | X34: -4.797466466 | Y34: -4.683903364 | Z34: -4.57143088 | AA34: =AA50 -> -4.460226477 | AB34: =AB50 -> -4.372525395 | AC34: -4.288206723 | AD34: -4.204237787 | AE34: =AE50 -> -4.123494147 | AF34: -4.043166339 | AG34: -3.964277222 | AH34: -3.886927368 | AI34: -3.811086742 | AJ34: -3.736725896 | AK34: -3.663815959
D35: Samlet afgiftsbetaling | F35: -2.274802082 | G35: =SUM(G33:G34) -> 1.872858998 | H35: =SUM(H33:H34) -> 0.4658499328 | I35: =SUM(I33:I34) -> -0.3196453965 | J35: -0.7922680154 | K35: -1.114990294 | L35: -1.25165961 | M35: -1.842395369 | N35: -2.454242676 | O35: -3.075349734 | P35: -3.695348324 | Q35: -4.324679621 | R35: -5.664474727 | S35: -5.908786276 | T35: -6.040831914 | U35: -0.08221409066 | V35: -0.3398319062 | W35: -0.566548628 | X35: -0.7922915192 | Y35: -1.020772526 | Z35: -1.248394913 | AA35: =SUM(AA33:AA34) -> -1.47535276 | AB35: =SUM(AB33:AB34) -> -1.387651678 | AC35: -1.303333006 | AD35: -1.21936407 | AE35: =SUM(AE33:AE34) -> -1.13862043 | AF35: -1.058292622 | AG35: -0.9794035055 | AH35: -0.9020536509 | AI35: -0.8262130248 | AJ35: -0.7518521794 | AK35: -0.6789422418
C39: Samfundsøkonomiske priser (faktorpriser)
C40: Gaspris og fjernvarmepris | E40: ="Enhed: "&Sammenligning!G10&"-kr/"&Sammenligning!$G$9 -> Enhed: 2021-kr/GJ | F40: Nutidsværdi | G40: 2020 | H40: 2021 | I40: 2022 | J40: 2023 | K40: 2024 | L40: 2025 | M40: 2026 | N40: 2027 | O40: 2028 | P40: 2029 | Q40: 2030 | R40: 2031 | S40: 2032 | T40: 2033 | U40: 2034 | V40: 2035 | W40: 2036 | X40: 2037 | Y40: 2038 | Z40: 2039 | AA40: 2040 | AB40: 2041 | AC40: 2042 | AD40: 2043 | AE40: 2044 | AF40: 2045 | AG40: 2046 | AH40: 2047 | AI40: 2048 | AJ40: 2049 | AK40: 2050
C41: Fjernvarmepris ab net | F41: 2023-2042
D42: Kapitalomkostninger og fast D&V | F42: =NPV(Rente,J42:AC42)/$F$54 -> 11.02071006 | G42: =SUM('Samlet hovedstaden -alle værker'!I30:I31) -> 0 | H42: =SUM('Samlet hovedstaden -alle værker'!J30:J31) -> 0 | I42: =SUM('Samlet hovedstaden -alle værker'!K30:K31) -> 0 | J42: =SUM('Samlet hovedstaden -alle værker'!L30:L31) -> 0 | K42: =SUM('Samlet hovedstaden -alle værker'!M30:M31) -> 0 | L42: =SUM('Samlet hovedstaden -alle værker'!N30:N31) -> 0 | M42: =SUM('Samlet hovedstaden -alle værker'!O30:O31) -> 0 | N42: =SUM('Samlet hovedstaden -alle værker'!P30:P31) -> 0 | O42: =SUM('Samlet hovedstaden -alle værker'!Q30:Q31) -> 0 | P42: =SUM('Samlet hovedstaden -alle værker'!R30:R31) -> 0 | Q42: =SUM('Samlet hovedstaden -alle værker'!S30:S31) -> 3.25553436 | R42: =SUM('Samlet hovedstaden -alle værker'!T30:T31) -> 6.497677804 | S42: =SUM('Samlet hovedstaden -alle værker'!U30:U31) -> 9.82317066 | T42: =SUM('Samlet hovedstaden -alle værker'!V30:V31) -> 12.85858504 | U42: =SUM('Samlet hovedstaden -alle værker'!W30:W31) -> 25.7291214 | V42: =SUM('Samlet hovedstaden -alle værker'!X30:X31) -> 25.84971726 | W42: =SUM('Samlet hovedstaden -alle værker'!Y30:Y31) -> 25.77542618 | X42: =SUM('Samlet hovedstaden -alle værker'!Z30:Z31) -> 25.7015609 | Y42: =SUM('Samlet hovedstaden -alle værker'!AA30:AA31) -> 25.62811776 | Z42: =SUM('Samlet hovedstaden -alle værker'!AB30:AB31) -> 25.55509316 | AA42: =SUM('Samlet hovedstaden -alle værker'!AC30:AC31) -> 25.48248353 | AB42: =SUM('Samlet hovedstaden -alle værker'!AD30:AD31) -> 25.48248353 | AC42: =SUM('Samlet hovedstaden -alle værker'!AE30:AE31) -> 25.48248353 | AD42: =SUM('Samlet hovedstaden -alle værker'!AF30:AF31) -> 25.48248353 | AE42: =SUM('Samlet hovedstaden -alle værker'!AG30:AG31) -> 25.48248353 | AF42: =SUM('Samlet hovedstaden -alle værker'!AH30:AH31) -> 25.48248353 | AG42: =SUM('Samlet hovedstaden -alle værker'!AI30:AI31) -> 25.48248353 | AH42: =SUM('Samlet hovedstaden -alle værker'!AJ30:AJ31) -> 25.48248353 | AI42: =SUM('Samlet hovedstaden -alle værker'!AK30:AK31) -> 25.48248353 | AJ42: =SUM('Samlet hovedstaden -alle værker'!AL30:AL31) -> 25.48248353 | AK42: =SUM('Samlet hovedstaden -alle værker'!AM30:AM31) -> 25.48248353
D43: Elsalg | F43: -34.31327358 | G43: ='Samlet hovedstaden -alle værker'!I41 -> -30.75597639 | H43: ='Samlet hovedstaden -alle værker'!J41 -> -30.11493125 | I43: ='Samlet hovedstaden -alle værker'!K41 -> -105.8762367 | J43: ='Samlet hovedstaden -alle værker'!L41 -> -55.64938445 | K43: ='Samlet hovedstaden -alle værker'!M41 -> -47.34834241 | L43: ='Samlet hovedstaden -alle værker'!N41 -> -45.49920432 | M43: ='Samlet hovedstaden -alle værker'!O41 -> -44.27136346 | N43: ='Samlet hovedstaden -alle værker'!P41 -> -41.99979268 | O43: ='Samlet hovedstaden -alle værker'!Q41 -> -39.55307407 | P43: ='Samlet hovedstaden -alle værker'!R41 -> -35.38472714 | Q43: ='Samlet hovedstaden -alle værker'!S41 -> -29.67385261 | R43: ='Samlet hovedstaden -alle værker'!T41 -> -31.3106103 | S43: ='Samlet hovedstaden -alle værker'!U41 -> -30.9219011 | T43: ='Samlet hovedstaden -alle værker'!V41 -> -31.64898038 | U43: ='Samlet hovedstaden -alle værker'!W41 -> -24.29282987 | V43: ='Samlet hovedstaden -alle værker'!X41 -> -26.68940311 | W43: ='Samlet hovedstaden -alle værker'!Y41 -> -25.81569447 | X43: ='Samlet hovedstaden -alle værker'!Z41 -> -24.94213843 | Y43: ='Samlet hovedstaden -alle værker'!AA41 -> -24.06873369 | Z43: ='Samlet hovedstaden -alle værker'!AB41 -> -23.19547895 | AA43: ='Samlet hovedstaden -alle værker'!AC41 -> -22.32237295 | AB43: ='Samlet hovedstaden -alle værker'!AD41 -> -22.32237295 | AC43: ='Samlet hovedstaden -alle værker'!AE41 -> -22.32237295 | AD43: ='Samlet hovedstaden -alle værker'!AF41 -> -22.32237295 | AE43: ='Samlet hovedstaden -alle værker'!AG41 -> -22.32237295 | AF43: ='Samlet hovedstaden -alle værker'!AH41 -> -22.32237295 | AG43: ='Samlet hovedstaden -alle værker'!AI41 -> -22.32237295 | AH43: ='Samlet hovedstaden -alle værker'!AJ41 -> -22.32237295 | AI43: ='Samlet hovedstaden -alle værker'!AK41 -> -22.32237295 | AJ43: ='Samlet hovedstaden -alle værker'!AL41 -> -22.32237295 | AK43: ='Samlet hovedstaden -alle værker'!AM41 -> -22.32237295
D44: Energiomkostninger og var. D&V | F44: 93.52688485 | G44: =SUM('Samlet hovedstaden -alle værker'!I32:I34) -> 95.23749803 | H44: =SUM('Samlet hovedstaden -alle værker'!J32:J34) -> 93.4409337 | I44: =SUM('Samlet hovedstaden -alle værker'!K32:K34) -> 136.5293721 | J44: =SUM('Samlet hovedstaden -alle værker'!L32:L34) -> 118.7743927 | K44: =SUM('Samlet hovedstaden -alle værker'!M32:M34) -> 104.1725593 | L44: =SUM('Samlet hovedstaden -alle værker'!N32:N34) -> 102.7237051 | M44: =SUM('Samlet hovedstaden -alle værker'!O32:O34) -> 102.7064142 | N44: =SUM('Samlet hovedstaden -alle værker'!P32:P34) -> 102.458695 | O44: =SUM('Samlet hovedstaden -alle værker'!Q32:Q34) -> 102.2019028 | P44: =SUM('Samlet hovedstaden -alle værker'!R32:R34) -> 101.6062318 | Q44: =SUM('Samlet hovedstaden -alle værker'!S32:S34) -> 100.8685083 | R44: =SUM('Samlet hovedstaden -alle værker'!T32:T34) -> 100.0076653 | S44: =SUM('Samlet hovedstaden -alle værker'!U32:U34) -> 96.60521791 | T44: =SUM('Samlet hovedstaden -alle værker'!V32:V34) -> 92.25472418 | U44: =SUM('Samlet hovedstaden -alle værker'!W32:W34) -> 82.28947426 | V44: =SUM('Samlet hovedstaden -alle værker'!X32:X34) -> 81.89402624 | W44: =SUM('Samlet hovedstaden -alle værker'!Y32:Y34) -> 80.20581297 | X44: =SUM('Samlet hovedstaden -alle værker'!Z32:Z34) -> 78.49062815 | Y44: =SUM('Samlet hovedstaden -alle værker'!AA32:AA34) -> 76.81945565 | Z44: =SUM('Samlet hovedstaden -alle værker'!AB32:AB34) -> 75.15721477 | AA44: =SUM('Samlet hovedstaden -alle værker'!AC32:AC34) -> 73.51199014 | AB44: =SUM('Samlet hovedstaden -alle værker'!AD32:AD34) -> 73.51199014 | AC44: =SUM('Samlet hovedstaden -alle værker'!AE32:AE34) -> 73.51199014 | AD44: =SUM('Samlet hovedstaden -alle værker'!AF32:AF34) -> 73.51199014 | AE44: =SUM('Samlet hovedstaden -alle værker'!AG32:AG34) -> 73.51199014 | AF44: =SUM('Samlet hovedstaden -alle værker'!AH32:AH34) -> 73.51199014 | AG44: =SUM('Samlet hovedstaden -alle værker'!AI32:AI34) -> 73.51199014 | AH44: =SUM('Samlet hovedstaden -alle værker'!AJ32:AJ34) -> 73.51199014 | AI44: =SUM('Samlet hovedstaden -alle værker'!AK32:AK34) -> 73.51199014 | AJ44: =SUM('Samlet hovedstaden -alle værker'!AL32:AL34) -> 73.51199014 | AK44: =SUM('Samlet hovedstaden -alle værker'!AM32:AM34) -> 73.51199014
D45: Miljøomkostninger | F45: 5.352796805 | G45: =SUM('Samlet hovedstaden -alle værker'!I35:I40) -> 5.167067682 | H45: =SUM('Samlet hovedstaden -alle værker'!J35:J40) -> 4.884625487 | I45: =SUM('Samlet hovedstaden -alle værker'!K35:K40) -> 11.09999334 | J45: =SUM('Samlet hovedstaden -alle værker'!L35:L40) -> 10.64052815 | K45: =SUM('Samlet hovedstaden -alle værker'!M35:M40) -> 10.36884909 | L45: =SUM('Samlet hovedstaden -alle værker'!N35:N40) -> 10.10609363 | M45: =SUM('Samlet hovedstaden -alle værker'!O35:O40) -> 9.516439742 | N45: =SUM('Samlet hovedstaden -alle værker'!P35:P40) -> 8.907927376 | O45: =SUM('Samlet hovedstaden -alle værker'!Q35:Q40) -> 8.262415349 | P45: =SUM('Samlet hovedstaden -alle værker'!R35:R40) -> 7.585145706 | Q45: =SUM('Samlet hovedstaden -alle værker'!S35:S40) -> 6.86038985 | R45: =SUM('Samlet hovedstaden -alle værker'!T35:T40) -> 6.015330222 | S45: =SUM('Samlet hovedstaden -alle værker'!U35:U40) -> 5.289770612 | T45: =SUM('Samlet hovedstaden -alle værker'!V35:V40) -> 4.795202426 | U45: =SUM('Samlet hovedstaden -alle værker'!W35:W40) -> 0.3492529476 | V45: =SUM('Samlet hovedstaden -alle værker'!X35:X40) -> 0.3772192742 | W45: =SUM('Samlet hovedstaden -alle værker'!Y35:Y40) -> 0.3719326222 | X45: =SUM('Samlet hovedstaden -alle værker'!Z35:Z40) -> 0.3662336276 | Y45: =SUM('Samlet hovedstaden -alle værker'!AA35:AA40) -> 0.3601332931 | Z45: =SUM('Samlet hovedstaden -alle værker'!AB35:AB40) -> 0.3535700966 | AA45: =SUM('Samlet hovedstaden -alle værker'!AC35:AC40) -> 0.346483101 | AB45: =SUM('Samlet hovedstaden -alle værker'!AD35:AD40) -> 0.346483101 | AC45: =SUM('Samlet hovedstaden -alle værker'!AE35:AE40) -> 0.346483101 | AD45: =SUM('Samlet hovedstaden -alle værker'!AF35:AF40) -> 0.346483101 | AE45: =SUM('Samlet hovedstaden -alle værker'!AG35:AG40) -> 0.346483101 | AF45: =SUM('Samlet hovedstaden -alle værker'!AH35:AH40) -> 0.346483101 | AG45: =SUM('Samlet hovedstaden -alle værker'!AI35:AI40) -> 0.346483101 | AH45: =SUM('Samlet hovedstaden -alle værker'!AJ35:AJ40) -> 0.346483101 | AI45: =SUM('Samlet hovedstaden -alle værker'!AK35:AK40) -> 0.346483101 | AJ45: =SUM('Samlet hovedstaden -alle værker'!AL35:AL40) -> 0.346483101 | AK45: =SUM('Samlet hovedstaden -alle værker'!AM35:AM40) -> 0.346483101
D46: Total, produktion | F46: 75.58711814 | G46: ='Samlet hovedstaden -alle værker'!I26 -> 69.64858933 | H46: ='Samlet hovedstaden -alle værker'!J26 -> 68.21062794 | I46: ='Samlet hovedstaden -alle værker'!K26 -> 41.75312875 | J46: ='Samlet hovedstaden -alle værker'!L26 -> 73.76553641 | K46: ='Samlet hovedstaden -alle værker'!M26 -> 67.19306594 | L46: ='Samlet hovedstaden -alle værker'!N26 -> 67.3305944 | M46: ='Samlet hovedstaden -alle værker'!O26 -> 67.95149053 | N46: ='Samlet hovedstaden -alle værker'!P26 -> 69.36682974 | O46: ='Samlet hovedstaden -alle værker'!Q26 -> 70.91124403 | P46: ='Samlet hovedstaden -alle værker'!R26 -> 73.80665036 | Q46: ='Samlet hovedstaden -alle værker'!S26 -> 81.31057986 | R46: ='Samlet hovedstaden -alle værker'!T26 -> 81.21006306 | S46: ='Samlet hovedstaden -alle værker'!U26 -> 80.79625808 | T46: ='Samlet hovedstaden -alle værker'!V26 -> 78.25953127 | U46: ='Samlet hovedstaden -alle værker'!W26 -> 84.07501874 | V46: ='Samlet hovedstaden -alle værker'!X26 -> 81.43155966 | W46: ='Samlet hovedstaden -alle værker'!Y26 -> 80.53747731 | X46: ='Samlet hovedstaden -alle værker'!Z26 -> 79.61628426 | Y46: ='Samlet hovedstaden -alle værker'!AA26 -> 78.73897302 | Z46: ='Samlet hovedstaden -alle værker'!AB26 -> 77.87039908 | AA46: ='Samlet hovedstaden -alle værker'!AC26 -> 77.01858383 | AB46: ='Samlet hovedstaden -alle værker'!AD26 -> 77.01858383 | AC46: ='Samlet hovedstaden -alle værker'!AE26 -> 77.01858383 | AD46: ='Samlet hovedstaden -alle værker'!AF26 -> 77.01858383 | AE46: ='Samlet hovedstaden -alle værker'!AG26 -> 77.01858383 | AF46: ='Samlet hovedstaden -alle værker'!AH26 -> 77.01858383 | AG46: ='Samlet hovedstaden -alle værker'!AI26 -> 77.01858383 | AH46: ='Samlet hovedstaden -alle værker'!AJ26 -> 77.01858383 | AI46: ='Samlet hovedstaden -alle værker'!AK26 -> 77.01858383 | AJ46: ='Samlet hovedstaden -alle værker'!AL26 -> 77.01858383 | AK46: ='Samlet hovedstaden -alle værker'!AM26 -> 77.01858383
D47: Varmetransmissionsomkostning | F47: 1.952048484 | G47: =Netomkostning!E11 -> 1.78730284 | H47: =Netomkostning!F11 -> 1.760040803 | I47: =Netomkostning!G11 -> 4.14690353 | J47: =Netomkostning!H11 -> 2.514830111 | K47: =Netomkostning!I11 -> 2.240251721 | L47: =Netomkostning!J11 -> 2.186362505 | M47: =Netomkostning!K11 -> 2.160700973 | N47: =Netomkostning!L11 -> 2.104245603 | O47: =Netomkostning!M11 -> 2.050356386 | P47: =Netomkostning!N11 -> 1.942577953 | Q47: =Netomkostning!O11 -> 1.77834415 | R47: =Netomkostning!P11 -> 1.77834415 | S47: =Netomkostning!Q11 -> 1.77834415 | T47: =Netomkostning!R11 -> 1.77834415 | U47: =Netomkostning!S11 -> 1.77834415 | V47: =Netomkostning!T11 -> 1.77834415 | W47: =Netomkostning!U11 -> 1.77834415 | X47: =Netomkostning!V11 -> 1.77834415 | Y47: =Netomkostning!W11 -> 1.77834415 | Z47: =Netomkostning!X11 -> 1.77834415 | AA47: =Netomkostning!Y11 -> 1.77834415 | AB47: =Netomkostning!Z11 -> 1.77834415 | AC47: =Netomkostning!AA11 -> 1.77834415 | AD47: =Netomkostning!AB11 -> 1.77834415 | AE47: =Netomkostning!AC11 -> 1.77834415 | AF47: =Netomkostning!AD11 -> 1.77834415 | AG47: =Netomkostning!AE11 -> 1.77834415 | AH47: =Netomkostning!AF11 -> 1.77834415 | AI47: =Netomkostning!AG11 -> 1.77834415 | AJ47: =Netomkostning!AH11 -> 1.77834415 | AK47: =Netomkostning!AI11 -> 1.77834415
D48: Samfundsøkonomiske pris i alt (uden afgifter) | F48: 77.53916663 | G48: =SUM(G46:G47) -> 71.43589217 | H48: 69.97066875 | I48: 45.90003228 | J48: 76.28036652 | K48: 69.43331767 | L48: 69.5169569 | M48: 70.1121915 | N48: 71.47107534 | O48: 72.96160041 | P48: 75.74922831 | Q48: 83.08892401 | R48: 82.98840721 | S48: 82.57460223 | T48: 80.03787542 | U48: 85.85336289 | V48: 83.20990381 | W48: 82.31582146 | X48: 81.39462841 | Y48: 80.51731717 | Z48: 79.64874323 | AA48: 78.79692798 | AB48: =SUM(AB46:AB47) -> 78.79692798 | AC48: 78.79692798 | AD48: 78.79692798 | AE48: 78.79692798 | AF48: 78.79692798 | AG48: 78.79692798 | AH48: 78.79692798 | AI48: 78.79692798 | AJ48: 78.79692798 | AK48: 78.79692798
D49: Afgifter | F49: 6.857527761 | G49: ='Samlet hovedstaden -alle værker'!I43 -> 14.78853898 | H49: ='Samlet hovedstaden -alle værker'!J43 -> 13.37926559 | I49: ='Samlet hovedstaden -alle værker'!K43 -> 12.52478919 | J49: ='Samlet hovedstaden -alle værker'!L43 -> 11.91168722 | K49: ='Samlet hovedstaden -alle værker'!M43 -> 11.45034145 | L49: ='Samlet hovedstaden -alle værker'!N43 -> 11.0280576 | M49: ='Samlet hovedstaden -alle værker'!O43 -> 10.21300897 | N49: ='Samlet hovedstaden -alle værker'!P43 -> 9.395308085 | O49: ='Samlet hovedstaden -alle værker'!Q43 -> 8.574941984 | P49: ='Samlet hovedstaden -alle værker'!R43 -> 7.751897614 | Q49: ='Samlet hovedstaden -alle værker'!S43 -> 6.926161839 | R49: ='Samlet hovedstaden -alle værker'!T43 -> 5.61642852 | S49: ='Samlet hovedstaden -alle værker'!U43 -> 4.689868537 | T49: ='Samlet hovedstaden -alle værker'!V43 -> 4.005014232 | U49: ='Samlet hovedstaden -alle værker'!W43 -> 4.965339487 | V49: ='Samlet hovedstaden -alle værker'!X43 -> 4.695178292 | W49: ='Samlet hovedstaden -alle værker'!Y43 -> 4.349185098 | X49: ='Samlet hovedstaden -alle værker'!Z43 -> 4.005174947 | Y49: ='Samlet hovedstaden -alle værker'!AA43 -> 3.663130839 | Z49: ='Samlet hovedstaden -alle værker'!AB43 -> 3.323035967 | AA49: ='Samlet hovedstaden -alle værker'!AC43 -> 2.984873717 | AB49: ='Samlet hovedstaden -alle værker'!AD43 -> 2.984873717 | AC49: ='Samlet hovedstaden -alle værker'!AE43 -> 2.984873717 | AD49: ='Samlet hovedstaden -alle værker'!AF43 -> 2.984873717 | AE49: ='Samlet hovedstaden -alle værker'!AG43 -> 2.984873717 | AF49: ='Samlet hovedstaden -alle værker'!AH43 -> 2.984873717 | AG49: ='Samlet hovedstaden -alle værker'!AI43 -> 2.984873717 | AH49: ='Samlet hovedstaden -alle værker'!AJ43 -> 2.984873717 | AI49: ='Samlet hovedstaden -alle værker'!AK43 -> 2.984873717 | AJ49: ='Samlet hovedstaden -alle værker'!AL43 -> 2.984873717 | AK49: ='Samlet hovedstaden -alle værker'!AM43 -> 2.984873717
D50: Eltilskud | F50: -9.132329843 | G50: ='Samlet hovedstaden -alle værker'!I42 -> -12.91567998 | H50: ='Samlet hovedstaden -alle værker'!J42 -> -12.91341565 | I50: ='Samlet hovedstaden -alle værker'!K42 -> -12.84443459 | J50: ='Samlet hovedstaden -alle værker'!L42 -> -12.70395523 | K50: ='Samlet hovedstaden -alle værker'!M42 -> -12.56533175 | L50: ='Samlet hovedstaden -alle værker'!N42 -> -12.27971722 | M50: ='Samlet hovedstaden -alle værker'!O42 -> -12.05540434 | N50: ='Samlet hovedstaden -alle værker'!P42 -> -11.84955076 | O50: ='Samlet hovedstaden -alle værker'!Q42 -> -11.65029172 | P50: ='Samlet hovedstaden -alle værker'!R42 -> -11.44724594 | Q50: ='Samlet hovedstaden -alle værker'!S42 -> -11.25084146 | R50: ='Samlet hovedstaden -alle værker'!T42 -> -11.28090325 | S50: ='Samlet hovedstaden -alle værker'!U42 -> -10.59865481 | T50: ='Samlet hovedstaden -alle værker'!V42 -> -10.04584615 | U50: ='Samlet hovedstaden -alle værker'!W42 -> -5.047553578 | V50: ='Samlet hovedstaden -alle værker'!X42 -> -5.035010198 | W50: ='Samlet hovedstaden -alle værker'!Y42 -> -4.915733726 | X50: ='Samlet hovedstaden -alle værker'!Z42 -> -4.797466466 | Y50: ='Samlet hovedstaden -alle værker'!AA42 -> -4.683903364 | Z50: ='Samlet hovedstaden -alle værker'!AB42 -> -4.57143088 | AA50: ='Samlet hovedstaden -alle værker'!AC42 -> -4.460226477 | AB50: ='Samlet hovedstaden -alle værker'!AD42 -> -4.372525395 | AC50: ='Samlet hovedstaden -alle værker'!AE42 -> -4.288206723 | AD50: ='Samlet hovedstaden -alle værker'!AF42 -> -4.204237787 | AE50: ='Samlet hovedstaden -alle værker'!AG42 -> -4.123494147 | AF50: ='Samlet hovedstaden -alle værker'!AH42 -> -4.043166339 | AG50: ='Samlet hovedstaden -alle værker'!AI42 -> -3.964277222 | AH50: ='Samlet hovedstaden -alle værker'!AJ42 -> -3.886927368 | AI50: ='Samlet hovedstaden -alle værker'!AK42 -> -3.811086742 | AJ50: ='Samlet hovedstaden -alle værker'!AL42 -> -3.736725896 | AK50: ='Samlet hovedstaden -alle værker'!AM42 -> -3.663815959
D54: Nutidsværdi af 20 år | F54: =NPV(Rente,J54:AC54) -> 14.2124033 | G54: 1 | H54: 1 | I54: 1 | J54: 1 | K54: 1 | L54: 1 | M54: 1 | N54: 1 | O54: 1 | P54: 1 | Q54: 1 | R54: 1 | S54: 1 | T54: 1 | U54: 1 | V54: 1 | W54: 1 | X54: 1 | Y54: 1 | Z54: 1 | AA54: 1 | AB54: 1 | AC54: 1 | AD54: 1 | AE54: 1 | AF54: 1 | AG54: 1 | AH54: 1 | AI54: 1 | AJ54: 1 | AK54: 1

Sheet Samlet hovedstaden -alle værker (hidden)
C3: Samlede samfundsøkonomiske fjernvarmepris for hovedstadsområdet
C6: Marginale pris (samlede pris for nye, konverterede kunder)
C7: ="Enhed: Kr/"&Sammenligning!$G$9 -> Enhed: Kr/GJ | E7: 2016 | F7: 2017 | G7: 2018 | H7: 2019 | I7: 2020 | J7: 2021 | K7: 2022 | L7: 2023 | M7: 2024 | N7: 2025 | O7: 2026 | P7: 2027 | Q7: 2028 | R7: 2029 | S7: 2030 | T7: 2031 | U7: 2032 | V7: 2033 | W7: 2034 | X7: 2035 | Y7: 2036 | Z7: 2037 | AA7: 2038 | AB7: 2039 | AC7: 2040 | AD7: 2041 | AE7: 2042 | AF7: 2043 | AG7: 2044 | AH7: 2045 | AI7: 2046 | AJ7: 2047 | AK7: 2048 | AL7: 2049 | AM7: 2050
C8: =C49 -> AMV1træ | E8: =E94*E179 -> 4.106926227 | F8: 3.168253044 | G8: 4.004519116 | H8: 3.634358947 | I8: 3.500971794 | J8: 4.046964005 | K8: 1.619209074 | L8: 4.466262534 | M8: 4.550628942 | N8: 4.739866005 | O8: 3.937923444 | P8: 3.26107547 | Q8: 2.66219376 | R8: 2.210312052 | S8: 1.871283725 | T8: 3.050133414 | U8: 2.453830835 | V8: 4.986920308 | W8: 3.967516183 | X8: 3.841034946 | Y8: 3.994563556 | Z8: 4.141788677 | AA8: 4.297115783 | AB8: 4.453441856 | AC8: 4.610758382 | AD8: =AD94*AD179 -> 4.610758382 | AE8: 4.610758382 | AF8: 4.610758382 | AG8: 4.610758382 | AH8: 4.610758382 | AI8: 4.610758382 | AJ8: 4.610758382 | AK8: 4.610758382 | AL8: 4.610758382 | AM8: 4.610758382
C9: =C50 -> AMV1træBP | E9: =E95*E180 -> 2.107471689 | F9: 1.697002826 | G9: 2.194035637 | H9: 2.178337145 | I9: 2.15520916 | J9: 2.412861946 | K9: 3.260553649 | L9: 3.272545981 | M9: 3.120615865 | N9: 3.164799271 | O9: 4.500780442 | P9: 5.84375468 | Q9: 7.206821657 | R9: 8.573648344 | S9: 9.964061559 | T9: 9.162234716 | U9: 7.635750799 | V9: 3.719740731 | W9: -0.2912482237 | X9: -1.19136336 | Y9: -1.176516883 | Z9: -1.160227854 | AA9: -1.145344487 | AB9: -1.130431333 | AC9: -1.115488645 | AD9: =AD95*AD180 -> -1.115488645 | AE9: -1.115488645 | AF9: -1.115488645 | AG9: -1.115488645 | AH9: -1.115488645 | AI9: -1.115488645 | AJ9: -1.115488645 | AK9: -1.115488645 | AL9: -1.115488645 | AM9: -1.115488645
C10: AMV3kul | E10: =E96*E181 -> 0 | F10: 0 | G10: 0 | H10: 0 | I10: 0 | J10: 0 | K10: 0 | L10: 0 | M10: 0 | N10: 0 | O10: 0 | P10: 0 | Q10: 0 | R10: 0 | S10: 0 | T10: 0 | U10: 0 | V10: 0 | W10: 0 | X10: 0 | Y10: 0 | Z10: 0 | AA10: 0 | AB10: 0 | AC10: 0 | AD10: =AD96*AD181 -> 0 | AE10: 0 | AF10: 0 | AG10: 0 | AH10: 0 | AI10: 0 | AJ10: 0 | AK10: 0 | AL10: 0 | AM10: 0
C11: AMV4træ | E11: =E97*E182 -> 2.659433957 | F11: 2.77085973 | G11: 2.136396008 | H11: 1.417866529 | I11: 1.278374084 | J11: 1.116948273 | K11: -6.621098838 | L11: -1.741022645 | M11: -1.090150224 | N11: -1.109933405 | O11: -0.9236165495 | P11: -0.5655163488 | Q11: -0.130480483 | R11: 0.6081034934 | S11: 1.670959169 | T11: 2.827603278 | U11: 2.225918998 | V11: 2.262747012 | W11: 3.071863915 | X11: 2.430041734 | Y11: 2.262049386 | Z11: 2.088159427 | AA11: 1.908422417 | AB11: 1.722888337 | AC11: 1.539715892 | AD11: =AD97*AD182 -> 1.539715892 | AE11: 1.539715892 | AF11: 1.539715892 | AG11: 1.539715892 | AH11: 1.539715892 | AI11: 1.539715892 | AJ11: 1.539715892 | AK11: 1.539715892 | AL11: 1.539715892 | AM11: 1.539715892
C12: AMV4træBP | E12: =E98*E183 -> 4.760835505 | F12: 4.847278781 | G12: 4.905379759 | H12: 4.90641984 | I12: 4.941840913 | J12: 5.39989647 | K12: 5.903167963 | L12: 6.141526306 | M12: 6.319524289 | N12: 6.426561003 | O12: 6.039198203 | P12: 5.646215363 | Q12: 5.247585007 | R12: 4.843279477 | S12: 4.433270938 | T12: 2.459596748 | U12: 2.416743703 | V12: 2.0176787 | W12: -0.551522697 | X12: 0.8792827804 | Y12: 0.9538162612 | Z12: 1.028620296 | AA12: 1.103692567 | AB12: 1.179030779 | AC12: 1.256603905 | AD12: =AD98*AD183 -> 1.256603905 | AE12: 1.256603905 | AF12: 1.256603905 | AG12: 1.256603905 | AH12: 1.256603905 | AI12: 1.256603905 | AJ12: 1.256603905 | AK12: 1.256603905 | AL12: 1.256603905 | AM12: 1.256603905
C13: AVV1træ | E13: =E99*E184 -> 27.65001874 | F13: 21.48688761 | G13: 27.31064304 | H13: 25.25083686 | I13: 24.46429061 | J13: 22.15782329 | K13: 8.45212576 | L13: 18.1062969 | M13: 16.42584828 | N13: 15.50583185 | O13: 15.40121295 | P13: 15.46212747 | Q13: 15.52987315 | R13: 15.94691453 | S13: 16.74364577 | T13: 15.84354987 | U13: 14.25567821 | V13: 12.79921161 | W13: 0 | X13: 0 | Y13: 0 | Z13: 0 | AA13: 0 | AB13: 0 | AC13: 0 | AD13: =AD99*AD184 -> 0 | AE13: 0 | AF13: 0 | AG13: 0 | AH13: 0 | AI13: 0 | AJ13: 0 | AK13: 0 | AL13: 0 | AM13: 0
C14: AVV1kul | E14: =E100*E185 -> 0 | F14: 0 | G14: 0 | H14: 0 | I14: 0 | J14: 0 | K14: 0 | L14: 0 | M14: 0 | N14: 0 | O14: 0 | P14: 0 | Q14: 0 | R14: 0 | S14: 0 | T14: 0 | U14: 0 | V14: 0 | W14: 0 | X14: 0 | Y14: 0 | Z14: 0 | AA14: 0 | AB14: 0 | AC14: 0 | AD14: =AD100*AD185 -> 0 | AE14: 0 | AF14: 0 | AG14: 0 | AH14: 0 | AI14: 0 | AJ14: 0 | AK14: 0 | AL14: 0 | AM14: 0
C15: AVV2træ | E15: =E101*E186 -> 16.22689625 | F15: 12.17859042 | G15: 15.14821435 | H15: 12.84288042 | I15: 12.09688785 | J15: 14.44292482 | K15: -5.357359534 | L15: 13.19708678 | M15: 14.61394216 | N15: 15.77171977 | O15: 16.87932287 | P15: 18.27952731 | Q15: 19.71674118 | R15: 21.7466557 | S15: 24.42617202 | T15: 23.81761589 | U15: 23.13823091 | V15: 21.8237792 | W15: 12.09884814 | X15: 12.95356296 | Y15: 13.10877935 | Z15: 13.22534596 | AA15: 13.35738403 | AB15: 13.47831764 | AC15: 13.58824146 | AD15: =AD101*AD186 -> 13.58824146 | AE15: 13.58824146 | AF15: 13.58824146 | AG15: 13.58824146 | AH15: 13.58824146 | AI15: 13.58824146 | AJ15: 13.58824146 | AK15: 13.58824146 | AL15: 13.58824146 | AM15: 13.58824146
C16: AVV2halm | E16: =E102*E187 -> 0.7592848343 | F16: 0.7884041998 | G16: 0.6317317957 | H16: 0.4532255272 | I16: 0.4191556367 | J16: 0.6275575453 | K16: -1.869009677 | L16: 0.0252339187 | M16: 0.4513578232 | N16: 0.6242241621 | O16: 0.7474698066 | P16: 0.8973280088 | Q16: 1.032145665 | R16: 1.210477752 | S16: 1.416493995 | T16: 1.362534688 | U16: 1.309850134 | V16: 1.23449046 | W16: 0.2984534761 | X16: 0.4491533856 | Y16: 0.467461535 | Z16: 0.4832449337 | AA16: 0.5019233686 | AB16: 0.520821634 | AC16: 0.5369684795 | AD16: =AD102*AD187 -> 0.5369684795 | AE16: 0.5369684795 | AF16: 0.5369684795 | AG16: 0.5369684795 | AH16: 0.5369684795 | AI16: 0.5369684795 | AJ16: 0.5369684795 | AK16: 0.5369684795 | AL16: 0.5369684795 | AM16: 0.5369684795
C17: AVV2gasGT | E17: =E103*E188 -> 0.3734247272 | F17: 0.3875658907 | G17: 0.4779338942 | H17: 0.2887148321 | I17: 0.01138047593 | J17: -0.1344051566 | K17: -1.805394472 | L17: 0.6983103133 | M17: -0.1939489923 | N17: -0.04882628882 | O17: -0.1755728768 | P17: -0.1728209445 | Q17: -0.1421059839 | R17: 0.008337879428 | S17: 0.1888778074 | T17: 0.3607997557 | U17: 0.6214337132 | V17: -0.1767559774 | W17: 12.02967688 | X17: 9.295318628 | Y17: 8.131115849 | Z17: 7.003974523 | AA17: 5.913576936 | AB17: 4.859608997 | AC17: 3.841760183 | AD17: =AD103*AD188 -> 3.841760183 | AE17: 3.841760183 | AF17: 3.841760183 | AG17: 3.841760183 | AH17: 3.841760183 | AI17: 3.841760183 | AJ17: 3.841760183 | AK17: 3.841760183 | AL17: 3.841760183 | AM17: 3.841760183
C18: KKV | E18: =E104*E189 -> 3.326261493 | F18: 3.426456561 | G18: 3.05037809 | H18: 2.601588854 | I18: 2.526906362 | J18: 2.079543029 | K18: -0.6123902551 | L18: 0.9319261948 | M18: 1.001354017 | N18: 0.9049406164 | O18: 0.9180654258 | P18: 0.9429931485 | Q18: 0.9700736767 | R18: 1.037722423 | S18: 1.161423708 | T18: 0.6724451107 | U18: 1.255786184 | V18: 0.7552065954 | W18: -0.008623602663 | X18: 0.1065828462 | Y18: 0.1526392069 | Z18: 0.1885067847 | AA18: 0.2142729241 | AB18: 0.2300239739 | AC18: 0.2368950363 | AD18: =AD104*AD189 -> 0.2368950363 | AE18: 0.2368950363 | AF18: 0.2368950363 | AG18: 0.2368950363 | AH18: 0.2368950363 | AI18: 0.2368950363 | AJ18: 0.2368950363 | AK18: 0.2368950363 | AL18: 0.2368950363 | AM18: 0.2368950363
C19: HCVgas | E19: =E105*E190 -> 2.49976485 | F19: 2.512466134 | G19: 3.407922088 | H19: 3.49307255 | I19: 2.816267789 | J19: 1.419125266 | K19: 1.887212163 | L19: 1.258436493 | M19: 0.2860742155 | N19: 0 | O19: 0 | P19: 0 | Q19: 0 | R19: 0 | S19: 0 | T19: 0 | U19: 0 | V19: 0 | W19: 0 | X19: 0 | Y19: 0 | Z19: 0 | AA19: 0 | AB19: 0 | AC19: 0 | AD19: =AD105*AD190 -> 0 | AE19: 0 | AF19: 0 | AG19: 0 | AH19: 0 | AI19: 0 | AJ19: 0 | AK19: 0 | AL19: 0 | AM19: 0
C20: SPolie | E20: =E106*E191 -> 3.839524327 | F20: 3.915302757 | G20: 4.49644804 | H20: 5.001721436 | I20: 5.154892893 | J20: 4.873987644 | K20: 6.090533612 | L20: 5.78638316 | M20: 5.516673007 | N20: 5.26854834 | O20: 4.246969743 | P20: 3.219045145 | Q20: 2.172720277 | R20: 1.100447151 | S20: 0.001068376847 | T20: 0.00532200686 | U20: 0.01685792691 | V20: 0.03567485613 | W20: 0.05911472038 | X20: 0.08401338667 | Y20: 0.06820335411 | Z20: 0.05191379832 | AA20: 0.0352052898 | AB20: 0.01801645712 | AC20: 0.0002863574895 | AD20: =AD106*AD191 -> 0.0002863574895 | AE20: 0.0002863574895 | AF20: 0.0002863574895 | AG20: 0.0002863574895 | AH20: 0.0002863574895 | AI20: 0.0002863574895 | AJ20: 0.0002863574895 | AK20: 0.0002863574895 | AL20: 0.0002863574895 | AM20: 0.0002863574895
C21: SPgas | E21: =E107*E192 -> 6.498449109 | F21: 6.461653105 | G21: 8.954542881 | H21: 10.30154571 | I21: 9.590272599 | J21: 8.494411137 | K21: 26.13313701 | L21: 18.52726077 | M21: 13.21795591 | N21: 12.69690589 | O21: 12.60499239 | P21: 12.50306204 | Q21: 12.38179261 | R21: 12.23475365 | S21: 12.07894661 | T21: 9.72722654 | U21: 8.173203554 | V21: 6.899780125 | W21: 5.048922578 | X21: 4.636944641 | Y21: 4.543870668 | Z21: 4.451330144 | AA21: 4.359318495 | AB21: 4.267831201 | AC21: 4.176863793 | AD21: =AD107*AD192 -> 4.176863793 | AE21: 4.176863793 | AF21: 4.176863793 | AG21: 4.176863793 | AH21: 4.176863793 | AI21: 4.176863793 | AJ21: 4.176863793 | AK21: 4.176863793 | AL21: 4.176863793 | AM21: 4.176863793
C22: GeoEl | E22: =E108*E193 -> 0 | F22: 0 | G22: 0 | H22: 0 | I22: 0 | J22: 0 | K22: 0 | L22: 0 | M22: 0 | N22: 0.3279235608 | O22: 0.3447068584 | P22: 0.3554013831 | Q22: 0.3646981808 | R22: 0.3603557987 | S22: 0.3400296954 | T22: 0.2888196865 | U22: 0.3027120918 | V22: 0.3282588291 | W22: 0.4900939221 | X22: 0.4162190133 | Y22: 0.4174535501 | Z22: 0.4185295751 | AA22: 0.4194484474 | AB22: 0.4202115102 | AC22: 0.4208200916 | AD22: =AD108*AD193 -> 0.4208200916 | AE22: 0.4208200916 | AF22: 0.4208200916 | AG22: 0.4208200916 | AH22: 0.4208200916 | AI22: 0.4208200916 | AJ22: 0.4208200916 | AK22: 0.4208200916 | AL22: 0.4208200916 | AM22: 0.4208200916
C23: GeoVa | E23: =E109*E194 -> 0.1370954695 | F23: 0.1176518575 | G23: 0.1304908574 | H23: 0.1381254199 | I23: 0.1425758894 | J23: 0.09017663559 | K23: 0.1375189267 | L23: 0.04793516374 | M23: 0.01875617816 | N23: 0 | O23: 0 | P23: 0 | Q23: 0 | R23: 0 | S23: 0 | T23: 0 | U23: 0 | V23: 0 | W23: 0 | X23: 0 | Y23: 0 | Z23: 0 | AA23: 0 | AB23: 0 | AC23: 0 | AD23: =AD109*AD194 -> 0 | AE23: 0 | AF23: 0 | AG23: 0 | AH23: 0 | AI23: 0 | AJ23: 0 | AK23: 0 | AL23: 0 | AM23: 0
C24: VP | E24: =IF(Sammenligning!$G$9="GJ",1,(1*3.6))*E$115*E195 -> 0.4923336332 | F24: =IF(Sammenligning!$G$9="GJ",1,(1*3.6))*F$115*F195 -> 0.4123734311 | G24: =IF(Sammenligning!$G$9="GJ",1,(1*3.6))*G$115*G195 -> 0.4802028143 | H24: =IF(Sammenligning!$G$9="GJ",1,(1*3.6))*H$115*H195 -> 0.5275532993 | I24: =IF(Sammenligning!$G$9="GJ",1,(1*3.6))*I$115*I195 -> 0.5495632743 | J24: =IF(Sammenligning!$G$9="GJ",1,(1*3.6))*J$115*J195 -> 1.182813029 | K24: =IF(Sammenligning!$G$9="GJ",1,(1*3.6))*K$115*K195 -> 4.534923369 | L24: =IF(Sammenligning!$G$9="GJ",1,(1*3.6))*L$115*L195 -> 3.047354533 | M24: =IF(Sammenligning!$G$9="GJ",1,(1*3.6))*M$115*M195 -> 2.954434478 | N24: =IF(Sammenligning!$G$9="GJ",1,(1*3.6))*N$115*N195 -> 3.058033631 | O24: =IF(Sammenligning!$G$9="GJ",1,(1*3.6))*O$115*O195 -> 3.430037821 | P24: =IF(Sammenligning!$G$9="GJ",1,(1*3.6))*P$115*P195 -> 3.694637015 | Q24: =IF(Sammenligning!$G$9="GJ",1,(1*3.6))*Q$115*Q195 -> 3.899185325 | R24: =IF(Sammenligning!$G$9="GJ",1,(1*3.6))*R$115*R195 -> 3.92564211 | S24: =IF(Sammenligning!$G$9="GJ",1,(1*3.6))*S$115*S195 -> 7.014346499 | T24: =IF(Sammenligning!$G$9="GJ",1,(1*3.6))*T$115*T195 -> 11.63218135 | U24: =IF(Sammenligning!$G$9="GJ",1,(1*3.6))*U$115*U195 -> 16.99026102 | V24: =IF(Sammenligning!$G$9="GJ",1,(1*3.6))*V$115*V195 -> 21.57299659 | W24: =IF(Sammenligning!$G$9="GJ",1,(1*3.6))*W$115*W195 -> 47.86197159 | X24: =IF(Sammenligning!$G$9="GJ",1,(1*3.6))*X$115*X195 -> 47.53076869 | Y24: =IF(Sammenligning!$G$9="GJ",1,(1*3.6))*Y$115*Y195 -> 47.61404147 | Z24: =IF(Sammenligning!$G$9="GJ",1,(1*3.6))*Z$115*Z195 -> 47.69509799 | AA24: =IF(Sammenligning!$G$9="GJ",1,(1*3.6))*AA$115*AA195 -> 47.77395725 | AB24: =IF(Sammenligning!$G$9="GJ",1,(1*3.6))*AB$115*AB195 -> 47.85063803 | AC24: =IF(Sammenligning!$G$9="GJ",1,(1*3.6))*AC$115*AC195 -> 47.9251589 | AD24: =IF(Sammenligning!$G$9="GJ",1,(1*3.6))*AD$115*AD195 -> 47.9251589 | AE24: =IF(Sammenligning!$G$9="GJ",1,(1*3.6))*AE$115*AE195 -> 47.9251589 | AF24: =IF(Sammenligning!$G$9="GJ",1,(1*3.6))*AF$115*AF195 -> 47.9251589 | AG24: =IF(Sammenligning!$G$9="GJ",1,(1*3.6))*AG$115*AG195 -> 47.9251589 | AH24: =IF(Sammenligning!$G$9="GJ",1,(1*3.6))*AH$115*AH195 -> 47.9251589 | AI24: =IF(Sammenligning!$G$9="GJ",1,(1*3.6))*AI$115*AI195 -> 47.9251589 | AJ24: =IF(Sammenligning!$G$9="GJ",1,(1*3.6))*AJ$115*AJ195 -> 47.9251589 | AK24: =IF(Sammenligning!$G$9="GJ",1,(1*3.6))*AK$115*AK195 -> 47.9251589 | AL24: =IF(Sammenligning!$G$9="GJ",1,(1*3.6))*AL$115*AL195 -> 47.9251589 | AM24: =IF(Sammenligning!$G$9="GJ",1,(1*3.6))*AM$115*AM195 -> 47.9251589
C25: Sol | E25: =E111*E196 -> 0 | F25: 0 | G25: 0 | H25: 0 | I25: 0 | J25: 0 | K25: 0 | L25: 0 | M25: 0 | N25: 0 | O25: 0 | P25: 0 | Q25: 0 | R25: 0 | S25: 0 | T25: 0 | U25: 0 | V25: -0.0001977691638 | W25: -4.814656152e-05 | X25: 0 | Y25: 0 | Z25: 0 | AA25: 0 | AB25: 0 | AC25: 0 | AD25: =AD111*AD196 -> 0 | AE25: 0 | AF25: 0 | AG25: 0 | AH25: 0 | AI25: 0 | AJ25: 0 | AK25: 0 | AL25: 0 | AM25: 0
C26: Total | E26: =SUM(E8:E25) -> 75.43772081 | F26: =SUM(F8:F25) -> 64.17074635 | G26: =SUM(G8:G25) -> 77.32883837 | H26: =SUM(H8:H25) -> 73.03624736 | I26: =SUM(I8:I25) -> 69.64858933 | J26: =SUM(J8:J25) -> 68.21062794 | K26: =SUM(K8:K25) -> 41.75312875 | L26: =SUM(L8:L25) -> 73.76553641 | M26: =SUM(M8:M25) -> 67.19306594 | N26: =SUM(N8:N25) -> 67.3305944 | O26: =SUM(O8:O25) -> 67.95149053 | P26: =SUM(P8:P25) -> 69.36682974 | Q26: =SUM(Q8:Q25) -> 70.91124403 | R26: =SUM(R8:R25) -> 73.80665036 | S26: =SUM(S8:S25) -> 81.31057986 | T26: =SUM(T8:T25) -> 81.21006306 | U26: =SUM(U8:U25) -> 80.79625808 | V26: =SUM(V8:V25) -> 78.25953127 | W26: =SUM(W8:W25) -> 84.07501874 | X26: =SUM(X8:X25) -> 81.43155966 | Y26: =SUM(Y8:Y25) -> 80.53747731 | Z26: =SUM(Z8:Z25) -> 79.61628426 | AA26: =SUM(AA8:AA25) -> 78.73897302 | AB26: =SUM(AB8:AB25) -> 77.87039908 | AC26: =SUM(AC8:AC25) -> 77.01858383 | AD26: =SUM(AD8:AD25) -> 77.01858383 | AE26: 77.01858383 | AF26: 77.01858383 | AG26: 77.01858383 | AH26: =SUM(AH8:AH25) -> 77.01858383 | AI26: =SUM(AI8:AI25) -> 77.01858383 | AJ26: 77.01858383 | AK26: 77.01858383 | AL26: 77.01858383 | AM26: =SUM(AM8:AM25) -> 77.01858383
C28: Marginale omkostninger for alle værker (vægtet med marginale ændringer)
C29: ="Enhed: Kr/"&Sammenligning!$G$9 -> Enhed: Kr/GJ | E29: 2016 | F29: 2017 | G29: 2018 | H29: 2019 | I29: 2020 | J29: 2021 | K29: 2022 | L29: 2023 | M29: 2024 | N29: 2025 | O29: 2026 | P29: 2027 | Q29: 2028 | R29: 2029 | S29: 2030 | T29: 2031 | U29: 2032 | V29: 2033 | W29: 2034 | X29: 2035 | Y29: 2036 | Z29: 2037 | AA29: 2038 | AB29: 2039 | AC29: 2040 | AD29: 2041 | AE29: 2042 | AF29: 2043 | AG29: 2044 | AH29: 2045 | AI29: 2046 | AJ29: 2047 | AK29: 2048 | AL29: 2049 | AM29: 2050
C30: Kapitalomkostning | D30: ="Kr/"&Sammenligning!$G$9 -> Kr/GJ | E30: =IF(Sammenligning!$G$9="GJ",1,(1*3.6))*E160 -> 0 | F30: =IF(Sammenligning!$G$9="GJ",1,(1*3.6))*F160 -> 0 | G30: =IF(Sammenligning!$G$9="GJ",1,(1*3.6))*G160 -> 0 | H30: =IF(Sammenligning!$G$9="GJ",1,(1*3.6))*H160 -> 0 | I30: =IF(Sammenligning!$G$9="GJ",1,(1*3.6))*I160 -> 0 | J30: =IF(Sammenligning!$G$9="GJ",1,(1*3.6))*J160 -> 0 | K30: =IF(Sammenligning!$G$9="GJ",1,(1*3.6))*K160 -> 0 | L30: =IF(Sammenligning!$G$9="GJ",1,(1*3.6))*L160 -> 0 | M30: =IF(Sammenligning!$G$9="GJ",1,(1*3.6))*M160 -> 0 | N30: =IF(Sammenligning!$G$9="GJ",1,(1*3.6))*N160 -> 0 | O30: =IF(Sammenligning!$G$9="GJ",1,(1*3.6))*O160 -> 0 | P30: =IF(Sammenligning!$G$9="GJ",1,(1*3.6))*P160 -> 0 | Q30: =IF(Sammenligning!$G$9="GJ",1,(1*3.6))*Q160 -> 0 | R30: =IF(Sammenligning!$G$9="GJ",1,(1*3.6))*R160 -> 0 | S30: =IF(Sammenligning!$G$9="GJ",1,(1*3.6))*S160 -> 3.148367539 | T30: =IF(Sammenligning!$G$9="GJ",1,(1*3.6))*T160 -> 6.283784967 | U30: =IF(Sammenligning!$G$9="GJ",1,(1*3.6))*U160 -> 9.499808083 | V30: =IF(Sammenligning!$G$9="GJ",1,(1*3.6))*V160 -> 12.43530163 | W30: =IF(Sammenligning!$G$9="GJ",1,(1*3.6))*W160 -> 24.88216116 | X30: =IF(Sammenligning!$G$9="GJ",1,(1*3.6))*X160 -> 24.9987872 | Y30: =IF(Sammenligning!$G$9="GJ",1,(1*3.6))*Y160 -> 24.92694166 | Z30: =IF(Sammenligning!$G$9="GJ",1,(1*3.6))*Z160 -> 24.8555079 | AA30: =IF(Sammenligning!$G$9="GJ",1,(1*3.6))*AA160 -> 24.78448239 | AB30: =IF(Sammenligning!$G$9="GJ",1,(1*3.6))*AB160 -> 24.71386164 | AC30: =IF(Sammenligning!$G$9="GJ",1,(1*3.6))*AC160 -> 24.6436422 | AD30: =IF(Sammenligning!$G$9="GJ",1,(1*3.6))*AD160 -> 24.6436422 | AE30: =IF(Sammenligning!$G$9="GJ",1,(1*3.6))*AE160 -> 24.6436422 | AF30: =IF(Sammenligning!$G$9="GJ",1,(1*3.6))*AF160 -> 24.6436422 | AG30: =IF(Sammenligning!$G$9="GJ",1,(1*3.6))*AG160 -> 24.6436422 | AH30: =IF(Sammenligning!$G$9="GJ",1,(1*3.6))*AH160 -> 24.6436422 | AI30: =IF(Sammenligning!$G$9="GJ",1,(1*3.6))*AI160 -> 24.6436422 | AJ30: =IF(Sammenligning!$G$9="GJ",1,(1*3.6))*AJ160 -> 24.6436422 | AK30: =IF(Sammenligning!$G$9="GJ",1,(1*3.6))*AK160 -> 24.6436422 | AL30: =IF(Sammenligning!$G$9="GJ",1,(1*3.6))*AL160 -> 24.6436422 | AM30: =IF(Sammenligning!$G$9="GJ",1,(1*3.6))*AM160 -> 24.6436422
C31: Faste D&V | D31: ="Kr/"&Sammenligning!$G$9 -> Kr/GJ | E31: =IF(Sammenligning!$G$9="GJ",1,(1*3.6))*E161 -> 0 | F31: =IF(Sammenligning!$G$9="GJ",1,(1*3.6))*F161 -> 0 | G31: =IF(Sammenligning!$G$9="GJ",1,(1*3.6))*G161 -> 0 | H31: =IF(Sammenligning!$G$9="GJ",1,(1*3.6))*H161 -> 0 | I31: =IF(Sammenligning!$G$9="GJ",1,(1*3.6))*I161 -> 0 | J31: =IF(Sammenligning!$G$9="GJ",1,(1*3.6))*J161 -> 0 | K31: =IF(Sammenligning!$G$9="GJ",1,(1*3.6))*K161 -> 0 | L31: =IF(Sammenligning!$G$9="GJ",1,(1*3.6))*L161 -> 0 | M31: =IF(Sammenligning!$G$9="GJ",1,(1*3.6))*M161 -> 0 | N31: =IF(Sammenligning!$G$9="GJ",1,(1*3.6))*N161 -> 0 | O31: =IF(Sammenligning!$G$9="GJ",1,(1*3.6))*O161 -> 0 | P31: =IF(Sammenligning!$G$9="GJ",1,(1*3.6))*P161 -> 0 | Q31: =IF(Sammenligning!$G$9="GJ",1,(1*3.6))*Q161 -> 0 | R31: =IF(Sammenligning!$G$9="GJ",1,(1*3.6))*R161 -> 0 | S31: =IF(Sammenligning!$G$9="GJ",1,(1*3.6))*S161 -> 0.1071668219 | T31: =IF(Sammenligning!$G$9="GJ",1,(1*3.6))*T161 -> 0.2138928368 | U31: =IF(Sammenligning!$G$9="GJ",1,(1*3.6))*U161 -> 0.323362577 | V31: =IF(Sammenligning!$G$9="GJ",1,(1*3.6))*V161 -> 0.4232834122 | W31: =IF(Sammenligning!$G$9="GJ",1,(1*3.6))*W161 -> 0.846960242 | X31: =IF(Sammenligning!$G$9="GJ",1,(1*3.6))*X161 -> 0.8509300589 | Y31: =IF(Sammenligning!$G$9="GJ",1,(1*3.6))*Y161 -> 0.8484845191 | Z31: =IF(Sammenligning!$G$9="GJ",1,(1*3.6))*Z161 -> 0.8460529959 | AA31: =IF(Sammenligning!$G$9="GJ",1,(1*3.6))*AA161 -> 0.8436353689 | AB31: =IF(Sammenligning!$G$9="GJ",1,(1*3.6))*AB161 -> 0.8412315196 | AC31: =IF(Sammenligning!$G$9="GJ",1,(1*3.6))*AC161 -> 0.8388413303 | AD31: =IF(Sammenligning!$G$9="GJ",1,(1*3.6))*AD161 -> 0.8388413303 | AE31: =IF(Sammenligning!$G$9="GJ",1,(1*3.6))*AE161 -> 0.8388413303 | AF31: =IF(Sammenligning!$G$9="GJ",1,(1*3.6))*AF161 -> 0.8388413303 | AG31: =IF(Sammenligning!$G$9="GJ",1,(1*3.6))*AG161 -> 0.8388413303 | AH31: =IF(Sammenligning!$G$9="GJ",1,(1*3.6))*AH161 -> 0.8388413303 | AI31: =IF(Sammenligning!$G$9="GJ",1,(1*3.6))*AI161 -> 0.8388413303 | AJ31: =IF(Sammenligning!$G$9="GJ",1,(1*3.6))*AJ161 -> 0.8388413303 | AK31: =IF(Sammenligning!$G$9="GJ",1,(1*3.6))*AK161 -> 0.8388413303 | AL31: =IF(Sammenligning!$G$9="GJ",1,(1*3.6))*AL161 -> 0.8388413303 | AM31: =IF(Sammenligning!$G$9="GJ",1,(1*3.6))*AM161 -> 0.8388413303
C32: Var O&M | D32: ="Kr/"&Sammenligning!$G$9 -> Kr/GJ | E32: =IF(Sammenligning!$G$9="GJ",1,(1*3.6))*(AMV1træ!H57*E$179+AMV1træBP!H56*E$180+AMV3kul!H55*E$181+AMV4træ!H55*E$182+AMV4træBP!H54*E$183+AVV1træ!H55*E$184+AVV1kul!H54*E$185+AVV2træ!H55*E$186+AVV2halm!H55*E$187+AVV2gasGT!H55*E$188+KKV!H55*E$189+HCVgas!H55*E$190+SPolie!H54*E$191+SPgas!H54*E$192+GeoEL!H53*E$193+GeoVa!H53*E$194+VP!H60*E$195+Sol!H52*E$196) -> 4.192629419 | F32: =IF(Sammenligning!$G$9="GJ",1,(1*3.6))*(AMV1træ!I57*F$179+AMV1træBP!I56*F$180+AMV3kul!I55*F$181+AMV4træ!I55*F$182+AMV4træBP!I54*F$183+AVV1træ!I55*F$184+AVV1kul!I54*F$185+AVV2træ!I55*F$186+AVV2halm!I55*F$187+AVV2gasGT!I55*F$188+KKV!I55*F$189+HCVgas!I55*F$190+SPolie!I54*F$191+SPgas!I54*F$192+GeoEL!I53*F$193+GeoVa!I53*F$194+VP!I60*F$195+Sol!I52*F$196) -> 4.192629419 | G32: =IF(Sammenligning!$G$9="GJ",1,(1*3.6))*(AMV1træ!J57*G$179+AMV1træBP!J56*G$180+AMV3kul!J55*G$181+AMV4træ!J55*G$182+AMV4træBP!J54*G$183+AVV1træ!J55*G$184+AVV1kul!J54*G$185+AVV2træ!J55*G$186+AVV2halm!J55*G$187+AVV2gasGT!J55*G$188+KKV!J55*G$189+HCVgas!J55*G$190+SPolie!J54*G$191+SPgas!J54*G$192+GeoEL!J53*G$193+GeoVa!J53*G$194+VP!J60*G$195+Sol!J52*G$196) -> 4.192629419 | H32: =IF(Sammenligning!$G$9="GJ",1,(1*3.6))*(AMV1træ!K57*H$179+AMV1træBP!K56*H$180+AMV3kul!K55*H$181+AMV4træ!K55*H$182+AMV4træBP!K54*H$183+AVV1træ!K55*H$184+AVV1kul!K54*H$185+AVV2træ!K55*H$186+AVV2halm!K55*H$187+AVV2gasGT!K55*H$188+KKV!K55*H$189+HCVgas!K55*H$190+SPolie!K54*H$191+SPgas!K54*H$192+GeoEL!K53*H$193+GeoVa!K53*H$194+VP!K60*H$195+Sol!K52*H$196) -> 4.192629419 | I32: =IF(Sammenligning!$G$9="GJ",1,(1*3.6))*(AMV1træ!L57*I$179+AMV1træBP!L56*I$180+AMV3kul!L55*I$181+AMV4træ!L55*I$182+AMV4træBP!L54*I$183+AVV1træ!L55*I$184+AVV1kul!L54*I$185+AVV2træ!L55*I$186+AVV2halm!L55*I$187+AVV2gasGT!L55*I$188+KKV!L55*I$189+HCVgas!L55*I$190+SPolie!L54*I$191+SPgas!L54*I$192+GeoEL!L53*I$193+GeoVa!L53*I$194+VP!L60*I$195+Sol!L52*I$196) -> 4.192629419 | J32: =IF(Sammenligning!$G$9="GJ",1,(1*3.6))*(AMV1træ!M57*J$179+AMV1træBP!M56*J$180+AMV3kul!M55*J$181+AMV4træ!M55*J$182+AMV4træBP!M54*J$183+AVV1træ!M55*J$184+AVV1kul!M54*J$185+AVV2træ!M55*J$186+AVV2halm!M55*J$187+AVV2gasGT!M55*J$188+KKV!M55*J$189+HCVgas!M55*J$190+SPolie!M54*J$191+SPgas!M54*J$192+GeoEL!M53*J$193+GeoVa!M53*J$194+VP!M60*J$195+Sol!M52*J$196) -> 4.257489859 | K32: =IF(Sammenligning!$G$9="GJ",1,(1*3.6))*(AMV1træ!N57*K$179+AMV1træBP!N56*K$180+AMV3kul!N55*K$181+AMV4træ!N55*K$182+AMV4træBP!N54*K$183+AVV1træ!N55*K$184+AVV1kul!N54*K$185+AVV2træ!N55*K$186+AVV2halm!N55*K$187+AVV2gasGT!N55*K$188+KKV!N55*K$189+HCVgas!N55*K$190+SPolie!N54*K$191+SPgas!N54*K$192+GeoEL!N53*K$193+GeoVa!N53*K$194+VP!N60*K$195+Sol!N52*K$196) -> 4.301014946 | L32: =IF(Sammenligning!$G$9="GJ",1,(1*3.6))*(AMV1træ!O57*L$179+AMV1træBP!O56*L$180+AMV3kul!O55*L$181+AMV4træ!O55*L$182+AMV4træBP!O54*L$183+AVV1træ!O55*L$184+AVV1kul!O54*L$185+AVV2træ!O55*L$186+AVV2halm!O55*L$187+AVV2gasGT!O55*L$188+KKV!O55*L$189+HCVgas!O55*L$190+SPolie!O54*L$191+SPgas!O54*L$192+GeoEL!O53*L$193+GeoVa!O53*L$194+VP!O60*L$195+Sol!O52*L$196) -> 4.332244968 | M32: =IF(Sammenligning!$G$9="GJ",1,(1*3.6))*(AMV1træ!P57*M$179+AMV1træBP!P56*M$180+AMV3kul!P55*M$181+AMV4træ!P55*M$182+AMV4træBP!P54*M$183+AVV1træ!P55*M$184+AVV1kul!P54*M$185+AVV2træ!P55*M$186+AVV2halm!P55*M$187+AVV2gasGT!P55*M$188+KKV!P55*M$189+HCVgas!P55*M$190+SPolie!P54*M$191+SPgas!P54*M$192+GeoEL!P53*M$193+GeoVa!P53*M$194+VP!P60*M$195+Sol!P52*M$196) -> 4.355744874 | N32: =IF(Sammenligning!$G$9="GJ",1,(1*3.6))*(AMV1træ!Q57*N$179+AMV1træBP!Q56*N$180+AMV3kul!Q55*N$181+AMV4træ!Q55*N$182+AMV4træBP!Q54*N$183+AVV1træ!Q55*N$184+AVV1kul!Q54*N$185+AVV2træ!Q55*N$186+AVV2halm!Q55*N$187+AVV2gasGT!Q55*N$188+KKV!Q55*N$189+HCVgas!Q55*N$190+SPolie!Q54*N$191+SPgas!Q54*N$192+GeoEL!Q53*N$193+GeoVa!Q53*N$194+VP!Q60*N$195+Sol!Q52*N$196) -> 4.367539993 | O32: =IF(Sammenligning!$G$9="GJ",1,(1*3.6))*(AMV1træ!R57*O$179+AMV1træBP!R56*O$180+AMV3kul!R55*O$181+AMV4træ!R55*O$182+AMV4træBP!R54*O$183+AVV1træ!R55*O$184+AVV1kul!R54*O$185+AVV2træ!R55*O$186+AVV2halm!R55*O$187+AVV2gasGT!R55*O$188+KKV!R55*O$189+HCVgas!R55*O$190+SPolie!R54*O$191+SPgas!R54*O$192+GeoEL!R53*O$193+GeoVa!R53*O$194+VP!R60*O$195+Sol!R52*O$196) -> 4.385663339 | P32: =IF(Sammenligning!$G$9="GJ",1,(1*3.6))*(AMV1træ!S57*P$179+AMV1træBP!S56*P$180+AMV3kul!S55*P$181+AMV4træ!S55*P$182+AMV4træBP!S54*P$183+AVV1træ!S55*P$184+AVV1kul!S54*P$185+AVV2træ!S55*P$186+AVV2halm!S55*P$187+AVV2gasGT!S55*P$188+KKV!S55*P$189+HCVgas!S55*P$190+SPolie!S54*P$191+SPgas!S54*P$192+GeoEL!S53*P$193+GeoVa!S53*P$194+VP!S60*P$195+Sol!S52*P$196) -> 4.40384566 | Q32: =IF(Sammenligning!$G$9="GJ",1,(1*3.6))*(AMV1træ!T57*Q$179+AMV1træBP!T56*Q$180+AMV3kul!T55*Q$181+AMV4træ!T55*Q$182+AMV4træBP!T54*Q$183+AVV1træ!T55*Q$184+AVV1kul!T54*Q$185+AVV2træ!T55*Q$186+AVV2halm!T55*Q$187+AVV2gasGT!T55*Q$188+KKV!T55*Q$189+HCVgas!T55*Q$190+SPolie!T54*Q$191+SPgas!T54*Q$192+GeoEL!T53*Q$193+GeoVa!T53*Q$194+VP!T60*Q$195+Sol!T52*Q$196) -> 4.422087244 | R32: =IF(Sammenligning!$G$9="GJ",1,(1*3.6))*(AMV1træ!U57*R$179+AMV1træBP!U56*R$180+AMV3kul!U55*R$181+AMV4træ!U55*R$182+AMV4træBP!U54*R$183+AVV1træ!U55*R$184+AVV1kul!U54*R$185+AVV2træ!U55*R$186+AVV2halm!U55*R$187+AVV2gasGT!U55*R$188+KKV!U55*R$189+HCVgas!U55*R$190+SPolie!U54*R$191+SPgas!U54*R$192+GeoEL!U53*R$193+GeoVa!U53*R$194+VP!U60*R$195+Sol!U52*R$196) -> 4.440388382 | S32: =IF(Sammenligning!$G$9="GJ",1,(1*3.6))*(AMV1træ!V57*S$179+AMV1træBP!V56*S$180+AMV3kul!V55*S$181+AMV4træ!V55*S$182+AMV4træBP!V54*S$183+AVV1træ!V55*S$184+AVV1kul!V54*S$185+AVV2træ!V55*S$186+AVV2halm!V55*S$187+AVV2gasGT!V55*S$188+KKV!V55*S$189+HCVgas!V55*S$190+SPolie!V54*S$191+SPgas!V54*S$192+GeoEL!V53*S$193+GeoVa!V53*S$194+VP!V60*S$195+Sol!V52*S$196) -> 4.458749366 | T32: =IF(Sammenligning!$G$9="GJ",1,(1*3.6))*(AMV1træ!W57*T$179+AMV1træBP!W56*T$180+AMV3kul!W55*T$181+AMV4træ!W55*T$182+AMV4træBP!W54*T$183+AVV1træ!W55*T$184+AVV1kul!W54*T$185+AVV2træ!W55*T$186+AVV2halm!W55*T$187+AVV2gasGT!W55*T$188+KKV!W55*T$189+HCVgas!W55*T$190+SPolie!W54*T$191+SPgas!W54*T$192+GeoEL!W53*T$193+GeoVa!W53*T$194+VP!W60*T$195+Sol!W52*T$196) -> 4.553221065 | U32: =IF(Sammenligning!$G$9="GJ",1,(1*3.6))*(AMV1træ!X57*U$179+AMV1træBP!X56*U$180+AMV3kul!X55*U$181+AMV4træ!X55*U$182+AMV4træBP!X54*U$183+AVV1træ!X55*U$184+AVV1kul!X54*U$185+AVV2træ!X55*U$186+AVV2halm!X55*U$187+AVV2gasGT!X55*U$188+KKV!X55*U$189+HCVgas!X55*U$190+SPolie!X54*U$191+SPgas!X54*U$192+GeoEL!X53*U$193+GeoVa!X53*U$194+VP!X60*U$195+Sol!X52*U$196) -> 4.559304862 | V32: =IF(Sammenligning!$G$9="GJ",1,(1*3.6))*(AMV1træ!Y57*V$179+AMV1træBP!Y56*V$180+AMV3kul!Y55*V$181+AMV4træ!Y55*V$182+AMV4træBP!Y54*V$183+AVV1træ!Y55*V$184+AVV1kul!Y54*V$185+AVV2træ!Y55*V$186+AVV2halm!Y55*V$187+AVV2gasGT!Y55*V$188+KKV!Y55*V$189+HCVgas!Y55*V$190+SPolie!Y54*V$191+SPgas!Y54*V$192+GeoEL!Y53*V$193+GeoVa!Y53*V$194+VP!Y60*V$195+Sol!Y52*V$196) -> 4.56625851 | W32: =IF(Sammenligning!$G$9="GJ",1,(1*3.6))*(AMV1træ!Z57*W$179+AMV1træBP!Z56*W$180+AMV3kul!Z55*W$181+AMV4træ!Z55*W$182+AMV4træBP!Z54*W$183+AVV1træ!Z55*W$184+AVV1kul!Z54*W$185+AVV2træ!Z55*W$186+AVV2halm!Z55*W$187+AVV2gasGT!Z55*W$188+KKV!Z55*W$189+HCVgas!Z55*W$190+SPolie!Z54*W$191+SPgas!Z54*W$192+GeoEL!Z53*W$193+GeoVa!Z53*W$194+VP!Z60*W$195+Sol!Z52*W$196) -> 4.260727951 | X32: =IF(Sammenligning!$G$9="GJ",1,(1*3.6))*(AMV1træ!AA57*X$179+AMV1træBP!AA56*X$180+AMV3kul!AA55*X$181+AMV4træ!AA55*X$182+AMV4træBP!AA54*X$183+AVV1træ!AA55*X$184+AVV1kul!AA54*X$185+AVV2træ!AA55*X$186+AVV2halm!AA55*X$187+AVV2gasGT!AA55*X$188+KKV!AA55*X$189+HCVgas!AA55*X$190+SPolie!AA54*X$191+SPgas!AA54*X$192+GeoEL!AA53*X$193+GeoVa!AA53*X$194+VP!AA60*X$195+Sol!AA52*X$196) -> 4.268495963 | Y32: =IF(Sammenligning!$G$9="GJ",1,(1*3.6))*(AMV1træ!AB57*Y$179+AMV1træBP!AB56*Y$180+AMV3kul!AB55*Y$181+AMV4træ!AB55*Y$182+AMV4træBP!AB54*Y$183+AVV1træ!AB55*Y$184+AVV1kul!AB54*Y$185+AVV2træ!AB55*Y$186+AVV2halm!AB55*Y$187+AVV2gasGT!AB55*Y$188+KKV!AB55*Y$189+HCVgas!AB55*Y$190+SPolie!AB54*Y$191+SPgas!AB54*Y$192+GeoEL!AB53*Y$193+GeoVa!AB53*Y$194+VP!AB60*Y$195+Sol!AB52*Y$196) -> 4.259605072 | Z32: =IF(Sammenligning!$G$9="GJ",1,(1*3.6))*(AMV1træ!AC57*Z$179+AMV1træBP!AC56*Z$180+AMV3kul!AC55*Z$181+AMV4træ!AC55*Z$182+AMV4træBP!AC54*Z$183+AVV1træ!AC55*Z$184+AVV1kul!AC54*Z$185+AVV2træ!AC55*Z$186+AVV2halm!AC55*Z$187+AVV2gasGT!AC55*Z$188+KKV!AC55*Z$189+HCVgas!AC55*Z$190+SPolie!AC54*Z$191+SPgas!AC54*Z$192+GeoEL!AC53*Z$193+GeoVa!AC53*Z$194+VP!AC60*Z$195+Sol!AC52*Z$196) -> 4.25076514 | AA32: =IF(Sammenligning!$G$9="GJ",1,(1*3.6))*(AMV1træ!AD57*AA$179+AMV1træBP!AD56*AA$180+AMV3kul!AD55*AA$181+AMV4træ!AD55*AA$182+AMV4træBP!AD54*AA$183+AVV1træ!AD55*AA$184+AVV1kul!AD54*AA$185+AVV2træ!AD55*AA$186+AVV2halm!AD55*AA$187+AVV2gasGT!AD55*AA$188+KKV!AD55*AA$189+HCVgas!AD55*AA$190+SPolie!AD54*AA$191+SPgas!AD54*AA$192+GeoEL!AD53*AA$193+GeoVa!AD53*AA$194+VP!AD60*AA$195+Sol!AD52*AA$196) -> 4.241975728 | AB32: =IF(Sammenligning!$G$9="GJ",1,(1*3.6))*(AMV1træ!AE57*AB$179+AMV1træBP!AE56*AB$180+AMV3kul!AE55*AB$181+AMV4træ!AE55*AB$182+AMV4træBP!AE54*AB$183+AVV1træ!AE55*AB$184+AVV1kul!AE54*AB$185+AVV2træ!AE55*AB$186+AVV2halm!AE55*AB$187+AVV2gasGT!AE55*AB$188+KKV!AE55*AB$189+HCVgas!AE55*AB$190+SPolie!AE54*AB$191+SPgas!AE54*AB$192+GeoEL!AE53*AB$193+GeoVa!AE53*AB$194+VP!AE60*AB$195+Sol!AE52*AB$196) -> 4.233236405 | AC32: =IF(Sammenligning!$G$9="GJ",1,(1*3.6))*(AMV1træ!AF57*AC$179+AMV1træBP!AF56*AC$180+AMV3kul!AF55*AC$181+AMV4træ!AF55*AC$182+AMV4træBP!AF54*AC$183+AVV1træ!AF55*AC$184+AVV1kul!AF54*AC$185+AVV2træ!AF55*AC$186+AVV2halm!AF55*AC$187+AVV2gasGT!AF55*AC$188+KKV!AF55*AC$189+HCVgas!AF55*AC$190+SPolie!AF54*AC$191+SPgas!AF54*AC$192+GeoEL!AF53*AC$193+GeoVa!AF53*AC$194+VP!AF60*AC$195+Sol!AF52*AC$196) -> 4.224546744 | AD32: =IF(Sammenligning!$G$9="GJ",1,(1*3.6))*(AMV1træ!AG57*AD$179+AMV1træBP!AG56*AD$180+AMV3kul!AG55*AD$181+AMV4træ!AG55*AD$182+AMV4træBP!AG54*AD$183+AVV1træ!AG55*AD$184+AVV1kul!AG54*AD$185+AVV2træ!AG55*AD$186+AVV2halm!AG55*AD$187+AVV2gasGT!AG55*AD$188+KKV!AG55*AD$189+HCVgas!AG55*AD$190+SPolie!AG54*AD$191+SPgas!AG54*AD$192+GeoEL!AG53*AD$193+GeoVa!AG53*AD$194+VP!AG60*AD$195+Sol!AG52*AD$196) -> 4.224546744 | AE32: =IF(Sammenligning!$G$9="GJ",1,(1*3.6))*(AMV1træ!AH57*AE$179+AMV1træBP!AH56*AE$180+AMV3kul!AH55*AE$181+AMV4træ!AH55*AE$182+AMV4træBP!AH54*AE$183+AVV1træ!AH55*AE$184+AVV1kul!AH54*AE$185+AVV2træ!AH55*AE$186+AVV2halm!AH55*AE$187+AVV2gasGT!AH55*AE$188+KKV!AH55*AE$189+HCVgas!AH55*AE$190+SPolie!AH54*AE$191+SPgas!AH54*AE$192+GeoEL!AH53*AE$193+GeoVa!AH53*AE$194+VP!AH60*AE$195+Sol!AH52*AE$196) -> 4.224546744 | AF32: =IF(Sammenligning!$G$9="GJ",1,(1*3.6))*(AMV1træ!AI57*AF$179+AMV1træBP!AI56*AF$180+AMV3kul!AI55*AF$181+AMV4træ!AI55*AF$182+AMV4træBP!AI54*AF$183+AVV1træ!AI55*AF$184+AVV1kul!AI54*AF$185+AVV2træ!AI55*AF$186+AVV2halm!AI55*AF$187+AVV2gasGT!AI55*AF$188+KKV!AI55*AF$189+HCVgas!AI55*AF$190+SPolie!AI54*AF$191+SPgas!AI54*AF$192+GeoEL!AI53*AF$193+GeoVa!AI53*AF$194+VP!AI60*AF$195+Sol!AI52*AF$196) -> 4.224546744 | AG32: =IF(Sammenligning!$G$9="GJ",1,(1*3.6))*(AMV1træ!AJ57*AG$179+AMV1træBP!AJ56*AG$180+AMV3kul!AJ55*AG$181+AMV4træ!AJ55*AG$182+AMV4træBP!AJ54*AG$183+AVV1træ!AJ55*AG$184+AVV1kul!AJ54*AG$185+AVV2træ!AJ55*AG$186+AVV2halm!AJ55*AG$187+AVV2gasGT!AJ55*AG$188+KKV!AJ55*AG$189+HCVgas!AJ55*AG$190+SPolie!AJ54*AG$191+SPgas!AJ54*AG$192+GeoEL!AJ53*AG$193+GeoVa!AJ53*AG$194+VP!AJ60*AG$195+Sol!AJ52*AG$196) -> 4.224546744 | AH32: =IF(Sammenligning!$G$9="GJ",1,(1*3.6))*(AMV1træ!AK57*AH$179+AMV1træBP!AK56*AH$180+AMV3kul!AK55*AH$181+AMV4træ!AK55*AH$182+AMV4træBP!AK54*AH$183+AVV1træ!AK55*AH$184+AVV1kul!AK54*AH$185+AVV2træ!AK55*AH$186+AVV2halm!AK55*AH$187+AVV2gasGT!AK55*AH$188+KKV!AK55*AH$189+HCVgas!AK55*AH$190+SPolie!AK54*AH$191+SPgas!AK54*AH$192+GeoEL!AK53*AH$193+GeoVa!AK53*AH$194+VP!AK60*AH$195+Sol!AK52*AH$196) -> 4.224546744 | AI32: =IF(Sammenligning!$G$9="GJ",1,(1*3.6))*(AMV1træ!AL57*AI$179+AMV1træBP!AL56*AI$180+AMV3kul!AL55*AI$181+AMV4træ!AL55*AI$182+AMV4træBP!AL54*AI$183+AVV1træ!AL55*AI$184+AVV1kul!AL54*AI$185+AVV2træ!AL55*AI$186+AVV2halm!AL55*AI$187+AVV2gasGT!AL55*AI$188+KKV!AL55*AI$189+HCVgas!AL55*AI$190+SPolie!AL54*AI$191+SPgas!AL54*AI$192+GeoEL!AL53*AI$193+GeoVa!AL53*AI$194+VP!AL60*AI$195+Sol!AL52*AI$196) -> 4.224546744 | AJ32: =IF(Sammenligning!$G$9="GJ",1,(1*3.6))*(AMV1træ!AM57*AJ$179+AMV1træBP!AM56*AJ$180+AMV3kul!AM55*AJ$181+AMV4træ!AM55*AJ$182+AMV4træBP!AM54*AJ$183+AVV1træ!AM55*AJ$184+AVV1kul!AM54*AJ$185+AVV2træ!AM55*AJ$186+AVV2halm!AM55*AJ$187+AVV2gasGT!AM55*AJ$188+KKV!AM55*AJ$189+HCVgas!AM55*AJ$190+SPolie!AM54*AJ$191+SPgas!AM54*AJ$192+GeoEL!AM53*AJ$193+GeoVa!AM53*AJ$194+VP!AM60*AJ$195+Sol!AM52*AJ$196) -> 4.224546744 | AK32: =IF(Sammenligning!$G$9="GJ",1,(1*3.6))*(AMV1træ!AN57*AK$179+AMV1træBP!AN56*AK$180+AMV3kul!AN55*AK$181+AMV4træ!AN55*AK$182+AMV4træBP!AN54*AK$183+AVV1træ!AN55*AK$184+AVV1kul!AN54*AK$185+AVV2træ!AN55*AK$186+AVV2halm!AN55*AK$187+AVV2gasGT!AN55*AK$188+KKV!AN55*AK$189+HCVgas!AN55*AK$190+SPolie!AN54*AK$191+SPgas!AN54*AK$192+GeoEL!AN53*AK$193+GeoVa!AN53*AK$194+VP!AN60*AK$195+Sol!AN52*AK$196) -> 4.224546744 | AL32: =IF(Sammenligning!$G$9="GJ",1,(1*3.6))*(AMV1træ!AO57*AL$179+AMV1træBP!AO56*AL$180+AMV3kul!AO55*AL$181+AMV4træ!AO55*AL$182+AMV4træBP!AO54*AL$183+AVV1træ!AO55*AL$184+AVV1kul!AO54*AL$185+AVV2træ!AO55*AL$186+AVV2halm!AO55*AL$187+AVV2gasGT!AO55*AL$188+KKV!AO55*AL$189+HCVgas!AO55*AL$190+SPolie!AO54*AL$191+SPgas!AO54*AL$192+GeoEL!AO53*AL$193+GeoVa!AO53*AL$194+VP!AO60*AL$195+Sol!AO52*AL$196) -> 4.224546744 | AM32: =IF(Sammenligning!$G$9="GJ",1,(1*3.6))*(AMV1træ!AP57*AM$179+AMV1træBP!AP56*AM$180+AMV3kul!AP55*AM$181+AMV4træ!AP55*AM$182+AMV4træBP!AP54*AM$183+AVV1træ!AP55*AM$184+AVV1kul!AP54*AM$185+AVV2træ!AP55*AM$186+AVV2halm!AP55*AM$187+AVV2gasGT!AP55*AM$188+KKV!AP55*AM$189+HCVgas!AP55*AM$190+SPolie!AP54*AM$191+SPgas!AP54*AM$192+GeoEL!AP53*AM$193+GeoVa!AP53*AM$194+VP!AP60*AM$195+Sol!AP52*AM$196) -> 4.224546744
C33: Energiomkostninger | D33: ="Kr/"&Sammenligning!$G$9 -> Kr/GJ | E33: =IF(Sammenligning!$G$9="GJ",1,(1*3.6))*(AMV1træ!H58*E$179+AMV1træBP!H57*E$180+AMV3kul!H80*E$181+AMV4træ!H56*E$182+AMV4træBP!H55*E$183+AVV1træ!H56*E$184+AVV1kul!H79*E$185+AVV2træ!H56*E$186+AVV2halm!H56*E$187+AVV2gasGT!H56*E$188+KKV!H56*E$189+HCVgas!H56*E$190+SPolie!H55*E$191+SPgas!H55*E$192+GeoEL!H54*E$193+GeoVa!H54*E$194+VP!H61*E$195+Sol!H53*E$196) -> 84.62710441 | F33: =IF(Sammenligning!$G$9="GJ",1,(1*3.6))*(AMV1træ!I58*F$179+AMV1træBP!I57*F$180+AMV3kul!I80*F$181+AMV4træ!I56*F$182+AMV4træBP!I55*F$183+AVV1træ!I56*F$184+AVV1kul!I79*F$185+AVV2træ!I56*F$186+AVV2halm!I56*F$187+AVV2gasGT!I56*F$188+KKV!I56*F$189+HCVgas!I56*F$190+SPolie!I55*F$191+SPgas!I55*F$192+GeoEL!I54*F$193+GeoVa!I54*F$194+VP!I61*F$195+Sol!I53*F$196) -> 73.42703952 | G33: =IF(Sammenligning!$G$9="GJ",1,(1*3.6))*(AMV1træ!J58*G$179+AMV1træBP!J57*G$180+AMV3kul!J80*G$181+AMV4træ!J56*G$182+AMV4træBP!J55*G$183+AVV1træ!J56*G$184+AVV1kul!J79*G$185+AVV2træ!J56*G$186+AVV2halm!J56*G$187+AVV2gasGT!J56*G$188+KKV!J56*G$189+HCVgas!J56*G$190+SPolie!J55*G$191+SPgas!J55*G$192+GeoEL!J54*G$193+GeoVa!J54*G$194+VP!J61*G$195+Sol!J53*G$196) -> 91.8220354 | H33: =IF(Sammenligning!$G$9="GJ",1,(1*3.6))*(AMV1træ!K58*H$179+AMV1træBP!K57*H$180+AMV3kul!K80*H$181+AMV4træ!K56*H$182+AMV4træBP!K55*H$183+AVV1træ!K56*H$184+AVV1kul!K79*H$185+AVV2træ!K56*H$186+AVV2halm!K56*H$187+AVV2gasGT!K56*H$188+KKV!K56*H$189+HCVgas!K56*H$190+SPolie!K55*H$191+SPgas!K55*H$192+GeoEL!K54*H$193+GeoVa!K54*H$194+VP!K61*H$195+Sol!K53*H$196) -> 92.98488011 | I33: =IF(Sammenligning!$G$9="GJ",1,(1*3.6))*(AMV1træ!L58*I$179 +AMV1træBP!L57*I$180 +AMV3kul!L80*I$181 +AMV4træ!L56*I$182 +AMV4træBP!L55*I$183 +AVV1træ!L56*I$184 +AVV1kul!L79*I$185 +AVV2træ!L56*I$186 +AVV2halm!L56*I$187 +AVV2gasGT!L56*I$188 +KKV!L56*I$189 +HCVgas!L56*I$190 +SPolie!L55*I$191 +SPgas!L55*I$192 +GeoEL!L54*I$193 +GeoVa!L54*I$194 +VP!L61*I$195 +Sol!L53*I$196) -> 90.89418566 | J33: =IF(Sammenligning!$G$9="GJ",1,(1*3.6))*(AMV1træ!M58*J$179+AMV1træBP!M57*J$180+AMV3kul!M80*J$181+AMV4træ!M56*J$182+AMV4træBP!M55*J$183+AVV1træ!M56*J$184+AVV1kul!M79*J$185+AVV2træ!M56*J$186+AVV2halm!M56*J$187+AVV2gasGT!M56*J$188+KKV!M56*J$189+HCVgas!M56*J$190+SPolie!M55*J$191+SPgas!M55*J$192+GeoEL!M54*J$193+GeoVa!M54*J$194+VP!M61*J$195+Sol!M53*J$196) -> 88.89701114 | K33: =IF(Sammenligning!$G$9="GJ",1,(1*3.6))*(AMV1træ!N58*K$179+AMV1træBP!N57*K$180+AMV3kul!N80*K$181+AMV4træ!N56*K$182+AMV4træBP!N55*K$183+AVV1træ!N56*K$184+AVV1kul!N79*K$185+AVV2træ!N56*K$186+AVV2halm!N56*K$187+AVV2gasGT!N56*K$188+KKV!N56*K$189+HCVgas!N56*K$190+SPolie!N55*K$191+SPgas!N55*K$192+GeoEL!N54*K$193+GeoVa!N54*K$194+VP!N61*K$195+Sol!N53*K$196) -> 131.691969 | L33: =IF(Sammenligning!$G$9="GJ",1,(1*3.6))*(AMV1træ!O58*L$179+AMV1træBP!O57*L$180+AMV3kul!O80*L$181+AMV4træ!O56*L$182+AMV4træBP!O55*L$183+AVV1træ!O56*L$184+AVV1kul!O79*L$185+AVV2træ!O56*L$186+AVV2halm!O56*L$187+AVV2gasGT!O56*L$188+KKV!O56*L$189+HCVgas!O56*L$190+SPolie!O55*L$191+SPgas!O55*L$192+GeoEL!O54*L$193+GeoVa!O54*L$194+VP!O61*L$195+Sol!O53*L$196) -> 113.9284462 | M33: =IF(Sammenligning!$G$9="GJ",1,(1*3.6))*(AMV1træ!P58*M$179+AMV1træBP!P57*M$180+AMV3kul!P80*M$181+AMV4træ!P56*M$182+AMV4træBP!P55*M$183+AVV1træ!P56*M$184+AVV1kul!P79*M$185+AVV2træ!P56*M$186+AVV2halm!P56*M$187+AVV2gasGT!P56*M$188+KKV!P56*M$189+HCVgas!P56*M$190+SPolie!P55*M$191+SPgas!P55*M$192+GeoEL!P54*M$193+GeoVa!P54*M$194+VP!P61*M$195+Sol!P53*M$196) -> 99.26677348 | N33: =IF(Sammenligning!$G$9="GJ",1,(1*3.6))*(AMV1træ!Q58*N$179+AMV1træBP!Q57*N$180+AMV3kul!Q80*N$181+AMV4træ!Q56*N$182+AMV4træBP!Q55*N$183+AVV1træ!Q56*N$184+AVV1kul!Q79*N$185+AVV2træ!Q56*N$186+AVV2halm!Q56*N$187+AVV2gasGT!Q56*N$188+KKV!Q56*N$189+HCVgas!Q56*N$190+SPolie!Q55*N$191+SPgas!Q55*N$192+GeoEL!Q54*N$193+GeoVa!Q54*N$194+VP!Q61*N$195+Sol!Q53*N$196) -> 97.71355129 | O33: =IF(Sammenligning!$G$9="GJ",1,(1*3.6))*(AMV1træ!R58*O$179+AMV1træBP!R57*O$180+AMV3kul!R80*O$181+AMV4træ!R56*O$182+AMV4træBP!R55*O$183+AVV1træ!R56*O$184+AVV1kul!R79*O$185+AVV2træ!R56*O$186+AVV2halm!R56*O$187+AVV2gasGT!R56*O$188+KKV!R56*O$189+HCVgas!R56*O$190+SPolie!R55*O$191+SPgas!R55*O$192+GeoEL!R54*O$193+GeoVa!R54*O$194+VP!R61*O$195+Sol!R53*O$196) -> 97.56909112 | P33: =IF(Sammenligning!$G$9="GJ",1,(1*3.6))*(AMV1træ!S58*P$179+AMV1træBP!S57*P$180+AMV3kul!S80*P$181+AMV4træ!S56*P$182+AMV4træBP!S55*P$183+AVV1træ!S56*P$184+AVV1kul!S79*P$185+AVV2træ!S56*P$186+AVV2halm!S56*P$187+AVV2gasGT!S56*P$188+KKV!S56*P$189+HCVgas!S56*P$190+SPolie!S55*P$191+SPgas!S55*P$192+GeoEL!S54*P$193+GeoVa!S54*P$194+VP!S61*P$195+Sol!S53*P$196) -> 97.1952283 | Q33: =IF(Sammenligning!$G$9="GJ",1,(1*3.6))*(AMV1træ!T58*Q$179+AMV1træBP!T57*Q$180+AMV3kul!T80*Q$181+AMV4træ!T56*Q$182+AMV4træBP!T55*Q$183+AVV1træ!T56*Q$184+AVV1kul!T79*Q$185+AVV2træ!T56*Q$186+AVV2halm!T56*Q$187+AVV2gasGT!T56*Q$188+KKV!T56*Q$189+HCVgas!T56*Q$190+SPolie!T55*Q$191+SPgas!T55*Q$192+GeoEL!T54*Q$193+GeoVa!T54*Q$194+VP!T61*Q$195+Sol!T53*Q$196) -> 96.81332314 | R33: =IF(Sammenligning!$G$9="GJ",1,(1*3.6))*(AMV1træ!U58*R$179+AMV1træBP!U57*R$180+AMV3kul!U80*R$181+AMV4træ!U56*R$182+AMV4træBP!U55*R$183+AVV1træ!U56*R$184+AVV1kul!U79*R$185+AVV2træ!U56*R$186+AVV2halm!U56*R$187+AVV2gasGT!U56*R$188+KKV!U56*R$189+HCVgas!U56*R$190+SPolie!U55*R$191+SPgas!U55*R$192+GeoEL!U54*R$193+GeoVa!U54*R$194+VP!U61*R$195+Sol!U53*R$196) -> 96.10058338 | S33: =IF(Sammenligning!$G$9="GJ",1,(1*3.6))*(AMV1træ!V58*S$179+AMV1træBP!V57*S$180+AMV3kul!V80*S$181+AMV4træ!V56*S$182+AMV4træBP!V55*S$183+AVV1træ!V56*S$184+AVV1kul!V79*S$185+AVV2træ!V56*S$186+AVV2halm!V56*S$187+AVV2gasGT!V56*S$188+KKV!V56*S$189+HCVgas!V56*S$190+SPolie!V55*S$191+SPgas!V55*S$192+GeoEL!V54*S$193+GeoVa!V54*S$194+VP!V61*S$195+Sol!V53*S$196) -> 95.26378753 | T33: =IF(Sammenligning!$G$9="GJ",1,(1*3.6))*(AMV1træ!W58*T$179+AMV1træBP!W57*T$180+AMV3kul!W80*T$181+AMV4træ!W56*T$182+AMV4træBP!W55*T$183+AVV1træ!W56*T$184+AVV1kul!W79*T$185+AVV2træ!W56*T$186+AVV2halm!W56*T$187+AVV2gasGT!W56*T$188+KKV!W56*T$189+HCVgas!W56*T$190+SPolie!W55*T$191+SPgas!W55*T$192+GeoEL!W54*T$193+GeoVa!W54*T$194+VP!W61*T$195+Sol!W53*T$196) -> 93.7743963 | U33: =IF(Sammenligning!$G$9="GJ",1,(1*3.6))*(AMV1træ!X58*U$179+AMV1træBP!X57*U$180+AMV3kul!X80*U$181+AMV4træ!X56*U$182+AMV4træBP!X55*U$183+AVV1træ!X56*U$184+AVV1kul!X79*U$185+AVV2træ!X56*U$186+AVV2halm!X56*U$187+AVV2gasGT!X56*U$188+KKV!X56*U$189+HCVgas!X56*U$190+SPolie!X55*U$191+SPgas!X55*U$192+GeoEL!X54*U$193+GeoVa!X54*U$194+VP!X61*U$195+Sol!X53*U$196) -> 89.63553692 | V33: =IF(Sammenligning!$G$9="GJ",1,(1*3.6))*(AMV1træ!Y58*V$179+AMV1træBP!Y57*V$180+AMV3kul!Y80*V$181+AMV4træ!Y56*V$182+AMV4træBP!Y55*V$183+AVV1træ!Y56*V$184+AVV1kul!Y79*V$185+AVV2træ!Y56*V$186+AVV2halm!Y56*V$187+AVV2gasGT!Y56*V$188+KKV!Y56*V$189+HCVgas!Y56*V$190+SPolie!Y55*V$191+SPgas!Y55*V$192+GeoEL!Y54*V$193+GeoVa!Y54*V$194+VP!Y61*V$195+Sol!Y53*V$196) -> 84.51218721 | W33: =IF(Sammenligning!$G$9="GJ",1,(1*3.6))*(AMV1træ!Z58*W$179+AMV1træBP!Z57*W$180+AMV3kul!Z80*W$181+AMV4træ!Z56*W$182+AMV4træBP!Z55*W$183+AVV1træ!Z56*W$184+AVV1kul!Z79*W$185+AVV2træ!Z56*W$186+AVV2halm!Z56*W$187+AVV2gasGT!Z56*W$188+KKV!Z56*W$189+HCVgas!Z56*W$190+SPolie!Z55*W$191+SPgas!Z55*W$192+GeoEL!Z54*W$193+GeoVa!Z54*W$194+VP!Z61*W$195+Sol!Z53*W$196) -> 70.80697581 | X33: =IF(Sammenligning!$G$9="GJ",1,(1*3.6))*(AMV1træ!AA58*X$179+AMV1træBP!AA57*X$180+AMV3kul!AA80*X$181+AMV4træ!AA56*X$182+AMV4træBP!AA55*X$183+AVV1træ!AA56*X$184+AVV1kul!AA79*X$185+AVV2træ!AA56*X$186+AVV2halm!AA56*X$187+AVV2gasGT!AA56*X$188+KKV!AA56*X$189+HCVgas!AA56*X$190+SPolie!AA55*X$191+SPgas!AA55*X$192+GeoEL!AA54*X$193+GeoVa!AA54*X$194+VP!AA61*X$195+Sol!AA53*X$196) -> 70.5153011 | Y33: =IF(Sammenligning!$G$9="GJ",1,(1*3.6))*(AMV1træ!AB58*Y$179+AMV1træBP!AB57*Y$180+AMV3kul!AB80*Y$181+AMV4træ!AB56*Y$182+AMV4træBP!AB55*Y$183+AVV1træ!AB56*Y$184+AVV1kul!AB79*Y$185+AVV2træ!AB56*Y$186+AVV2halm!AB56*Y$187+AVV2gasGT!AB56*Y$188+KKV!AB56*Y$189+HCVgas!AB56*Y$190+SPolie!AB55*Y$191+SPgas!AB55*Y$192+GeoEL!AB54*Y$193+GeoVa!AB54*Y$194+VP!AB61*Y$195+Sol!AB53*Y$196) -> 68.76454412 | Z33: =IF(Sammenligning!$G$9="GJ",1,(1*3.6))*(AMV1træ!AC58*Z$179+AMV1træBP!AC57*Z$180+AMV3kul!AC80*Z$181+AMV4træ!AC56*Z$182+AMV4træBP!AC55*Z$183+AVV1træ!AC56*Z$184+AVV1kul!AC79*Z$185+AVV2træ!AC56*Z$186+AVV2halm!AC56*Z$187+AVV2gasGT!AC56*Z$188+KKV!AC56*Z$189+HCVgas!AC56*Z$190+SPolie!AC55*Z$191+SPgas!AC55*Z$192+GeoEL!AC54*Z$193+GeoVa!AC54*Z$194+VP!AC61*Z$195+Sol!AC53*Z$196) -> 66.98717405 | AA33: =IF(Sammenligning!$G$9="GJ",1,(1*3.6))*(AMV1træ!AD58*AA$179+AMV1træBP!AD57*AA$180+AMV3kul!AD80*AA$181+AMV4træ!AD56*AA$182+AMV4træBP!AD55*AA$183+AVV1træ!AD56*AA$184+AVV1kul!AD79*AA$185+AVV2træ!AD56*AA$186+AVV2halm!AD56*AA$187+AVV2gasGT!AD56*AA$188+KKV!AD56*AA$189+HCVgas!AD56*AA$190+SPolie!AD55*AA$191+SPgas!AD55*AA$192+GeoEL!AD54*AA$193+GeoVa!AD54*AA$194+VP!AD61*AA$195+Sol!AD53*AA$196) -> 65.25417169 | AB33: =IF(Sammenligning!$G$9="GJ",1,(1*3.6))*(AMV1træ!AE58*AB$179+AMV1træBP!AE57*AB$180+AMV3kul!AE80*AB$181+AMV4træ!AE56*AB$182+AMV4træBP!AE55*AB$183+AVV1træ!AE56*AB$184+AVV1kul!AE79*AB$185+AVV2træ!AE56*AB$186+AVV2halm!AE56*AB$187+AVV2gasGT!AE56*AB$188+KKV!AE56*AB$189+HCVgas!AE56*AB$190+SPolie!AE55*AB$191+SPgas!AE55*AB$192+GeoEL!AE54*AB$193+GeoVa!AE54*AB$194+VP!AE61*AB$195+Sol!AE53*AB$196) -> 63.53045331 | AC33: =IF(Sammenligning!$G$9="GJ",1,(1*3.6))*(AMV1træ!AF58*AC$179+AMV1træBP!AF57*AC$180+AMV3kul!AF80*AC$181+AMV4træ!AF56*AC$182+AMV4træBP!AF55*AC$183+AVV1træ!AF56*AC$184+AVV1kul!AF79*AC$185+AVV2træ!AF56*AC$186+AVV2halm!AF56*AC$187+AVV2gasGT!AF56*AC$188+KKV!AF56*AC$189+HCVgas!AF56*AC$190+SPolie!AF55*AC$191+SPgas!AF55*AC$192+GeoEL!AF54*AC$193+GeoVa!AF54*AC$194+VP!AF61*AC$195+Sol!AF53*AC$196) -> 61.82410053 | AD33: =IF(Sammenligning!$G$9="GJ",1,(1*3.6))*(AMV1træ!AG58*AD$179+AMV1træBP!AG57*AD$180+AMV3kul!AG80*AD$181+AMV4træ!AG56*AD$182+AMV4træBP!AG55*AD$183+AVV1træ!AG56*AD$184+AVV1kul!AG79*AD$185+AVV2træ!AG56*AD$186+AVV2halm!AG56*AD$187+AVV2gasGT!AG56*AD$188+KKV!AG56*AD$189+HCVgas!AG56*AD$190+SPolie!AG55*AD$191+SPgas!AG55*AD$192+GeoEL!AG54*AD$193+GeoVa!AG54*AD$194+VP!AG61*AD$195+Sol!AG53*AD$196) -> 61.82410053 | AE33: =IF(Sammenligning!$G$9="GJ",1,(1*3.6))*(AMV1træ!AH58*AE$179+AMV1træBP!AH57*AE$180+AMV3kul!AH80*AE$181+AMV4træ!AH56*AE$182+AMV4træBP!AH55*AE$183+AVV1træ!AH56*AE$184+AVV1kul!AH79*AE$185+AVV2træ!AH56*AE$186+AVV2halm!AH56*AE$187+AVV2gasGT!AH56*AE$188+KKV!AH56*AE$189+HCVgas!AH56*AE$190+SPolie!AH55*AE$191+SPgas!AH55*AE$192+GeoEL!AH54*AE$193+GeoVa!AH54*AE$194+VP!AH61*AE$195+Sol!AH53*AE$196) -> 61.82410053 | AF33: =IF(Sammenligning!$G$9="GJ",1,(1*3.6))*(AMV1træ!AI58*AF$179+AMV1træBP!AI57*AF$180+AMV3kul!AI80*AF$181+AMV4træ!AI56*AF$182+AMV4træBP!AI55*AF$183+AVV1træ!AI56*AF$184+AVV1kul!AI79*AF$185+AVV2træ!AI56*AF$186+AVV2halm!AI56*AF$187+AVV2gasGT!AI56*AF$188+KKV!AI56*AF$189+HCVgas!AI56*AF$190+SPolie!AI55*AF$191+SPgas!AI55*AF$192+GeoEL!AI54*AF$193+GeoVa!AI54*AF$194+VP!AI61*AF$195+Sol!AI53*AF$196) -> 61.82410053 | AG33: =IF(Sammenligning!$G$9="GJ",1,(1*3.6))*(AMV1træ!AJ58*AG$179+AMV1træBP!AJ57*AG$180+AMV3kul!AJ80*AG$181+AMV4træ!AJ56*AG$182+AMV4træBP!AJ55*AG$183+AVV1træ!AJ56*AG$184+AVV1kul!AJ79*AG$185+AVV2træ!AJ56*AG$186+AVV2halm!AJ56*AG$187+AVV2gasGT!AJ56*AG$188+KKV!AJ56*AG$189+HCVgas!AJ56*AG$190+SPolie!AJ55*AG$191+SPgas!AJ55*AG$192+GeoEL!AJ54*AG$193+GeoVa!AJ54*AG$194+VP!AJ61*AG$195+Sol!AJ53*AG$196) -> 61.82410053 | AH33: =IF(Sammenligning!$G$9="GJ",1,(1*3.6))*(AMV1træ!AK58*AH$179+AMV1træBP!AK57*AH$180+AMV3kul!AK80*AH$181+AMV4træ!AK56*AH$182+AMV4træBP!AK55*AH$183+AVV1træ!AK56*AH$184+AVV1kul!AK79*AH$185+AVV2træ!AK56*AH$186+AVV2halm!AK56*AH$187+AVV2gasGT!AK56*AH$188+KKV!AK56*AH$189+HCVgas!AK56*AH$190+SPolie!AK55*AH$191+SPgas!AK55*AH$192+GeoEL!AK54*AH$193+GeoVa!AK54*AH$194+VP!AK61*AH$195+Sol!AK53*AH$196) -> 61.82410053 | AI33: =IF(Sammenligning!$G$9="GJ",1,(1*3.6))*(AMV1træ!AL58*AI$179+AMV1træBP!AL57*AI$180+AMV3kul!AL80*AI$181+AMV4træ!AL56*AI$182+AMV4træBP!AL55*AI$183+AVV1træ!AL56*AI$184+AVV1kul!AL79*AI$185+AVV2træ!AL56*AI$186+AVV2halm!AL56*AI$187+AVV2gasGT!AL56*AI$188+KKV!AL56*AI$189+HCVgas!AL56*AI$190+SPolie!AL55*AI$191+SPgas!AL55*AI$192+GeoEL!AL54*AI$193+GeoVa!AL54*AI$194+VP!AL61*AI$195+Sol!AL53*AI$196) -> 61.82410053 | AJ33: =IF(Sammenligning!$G$9="GJ",1,(1*3.6))*(AMV1træ!AM58*AJ$179+AMV1træBP!AM57*AJ$180+AMV3kul!AM80*AJ$181+AMV4træ!AM56*AJ$182+AMV4træBP!AM55*AJ$183+AVV1træ!AM56*AJ$184+AVV1kul!AM79*AJ$185+AVV2træ!AM56*AJ$186+AVV2halm!AM56*AJ$187+AVV2gasGT!AM56*AJ$188+KKV!AM56*AJ$189+HCVgas!AM56*AJ$190+SPolie!AM55*AJ$191+SPgas!AM55*AJ$192+GeoEL!AM54*AJ$193+GeoVa!AM54*AJ$194+VP!AM61*AJ$195+Sol!AM53*AJ$196) -> 61.82410053 | AK33: =IF(Sammenligning!$G$9="GJ",1,(1*3.6))*(AMV1træ!AN58*AK$179+AMV1træBP!AN57*AK$180+AMV3kul!AN80*AK$181+AMV4træ!AN56*AK$182+AMV4træBP!AN55*AK$183+AVV1træ!AN56*AK$184+AVV1kul!AN79*AK$185+AVV2træ!AN56*AK$186+AVV2halm!AN56*AK$187+AVV2gasGT!AN56*AK$188+KKV!AN56*AK$189+HCVgas!AN56*AK$190+SPolie!AN55*AK$191+SPgas!AN55*AK$192+GeoEL!AN54*AK$193+GeoVa!AN54*AK$194+VP!AN61*AK$195+Sol!AN53*AK$196) -> 61.82410053 | AL33: =IF(Sammenligning!$G$9="GJ",1,(1*3.6))*(AMV1træ!AO58*AL$179+AMV1træBP!AO57*AL$180+AMV3kul!AO80*AL$181+AMV4træ!AO56*AL$182+AMV4træBP!AO55*AL$183+AVV1træ!AO56*AL$184+AVV1kul!AO79*AL$185+AVV2træ!AO56*AL$186+AVV2halm!AO56*AL$187+AVV2gasGT!AO56*AL$188+KKV!AO56*AL$189+HCVgas!AO56*AL$190+SPolie!AO55*AL$191+SPgas!AO55*AL$192+GeoEL!AO54*AL$193+GeoVa!AO54*AL$194+VP!AO61*AL$195+Sol!AO53*AL$196) -> 61.82410053 | AM33: =IF(Sammenligning!$G$9="GJ",1,(1*3.6))*(AMV1træ!AP58*AM$179+AMV1træBP!AP57*AM$180+AMV3kul!AP80*AM$181+AMV4træ!AP56*AM$182+AMV4træBP!AP55*AM$183+AVV1træ!AP56*AM$184+AVV1kul!AP79*AM$185+AVV2træ!AP56*AM$186+AVV2halm!AP56*AM$187+AVV2gasGT!AP56*AM$188+KKV!AP56*AM$189+HCVgas!AP56*AM$190+SPolie!AP55*AM$191+SPgas!AP55*AM$192+GeoEL!AP54*AM$193+GeoVa!AP54*AM$194+VP!AP61*AM$195+Sol!AP53*AM$196) -> 61.82410053
C34: El-transportomkostninger | D34: ="Kr/"&Sammenligning!$G$9 -> Kr/GJ | E34: =IF(Sammenligning!$G$9="GJ",1,(1*3.6))*(AMV1træ!H59*E$179+AMV1træBP!H58*E$180+AMV3kul!H57*E$181+AMV4træ!H57*E$182+AMV4træBP!H56*E$183+AVV1træ!H57*E$184+AVV1kul!H56*E$185+AVV2træ!H57*E$186+AVV2halm!H57*E$187+AVV2gasGT!H57*E$188+KKV!H57*E$189+HCVgas!H57*E$190+SPolie!H56*E$191+SPgas!H56*E$192+GeoEL!H55*E$193+GeoVa!H55*E$194+VP!H62*E$195+Sol!H54*E$196) -> 0.3145224133 | F34: =IF(Sammenligning!$G$9="GJ",1,(1*3.6))*(AMV1træ!I59*F$179+AMV1træBP!I58*F$180+AMV3kul!I57*F$181+AMV4træ!I57*F$182+AMV4træBP!I56*F$183+AVV1træ!I57*F$184+AVV1kul!I56*F$185+AVV2træ!I57*F$186+AVV2halm!I57*F$187+AVV2gasGT!I57*F$188+KKV!I57*F$189+HCVgas!I57*F$190+SPolie!I56*F$191+SPgas!I56*F$192+GeoEL!I55*F$193+GeoVa!I55*F$194+VP!I62*F$195+Sol!I54*F$196) -> 0.2199219875 | G34: =IF(Sammenligning!$G$9="GJ",1,(1*3.6))*(AMV1træ!J59*G$179+AMV1træBP!J58*G$180+AMV3kul!J57*G$181+AMV4træ!J57*G$182+AMV4træBP!J56*G$183+AVV1træ!J57*G$184+AVV1kul!J56*G$185+AVV2træ!J57*G$186+AVV2halm!J57*G$187+AVV2gasGT!J57*G$188+KKV!J57*G$189+HCVgas!J57*G$190+SPolie!J56*G$191+SPgas!J56*G$192+GeoEL!J55*G$193+GeoVa!J55*G$194+VP!J62*G$195+Sol!J54*G$196) -> 0.1998536992 | H34: =IF(Sammenligning!$G$9="GJ",1,(1*3.6))*(AMV1træ!K59*H$179+AMV1træBP!K58*H$180+AMV3kul!K57*H$181+AMV4træ!K57*H$182+AMV4træBP!K56*H$183+AVV1træ!K57*H$184+AVV1kul!K56*H$185+AVV2træ!K57*H$186+AVV2halm!K57*H$187+AVV2gasGT!K57*H$188+KKV!K57*H$189+HCVgas!K57*H$190+SPolie!K56*H$191+SPgas!K56*H$192+GeoEL!K55*H$193+GeoVa!K55*H$194+VP!K62*H$195+Sol!K54*H$196) -> 0.1493904151 | I34: =IF(Sammenligning!$G$9="GJ",1,(1*3.6))*(AMV1træ!L59*I$179+AMV1træBP!L58*I$180+AMV3kul!L57*I$181+AMV4træ!L57*I$182+AMV4træBP!L56*I$183+AVV1træ!L57*I$184+AVV1kul!L56*I$185+AVV2træ!L57*I$186+AVV2halm!L57*I$187+AVV2gasGT!L57*I$188+KKV!L57*I$189+HCVgas!L57*I$190+SPolie!L56*I$191+SPgas!L56*I$192+GeoEL!L55*I$193+GeoVa!L55*I$194+VP!L62*I$195+Sol!L54*I$196) -> 0.150682959 | J34: =IF(Sammenligning!$G$9="GJ",1,(1*3.6))*(AMV1træ!M59*J$179+AMV1træBP!M58*J$180+AMV3kul!M57*J$181+AMV4træ!M57*J$182+AMV4træBP!M56*J$183+AVV1træ!M57*J$184+AVV1kul!M56*J$185+AVV2træ!M57*J$186+AVV2halm!M57*J$187+AVV2gasGT!M57*J$188+KKV!M57*J$189+HCVgas!M57*J$190+SPolie!M56*J$191+SPgas!M56*J$192+GeoEL!M55*J$193+GeoVa!M55*J$194+VP!M62*J$195+Sol!M54*J$196) -> 0.2864327002 | K34: =IF(Sammenligning!$G$9="GJ",1,(1*3.6))*(AMV1træ!N59*K$179+AMV1træBP!N58*K$180+AMV3kul!N57*K$181+AMV4træ!N57*K$182+AMV4træBP!N56*K$183+AVV1træ!N57*K$184+AVV1kul!N56*K$185+AVV2træ!N57*K$186+AVV2halm!N57*K$187+AVV2gasGT!N57*K$188+KKV!N57*K$189+HCVgas!N57*K$190+SPolie!N56*K$191+SPgas!N56*K$192+GeoEL!N55*K$193+GeoVa!N55*K$194+VP!N62*K$195+Sol!N54*K$196) -> 0.5363882428 | L34: =IF(Sammenligning!$G$9="GJ",1,(1*3.6))*(AMV1træ!O59*L$179+AMV1træBP!O58*L$180+AMV3kul!O57*L$181+AMV4træ!O57*L$182+AMV4træBP!O56*L$183+AVV1træ!O57*L$184+AVV1kul!O56*L$185+AVV2træ!O57*L$186+AVV2halm!O57*L$187+AVV2gasGT!O57*L$188+KKV!O57*L$189+HCVgas!O57*L$190+SPolie!O56*L$191+SPgas!O56*L$192+GeoEL!O55*L$193+GeoVa!O55*L$194+VP!O62*L$195+Sol!O54*L$196) -> 0.5137015229 | M34: =IF(Sammenligning!$G$9="GJ",1,(1*3.6))*(AMV1træ!P59*M$179+AMV1træBP!P58*M$180+AMV3kul!P57*M$181+AMV4træ!P57*M$182+AMV4træBP!P56*M$183+AVV1træ!P57*M$184+AVV1kul!P56*M$185+AVV2træ!P57*M$186+AVV2halm!P57*M$187+AVV2gasGT!P57*M$188+KKV!P57*M$189+HCVgas!P57*M$190+SPolie!P56*M$191+SPgas!P56*M$192+GeoEL!P55*M$193+GeoVa!P55*M$194+VP!P62*M$195+Sol!P54*M$196) -> 0.5500409113 | N34: =IF(Sammenligning!$G$9="GJ",1,(1*3.6))*(AMV1træ!Q59*N$179+AMV1træBP!Q58*N$180+AMV3kul!Q57*N$181+AMV4træ!Q57*N$182+AMV4træBP!Q56*N$183+AVV1træ!Q57*N$184+AVV1kul!Q56*N$185+AVV2træ!Q57*N$186+AVV2halm!Q57*N$187+AVV2gasGT!Q57*N$188+KKV!Q57*N$189+HCVgas!Q57*N$190+SPolie!Q56*N$191+SPgas!Q56*N$192+GeoEL!Q55*N$193+GeoVa!Q55*N$194+VP!Q62*N$195+Sol!Q54*N$196) -> 0.6426138059 | O34: =IF(Sammenligning!$G$9="GJ",1,(1*3.6))*(AMV1træ!R59*O$179+AMV1træBP!R58*O$180+AMV3kul!R57*O$181+AMV4træ!R57*O$182+AMV4træBP!R56*O$183+AVV1træ!R57*O$184+AVV1kul!R56*O$185+AVV2træ!R57*O$186+AVV2halm!R57*O$187+AVV2gasGT!R57*O$188+KKV!R57*O$189+HCVgas!R57*O$190+SPolie!R56*O$191+SPgas!R56*O$192+GeoEL!R55*O$193+GeoVa!R55*O$194+VP!R62*O$195+Sol!R54*O$196) -> 0.7516597898 | P34: =IF(Sammenligning!$G$9="GJ",1,(1*3.6))*(AMV1træ!S59*P$179+AMV1træBP!S58*P$180+AMV3kul!S57*P$181+AMV4træ!S57*P$182+AMV4træBP!S56*P$183+AVV1træ!S57*P$184+AVV1kul!S56*P$185+AVV2træ!S57*P$186+AVV2halm!S57*P$187+AVV2gasGT!S57*P$188+KKV!S57*P$189+HCVgas!S57*P$190+SPolie!S56*P$191+SPgas!S56*P$192+GeoEL!S55*P$193+GeoVa!S55*P$194+VP!S62*P$195+Sol!S54*P$196) -> 0.8596210785 | Q34: =IF(Sammenligning!$G$9="GJ",1,(1*3.6))*(AMV1træ!T59*Q$179+AMV1træBP!T58*Q$180+AMV3kul!T57*Q$181+AMV4træ!T57*Q$182+AMV4træBP!T56*Q$183+AVV1træ!T57*Q$184+AVV1kul!T56*Q$185+AVV2træ!T57*Q$186+AVV2halm!T57*Q$187+AVV2gasGT!T57*Q$188+KKV!T57*Q$189+HCVgas!T57*Q$190+SPolie!T56*Q$191+SPgas!T56*Q$192+GeoEL!T55*Q$193+GeoVa!T55*Q$194+VP!T62*Q$195+Sol!T54*Q$196) -> 0.966492369 | R34: =IF(Sammenligning!$G$9="GJ",1,(1*3.6))*(AMV1træ!U59*R$179+AMV1træBP!U58*R$180+AMV3kul!U57*R$181+AMV4træ!U57*R$182+AMV4træBP!U56*R$183+AVV1træ!U57*R$184+AVV1kul!U56*R$185+AVV2træ!U57*R$186+AVV2halm!U57*R$187+AVV2gasGT!U57*R$188+KKV!U57*R$189+HCVgas!U57*R$190+SPolie!U56*R$191+SPgas!U56*R$192+GeoEL!U55*R$193+GeoVa!U55*R$194+VP!U62*R$195+Sol!U54*R$196) -> 1.065260034 | S34: =IF(Sammenligning!$G$9="GJ",1,(1*3.6))*(AMV1træ!V59*S$179+AMV1træBP!V58*S$180+AMV3kul!V57*S$181+AMV4træ!V57*S$182+AMV4træBP!V56*S$183+AVV1træ!V57*S$184+AVV1kul!V56*S$185+AVV2træ!V57*S$186+AVV2halm!V57*S$187+AVV2gasGT!V57*S$188+KKV!V57*S$189+HCVgas!V57*S$190+SPolie!V56*S$191+SPgas!V56*S$192+GeoEL!V55*S$193+GeoVa!V55*S$194+VP!V62*S$195+Sol!V54*S$196) -> 1.14597137 | T34: =IF(Sammenligning!$G$9="GJ",1,(1*3.6))*(AMV1træ!W59*T$179+AMV1træBP!W58*T$180+AMV3kul!W57*T$181+AMV4træ!W57*T$182+AMV4træBP!W56*T$183+AVV1træ!W57*T$184+AVV1kul!W56*T$185+AVV2træ!W57*T$186+AVV2halm!W57*T$187+AVV2gasGT!W57*T$188+KKV!W57*T$189+HCVgas!W57*T$190+SPolie!W56*T$191+SPgas!W56*T$192+GeoEL!W55*T$193+GeoVa!W55*T$194+VP!W62*T$195+Sol!W54*T$196) -> 1.680047968 | U34: =IF(Sammenligning!$G$9="GJ",1,(1*3.6))*(AMV1træ!X59*U$179+AMV1træBP!X58*U$180+AMV3kul!X57*U$181+AMV4træ!X57*U$182+AMV4træBP!X56*U$183+AVV1træ!X57*U$184+AVV1kul!X56*U$185+AVV2træ!X57*U$186+AVV2halm!X57*U$187+AVV2gasGT!X57*U$188+KKV!X57*U$189+HCVgas!X57*U$190+SPolie!X56*U$191+SPgas!X56*U$192+GeoEL!X55*U$193+GeoVa!X55*U$194+VP!X62*U$195+Sol!X54*U$196) -> 2.410376128 | V34: =IF(Sammenligning!$G$9="GJ",1,(1*3.6))*(AMV1træ!Y59*V$179+AMV1træBP!Y58*V$180+AMV3kul!Y57*V$181+AMV4træ!Y57*V$182+AMV4træBP!Y56*V$183+AVV1træ!Y57*V$184+AVV1kul!Y56*V$185+AVV2træ!Y57*V$186+AVV2halm!Y57*V$187+AVV2gasGT!Y57*V$188+KKV!Y57*V$189+HCVgas!Y57*V$190+SPolie!Y56*V$191+SPgas!Y56*V$192+GeoEL!Y55*V$193+GeoVa!Y55*V$194+VP!Y62*V$195+Sol!Y54*V$196) -> 3.176278462 | W34: =IF(Sammenligning!$G$9="GJ",1,(1*3.6))*(AMV1træ!Z59*W$179+AMV1træBP!Z58*W$180+AMV3kul!Z57*W$181+AMV4træ!Z57*W$182+AMV4træBP!Z56*W$183+AVV1træ!Z57*W$184+AVV1kul!Z56*W$185+AVV2træ!Z57*W$186+AVV2halm!Z57*W$187+AVV2gasGT!Z57*W$188+KKV!Z57*W$189+HCVgas!Z57*W$190+SPolie!Z56*W$191+SPgas!Z56*W$192+GeoEL!Z55*W$193+GeoVa!Z55*W$194+VP!Z62*W$195+Sol!Z54*W$196) -> 7.221770505 | X34: =IF(Sammenligning!$G$9="GJ",1,(1*3.6))*(AMV1træ!AA59*X$179+AMV1træBP!AA58*X$180+AMV3kul!AA57*X$181+AMV4træ!AA57*X$182+AMV4træBP!AA56*X$183+AVV1træ!AA57*X$184+AVV1kul!AA56*X$185+AVV2træ!AA57*X$186+AVV2halm!AA57*X$187+AVV2gasGT!AA57*X$188+KKV!AA57*X$189+HCVgas!AA57*X$190+SPolie!AA56*X$191+SPgas!AA56*X$192+GeoEL!AA55*X$193+GeoVa!AA55*X$194+VP!AA62*X$195+Sol!AA54*X$196) -> 7.110229171 | Y34: =IF(Sammenligning!$G$9="GJ",1,(1*3.6))*(AMV1træ!AB59*Y$179+AMV1træBP!AB58*Y$180+AMV3kul!AB57*Y$181+AMV4træ!AB57*Y$182+AMV4træBP!AB56*Y$183+AVV1træ!AB57*Y$184+AVV1kul!AB56*Y$185+AVV2træ!AB57*Y$186+AVV2halm!AB57*Y$187+AVV2gasGT!AB57*Y$188+KKV!AB57*Y$189+HCVgas!AB57*Y$190+SPolie!AB56*Y$191+SPgas!AB56*Y$192+GeoEL!AB55*Y$193+GeoVa!AB55*Y$194+VP!AB62*Y$195+Sol!AB54*Y$196) -> 7.181663778 | Z34: =IF(Sammenligning!$G$9="GJ",1,(1*3.6))*(AMV1træ!AC59*Z$179+AMV1træBP!AC58*Z$180+AMV3kul!AC57*Z$181+AMV4træ!AC57*Z$182+AMV4træBP!AC56*Z$183+AVV1træ!AC57*Z$184+AVV1kul!AC56*Z$185+AVV2træ!AC57*Z$186+AVV2halm!AC57*Z$187+AVV2gasGT!AC57*Z$188+KKV!AC57*Z$189+HCVgas!AC57*Z$190+SPolie!AC56*Z$191+SPgas!AC56*Z$192+GeoEL!AC55*Z$193+GeoVa!AC55*Z$194+VP!AC62*Z$195+Sol!AC54*Z$196) -> 7.252688962 | AA34: =IF(Sammenligning!$G$9="GJ",1,(1*3.6))*(AMV1træ!AD59*AA$179+AMV1træBP!AD58*AA$180+AMV3kul!AD57*AA$181+AMV4træ!AD57*AA$182+AMV4træBP!AD56*AA$183+AVV1træ!AD57*AA$184+AVV1kul!AD56*AA$185+AVV2træ!AD57*AA$186+AVV2halm!AD57*AA$187+AVV2gasGT!AD57*AA$188+KKV!AD57*AA$189+HCVgas!AD57*AA$190+SPolie!AD56*AA$191+SPgas!AD56*AA$192+GeoEL!AD55*AA$193+GeoVa!AD55*AA$194+VP!AD62*AA$195+Sol!AD54*AA$196) -> 7.323308231 | AB34: =IF(Sammenligning!$G$9="GJ",1,(1*3.6))*(AMV1træ!AE59*AB$179+AMV1træBP!AE58*AB$180+AMV3kul!AE57*AB$181+AMV4træ!AE57*AB$182+AMV4træBP!AE56*AB$183+AVV1træ!AE57*AB$184+AVV1kul!AE56*AB$185+AVV2træ!AE57*AB$186+AVV2halm!AE57*AB$187+AVV2gasGT!AE57*AB$188+KKV!AE57*AB$189+HCVgas!AE57*AB$190+SPolie!AE56*AB$191+SPgas!AE56*AB$192+GeoEL!AE55*AB$193+GeoVa!AE55*AB$194+VP!AE62*AB$195+Sol!AE54*AB$196) -> 7.393525056 | AC34: =IF(Sammenligning!$G$9="GJ",1,(1*3.6))*(AMV1træ!AF59*AC$179+AMV1træBP!AF58*AC$180+AMV3kul!AF57*AC$181+AMV4træ!AF57*AC$182+AMV4træBP!AF56*AC$183+AVV1træ!AF57*AC$184+AVV1kul!AF56*AC$185+AVV2træ!AF57*AC$186+AVV2halm!AF57*AC$187+AVV2gasGT!AF57*AC$188+KKV!AF57*AC$189+HCVgas!AF57*AC$190+SPolie!AF56*AC$191+SPgas!AF56*AC$192+GeoEL!AF55*AC$193+GeoVa!AF55*AC$194+VP!AF62*AC$195+Sol!AF54*AC$196) -> 7.463342868 | AD34: =IF(Sammenligning!$G$9="GJ",1,(1*3.6))*(AMV1træ!AG59*AD$179+AMV1træBP!AG58*AD$180+AMV3kul!AG57*AD$181+AMV4træ!AG57*AD$182+AMV4træBP!AG56*AD$183+AVV1træ!AG57*AD$184+AVV1kul!AG56*AD$185+AVV2træ!AG57*AD$186+AVV2halm!AG57*AD$187+AVV2gasGT!AG57*AD$188+KKV!AG57*AD$189+HCVgas!AG57*AD$190+SPolie!AG56*AD$191+SPgas!AG56*AD$192+GeoEL!AG55*AD$193+GeoVa!AG55*AD$194+VP!AG62*AD$195+Sol!AG54*AD$196) -> 7.463342868 | AE34: =IF(Sammenligning!$G$9="GJ",1,(1*3.6))*(AMV1træ!AH59*AE$179+AMV1træBP!AH58*AE$180+AMV3kul!AH57*AE$181+AMV4træ!AH57*AE$182+AMV4træBP!AH56*AE$183+AVV1træ!AH57*AE$184+AVV1kul!AH56*AE$185+AVV2træ!AH57*AE$186+AVV2halm!AH57*AE$187+AVV2gasGT!AH57*AE$188+KKV!AH57*AE$189+HCVgas!AH57*AE$190+SPolie!AH56*AE$191+SPgas!AH56*AE$192+GeoEL!AH55*AE$193+GeoVa!AH55*AE$194+VP!AH62*AE$195+Sol!AH54*AE$196) -> 7.463342868 | AF34: =IF(Sammenligning!$G$9="GJ",1,(1*3.6))*(AMV1træ!AI59*AF$179+AMV1træBP!AI58*AF$180+AMV3kul!AI57*AF$181+AMV4træ!AI57*AF$182+AMV4træBP!AI56*AF$183+AVV1træ!AI57*AF$184+AVV1kul!AI56*AF$185+AVV2træ!AI57*AF$186+AVV2halm!AI57*AF$187+AVV2gasGT!AI57*AF$188+KKV!AI57*AF$189+HCVgas!AI57*AF$190+SPolie!AI56*AF$191+SPgas!AI56*AF$192+GeoEL!AI55*AF$193+GeoVa!AI55*AF$194+VP!AI62*AF$195+Sol!AI54*AF$196) -> 7.463342868 | AG34: =IF(Sammenligning!$G$9="GJ",1,(1*3.6))*(AMV1træ!AJ59*AG$179+AMV1træBP!AJ58*AG$180+AMV3kul!AJ57*AG$181+AMV4træ!AJ57*AG$182+AMV4træBP!AJ56*AG$183+AVV1træ!AJ57*AG$184+AVV1kul!AJ56*AG$185+AVV2træ!AJ57*AG$186+AVV2halm!AJ57*AG$187+AVV2gasGT!AJ57*AG$188+KKV!AJ57*AG$189+HCVgas!AJ57*AG$190+SPolie!AJ56*AG$191+SPgas!AJ56*AG$192+GeoEL!AJ55*AG$193+GeoVa!AJ55*AG$194+VP!AJ62*AG$195+Sol!AJ54*AG$196) -> 7.463342868 | AH34: =IF(Sammenligning!$G$9="GJ",1,(1*3.6))*(AMV1træ!AK59*AH$179+AMV1træBP!AK58*AH$180+AMV3kul!AK57*AH$181+AMV4træ!AK57*AH$182+AMV4træBP!AK56*AH$183+AVV1træ!AK57*AH$184+AVV1kul!AK56*AH$185+AVV2træ!AK57*AH$186+AVV2halm!AK57*AH$187+AVV2gasGT!AK57*AH$188+KKV!AK57*AH$189+HCVgas!AK57*AH$190+SPolie!AK56*AH$191+SPgas!AK56*AH$192+GeoEL!AK55*AH$193+GeoVa!AK55*AH$194+VP!AK62*AH$195+Sol!AK54*AH$196) -> 7.463342868 | AI34: =IF(Sammenligning!$G$9="GJ",1,(1*3.6))*(AMV1træ!AL59*AI$179+AMV1træBP!AL58*AI$180+AMV3kul!AL57*AI$181+AMV4træ!AL57*AI$182+AMV4træBP!AL56*AI$183+AVV1træ!AL57*AI$184+AVV1kul!AL56*AI$185+AVV2træ!AL57*AI$186+AVV2halm!AL57*AI$187+AVV2gasGT!AL57*AI$188+KKV!AL57*AI$189+HCVgas!AL57*AI$190+SPolie!AL56*AI$191+SPgas!AL56*AI$192+GeoEL!AL55*AI$193+GeoVa!AL55*AI$194+VP!AL62*AI$195+Sol!AL54*AI$196) -> 7.463342868 | AJ34: =IF(Sammenligning!$G$9="GJ",1,(1*3.6))*(AMV1træ!AM59*AJ$179+AMV1træBP!AM58*AJ$180+AMV3kul!AM57*AJ$181+AMV4træ!AM57*AJ$182+AMV4træBP!AM56*AJ$183+AVV1træ!AM57*AJ$184+AVV1kul!AM56*AJ$185+AVV2træ!AM57*AJ$186+AVV2halm!AM57*AJ$187+AVV2gasGT!AM57*AJ$188+KKV!AM57*AJ$189+HCVgas!AM57*AJ$190+SPolie!AM56*AJ$191+SPgas!AM56*AJ$192+GeoEL!AM55*AJ$193+GeoVa!AM55*AJ$194+VP!AM62*AJ$195+Sol!AM54*AJ$196) -> 7.463342868 | AK34: =IF(Sammenligning!$G$9="GJ",1,(1*3.6))*(AMV1træ!AN59*AK$179+AMV1træBP!AN58*AK$180+AMV3kul!AN57*AK$181+AMV4træ!AN57*AK$182+AMV4træBP!AN56*AK$183+AVV1træ!AN57*AK$184+AVV1kul!AN56*AK$185+AVV2træ!AN57*AK$186+AVV2halm!AN57*AK$187+AVV2gasGT!AN57*AK$188+KKV!AN57*AK$189+HCVgas!AN57*AK$190+SPolie!AN56*AK$191+SPgas!AN56*AK$192+GeoEL!AN55*AK$193+GeoVa!AN55*AK$194+VP!AN62*AK$195+Sol!AN54*AK$196) -> 7.463342868 | AL34: =IF(Sammenligning!$G$9="GJ",1,(1*3.6))*(AMV1træ!AO59*AL$179+AMV1træBP!AO58*AL$180+AMV3kul!AO57*AL$181+AMV4træ!AO57*AL$182+AMV4træBP!AO56*AL$183+AVV1træ!AO57*AL$184+AVV1kul!AO56*AL$185+AVV2træ!AO57*AL$186+AVV2halm!AO57*AL$187+AVV2gasGT!AO57*AL$188+KKV!AO57*AL$189+HCVgas!AO57*AL$190+SPolie!AO56*AL$191+SPgas!AO56*AL$192+GeoEL!AO55*AL$193+GeoVa!AO55*AL$194+VP!AO62*AL$195+Sol!AO54*AL$196) -> 7.463342868 | AM34: =IF(Sammenligning!$G$9="GJ",1,(1*3.6))*(AMV1træ!AP59*AM$179+AMV1træBP!AP58*AM$180+AMV3kul!AP57*AM$181+AMV4træ!AP57*AM$182+AMV4træBP!AP56*AM$183+AVV1træ!AP57*AM$184+AVV1kul!AP56*AM$185+AVV2træ!AP57*AM$186+AVV2halm!AP57*AM$187+AVV2gasGT!AP57*AM$188+KKV!AP57*AM$189+HCVgas!AP57*AM$190+SPolie!AP56*AM$191+SPgas!AP56*AM$192+GeoEL!AP55*AM$193+GeoVa!AP55*AM$194+VP!AP62*AM$195+Sol!AP54*AM$196) -> 7.463342868
C35: CO2-omkostning | D35: ="Kr/"&Sammenligning!$G$9 -> Kr/GJ | E35: =IF(Sammenligning!$G$9="GJ",1,(1*3.6))*(AMV1træ!H60*E$179+AMV1træBP!H59*E$180+AMV3kul!H58*E$181+AMV4træ!H58*E$182+AMV4træBP!H57*E$183+AVV1træ!H58*E$184+AVV1kul!H57*E$185+AVV2træ!H58*E$186+AVV2halm!H58*E$187+AVV2gasGT!H58*E$188+KKV!H58*E$189+HCVgas!H58*E$190+SPolie!H57*E$191+SPgas!H57*E$192+GeoEL!H56*E$193+GeoVa!H56*E$194+VP!H63*E$195+Sol!H55*E$196) -> 1.108559119 | F35: =IF(Sammenligning!$G$9="GJ",1,(1*3.6))*(AMV1træ!I60*F$179+AMV1træBP!I59*F$180+AMV3kul!I58*F$181+AMV4træ!I58*F$182+AMV4træBP!I57*F$183+AVV1træ!I58*F$184+AVV1kul!I57*F$185+AVV2træ!I58*F$186+AVV2halm!I58*F$187+AVV2gasGT!I58*F$188+KKV!I58*F$189+HCVgas!I58*F$190+SPolie!I57*F$191+SPgas!I57*F$192+GeoEL!I56*F$193+GeoVa!I56*F$194+VP!I63*F$195+Sol!I55*F$196) -> 0.8189584335 | G35: =IF(Sammenligning!$G$9="GJ",1,(1*3.6))*(AMV1træ!J60*G$179+AMV1træBP!J59*G$180+AMV3kul!J58*G$181+AMV4træ!J58*G$182+AMV4træBP!J57*G$183+AVV1træ!J58*G$184+AVV1kul!J57*G$185+AVV2træ!J58*G$186+AVV2halm!J58*G$187+AVV2gasGT!J58*G$188+KKV!J58*G$189+HCVgas!J58*G$190+SPolie!J57*G$191+SPgas!J57*G$192+GeoEL!J56*G$193+GeoVa!J56*G$194+VP!J63*G$195+Sol!J55*G$196) -> 2.256361876 | H35: =IF(Sammenligning!$G$9="GJ",1,(1*3.6))*(AMV1træ!K60*H$179+AMV1træBP!K59*H$180+AMV3kul!K58*H$181+AMV4træ!K58*H$182+AMV4træBP!K57*H$183+AVV1træ!K58*H$184+AVV1kul!K57*H$185+AVV2træ!K58*H$186+AVV2halm!K58*H$187+AVV2gasGT!K58*H$188+KKV!K58*H$189+HCVgas!K58*H$190+SPolie!K57*H$191+SPgas!K57*H$192+GeoEL!K56*H$193+GeoVa!K56*H$194+VP!K63*H$195+Sol!K55*H$196) -> 3.816860847 | I35: =IF(Sammenligning!$G$9="GJ",1,(1*3.6))*(AMV1træ!L60*I$179+AMV1træBP!L59*I$180+AMV3kul!L58*I$181+AMV4træ!L58*I$182+AMV4træBP!L57*I$183+AVV1træ!L58*I$184+AVV1kul!L57*I$185+AVV2træ!L58*I$186+AVV2halm!L58*I$187+AVV2gasGT!L58*I$188+KKV!L58*I$189+HCVgas!L58*I$190+SPolie!L57*I$191+SPgas!L57*I$192+GeoEL!L56*I$193+GeoVa!L56*I$194+VP!L63*I$195+Sol!L55*I$196) -> 4.181089932 | J35: =IF(Sammenligning!$G$9="GJ",1,(1*3.6))*(AMV1træ!M60*J$179+AMV1træBP!M59*J$180+AMV3kul!M58*J$181+AMV4træ!M58*J$182+AMV4træBP!M57*J$183+AVV1træ!M58*J$184+AVV1kul!M57*J$185+AVV2træ!M58*J$186+AVV2halm!M58*J$187+AVV2gasGT!M58*J$188+KKV!M58*J$189+HCVgas!M58*J$190+SPolie!M57*J$191+SPgas!M57*J$192+GeoEL!M56*J$193+GeoVa!M56*J$194+VP!M63*J$195+Sol!M55*J$196) -> 3.892779608 | K35: =IF(Sammenligning!$G$9="GJ",1,(1*3.6))*(AMV1træ!N60*K$179+AMV1træBP!N59*K$180+AMV3kul!N58*K$181+AMV4træ!N58*K$182+AMV4træBP!N57*K$183+AVV1træ!N58*K$184+AVV1kul!N57*K$185+AVV2træ!N58*K$186+AVV2halm!N58*K$187+AVV2gasGT!N58*K$188+KKV!N58*K$189+HCVgas!N58*K$190+SPolie!N57*K$191+SPgas!N57*K$192+GeoEL!N56*K$193+GeoVa!N56*K$194+VP!N63*K$195+Sol!N55*K$196) -> 10.1042096 | L35: =IF(Sammenligning!$G$9="GJ",1,(1*3.6))*(AMV1træ!O60*L$179+AMV1træBP!O59*L$180+AMV3kul!O58*L$181+AMV4træ!O58*L$182+AMV4træBP!O57*L$183+AVV1træ!O58*L$184+AVV1kul!O57*L$185+AVV2træ!O58*L$186+AVV2halm!O58*L$187+AVV2gasGT!O58*L$188+KKV!O58*L$189+HCVgas!O58*L$190+SPolie!O57*L$191+SPgas!O57*L$192+GeoEL!O56*L$193+GeoVa!O56*L$194+VP!O63*L$195+Sol!O55*L$196) -> 9.641918935 | M35: =IF(Sammenligning!$G$9="GJ",1,(1*3.6))*(AMV1træ!P60*M$179+AMV1træBP!P59*M$180+AMV3kul!P58*M$181+AMV4træ!P58*M$182+AMV4træBP!P57*M$183+AVV1træ!P58*M$184+AVV1kul!P57*M$185+AVV2træ!P58*M$186+AVV2halm!P58*M$187+AVV2gasGT!P58*M$188+KKV!P58*M$189+HCVgas!P58*M$190+SPolie!P57*M$191+SPgas!P57*M$192+GeoEL!P56*M$193+GeoVa!P56*M$194+VP!P63*M$195+Sol!P55*M$196) -> 9.368113769 | N35: =IF(Sammenligning!$G$9="GJ",1,(1*3.6))*(AMV1træ!Q60*N$179+AMV1træBP!Q59*N$180+AMV3kul!Q58*N$181+AMV4træ!Q58*N$182+AMV4træBP!Q57*N$183+AVV1træ!Q58*N$184+AVV1kul!Q57*N$185+AVV2træ!Q58*N$186+AVV2halm!Q58*N$187+AVV2gasGT!Q58*N$188+KKV!Q58*N$189+HCVgas!Q58*N$190+SPolie!Q57*N$191+SPgas!Q57*N$192+GeoEL!Q56*N$193+GeoVa!Q56*N$194+VP!Q63*N$195+Sol!Q55*N$196) -> 9.109487661 | O35: =IF(Sammenligning!$G$9="GJ",1,(1*3.6))*(AMV1træ!R60*O$179+AMV1træBP!R59*O$180+AMV3kul!R58*O$181+AMV4træ!R58*O$182+AMV4træBP!R57*O$183+AVV1træ!R58*O$184+AVV1kul!R57*O$185+AVV2træ!R58*O$186+AVV2halm!R58*O$187+AVV2gasGT!R58*O$188+KKV!R58*O$189+HCVgas!R58*O$190+SPolie!R57*O$191+SPgas!R57*O$192+GeoEL!R56*O$193+GeoVa!R56*O$194+VP!R63*O$195+Sol!R55*O$196) -> 8.523026949 | P35: =IF(Sammenligning!$G$9="GJ",1,(1*3.6))*(AMV1træ!S60*P$179+AMV1træBP!S59*P$180+AMV3kul!S58*P$181+AMV4træ!S58*P$182+AMV4træBP!S57*P$183+AVV1træ!S58*P$184+AVV1kul!S57*P$185+AVV2træ!S58*P$186+AVV2halm!S58*P$187+AVV2gasGT!S58*P$188+KKV!S58*P$189+HCVgas!S58*P$190+SPolie!S57*P$191+SPgas!S57*P$192+GeoEL!S56*P$193+GeoVa!S56*P$194+VP!S63*P$195+Sol!S55*P$196) -> 7.917718149 | Q35: =IF(Sammenligning!$G$9="GJ",1,(1*3.6))*(AMV1træ!T60*Q$179+AMV1træBP!T59*Q$180+AMV3kul!T58*Q$181+AMV4træ!T58*Q$182+AMV4træBP!T57*Q$183+AVV1træ!T58*Q$184+AVV1kul!T57*Q$185+AVV2træ!T58*Q$186+AVV2halm!T58*Q$187+AVV2gasGT!T58*Q$188+KKV!T58*Q$189+HCVgas!T58*Q$190+SPolie!T57*Q$191+SPgas!T57*Q$192+GeoEL!T56*Q$193+GeoVa!T56*Q$194+VP!T63*Q$195+Sol!T55*Q$196) -> 7.275420131 | R35: =IF(Sammenligning!$G$9="GJ",1,(1*3.6))*(AMV1træ!U60*R$179+AMV1træBP!U59*R$180+AMV3kul!U58*R$181+AMV4træ!U58*R$182+AMV4træBP!U57*R$183+AVV1træ!U58*R$184+AVV1kul!U57*R$185+AVV2træ!U58*R$186+AVV2halm!U58*R$187+AVV2gasGT!U58*R$188+KKV!U58*R$189+HCVgas!U58*R$190+SPolie!U57*R$191+SPgas!U57*R$192+GeoEL!U56*R$193+GeoVa!U56*R$194+VP!U63*R$195+Sol!U55*R$196) -> 6.601374988 | S35: =IF(Sammenligning!$G$9="GJ",1,(1*3.6))*(AMV1træ!V60*S$179+AMV1træBP!V59*S$180+AMV3kul!V58*S$181+AMV4træ!V58*S$182+AMV4træBP!V57*S$183+AVV1træ!V58*S$184+AVV1kul!V57*S$185+AVV2træ!V58*S$186+AVV2halm!V58*S$187+AVV2gasGT!V58*S$188+KKV!V58*S$189+HCVgas!V58*S$190+SPolie!V57*S$191+SPgas!V57*S$192+GeoEL!V56*S$193+GeoVa!V56*S$194+VP!V63*S$195+Sol!V55*S$196) -> 5.879854178 | T35: =IF(Sammenligning!$G$9="GJ",1,(1*3.6))*(AMV1træ!W60*T$179+AMV1træBP!W59*T$180+AMV3kul!W58*T$181+AMV4træ!W58*T$182+AMV4træBP!W57*T$183+AVV1træ!W58*T$184+AVV1kul!W57*T$185+AVV2træ!W58*T$186+AVV2halm!W58*T$187+AVV2gasGT!W58*T$188+KKV!W58*T$189+HCVgas!W58*T$190+SPolie!W57*T$191+SPgas!W57*T$192+GeoEL!W56*T$193+GeoVa!W56*T$194+VP!W63*T$195+Sol!W55*T$196) -> 5.083823625 | U35: =IF(Sammenligning!$G$9="GJ",1,(1*3.6))*(AMV1træ!X60*U$179+AMV1træBP!X59*U$180+AMV3kul!X58*U$181+AMV4træ!X58*U$182+AMV4træBP!X57*U$183+AVV1træ!X58*U$184+AVV1kul!X57*U$185+AVV2træ!X58*U$186+AVV2halm!X58*U$187+AVV2gasGT!X58*U$188+KKV!X58*U$189+HCVgas!X58*U$190+SPolie!X57*U$191+SPgas!X57*U$192+GeoEL!X56*U$193+GeoVa!X56*U$194+VP!X63*U$195+Sol!X55*U$196) -> 4.426497191 | V35: =IF(Sammenligning!$G$9="GJ",1,(1*3.6))*(AMV1træ!Y60*V$179+AMV1træBP!Y59*V$180+AMV3kul!Y58*V$181+AMV4træ!Y58*V$182+AMV4træBP!Y57*V$183+AVV1træ!Y58*V$184+AVV1kul!Y57*V$185+AVV2træ!Y58*V$186+AVV2halm!Y58*V$187+AVV2gasGT!Y58*V$188+KKV!Y58*V$189+HCVgas!Y58*V$190+SPolie!Y57*V$191+SPgas!Y57*V$192+GeoEL!Y56*V$193+GeoVa!Y56*V$194+VP!Y63*V$195+Sol!Y55*V$196) -> 4.013486833 | W35: =IF(Sammenligning!$G$9="GJ",1,(1*3.6))*(AMV1træ!Z60*W$179+AMV1træBP!Z59*W$180+AMV3kul!Z58*W$181+AMV4træ!Z58*W$182+AMV4træBP!Z57*W$183+AVV1træ!Z58*W$184+AVV1kul!Z57*W$185+AVV2træ!Z58*W$186+AVV2halm!Z58*W$187+AVV2gasGT!Z58*W$188+KKV!Z58*W$189+HCVgas!Z58*W$190+SPolie!Z57*W$191+SPgas!Z57*W$192+GeoEL!Z56*W$193+GeoVa!Z56*W$194+VP!Z63*W$195+Sol!Z55*W$196) -> 0.02196872364 | X35: =IF(Sammenligning!$G$9="GJ",1,(1*3.6))*(AMV1træ!AA60*X$179+AMV1træBP!AA59*X$180+AMV3kul!AA58*X$181+AMV4træ!AA58*X$182+AMV4træBP!AA57*X$183+AVV1træ!AA58*X$184+AVV1kul!AA57*X$185+AVV2træ!AA58*X$186+AVV2halm!AA58*X$187+AVV2gasGT!AA58*X$188+KKV!AA58*X$189+HCVgas!AA58*X$190+SPolie!AA57*X$191+SPgas!AA57*X$192+GeoEL!AA56*X$193+GeoVa!AA56*X$194+VP!AA63*X$195+Sol!AA55*X$196) -> 0.03178350271 | Y35: =IF(Sammenligning!$G$9="GJ",1,(1*3.6))*(AMV1træ!AB60*Y$179+AMV1træBP!AB59*Y$180+AMV3kul!AB58*Y$181+AMV4træ!AB58*Y$182+AMV4træBP!AB57*Y$183+AVV1træ!AB58*Y$184+AVV1kul!AB57*Y$185+AVV2træ!AB58*Y$186+AVV2halm!AB58*Y$187+AVV2gasGT!AB58*Y$188+KKV!AB58*Y$189+HCVgas!AB58*Y$190+SPolie!AB57*Y$191+SPgas!AB57*Y$192+GeoEL!AB56*Y$193+GeoVa!AB56*Y$194+VP!AB63*Y$195+Sol!AB55*Y$196) -> 0.02630926108 | Z35: =IF(Sammenligning!$G$9="GJ",1,(1*3.6))*(AMV1træ!AC60*Z$179+AMV1træBP!AC59*Z$180+AMV3kul!AC58*Z$181+AMV4træ!AC58*Z$182+AMV4træBP!AC57*Z$183+AVV1træ!AC58*Z$184+AVV1kul!AC57*Z$185+AVV2træ!AC58*Z$186+AVV2halm!AC58*Z$187+AVV2gasGT!AC58*Z$188+KKV!AC58*Z$189+HCVgas!AC58*Z$190+SPolie!AC57*Z$191+SPgas!AC57*Z$192+GeoEL!AC56*Z$193+GeoVa!AC56*Z$194+VP!AC63*Z$195+Sol!AC55*Z$196) -> 0.02042375205 | AA35: =IF(Sammenligning!$G$9="GJ",1,(1*3.6))*(AMV1træ!AD60*AA$179+AMV1træBP!AD59*AA$180+AMV3kul!AD58*AA$181+AMV4træ!AD58*AA$182+AMV4træBP!AD57*AA$183+AVV1træ!AD58*AA$184+AVV1kul!AD57*AA$185+AVV2træ!AD58*AA$186+AVV2halm!AD58*AA$187+AVV2gasGT!AD58*AA$188+KKV!AD58*AA$189+HCVgas!AD58*AA$190+SPolie!AD57*AA$191+SPgas!AD57*AA$192+GeoEL!AD56*AA$193+GeoVa!AD56*AA$194+VP!AD63*AA$195+Sol!AD55*AA$196) -> 0.01413796902 | AB35: =IF(Sammenligning!$G$9="GJ",1,(1*3.6))*(AMV1træ!AE60*AB$179+AMV1træBP!AE59*AB$180+AMV3kul!AE58*AB$181+AMV4træ!AE58*AB$182+AMV4træBP!AE57*AB$183+AVV1træ!AE58*AB$184+AVV1kul!AE57*AB$185+AVV2træ!AE58*AB$186+AVV2halm!AE58*AB$187+AVV2gasGT!AE58*AB$188+KKV!AE58*AB$189+HCVgas!AE58*AB$190+SPolie!AE57*AB$191+SPgas!AE57*AB$192+GeoEL!AE56*AB$193+GeoVa!AE56*AB$194+VP!AE63*AB$195+Sol!AE55*AB$196) -> 0.007390380904 | AC35: =IF(Sammenligning!$G$9="GJ",1,(1*3.6))*(AMV1træ!AF60*AC$179+AMV1træBP!AF59*AC$180+AMV3kul!AF58*AC$181+AMV4træ!AF58*AC$182+AMV4træBP!AF57*AC$183+AVV1træ!AF58*AC$184+AVV1kul!AF57*AC$185+AVV2træ!AF58*AC$186+AVV2halm!AF58*AC$187+AVV2gasGT!AF58*AC$188+KKV!AF58*AC$189+HCVgas!AF58*AC$190+SPolie!AF57*AC$191+SPgas!AF57*AC$192+GeoEL!AF56*AC$193+GeoVa!AF56*AC$194+VP!AF63*AC$195+Sol!AF55*AC$196) -> 0.0001200414946 | AD35: =IF(Sammenligning!$G$9="GJ",1,(1*3.6))*(AMV1træ!AG60*AD$179+AMV1træBP!AG59*AD$180+AMV3kul!AG58*AD$181+AMV4træ!AG58*AD$182+AMV4træBP!AG57*AD$183+AVV1træ!AG58*AD$184+AVV1kul!AG57*AD$185+AVV2træ!AG58*AD$186+AVV2halm!AG58*AD$187+AVV2gasGT!AG58*AD$188+KKV!AG58*AD$189+HCVgas!AG58*AD$190+SPolie!AG57*AD$191+SPgas!AG57*AD$192+GeoEL!AG56*AD$193+GeoVa!AG56*AD$194+VP!AG63*AD$195+Sol!AG55*AD$196) -> 0.0001200414946 | AE35: =IF(Sammenligning!$G$9="GJ",1,(1*3.6))*(AMV1træ!AH60*AE$179+AMV1træBP!AH59*AE$180+AMV3kul!AH58*AE$181+AMV4træ!AH58*AE$182+AMV4træBP!AH57*AE$183+AVV1træ!AH58*AE$184+AVV1kul!AH57*AE$185+AVV2træ!AH58*AE$186+AVV2halm!AH58*AE$187+AVV2gasGT!AH58*AE$188+KKV!AH58*AE$189+HCVgas!AH58*AE$190+SPolie!AH57*AE$191+SPgas!AH57*AE$192+GeoEL!AH56*AE$193+GeoVa!AH56*AE$194+VP!AH63*AE$195+Sol!AH55*AE$196) -> 0.0001200414946 | AF35: =IF(Sammenligning!$G$9="GJ",1,(1*3.6))*(AMV1træ!AI60*AF$179+AMV1træBP!AI59*AF$180+AMV3kul!AI58*AF$181+AMV4træ!AI58*AF$182+AMV4træBP!AI57*AF$183+AVV1træ!AI58*AF$184+AVV1kul!AI57*AF$185+AVV2træ!AI58*AF$186+AVV2halm!AI58*AF$187+AVV2gasGT!AI58*AF$188+KKV!AI58*AF$189+HCVgas!AI58*AF$190+SPolie!AI57*AF$191+SPgas!AI57*AF$192+GeoEL!AI56*AF$193+GeoVa!AI56*AF$194+VP!AI63*AF$195+Sol!AI55*AF$196) -> 0.0001200414946 | AG35: =IF(Sammenligning!$G$9="GJ",1,(1*3.6))*(AMV1træ!AJ60*AG$179+AMV1træBP!AJ59*AG$180+AMV3kul!AJ58*AG$181+AMV4træ!AJ58*AG$182+AMV4træBP!AJ57*AG$183+AVV1træ!AJ58*AG$184+AVV1kul!AJ57*AG$185+AVV2træ!AJ58*AG$186+AVV2halm!AJ58*AG$187+AVV2gasGT!AJ58*AG$188+KKV!AJ58*AG$189+HCVgas!AJ58*AG$190+SPolie!AJ57*AG$191+SPgas!AJ57*AG$192+GeoEL!AJ56*AG$193+GeoVa!AJ56*AG$194+VP!AJ63*AG$195+Sol!AJ55*AG$196) -> 0.0001200414946 | AH35: =IF(Sammenligning!$G$9="GJ",1,(1*3.6))*(AMV1træ!AK60*AH$179+AMV1træBP!AK59*AH$180+AMV3kul!AK58*AH$181+AMV4træ!AK58*AH$182+AMV4træBP!AK57*AH$183+AVV1træ!AK58*AH$184+AVV1kul!AK57*AH$185+AVV2træ!AK58*AH$186+AVV2halm!AK58*AH$187+AVV2gasGT!AK58*AH$188+KKV!AK58*AH$189+HCVgas!AK58*AH$190+SPolie!AK57*AH$191+SPgas!AK57*AH$192+GeoEL!AK56*AH$193+GeoVa!AK56*AH$194+VP!AK63*AH$195+Sol!AK55*AH$196) -> 0.0001200414946 | AI35: =IF(Sammenligning!$G$9="GJ",1,(1*3.6))*(AMV1træ!AL60*AI$179+AMV1træBP!AL59*AI$180+AMV3kul!AL58*AI$181+AMV4træ!AL58*AI$182+AMV4træBP!AL57*AI$183+AVV1træ!AL58*AI$184+AVV1kul!AL57*AI$185+AVV2træ!AL58*AI$186+AVV2halm!AL58*AI$187+AVV2gasGT!AL58*AI$188+KKV!AL58*AI$189+HCVgas!AL58*AI$190+SPolie!AL57*AI$191+SPgas!AL57*AI$192+GeoEL!AL56*AI$193+GeoVa!AL56*AI$194+VP!AL63*AI$195+Sol!AL55*AI$196) -> 0.0001200414946 | AJ35: =IF(Sammenligning!$G$9="GJ",1,(1*3.6))*(AMV1træ!AM60*AJ$179+AMV1træBP!AM59*AJ$180+AMV3kul!AM58*AJ$181+AMV4træ!AM58*AJ$182+AMV4træBP!AM57*AJ$183+AVV1træ!AM58*AJ$184+AVV1kul!AM57*AJ$185+AVV2træ!AM58*AJ$186+AVV2halm!AM58*AJ$187+AVV2gasGT!AM58*AJ$188+KKV!AM58*AJ$189+HCVgas!AM58*AJ$190+SPolie!AM57*AJ$191+SPgas!AM57*AJ$192+GeoEL!AM56*AJ$193+GeoVa!AM56*AJ$194+VP!AM63*AJ$195+Sol!AM55*AJ$196) -> 0.0001200414946 | AK35: =IF(Sammenligning!$G$9="GJ",1,(1*3.6))*(AMV1træ!AN60*AK$179+AMV1træBP!AN59*AK$180+AMV3kul!AN58*AK$181+AMV4træ!AN58*AK$182+AMV4træBP!AN57*AK$183+AVV1træ!AN58*AK$184+AVV1kul!AN57*AK$185+AVV2træ!AN58*AK$186+AVV2halm!AN58*AK$187+AVV2gasGT!AN58*AK$188+KKV!AN58*AK$189+HCVgas!AN58*AK$190+SPolie!AN57*AK$191+SPgas!AN57*AK$192+GeoEL!AN56*AK$193+GeoVa!AN56*AK$194+VP!AN63*AK$195+Sol!AN55*AK$196) -> 0.0001200414946 | AL35: =IF(Sammenligning!$G$9="GJ",1,(1*3.6))*(AMV1træ!AO60*AL$179+AMV1træBP!AO59*AL$180+AMV3kul!AO58*AL$181+AMV4træ!AO58*AL$182+AMV4træBP!AO57*AL$183+AVV1træ!AO58*AL$184+AVV1kul!AO57*AL$185+AVV2træ!AO58*AL$186+AVV2halm!AO58*AL$187+AVV2gasGT!AO58*AL$188+KKV!AO58*AL$189+HCVgas!AO58*AL$190+SPolie!AO57*AL$191+SPgas!AO57*AL$192+GeoEL!AO56*AL$193+GeoVa!AO56*AL$194+VP!AO63*AL$195+Sol!AO55*AL$196) -> 0.0001200414946 | AM35: =IF(Sammenligning!$G$9="GJ",1,(1*3.6))*(AMV1træ!AP60*AM$179+AMV1træBP!AP59*AM$180+AMV3kul!AP58*AM$181+AMV4træ!AP58*AM$182+AMV4træBP!AP57*AM$183+AVV1træ!AP58*AM$184+AVV1kul!AP57*AM$185+AVV2træ!AP58*AM$186+AVV2halm!AP58*AM$187+AVV2gasGT!AP58*AM$188+KKV!AP58*AM$189+HCVgas!AP58*AM$190+SPolie!AP57*AM$191+SPgas!AP57*AM$192+GeoEL!AP56*AM$193+GeoVa!AP56*AM$194+VP!AP63*AM$195+Sol!AP55*AM$196) -> 0.0001200414946
C36: CH4-omkostning | D36: ="Kr/"&Sammenligning!$G$9 -> Kr/GJ | E36: =IF(Sammenligning!$G$9="GJ",1,(1*3.6))*(AMV1træ!H61*E$179+AMV1træBP!H60*E$180+AMV3kul!H59*E$181+AMV4træ!H59*E$182+AMV4træBP!H58*E$183+AVV1træ!H59*E$184+AVV1kul!H58*E$185+AVV2træ!H59*E$186+AVV2halm!H59*E$187+AVV2gasGT!H59*E$188+KKV!H59*E$189+HCVgas!H59*E$190+SPolie!H58*E$191+SPgas!H58*E$192+GeoEL!H57*E$193+GeoVa!H57*E$194+VP!H64*E$195+Sol!H56*E$196) -> 0.005418556071 | F36: =IF(Sammenligning!$G$9="GJ",1,(1*3.6))*(AMV1træ!I61*F$179+AMV1træBP!I60*F$180+AMV3kul!I59*F$181+AMV4træ!I59*F$182+AMV4træBP!I58*F$183+AVV1træ!I59*F$184+AVV1kul!I58*F$185+AVV2træ!I59*F$186+AVV2halm!I59*F$187+AVV2gasGT!I59*F$188+KKV!I59*F$189+HCVgas!I59*F$190+SPolie!I58*F$191+SPgas!I58*F$192+GeoEL!I57*F$193+GeoVa!I57*F$194+VP!I64*F$195+Sol!I56*F$196) -> 0.005418556071 | G36: =IF(Sammenligning!$G$9="GJ",1,(1*3.6))*(AMV1træ!J61*G$179+AMV1træBP!J60*G$180+AMV3kul!J59*G$181+AMV4træ!J59*G$182+AMV4træBP!J58*G$183+AVV1træ!J59*G$184+AVV1kul!J58*G$185+AVV2træ!J59*G$186+AVV2halm!J59*G$187+AVV2gasGT!J59*G$188+KKV!J59*G$189+HCVgas!J59*G$190+SPolie!J58*G$191+SPgas!J58*G$192+GeoEL!J57*G$193+GeoVa!J57*G$194+VP!J64*G$195+Sol!J56*G$196) -> 0.005418556071 | H36: =IF(Sammenligning!$G$9="GJ",1,(1*3.6))*(AMV1træ!K61*H$179+AMV1træBP!K60*H$180+AMV3kul!K59*H$181+AMV4træ!K59*H$182+AMV4træBP!K58*H$183+AVV1træ!K59*H$184+AVV1kul!K58*H$185+AVV2træ!K59*H$186+AVV2halm!K59*H$187+AVV2gasGT!K59*H$188+KKV!K59*H$189+HCVgas!K59*H$190+SPolie!K58*H$191+SPgas!K58*H$192+GeoEL!K57*H$193+GeoVa!K57*H$194+VP!K64*H$195+Sol!K56*H$196) -> 0.005418556071 | I36: =IF(Sammenligning!$G$9="GJ",1,(1*3.6))*(AMV1træ!L61*I$179+AMV1træBP!L60*I$180+AMV3kul!L59*I$181+AMV4træ!L59*I$182+AMV4træBP!L58*I$183+AVV1træ!L59*I$184+AVV1kul!L58*I$185+AVV2træ!L59*I$186+AVV2halm!L59*I$187+AVV2gasGT!L59*I$188+KKV!L59*I$189+HCVgas!L59*I$190+SPolie!L58*I$191+SPgas!L58*I$192+GeoEL!L57*I$193+GeoVa!L57*I$194+VP!L64*I$195+Sol!L56*I$196) -> 0.005418556071 | J36: =IF(Sammenligning!$G$9="GJ",1,(1*3.6))*(AMV1træ!M61*J$179+AMV1træBP!M60*J$180+AMV3kul!M59*J$181+AMV4træ!M59*J$182+AMV4træBP!M58*J$183+AVV1træ!M59*J$184+AVV1kul!M58*J$185+AVV2træ!M59*J$186+AVV2halm!M59*J$187+AVV2gasGT!M59*J$188+KKV!M59*J$189+HCVgas!M59*J$190+SPolie!M58*J$191+SPgas!M58*J$192+GeoEL!M57*J$193+GeoVa!M57*J$194+VP!M64*J$195+Sol!M56*J$196) -> 0.005389455449 | K36: =IF(Sammenligning!$G$9="GJ",1,(1*3.6))*(AMV1træ!N61*K$179+AMV1træBP!N60*K$180+AMV3kul!N59*K$181+AMV4træ!N59*K$182+AMV4træBP!N58*K$183+AVV1træ!N59*K$184+AVV1kul!N58*K$185+AVV2træ!N59*K$186+AVV2halm!N59*K$187+AVV2gasGT!N59*K$188+KKV!N59*K$189+HCVgas!N59*K$190+SPolie!N58*K$191+SPgas!N58*K$192+GeoEL!N57*K$193+GeoVa!N57*K$194+VP!N64*K$195+Sol!N56*K$196) -> 0.005369927257 | L36: =IF(Sammenligning!$G$9="GJ",1,(1*3.6))*(AMV1træ!O61*L$179+AMV1træBP!O60*L$180+AMV3kul!O59*L$181+AMV4træ!O59*L$182+AMV4træBP!O58*L$183+AVV1træ!O59*L$184+AVV1kul!O58*L$185+AVV2træ!O59*L$186+AVV2halm!O59*L$187+AVV2gasGT!O59*L$188+KKV!O59*L$189+HCVgas!O59*L$190+SPolie!O58*L$191+SPgas!O58*L$192+GeoEL!O57*L$193+GeoVa!O57*L$194+VP!O64*L$195+Sol!O56*L$196) -> 0.005355915432 | M36: =IF(Sammenligning!$G$9="GJ",1,(1*3.6))*(AMV1træ!P61*M$179+AMV1træBP!P60*M$180+AMV3kul!P59*M$181+AMV4træ!P59*M$182+AMV4træBP!P58*M$183+AVV1træ!P59*M$184+AVV1kul!P58*M$185+AVV2træ!P59*M$186+AVV2halm!P59*M$187+AVV2gasGT!P59*M$188+KKV!P59*M$189+HCVgas!P59*M$190+SPolie!P58*M$191+SPgas!P58*M$192+GeoEL!P57*M$193+GeoVa!P57*M$194+VP!P64*M$195+Sol!P56*M$196) -> 0.005345371842 | N36: =IF(Sammenligning!$G$9="GJ",1,(1*3.6))*(AMV1træ!Q61*N$179+AMV1træBP!Q60*N$180+AMV3kul!Q59*N$181+AMV4træ!Q59*N$182+AMV4træBP!Q58*N$183+AVV1træ!Q59*N$184+AVV1kul!Q58*N$185+AVV2træ!Q59*N$186+AVV2halm!Q59*N$187+AVV2gasGT!Q59*N$188+KKV!Q59*N$189+HCVgas!Q59*N$190+SPolie!Q58*N$191+SPgas!Q58*N$192+GeoEL!Q57*N$193+GeoVa!Q57*N$194+VP!Q64*N$195+Sol!Q56*N$196) -> 0.005306337386 | O36: =IF(Sammenligning!$G$9="GJ",1,(1*3.6))*(AMV1træ!R61*O$179+AMV1træBP!R60*O$180+AMV3kul!R59*O$181+AMV4træ!R59*O$182+AMV4træBP!R58*O$183+AVV1træ!R59*O$184+AVV1kul!R58*O$185+AVV2træ!R59*O$186+AVV2halm!R59*O$187+AVV2gasGT!R59*O$188+KKV!R59*O$189+HCVgas!R59*O$190+SPolie!R58*O$191+SPgas!R58*O$192+GeoEL!R57*O$193+GeoVa!R57*O$194+VP!R64*O$195+Sol!R56*O$196) -> 0.00528849161 | P36: =IF(Sammenligning!$G$9="GJ",1,(1*3.6))*(AMV1træ!S61*P$179+AMV1træBP!S60*P$180+AMV3kul!S59*P$181+AMV4træ!S59*P$182+AMV4træBP!S58*P$183+AVV1træ!S59*P$184+AVV1kul!S58*P$185+AVV2træ!S59*P$186+AVV2halm!S59*P$187+AVV2gasGT!S59*P$188+KKV!S59*P$189+HCVgas!S59*P$190+SPolie!S58*P$191+SPgas!S58*P$192+GeoEL!S57*P$193+GeoVa!S57*P$194+VP!S64*P$195+Sol!S56*P$196) -> 0.005270587761 | Q36: =IF(Sammenligning!$G$9="GJ",1,(1*3.6))*(AMV1træ!T61*Q$179+AMV1træBP!T60*Q$180+AMV3kul!T59*Q$181+AMV4træ!T59*Q$182+AMV4træBP!T58*Q$183+AVV1træ!T59*Q$184+AVV1kul!T58*Q$185+AVV2træ!T59*Q$186+AVV2halm!T59*Q$187+AVV2gasGT!T59*Q$188+KKV!T59*Q$189+HCVgas!T59*Q$190+SPolie!T58*Q$191+SPgas!T58*Q$192+GeoEL!T57*Q$193+GeoVa!T57*Q$194+VP!T64*Q$195+Sol!T56*Q$196) -> 0.005252625557 | R36: =IF(Sammenligning!$G$9="GJ",1,(1*3.6))*(AMV1træ!U61*R$179+AMV1træBP!U60*R$180+AMV3kul!U59*R$181+AMV4træ!U59*R$182+AMV4træBP!U58*R$183+AVV1træ!U59*R$184+AVV1kul!U58*R$185+AVV2træ!U59*R$186+AVV2halm!U59*R$187+AVV2gasGT!U59*R$188+KKV!U59*R$189+HCVgas!U59*R$190+SPolie!U58*R$191+SPgas!U58*R$192+GeoEL!U57*R$193+GeoVa!U57*R$194+VP!U64*R$195+Sol!U56*R$196) -> 0.005234604711 | S36: =IF(Sammenligning!$G$9="GJ",1,(1*3.6))*(AMV1træ!V61*S$179+AMV1træBP!V60*S$180+AMV3kul!V59*S$181+AMV4træ!V59*S$182+AMV4træBP!V58*S$183+AVV1træ!V59*S$184+AVV1kul!V58*S$185+AVV2træ!V59*S$186+AVV2halm!V59*S$187+AVV2gasGT!V59*S$188+KKV!V59*S$189+HCVgas!V59*S$190+SPolie!V58*S$191+SPgas!V58*S$192+GeoEL!V57*S$193+GeoVa!V57*S$194+VP!V64*S$195+Sol!V56*S$196) -> 0.005216524936 | T36: =IF(Sammenligning!$G$9="GJ",1,(1*3.6))*(AMV1træ!W61*T$179+AMV1træBP!W60*T$180+AMV3kul!W59*T$181+AMV4træ!W59*T$182+AMV4træBP!W58*T$183+AVV1træ!W59*T$184+AVV1kul!W58*T$185+AVV2træ!W59*T$186+AVV2halm!W59*T$187+AVV2gasGT!W59*T$188+KKV!W59*T$189+HCVgas!W59*T$190+SPolie!W58*T$191+SPgas!W58*T$192+GeoEL!W57*T$193+GeoVa!W57*T$194+VP!W64*T$195+Sol!W56*T$196) -> 0.005079518697 | U36: =IF(Sammenligning!$G$9="GJ",1,(1*3.6))*(AMV1træ!X61*U$179+AMV1træBP!X60*U$180+AMV3kul!X59*U$181+AMV4træ!X59*U$182+AMV4træBP!X58*U$183+AVV1træ!X59*U$184+AVV1kul!X58*U$185+AVV2træ!X59*U$186+AVV2halm!X59*U$187+AVV2gasGT!X59*U$188+KKV!X59*U$189+HCVgas!X59*U$190+SPolie!X58*U$191+SPgas!X58*U$192+GeoEL!X57*U$193+GeoVa!X57*U$194+VP!X64*U$195+Sol!X56*U$196) -> 0.00478542469 | V36: =IF(Sammenligning!$G$9="GJ",1,(1*3.6))*(AMV1træ!Y61*V$179+AMV1træBP!Y60*V$180+AMV3kul!Y59*V$181+AMV4træ!Y59*V$182+AMV4træBP!Y58*V$183+AVV1træ!Y59*V$184+AVV1kul!Y58*V$185+AVV2træ!Y59*V$186+AVV2halm!Y59*V$187+AVV2gasGT!Y59*V$188+KKV!Y59*V$189+HCVgas!Y59*V$190+SPolie!Y58*V$191+SPgas!Y58*V$192+GeoEL!Y57*V$193+GeoVa!Y57*V$194+VP!Y64*V$195+Sol!Y56*V$196) -> 0.004453242822 | W36: =IF(Sammenligning!$G$9="GJ",1,(1*3.6))*(AMV1træ!Z61*W$179+AMV1træBP!Z60*W$180+AMV3kul!Z59*W$181+AMV4træ!Z59*W$182+AMV4træBP!Z58*W$183+AVV1træ!Z59*W$184+AVV1kul!Z58*W$185+AVV2træ!Z59*W$186+AVV2halm!Z59*W$187+AVV2gasGT!Z59*W$188+KKV!Z59*W$189+HCVgas!Z59*W$190+SPolie!Z58*W$191+SPgas!Z58*W$192+GeoEL!Z57*W$193+GeoVa!Z57*W$194+VP!Z64*W$195+Sol!Z56*W$196) -> 0.002359617197 | X36: =IF(Sammenligning!$G$9="GJ",1,(1*3.6))*(AMV1træ!AA61*X$179+AMV1træBP!AA60*X$180+AMV3kul!AA59*X$181+AMV4træ!AA59*X$182+AMV4træBP!AA58*X$183+AVV1træ!AA59*X$184+AVV1kul!AA58*X$185+AVV2træ!AA59*X$186+AVV2halm!AA59*X$187+AVV2gasGT!AA59*X$188+KKV!AA59*X$189+HCVgas!AA59*X$190+SPolie!AA58*X$191+SPgas!AA58*X$192+GeoEL!AA57*X$193+GeoVa!AA57*X$194+VP!AA64*X$195+Sol!AA56*X$196) -> 0.002399690622 | Y36: =IF(Sammenligning!$G$9="GJ",1,(1*3.6))*(AMV1træ!AB61*Y$179+AMV1træBP!AB60*Y$180+AMV3kul!AB59*Y$181+AMV4træ!AB59*Y$182+AMV4træBP!AB58*Y$183+AVV1træ!AB59*Y$184+AVV1kul!AB58*Y$185+AVV2træ!AB59*Y$186+AVV2halm!AB59*Y$187+AVV2gasGT!AB59*Y$188+KKV!AB59*Y$189+HCVgas!AB59*Y$190+SPolie!AB58*Y$191+SPgas!AB58*Y$192+GeoEL!AB57*Y$193+GeoVa!AB57*Y$194+VP!AB64*Y$195+Sol!AB56*Y$196) -> 0.002363589559 | Z36: =IF(Sammenligning!$G$9="GJ",1,(1*3.6))*(AMV1træ!AC61*Z$179+AMV1træBP!AC60*Z$180+AMV3kul!AC59*Z$181+AMV4træ!AC59*Z$182+AMV4træBP!AC58*Z$183+AVV1træ!AC59*Z$184+AVV1kul!AC58*Z$185+AVV2træ!AC59*Z$186+AVV2halm!AC59*Z$187+AVV2gasGT!AC59*Z$188+KKV!AC59*Z$189+HCVgas!AC59*Z$190+SPolie!AC58*Z$191+SPgas!AC58*Z$192+GeoEL!AC57*Z$193+GeoVa!AC57*Z$194+VP!AC64*Z$195+Sol!AC56*Z$196) -> 0.002327695407 | AA36: =IF(Sammenligning!$G$9="GJ",1,(1*3.6))*(AMV1træ!AD61*AA$179+AMV1træBP!AD60*AA$180+AMV3kul!AD59*AA$181+AMV4træ!AD59*AA$182+AMV4træBP!AD58*AA$183+AVV1træ!AD59*AA$184+AVV1kul!AD58*AA$185+AVV2træ!AD59*AA$186+AVV2halm!AD59*AA$187+AVV2gasGT!AD59*AA$188+KKV!AD59*AA$189+HCVgas!AD59*AA$190+SPolie!AD58*AA$191+SPgas!AD58*AA$192+GeoEL!AD57*AA$193+GeoVa!AD57*AA$194+VP!AD64*AA$195+Sol!AD56*AA$196) -> 0.002292006393 | AB36: =IF(Sammenligning!$G$9="GJ",1,(1*3.6))*(AMV1træ!AE61*AB$179+AMV1træBP!AE60*AB$180+AMV3kul!AE59*AB$181+AMV4træ!AE59*AB$182+AMV4træBP!AE58*AB$183+AVV1træ!AE59*AB$184+AVV1kul!AE58*AB$185+AVV2træ!AE59*AB$186+AVV2halm!AE59*AB$187+AVV2gasGT!AE59*AB$188+KKV!AE59*AB$189+HCVgas!AE59*AB$190+SPolie!AE58*AB$191+SPgas!AE58*AB$192+GeoEL!AE57*AB$193+GeoVa!AE57*AB$194+VP!AE64*AB$195+Sol!AE56*AB$196) -> 0.002256520763 | AC36: =IF(Sammenligning!$G$9="GJ",1,(1*3.6))*(AMV1træ!AF61*AC$179+AMV1træBP!AF60*AC$180+AMV3kul!AF59*AC$181+AMV4træ!AF59*AC$182+AMV4træBP!AF58*AC$183+AVV1træ!AF59*AC$184+AVV1kul!AF58*AC$185+AVV2træ!AF59*AC$186+AVV2halm!AF59*AC$187+AVV2gasGT!AF59*AC$188+KKV!AF59*AC$189+HCVgas!AF59*AC$190+SPolie!AF58*AC$191+SPgas!AF58*AC$192+GeoEL!AF57*AC$193+GeoVa!AF57*AC$194+VP!AF64*AC$195+Sol!AF56*AC$196) -> 0.002221236784 | AD36: =IF(Sammenligning!$G$9="GJ",1,(1*3.6))*(AMV1træ!AG61*AD$179+AMV1træBP!AG60*AD$180+AMV3kul!AG59*AD$181+AMV4træ!AG59*AD$182+AMV4træBP!AG58*AD$183+AVV1træ!AG59*AD$184+AVV1kul!AG58*AD$185+AVV2træ!AG59*AD$186+AVV2halm!AG59*AD$187+AVV2gasGT!AG59*AD$188+KKV!AG59*AD$189+HCVgas!AG59*AD$190+SPolie!AG58*AD$191+SPgas!AG58*AD$192+GeoEL!AG57*AD$193+GeoVa!AG57*AD$194+VP!AG64*AD$195+Sol!AG56*AD$196) -> 0.002221236784 | AE36: =IF(Sammenligning!$G$9="GJ",1,(1*3.6))*(AMV1træ!AH61*AE$179+AMV1træBP!AH60*AE$180+AMV3kul!AH59*AE$181+AMV4træ!AH59*AE$182+AMV4træBP!AH58*AE$183+AVV1træ!AH59*AE$184+AVV1kul!AH58*AE$185+AVV2træ!AH59*AE$186+AVV2halm!AH59*AE$187+AVV2gasGT!AH59*AE$188+KKV!AH59*AE$189+HCVgas!AH59*AE$190+SPolie!AH58*AE$191+SPgas!AH58*AE$192+GeoEL!AH57*AE$193+GeoVa!AH57*AE$194+VP!AH64*AE$195+Sol!AH56*AE$196) -> 0.002221236784 | AF36: =IF(Sammenligning!$G$9="GJ",1,(1*3.6))*(AMV1træ!AI61*AF$179+AMV1træBP!AI60*AF$180+AMV3kul!AI59*AF$181+AMV4træ!AI59*AF$182+AMV4træBP!AI58*AF$183+AVV1træ!AI59*AF$184+AVV1kul!AI58*AF$185+AVV2træ!AI59*AF$186+AVV2halm!AI59*AF$187+AVV2gasGT!AI59*AF$188+KKV!AI59*AF$189+HCVgas!AI59*AF$190+SPolie!AI58*AF$191+SPgas!AI58*AF$192+GeoEL!AI57*AF$193+GeoVa!AI57*AF$194+VP!AI64*AF$195+Sol!AI56*AF$196) -> 0.002221236784 | AG36: =IF(Sammenligning!$G$9="GJ",1,(1*3.6))*(AMV1træ!AJ61*AG$179+AMV1træBP!AJ60*AG$180+AMV3kul!AJ59*AG$181+AMV4træ!AJ59*AG$182+AMV4træBP!AJ58*AG$183+AVV1træ!AJ59*AG$184+AVV1kul!AJ58*AG$185+AVV2træ!AJ59*AG$186+AVV2halm!AJ59*AG$187+AVV2gasGT!AJ59*AG$188+KKV!AJ59*AG$189+HCVgas!AJ59*AG$190+SPolie!AJ58*AG$191+SPgas!AJ58*AG$192+GeoEL!AJ57*AG$193+GeoVa!AJ57*AG$194+VP!AJ64*AG$195+Sol!AJ56*AG$196) -> 0.002221236784 | AH36: =IF(Sammenligning!$G$9="GJ",1,(1*3.6))*(AMV1træ!AK61*AH$179+AMV1træBP!AK60*AH$180+AMV3kul!AK59*AH$181+AMV4træ!AK59*AH$182+AMV4træBP!AK58*AH$183+AVV1træ!AK59*AH$184+AVV1kul!AK58*AH$185+AVV2træ!AK59*AH$186+AVV2halm!AK59*AH$187+AVV2gasGT!AK59*AH$188+KKV!AK59*AH$189+HCVgas!AK59*AH$190+SPolie!AK58*AH$191+SPgas!AK58*AH$192+GeoEL!AK57*AH$193+GeoVa!AK57*AH$194+VP!AK64*AH$195+Sol!AK56*AH$196) -> 0.002221236784 | AI36: =IF(Sammenligning!$G$9="GJ",1,(1*3.6))*(AMV1træ!AL61*AI$179+AMV1træBP!AL60*AI$180+AMV3kul!AL59*AI$181+AMV4træ!AL59*AI$182+AMV4træBP!AL58*AI$183+AVV1træ!AL59*AI$184+AVV1kul!AL58*AI$185+AVV2træ!AL59*AI$186+AVV2halm!AL59*AI$187+AVV2gasGT!AL59*AI$188+KKV!AL59*AI$189+HCVgas!AL59*AI$190+SPolie!AL58*AI$191+SPgas!AL58*AI$192+GeoEL!AL57*AI$193+GeoVa!AL57*AI$194+VP!AL64*AI$195+Sol!AL56*AI$196) -> 0.002221236784 | AJ36: =IF(Sammenligning!$G$9="GJ",1,(1*3.6))*(AMV1træ!AM61*AJ$179+AMV1træBP!AM60*AJ$180+AMV3kul!AM59*AJ$181+AMV4træ!AM59*AJ$182+AMV4træBP!AM58*AJ$183+AVV1træ!AM59*AJ$184+AVV1kul!AM58*AJ$185+AVV2træ!AM59*AJ$186+AVV2halm!AM59*AJ$187+AVV2gasGT!AM59*AJ$188+KKV!AM59*AJ$189+HCVgas!AM59*AJ$190+SPolie!AM58*AJ$191+SPgas!AM58*AJ$192+GeoEL!AM57*AJ$193+GeoVa!AM57*AJ$194+VP!AM64*AJ$195+Sol!AM56*AJ$196) -> 0.002221236784 | AK36: =IF(Sammenligning!$G$9="GJ",1,(1*3.6))*(AMV1træ!AN61*AK$179+AMV1træBP!AN60*AK$180+AMV3kul!AN59*AK$181+AMV4træ!AN59*AK$182+AMV4træBP!AN58*AK$183+AVV1træ!AN59*AK$184+AVV1kul!AN58*AK$185+AVV2træ!AN59*AK$186+AVV2halm!AN59*AK$187+AVV2gasGT!AN59*AK$188+KKV!AN59*AK$189+HCVgas!AN59*AK$190+SPolie!AN58*AK$191+SPgas!AN58*AK$192+GeoEL!AN57*AK$193+GeoVa!AN57*AK$194+VP!AN64*AK$195+Sol!AN56*AK$196) -> 0.002221236784 | AL36: =IF(Sammenligning!$G$9="GJ",1,(1*3.6))*(AMV1træ!AO61*AL$179+AMV1træBP!AO60*AL$180+AMV3kul!AO59*AL$181+AMV4træ!AO59*AL$182+AMV4træBP!AO58*AL$183+AVV1træ!AO59*AL$184+AVV1kul!AO58*AL$185+AVV2træ!AO59*AL$186+AVV2halm!AO59*AL$187+AVV2gasGT!AO59*AL$188+KKV!AO59*AL$189+HCVgas!AO59*AL$190+SPolie!AO58*AL$191+SPgas!AO58*AL$192+GeoEL!AO57*AL$193+GeoVa!AO57*AL$194+VP!AO64*AL$195+Sol!AO56*AL$196) -> 0.002221236784 | AM36: =IF(Sammenligning!$G$9="GJ",1,(1*3.6))*(AMV1træ!AP61*AM$179+AMV1træBP!AP60*AM$180+AMV3kul!AP59*AM$181+AMV4træ!AP59*AM$182+AMV4træBP!AP58*AM$183+AVV1træ!AP59*AM$184+AVV1kul!AP58*AM$185+AVV2træ!AP59*AM$186+AVV2halm!AP59*AM$187+AVV2gasGT!AP59*AM$188+KKV!AP59*AM$189+HCVgas!AP59*AM$190+SPolie!AP58*AM$191+SPgas!AP58*AM$192+GeoEL!AP57*AM$193+GeoVa!AP57*AM$194+VP!AP64*AM$195+Sol!AP56*AM$196) -> 0.002221236784
C37: N20-omkostning | D37: ="Kr/"&Sammenligning!$G$9 -> Kr/GJ | E37: =IF(Sammenligning!$G$9="GJ",1,(1*3.6))*(AMV1træ!H62*E$179+AMV1træBP!H61*E$180+AMV3kul!H60*E$181+AMV4træ!H60*E$182+AMV4træBP!H59*E$183+AVV1træ!H60*E$184+AVV1kul!H59*E$185+AVV2træ!H60*E$186+AVV2halm!H60*E$187+AVV2gasGT!H60*E$188+KKV!H60*E$189+HCVgas!H60*E$190+SPolie!H59*E$191+SPgas!H59*E$192+GeoEL!H58*E$193+GeoVa!H58*E$194+VP!H65*E$195+Sol!H57*E$196) -> 0.02080136514 | F37: =IF(Sammenligning!$G$9="GJ",1,(1*3.6))*(AMV1træ!I62*F$179+AMV1træBP!I61*F$180+AMV3kul!I60*F$181+AMV4træ!I60*F$182+AMV4træBP!I59*F$183+AVV1træ!I60*F$184+AVV1kul!I59*F$185+AVV2træ!I60*F$186+AVV2halm!I60*F$187+AVV2gasGT!I60*F$188+KKV!I60*F$189+HCVgas!I60*F$190+SPolie!I59*F$191+SPgas!I59*F$192+GeoEL!I58*F$193+GeoVa!I58*F$194+VP!I65*F$195+Sol!I57*F$196) -> 0.02080136514 | G37: =IF(Sammenligning!$G$9="GJ",1,(1*3.6))*(AMV1træ!J62*G$179+AMV1træBP!J61*G$180+AMV3kul!J60*G$181+AMV4træ!J60*G$182+AMV4træBP!J59*G$183+AVV1træ!J60*G$184+AVV1kul!J59*G$185+AVV2træ!J60*G$186+AVV2halm!J60*G$187+AVV2gasGT!J60*G$188+KKV!J60*G$189+HCVgas!J60*G$190+SPolie!J59*G$191+SPgas!J59*G$192+GeoEL!J58*G$193+GeoVa!J58*G$194+VP!J65*G$195+Sol!J57*G$196) -> 0.02080136514 | H37: =IF(Sammenligning!$G$9="GJ",1,(1*3.6))*(AMV1træ!K62*H$179+AMV1træBP!K61*H$180+AMV3kul!K60*H$181+AMV4træ!K60*H$182+AMV4træBP!K59*H$183+AVV1træ!K60*H$184+AVV1kul!K59*H$185+AVV2træ!K60*H$186+AVV2halm!K60*H$187+AVV2gasGT!K60*H$188+KKV!K60*H$189+HCVgas!K60*H$190+SPolie!K59*H$191+SPgas!K59*H$192+GeoEL!K58*H$193+GeoVa!K58*H$194+VP!K65*H$195+Sol!K57*H$196) -> 0.02080136514 | I37: =IF(Sammenligning!$G$9="GJ",1,(1*3.6))*(AMV1træ!L62*I$179+AMV1træBP!L61*I$180+AMV3kul!L60*I$181+AMV4træ!L60*I$182+AMV4træBP!L59*I$183+AVV1træ!L60*I$184+AVV1kul!L59*I$185+AVV2træ!L60*I$186+AVV2halm!L60*I$187+AVV2gasGT!L60*I$188+KKV!L60*I$189+HCVgas!L60*I$190+SPolie!L59*I$191+SPgas!L59*I$192+GeoEL!L58*I$193+GeoVa!L58*I$194+VP!L65*I$195+Sol!L57*I$196) -> 0.02080136514 | J37: =IF(Sammenligning!$G$9="GJ",1,(1*3.6))*(AMV1træ!M62*J$179+AMV1træBP!M61*J$180+AMV3kul!M60*J$181+AMV4træ!M60*J$182+AMV4træBP!M59*J$183+AVV1træ!M60*J$184+AVV1kul!M59*J$185+AVV2træ!M60*J$186+AVV2halm!M60*J$187+AVV2gasGT!M60*J$188+KKV!M60*J$189+HCVgas!M60*J$190+SPolie!M59*J$191+SPgas!M59*J$192+GeoEL!M58*J$193+GeoVa!M58*J$194+VP!M65*J$195+Sol!M57*J$196) -> 0.02054324424 | K37: =IF(Sammenligning!$G$9="GJ",1,(1*3.6))*(AMV1træ!N62*K$179+AMV1træBP!N61*K$180+AMV3kul!N60*K$181+AMV4træ!N60*K$182+AMV4træBP!N59*K$183+AVV1træ!N60*K$184+AVV1kul!N59*K$185+AVV2træ!N60*K$186+AVV2halm!N60*K$187+AVV2gasGT!N60*K$188+KKV!N60*K$189+HCVgas!N60*K$190+SPolie!N59*K$191+SPgas!N59*K$192+GeoEL!N58*K$193+GeoVa!N58*K$194+VP!N65*K$195+Sol!N57*K$196) -> 0.02037003026 | L37: =IF(Sammenligning!$G$9="GJ",1,(1*3.6))*(AMV1træ!O62*L$179+AMV1træBP!O61*L$180+AMV3kul!O60*L$181+AMV4træ!O60*L$182+AMV4træBP!O59*L$183+AVV1træ!O60*L$184+AVV1kul!O59*L$185+AVV2træ!O60*L$186+AVV2halm!O60*L$187+AVV2gasGT!O60*L$188+KKV!O60*L$189+HCVgas!O60*L$190+SPolie!O59*L$191+SPgas!O59*L$192+GeoEL!O58*L$193+GeoVa!O58*L$194+VP!O65*L$195+Sol!O57*L$196) -> 0.02024574616 | M37: =IF(Sammenligning!$G$9="GJ",1,(1*3.6))*(AMV1træ!P62*M$179+AMV1træBP!P61*M$180+AMV3kul!P60*M$181+AMV4træ!P60*M$182+AMV4træBP!P59*M$183+AVV1træ!P60*M$184+AVV1kul!P59*M$185+AVV2træ!P60*M$186+AVV2halm!P60*M$187+AVV2gasGT!P60*M$188+KKV!P60*M$189+HCVgas!P60*M$190+SPolie!P59*M$191+SPgas!P59*M$192+GeoEL!P58*M$193+GeoVa!P58*M$194+VP!P65*M$195+Sol!P57*M$196) -> 0.02015222511 | N37: =IF(Sammenligning!$G$9="GJ",1,(1*3.6))*(AMV1træ!Q62*N$179+AMV1træBP!Q61*N$180+AMV3kul!Q60*N$181+AMV4træ!Q60*N$182+AMV4træBP!Q59*N$183+AVV1træ!Q60*N$184+AVV1kul!Q59*N$185+AVV2træ!Q60*N$186+AVV2halm!Q60*N$187+AVV2gasGT!Q60*N$188+KKV!Q60*N$189+HCVgas!Q60*N$190+SPolie!Q59*N$191+SPgas!Q59*N$192+GeoEL!Q58*N$193+GeoVa!Q58*N$194+VP!Q65*N$195+Sol!Q57*N$196) -> 0.01996337843 | O37: =IF(Sammenligning!$G$9="GJ",1,(1*3.6))*(AMV1træ!R62*O$179+AMV1træBP!R61*O$180+AMV3kul!R60*O$181+AMV4træ!R60*O$182+AMV4træBP!R59*O$183+AVV1træ!R60*O$184+AVV1kul!R59*O$185+AVV2træ!R60*O$186+AVV2halm!R60*O$187+AVV2gasGT!R60*O$188+KKV!R60*O$189+HCVgas!R60*O$190+SPolie!R59*O$191+SPgas!R59*O$192+GeoEL!R58*O$193+GeoVa!R58*O$194+VP!R65*O$195+Sol!R57*O$196) -> 0.01972744374 | P37: =IF(Sammenligning!$G$9="GJ",1,(1*3.6))*(AMV1træ!S62*P$179+AMV1træBP!S61*P$180+AMV3kul!S60*P$181+AMV4træ!S60*P$182+AMV4træBP!S59*P$183+AVV1træ!S60*P$184+AVV1kul!S59*P$185+AVV2træ!S60*P$186+AVV2halm!S60*P$187+AVV2gasGT!S60*P$188+KKV!S60*P$189+HCVgas!S60*P$190+SPolie!S59*P$191+SPgas!S59*P$192+GeoEL!S58*P$193+GeoVa!S58*P$194+VP!S65*P$195+Sol!S57*P$196) -> 0.01949074129 | Q37: =IF(Sammenligning!$G$9="GJ",1,(1*3.6))*(AMV1træ!T62*Q$179+AMV1træBP!T61*Q$180+AMV3kul!T60*Q$181+AMV4træ!T60*Q$182+AMV4træBP!T59*Q$183+AVV1træ!T60*Q$184+AVV1kul!T59*Q$185+AVV2træ!T60*Q$186+AVV2halm!T60*Q$187+AVV2gasGT!T60*Q$188+KKV!T60*Q$189+HCVgas!T60*Q$190+SPolie!T59*Q$191+SPgas!T59*Q$192+GeoEL!T58*Q$193+GeoVa!T58*Q$194+VP!T65*Q$195+Sol!T57*Q$196) -> 0.01925326734 | R37: =IF(Sammenligning!$G$9="GJ",1,(1*3.6))*(AMV1træ!U62*R$179+AMV1træBP!U61*R$180+AMV3kul!U60*R$181+AMV4træ!U60*R$182+AMV4træBP!U59*R$183+AVV1træ!U60*R$184+AVV1kul!U59*R$185+AVV2træ!U60*R$186+AVV2halm!U60*R$187+AVV2gasGT!U60*R$188+KKV!U60*R$189+HCVgas!U60*R$190+SPolie!U59*R$191+SPgas!U59*R$192+GeoEL!U58*R$193+GeoVa!U58*R$194+VP!U65*R$195+Sol!U57*R$196) -> 0.01901501809 | S37: =IF(Sammenligning!$G$9="GJ",1,(1*3.6))*(AMV1træ!V62*S$179+AMV1træBP!V61*S$180+AMV3kul!V60*S$181+AMV4træ!V60*S$182+AMV4træBP!V59*S$183+AVV1træ!V60*S$184+AVV1kul!V59*S$185+AVV2træ!V60*S$186+AVV2halm!V60*S$187+AVV2gasGT!V60*S$188+KKV!V60*S$189+HCVgas!V60*S$190+SPolie!V59*S$191+SPgas!V59*S$192+GeoEL!V58*S$193+GeoVa!V58*S$194+VP!V65*S$195+Sol!V57*S$196) -> 0.01877598976 | T37: =IF(Sammenligning!$G$9="GJ",1,(1*3.6))*(AMV1træ!W62*T$179+AMV1træBP!W61*T$180+AMV3kul!W60*T$181+AMV4træ!W60*T$182+AMV4træBP!W59*T$183+AVV1træ!W60*T$184+AVV1kul!W59*T$185+AVV2træ!W60*T$186+AVV2halm!W60*T$187+AVV2gasGT!W60*T$188+KKV!W60*T$189+HCVgas!W60*T$190+SPolie!W59*T$191+SPgas!W59*T$192+GeoEL!W58*T$193+GeoVa!W58*T$194+VP!W65*T$195+Sol!W57*T$196) -> 0.01814902276 | U37: =IF(Sammenligning!$G$9="GJ",1,(1*3.6))*(AMV1træ!X62*U$179+AMV1træBP!X61*U$180+AMV3kul!X60*U$181+AMV4træ!X60*U$182+AMV4træBP!X59*U$183+AVV1træ!X60*U$184+AVV1kul!X59*U$185+AVV2træ!X60*U$186+AVV2halm!X60*U$187+AVV2gasGT!X60*U$188+KKV!X60*U$189+HCVgas!X60*U$190+SPolie!X59*U$191+SPgas!X59*U$192+GeoEL!X58*U$193+GeoVa!X58*U$194+VP!X65*U$195+Sol!X57*U$196) -> 0.01694129315 | V37: =IF(Sammenligning!$G$9="GJ",1,(1*3.6))*(AMV1træ!Y62*V$179+AMV1træBP!Y61*V$180+AMV3kul!Y60*V$181+AMV4træ!Y60*V$182+AMV4træBP!Y59*V$183+AVV1træ!Y60*V$184+AVV1kul!Y59*V$185+AVV2træ!Y60*V$186+AVV2halm!Y60*V$187+AVV2gasGT!Y60*V$188+KKV!Y60*V$189+HCVgas!Y60*V$190+SPolie!Y59*V$191+SPgas!Y59*V$192+GeoEL!Y58*V$193+GeoVa!Y58*V$194+VP!Y65*V$195+Sol!Y57*V$196) -> 0.01578617412 | W37: =IF(Sammenligning!$G$9="GJ",1,(1*3.6))*(AMV1træ!Z62*W$179+AMV1træBP!Z61*W$180+AMV3kul!Z60*W$181+AMV4træ!Z60*W$182+AMV4træBP!Z59*W$183+AVV1træ!Z60*W$184+AVV1kul!Z59*W$185+AVV2træ!Z60*W$186+AVV2halm!Z60*W$187+AVV2gasGT!Z60*W$188+KKV!Z60*W$189+HCVgas!Z60*W$190+SPolie!Z59*W$191+SPgas!Z59*W$192+GeoEL!Z58*W$193+GeoVa!Z58*W$194+VP!Z65*W$195+Sol!Z57*W$196) -> 0.00960497155 | X37: =IF(Sammenligning!$G$9="GJ",1,(1*3.6))*(AMV1træ!AA62*X$179+AMV1træBP!AA61*X$180+AMV3kul!AA60*X$181+AMV4træ!AA60*X$182+AMV4træBP!AA59*X$183+AVV1træ!AA60*X$184+AVV1kul!AA59*X$185+AVV2træ!AA60*X$186+AVV2halm!AA60*X$187+AVV2gasGT!AA60*X$188+KKV!AA60*X$189+HCVgas!AA60*X$190+SPolie!AA59*X$191+SPgas!AA59*X$192+GeoEL!AA58*X$193+GeoVa!AA58*X$194+VP!AA65*X$195+Sol!AA57*X$196) -> 0.009729123383 | Y37: =IF(Sammenligning!$G$9="GJ",1,(1*3.6))*(AMV1træ!AB62*Y$179+AMV1træBP!AB61*Y$180+AMV3kul!AB60*Y$181+AMV4træ!AB60*Y$182+AMV4træBP!AB59*Y$183+AVV1træ!AB60*Y$184+AVV1kul!AB59*Y$185+AVV2træ!AB60*Y$186+AVV2halm!AB60*Y$187+AVV2gasGT!AB60*Y$188+KKV!AB60*Y$189+HCVgas!AB60*Y$190+SPolie!AB59*Y$191+SPgas!AB59*Y$192+GeoEL!AB58*Y$193+GeoVa!AB58*Y$194+VP!AB65*Y$195+Sol!AB57*Y$196) -> 0.009473568466 | Z37: =IF(Sammenligning!$G$9="GJ",1,(1*3.6))*(AMV1træ!AC62*Z$179+AMV1træBP!AC61*Z$180+AMV3kul!AC60*Z$181+AMV4træ!AC60*Z$182+AMV4træBP!AC59*Z$183+AVV1træ!AC60*Z$184+AVV1kul!AC59*Z$185+AVV2træ!AC60*Z$186+AVV2halm!AC60*Z$187+AVV2gasGT!AC60*Z$188+KKV!AC60*Z$189+HCVgas!AC60*Z$190+SPolie!AC59*Z$191+SPgas!AC59*Z$192+GeoEL!AC58*Z$193+GeoVa!AC58*Z$194+VP!AC65*Z$195+Sol!AC57*Z$196) -> 0.009219478248 | AA37: =IF(Sammenligning!$G$9="GJ",1,(1*3.6))*(AMV1træ!AD62*AA$179+AMV1træBP!AD61*AA$180+AMV3kul!AD60*AA$181+AMV4træ!AD60*AA$182+AMV4træBP!AD59*AA$183+AVV1træ!AD60*AA$184+AVV1kul!AD59*AA$185+AVV2træ!AD60*AA$186+AVV2halm!AD60*AA$187+AVV2gasGT!AD60*AA$188+KKV!AD60*AA$189+HCVgas!AD60*AA$190+SPolie!AD59*AA$191+SPgas!AD59*AA$192+GeoEL!AD58*AA$193+GeoVa!AD58*AA$194+VP!AD65*AA$195+Sol!AD57*AA$196) -> 0.008966840175 | AB37: =IF(Sammenligning!$G$9="GJ",1,(1*3.6))*(AMV1træ!AE62*AB$179+AMV1træBP!AE61*AB$180+AMV3kul!AE60*AB$181+AMV4træ!AE60*AB$182+AMV4træBP!AE59*AB$183+AVV1træ!AE60*AB$184+AVV1kul!AE59*AB$185+AVV2træ!AE60*AB$186+AVV2halm!AE60*AB$187+AVV2gasGT!AE60*AB$188+KKV!AE60*AB$189+HCVgas!AE60*AB$190+SPolie!AE59*AB$191+SPgas!AE59*AB$192+GeoEL!AE58*AB$193+GeoVa!AE58*AB$194+VP!AE65*AB$195+Sol!AE57*AB$196) -> 0.008715641832 | AC37: =IF(Sammenligning!$G$9="GJ",1,(1*3.6))*(AMV1træ!AF62*AC$179+AMV1træBP!AF61*AC$180+AMV3kul!AF60*AC$181+AMV4træ!AF60*AC$182+AMV4træBP!AF59*AC$183+AVV1træ!AF60*AC$184+AVV1kul!AF59*AC$185+AVV2træ!AF60*AC$186+AVV2halm!AF60*AC$187+AVV2gasGT!AF60*AC$188+KKV!AF60*AC$189+HCVgas!AF60*AC$190+SPolie!AF59*AC$191+SPgas!AF59*AC$192+GeoEL!AF58*AC$193+GeoVa!AF58*AC$194+VP!AF65*AC$195+Sol!AF57*AC$196) -> 0.008465870948 | AD37: =IF(Sammenligning!$G$9="GJ",1,(1*3.6))*(AMV1træ!AG62*AD$179+AMV1træBP!AG61*AD$180+AMV3kul!AG60*AD$181+AMV4træ!AG60*AD$182+AMV4træBP!AG59*AD$183+AVV1træ!AG60*AD$184+AVV1kul!AG59*AD$185+AVV2træ!AG60*AD$186+AVV2halm!AG60*AD$187+AVV2gasGT!AG60*AD$188+KKV!AG60*AD$189+HCVgas!AG60*AD$190+SPolie!AG59*AD$191+SPgas!AG59*AD$192+GeoEL!AG58*AD$193+GeoVa!AG58*AD$194+VP!AG65*AD$195+Sol!AG57*AD$196) -> 0.008465870948 | AE37: =IF(Sammenligning!$G$9="GJ",1,(1*3.6))*(AMV1træ!AH62*AE$179+AMV1træBP!AH61*AE$180+AMV3kul!AH60*AE$181+AMV4træ!AH60*AE$182+AMV4træBP!AH59*AE$183+AVV1træ!AH60*AE$184+AVV1kul!AH59*AE$185+AVV2træ!AH60*AE$186+AVV2halm!AH60*AE$187+AVV2gasGT!AH60*AE$188+KKV!AH60*AE$189+HCVgas!AH60*AE$190+SPolie!AH59*AE$191+SPgas!AH59*AE$192+GeoEL!AH58*AE$193+GeoVa!AH58*AE$194+VP!AH65*AE$195+Sol!AH57*AE$196) -> 0.008465870948 | AF37: =IF(Sammenligning!$G$9="GJ",1,(1*3.6))*(AMV1træ!AI62*AF$179+AMV1træBP!AI61*AF$180+AMV3kul!AI60*AF$181+AMV4træ!AI60*AF$182+AMV4træBP!AI59*AF$183+AVV1træ!AI60*AF$184+AVV1kul!AI59*AF$185+AVV2træ!AI60*AF$186+AVV2halm!AI60*AF$187+AVV2gasGT!AI60*AF$188+KKV!AI60*AF$189+HCVgas!AI60*AF$190+SPolie!AI59*AF$191+SPgas!AI59*AF$192+GeoEL!AI58*AF$193+GeoVa!AI58*AF$194+VP!AI65*AF$195+Sol!AI57*AF$196) -> 0.008465870948 | AG37: =IF(Sammenligning!$G$9="GJ",1,(1*3.6))*(AMV1træ!AJ62*AG$179+AMV1træBP!AJ61*AG$180+AMV3kul!AJ60*AG$181+AMV4træ!AJ60*AG$182+AMV4træBP!AJ59*AG$183+AVV1træ!AJ60*AG$184+AVV1kul!AJ59*AG$185+AVV2træ!AJ60*AG$186+AVV2halm!AJ60*AG$187+AVV2gasGT!AJ60*AG$188+KKV!AJ60*AG$189+HCVgas!AJ60*AG$190+SPolie!AJ59*AG$191+SPgas!AJ59*AG$192+GeoEL!AJ58*AG$193+GeoVa!AJ58*AG$194+VP!AJ65*AG$195+Sol!AJ57*AG$196) -> 0.008465870948 | AH37: =IF(Sammenligning!$G$9="GJ",1,(1*3.6))*(AMV1træ!AK62*AH$179+AMV1træBP!AK61*AH$180+AMV3kul!AK60*AH$181+AMV4træ!AK60*AH$182+AMV4træBP!AK59*AH$183+AVV1træ!AK60*AH$184+AVV1kul!AK59*AH$185+AVV2træ!AK60*AH$186+AVV2halm!AK60*AH$187+AVV2gasGT!AK60*AH$188+KKV!AK60*AH$189+HCVgas!AK60*AH$190+SPolie!AK59*AH$191+SPgas!AK59*AH$192+GeoEL!AK58*AH$193+GeoVa!AK58*AH$194+VP!AK65*AH$195+Sol!AK57*AH$196) -> 0.008465870948 | AI37: =IF(Sammenligning!$G$9="GJ",1,(1*3.6))*(AMV1træ!AL62*AI$179+AMV1træBP!AL61*AI$180+AMV3kul!AL60*AI$181+AMV4træ!AL60*AI$182+AMV4træBP!AL59*AI$183+AVV1træ!AL60*AI$184+AVV1kul!AL59*AI$185+AVV2træ!AL60*AI$186+AVV2halm!AL60*AI$187+AVV2gasGT!AL60*AI$188+KKV!AL60*AI$189+HCVgas!AL60*AI$190+SPolie!AL59*AI$191+SPgas!AL59*AI$192+GeoEL!AL58*AI$193+GeoVa!AL58*AI$194+VP!AL65*AI$195+Sol!AL57*AI$196) -> 0.008465870948 | AJ37: =IF(Sammenligning!$G$9="GJ",1,(1*3.6))*(AMV1træ!AM62*AJ$179+AMV1træBP!AM61*AJ$180+AMV3kul!AM60*AJ$181+AMV4træ!AM60*AJ$182+AMV4træBP!AM59*AJ$183+AVV1træ!AM60*AJ$184+AVV1kul!AM59*AJ$185+AVV2træ!AM60*AJ$186+AVV2halm!AM60*AJ$187+AVV2gasGT!AM60*AJ$188+KKV!AM60*AJ$189+HCVgas!AM60*AJ$190+SPolie!AM59*AJ$191+SPgas!AM59*AJ$192+GeoEL!AM58*AJ$193+GeoVa!AM58*AJ$194+VP!AM65*AJ$195+Sol!AM57*AJ$196) -> 0.008465870948 | AK37: =IF(Sammenligning!$G$9="GJ",1,(1*3.6))*(AMV1træ!AN62*AK$179+AMV1træBP!AN61*AK$180+AMV3kul!AN60*AK$181+AMV4træ!AN60*AK$182+AMV4træBP!AN59*AK$183+AVV1træ!AN60*AK$184+AVV1kul!AN59*AK$185+AVV2træ!AN60*AK$186+AVV2halm!AN60*AK$187+AVV2gasGT!AN60*AK$188+KKV!AN60*AK$189+HCVgas!AN60*AK$190+SPolie!AN59*AK$191+SPgas!AN59*AK$192+GeoEL!AN58*AK$193+GeoVa!AN58*AK$194+VP!AN65*AK$195+Sol!AN57*AK$196) -> 0.008465870948 | AL37: =IF(Sammenligning!$G$9="GJ",1,(1*3.6))*(AMV1træ!AO62*AL$179+AMV1træBP!AO61*AL$180+AMV3kul!AO60*AL$181+AMV4træ!AO60*AL$182+AMV4træBP!AO59*AL$183+AVV1træ!AO60*AL$184+AVV1kul!AO59*AL$185+AVV2træ!AO60*AL$186+AVV2halm!AO60*AL$187+AVV2gasGT!AO60*AL$188+KKV!AO60*AL$189+HCVgas!AO60*AL$190+SPolie!AO59*AL$191+SPgas!AO59*AL$192+GeoEL!AO58*AL$193+GeoVa!AO58*AL$194+VP!AO65*AL$195+Sol!AO57*AL$196) -> 0.008465870948 | AM37: =IF(Sammenligning!$G$9="GJ",1,(1*3.6))*(AMV1træ!AP62*AM$179+AMV1træBP!AP61*AM$180+AMV3kul!AP60*AM$181+AMV4træ!AP60*AM$182+AMV4træBP!AP59*AM$183+AVV1træ!AP60*AM$184+AVV1kul!AP59*AM$185+AVV2træ!AP60*AM$186+AVV2halm!AP60*AM$187+AVV2gasGT!AP60*AM$188+KKV!AP60*AM$189+HCVgas!AP60*AM$190+SPolie!AP59*AM$191+SPgas!AP59*AM$192+GeoEL!AP58*AM$193+GeoVa!AP58*AM$194+VP!AP65*AM$195+Sol!AP57*AM$196) -> 0.008465870948
C38: SO2-omkostning | D38: ="Kr/"&Sammenligning!$G$9 -> Kr/GJ | E38: =IF(Sammenligning!$G$9="GJ",1,(1*3.6))*(AMV1træ!H63*E$179+AMV1træBP!H62*E$180+AMV3kul!H61*E$181+AMV4træ!H61*E$182+AMV4træBP!H60*E$183+AVV1træ!H61*E$184+AVV1kul!H60*E$185+AVV2træ!H61*E$186+AVV2halm!H61*E$187+AVV2gasGT!H61*E$188+KKV!H61*E$189+HCVgas!H61*E$190+SPolie!H60*E$191+SPgas!H60*E$192+GeoEL!H59*E$193+GeoVa!H59*E$194+VP!H66*E$195+Sol!H58*E$196) -> 0.02664451563 | F38: =IF(Sammenligning!$G$9="GJ",1,(1*3.6))*(AMV1træ!I63*F$179+AMV1træBP!I62*F$180+AMV3kul!I61*F$181+AMV4træ!I61*F$182+AMV4træBP!I60*F$183+AVV1træ!I61*F$184+AVV1kul!I60*F$185+AVV2træ!I61*F$186+AVV2halm!I61*F$187+AVV2gasGT!I61*F$188+KKV!I61*F$189+HCVgas!I61*F$190+SPolie!I60*F$191+SPgas!I60*F$192+GeoEL!I59*F$193+GeoVa!I59*F$194+VP!I66*F$195+Sol!I58*F$196) -> 0.02664451563 | G38: =IF(Sammenligning!$G$9="GJ",1,(1*3.6))*(AMV1træ!J63*G$179+AMV1træBP!J62*G$180+AMV3kul!J61*G$181+AMV4træ!J61*G$182+AMV4træBP!J60*G$183+AVV1træ!J61*G$184+AVV1kul!J60*G$185+AVV2træ!J61*G$186+AVV2halm!J61*G$187+AVV2gasGT!J61*G$188+KKV!J61*G$189+HCVgas!J61*G$190+SPolie!J60*G$191+SPgas!J60*G$192+GeoEL!J59*G$193+GeoVa!J59*G$194+VP!J66*G$195+Sol!J58*G$196) -> 0.02664451563 | H38: =IF(Sammenligning!$G$9="GJ",1,(1*3.6))*(AMV1træ!K63*H$179+AMV1træBP!K62*H$180+AMV3kul!K61*H$181+AMV4træ!K61*H$182+AMV4træBP!K60*H$183+AVV1træ!K61*H$184+AVV1kul!K60*H$185+AVV2træ!K61*H$186+AVV2halm!K61*H$187+AVV2gasGT!K61*H$188+KKV!K61*H$189+HCVgas!K61*H$190+SPolie!K60*H$191+SPgas!K60*H$192+GeoEL!K59*H$193+GeoVa!K59*H$194+VP!K66*H$195+Sol!K58*H$196) -> 0.02664451563 | I38: =IF(Sammenligning!$G$9="GJ",1,(1*3.6))*(AMV1træ!L63*I$179+AMV1træBP!L62*I$180+AMV3kul!L61*I$181+AMV4træ!L61*I$182+AMV4træBP!L60*I$183+AVV1træ!L61*I$184+AVV1kul!L60*I$185+AVV2træ!L61*I$186+AVV2halm!L61*I$187+AVV2gasGT!L61*I$188+KKV!L61*I$189+HCVgas!L61*I$190+SPolie!L60*I$191+SPgas!L60*I$192+GeoEL!L59*I$193+GeoVa!L59*I$194+VP!L66*I$195+Sol!L58*I$196) -> 0.02664451563 | J38: =IF(Sammenligning!$G$9="GJ",1,(1*3.6))*(AMV1træ!M63*J$179+AMV1træBP!M62*J$180+AMV3kul!M61*J$181+AMV4træ!M61*J$182+AMV4træBP!M60*J$183+AVV1træ!M61*J$184+AVV1kul!M60*J$185+AVV2træ!M61*J$186+AVV2halm!M61*J$187+AVV2gasGT!M61*J$188+KKV!M61*J$189+HCVgas!M61*J$190+SPolie!M60*J$191+SPgas!M60*J$192+GeoEL!M59*J$193+GeoVa!M59*J$194+VP!M66*J$195+Sol!M58*J$196) -> 0.02861166748 | K38: =IF(Sammenligning!$G$9="GJ",1,(1*3.6))*(AMV1træ!N63*K$179+AMV1træBP!N62*K$180+AMV3kul!N61*K$181+AMV4træ!N61*K$182+AMV4træBP!N60*K$183+AVV1træ!N61*K$184+AVV1kul!N60*K$185+AVV2træ!N61*K$186+AVV2halm!N61*K$187+AVV2gasGT!N61*K$188+KKV!N61*K$189+HCVgas!N61*K$190+SPolie!N60*K$191+SPgas!N60*K$192+GeoEL!N59*K$193+GeoVa!N59*K$194+VP!N66*K$195+Sol!N58*K$196) -> 0.02993173956 | L38: =IF(Sammenligning!$G$9="GJ",1,(1*3.6))*(AMV1træ!O63*L$179+AMV1træBP!O62*L$180+AMV3kul!O61*L$181+AMV4træ!O61*L$182+AMV4træBP!O60*L$183+AVV1træ!O61*L$184+AVV1kul!O60*L$185+AVV2træ!O61*L$186+AVV2halm!O61*L$187+AVV2gasGT!O61*L$188+KKV!O61*L$189+HCVgas!O61*L$190+SPolie!O60*L$191+SPgas!O60*L$192+GeoEL!O59*L$193+GeoVa!O59*L$194+VP!O66*L$195+Sol!O58*L$196) -> 0.03087891469 | M38: =IF(Sammenligning!$G$9="GJ",1,(1*3.6))*(AMV1træ!P63*M$179+AMV1træBP!P62*M$180+AMV3kul!P61*M$181+AMV4træ!P61*M$182+AMV4træBP!P60*M$183+AVV1træ!P61*M$184+AVV1kul!P60*M$185+AVV2træ!P61*M$186+AVV2halm!P61*M$187+AVV2gasGT!P61*M$188+KKV!P61*M$189+HCVgas!P61*M$190+SPolie!P60*M$191+SPgas!P60*M$192+GeoEL!P59*M$193+GeoVa!P59*M$194+VP!P66*M$195+Sol!P58*M$196) -> 0.03159164316 | N38: =IF(Sammenligning!$G$9="GJ",1,(1*3.6))*(AMV1træ!Q63*N$179+AMV1træBP!Q62*N$180+AMV3kul!Q61*N$181+AMV4træ!Q61*N$182+AMV4træBP!Q60*N$183+AVV1træ!Q61*N$184+AVV1kul!Q60*N$185+AVV2træ!Q61*N$186+AVV2halm!Q61*N$187+AVV2gasGT!Q61*N$188+KKV!Q61*N$189+HCVgas!Q61*N$190+SPolie!Q60*N$191+SPgas!Q60*N$192+GeoEL!Q59*N$193+GeoVa!Q59*N$194+VP!Q66*N$195+Sol!Q58*N$196) -> 0.03196178656 | O38: =IF(Sammenligning!$G$9="GJ",1,(1*3.6))*(AMV1træ!R63*O$179+AMV1træBP!R62*O$180+AMV3kul!R61*O$181+AMV4træ!R61*O$182+AMV4træBP!R60*O$183+AVV1træ!R61*O$184+AVV1kul!R60*O$185+AVV2træ!R61*O$186+AVV2halm!R61*O$187+AVV2gasGT!R61*O$188+KKV!R61*O$189+HCVgas!R61*O$190+SPolie!R60*O$191+SPgas!R60*O$192+GeoEL!R59*O$193+GeoVa!R59*O$194+VP!R66*O$195+Sol!R58*O$196) -> 0.03132862872 | P38: =IF(Sammenligning!$G$9="GJ",1,(1*3.6))*(AMV1træ!S63*P$179+AMV1træBP!S62*P$180+AMV3kul!S61*P$181+AMV4træ!S61*P$182+AMV4træBP!S60*P$183+AVV1træ!S61*P$184+AVV1kul!S60*P$185+AVV2træ!S61*P$186+AVV2halm!S61*P$187+AVV2gasGT!S61*P$188+KKV!S61*P$189+HCVgas!S61*P$190+SPolie!S60*P$191+SPgas!S60*P$192+GeoEL!S59*P$193+GeoVa!S59*P$194+VP!S66*P$195+Sol!S58*P$196) -> 0.03069341052 | Q38: =IF(Sammenligning!$G$9="GJ",1,(1*3.6))*(AMV1træ!T63*Q$179+AMV1træBP!T62*Q$180+AMV3kul!T61*Q$181+AMV4træ!T61*Q$182+AMV4træBP!T60*Q$183+AVV1træ!T61*Q$184+AVV1kul!T60*Q$185+AVV2træ!T61*Q$186+AVV2halm!T61*Q$187+AVV2gasGT!T61*Q$188+KKV!T61*Q$189+HCVgas!T61*Q$190+SPolie!T60*Q$191+SPgas!T60*Q$192+GeoEL!T59*Q$193+GeoVa!T59*Q$194+VP!T66*Q$195+Sol!T58*Q$196) -> 0.03005612189 | R38: =IF(Sammenligning!$G$9="GJ",1,(1*3.6))*(AMV1træ!U63*R$179+AMV1træBP!U62*R$180+AMV3kul!U61*R$181+AMV4træ!U61*R$182+AMV4træBP!U60*R$183+AVV1træ!U61*R$184+AVV1kul!U60*R$185+AVV2træ!U61*R$186+AVV2halm!U61*R$187+AVV2gasGT!U61*R$188+KKV!U61*R$189+HCVgas!U61*R$190+SPolie!U60*R$191+SPgas!U60*R$192+GeoEL!U59*R$193+GeoVa!U59*R$194+VP!U66*R$195+Sol!U58*R$196) -> 0.02941675269 | S38: =IF(Sammenligning!$G$9="GJ",1,(1*3.6))*(AMV1træ!V63*S$179+AMV1træBP!V62*S$180+AMV3kul!V61*S$181+AMV4træ!V61*S$182+AMV4træBP!V60*S$183+AVV1træ!V61*S$184+AVV1kul!V60*S$185+AVV2træ!V61*S$186+AVV2halm!V61*S$187+AVV2gasGT!V61*S$188+KKV!V61*S$189+HCVgas!V61*S$190+SPolie!V60*S$191+SPgas!V60*S$192+GeoEL!V59*S$193+GeoVa!V59*S$194+VP!V66*S$195+Sol!V58*S$196) -> 0.02877529271 | T38: =IF(Sammenligning!$G$9="GJ",1,(1*3.6))*(AMV1træ!W63*T$179+AMV1træBP!W62*T$180+AMV3kul!W61*T$181+AMV4træ!W61*T$182+AMV4træBP!W60*T$183+AVV1træ!W61*T$184+AVV1kul!W60*T$185+AVV2træ!W61*T$186+AVV2halm!W61*T$187+AVV2gasGT!W61*T$188+KKV!W61*T$189+HCVgas!W61*T$190+SPolie!W60*T$191+SPgas!W60*T$192+GeoEL!W59*T$193+GeoVa!W59*T$194+VP!W66*T$195+Sol!W58*T$196) -> 0.02838026849 | U38: =IF(Sammenligning!$G$9="GJ",1,(1*3.6))*(AMV1træ!X63*U$179+AMV1træBP!X62*U$180+AMV3kul!X61*U$181+AMV4træ!X61*U$182+AMV4træBP!X60*U$183+AVV1træ!X61*U$184+AVV1kul!X60*U$185+AVV2træ!X61*U$186+AVV2halm!X61*U$187+AVV2gasGT!X61*U$188+KKV!X61*U$189+HCVgas!X61*U$190+SPolie!X60*U$191+SPgas!X60*U$192+GeoEL!X59*U$193+GeoVa!X59*U$194+VP!X66*U$195+Sol!X58*U$196) -> 0.02583868621 | V38: =IF(Sammenligning!$G$9="GJ",1,(1*3.6))*(AMV1træ!Y63*V$179+AMV1træBP!Y62*V$180+AMV3kul!Y61*V$181+AMV4træ!Y61*V$182+AMV4træBP!Y60*V$183+AVV1træ!Y61*V$184+AVV1kul!Y60*V$185+AVV2træ!Y61*V$186+AVV2halm!Y61*V$187+AVV2gasGT!Y61*V$188+KKV!Y61*V$189+HCVgas!Y61*V$190+SPolie!Y60*V$191+SPgas!Y60*V$192+GeoEL!Y59*V$193+GeoVa!Y59*V$194+VP!Y66*V$195+Sol!Y58*V$196) -> 0.02476587277 | W38: =IF(Sammenligning!$G$9="GJ",1,(1*3.6))*(AMV1træ!Z63*W$179+AMV1træBP!Z62*W$180+AMV3kul!Z61*W$181+AMV4træ!Z61*W$182+AMV4træBP!Z60*W$183+AVV1træ!Z61*W$184+AVV1kul!Z60*W$185+AVV2træ!Z61*W$186+AVV2halm!Z61*W$187+AVV2gasGT!Z61*W$188+KKV!Z61*W$189+HCVgas!Z61*W$190+SPolie!Z60*W$191+SPgas!Z60*W$192+GeoEL!Z59*W$193+GeoVa!Z59*W$194+VP!Z66*W$195+Sol!Z58*W$196) -> 0.01142346987 | X38: =IF(Sammenligning!$G$9="GJ",1,(1*3.6))*(AMV1træ!AA63*X$179+AMV1træBP!AA62*X$180+AMV3kul!AA61*X$181+AMV4træ!AA61*X$182+AMV4træBP!AA60*X$183+AVV1træ!AA61*X$184+AVV1kul!AA60*X$185+AVV2træ!AA61*X$186+AVV2halm!AA61*X$187+AVV2gasGT!AA61*X$188+KKV!AA61*X$189+HCVgas!AA61*X$190+SPolie!AA60*X$191+SPgas!AA60*X$192+GeoEL!AA59*X$193+GeoVa!AA59*X$194+VP!AA66*X$195+Sol!AA58*X$196) -> 0.01298781913 | Y38: =IF(Sammenligning!$G$9="GJ",1,(1*3.6))*(AMV1træ!AB63*Y$179+AMV1træBP!AB62*Y$180+AMV3kul!AB61*Y$181+AMV4træ!AB61*Y$182+AMV4træBP!AB60*Y$183+AVV1træ!AB61*Y$184+AVV1kul!AB60*Y$185+AVV2træ!AB61*Y$186+AVV2halm!AB61*Y$187+AVV2gasGT!AB61*Y$188+KKV!AB61*Y$189+HCVgas!AB61*Y$190+SPolie!AB60*Y$191+SPgas!AB60*Y$192+GeoEL!AB59*Y$193+GeoVa!AB59*Y$194+VP!AB66*Y$195+Sol!AB58*Y$196) -> 0.01318003172 | Z38: =IF(Sammenligning!$G$9="GJ",1,(1*3.6))*(AMV1træ!AC63*Z$179+AMV1træBP!AC62*Z$180+AMV3kul!AC61*Z$181+AMV4træ!AC61*Z$182+AMV4træBP!AC60*Z$183+AVV1træ!AC61*Z$184+AVV1kul!AC60*Z$185+AVV2træ!AC61*Z$186+AVV2halm!AC61*Z$187+AVV2gasGT!AC61*Z$188+KKV!AC61*Z$189+HCVgas!AC61*Z$190+SPolie!AC60*Z$191+SPgas!AC60*Z$192+GeoEL!AC59*Z$193+GeoVa!AC59*Z$194+VP!AC66*Z$195+Sol!AC58*Z$196) -> 0.01337114265 | AA38: =IF(Sammenligning!$G$9="GJ",1,(1*3.6))*(AMV1træ!AD63*AA$179+AMV1træBP!AD62*AA$180+AMV3kul!AD61*AA$181+AMV4træ!AD61*AA$182+AMV4træBP!AD60*AA$183+AVV1træ!AD61*AA$184+AVV1kul!AD60*AA$185+AVV2træ!AD61*AA$186+AVV2halm!AD61*AA$187+AVV2gasGT!AD61*AA$188+KKV!AD61*AA$189+HCVgas!AD61*AA$190+SPolie!AD60*AA$191+SPgas!AD60*AA$192+GeoEL!AD59*AA$193+GeoVa!AD59*AA$194+VP!AD66*AA$195+Sol!AD58*AA$196) -> 0.01356116136 | AB38: =IF(Sammenligning!$G$9="GJ",1,(1*3.6))*(AMV1træ!AE63*AB$179+AMV1træBP!AE62*AB$180+AMV3kul!AE61*AB$181+AMV4træ!AE61*AB$182+AMV4træBP!AE60*AB$183+AVV1træ!AE61*AB$184+AVV1kul!AE60*AB$185+AVV2træ!AE61*AB$186+AVV2halm!AE61*AB$187+AVV2gasGT!AE61*AB$188+KKV!AE61*AB$189+HCVgas!AE61*AB$190+SPolie!AE60*AB$191+SPgas!AE60*AB$192+GeoEL!AE59*AB$193+GeoVa!AE59*AB$194+VP!AE66*AB$195+Sol!AE58*AB$196) -> 0.0137500972 | AC38: =IF(Sammenligning!$G$9="GJ",1,(1*3.6))*(AMV1træ!AF63*AC$179+AMV1træBP!AF62*AC$180+AMV3kul!AF61*AC$181+AMV4træ!AF61*AC$182+AMV4træBP!AF60*AC$183+AVV1træ!AF61*AC$184+AVV1kul!AF60*AC$185+AVV2træ!AF61*AC$186+AVV2halm!AF61*AC$187+AVV2gasGT!AF61*AC$188+KKV!AF61*AC$189+HCVgas!AF61*AC$190+SPolie!AF60*AC$191+SPgas!AF60*AC$192+GeoEL!AF59*AC$193+GeoVa!AF59*AC$194+VP!AF66*AC$195+Sol!AF58*AC$196) -> 0.01393795939 | AD38: =IF(Sammenligning!$G$9="GJ",1,(1*3.6))*(AMV1træ!AG63*AD$179+AMV1træBP!AG62*AD$180+AMV3kul!AG61*AD$181+AMV4træ!AG61*AD$182+AMV4træBP!AG60*AD$183+AVV1træ!AG61*AD$184+AVV1kul!AG60*AD$185+AVV2træ!AG61*AD$186+AVV2halm!AG61*AD$187+AVV2gasGT!AG61*AD$188+KKV!AG61*AD$189+HCVgas!AG61*AD$190+SPolie!AG60*AD$191+SPgas!AG60*AD$192+GeoEL!AG59*AD$193+GeoVa!AG59*AD$194+VP!AG66*AD$195+Sol!AG58*AD$196) -> 0.01393795939 | AE38: =IF(Sammenligning!$G$9="GJ",1,(1*3.6))*(AMV1træ!AH63*AE$179+AMV1træBP!AH62*AE$180+AMV3kul!AH61*AE$181+AMV4træ!AH61*AE$182+AMV4træBP!AH60*AE$183+AVV1træ!AH61*AE$184+AVV1kul!AH60*AE$185+AVV2træ!AH61*AE$186+AVV2halm!AH61*AE$187+AVV2gasGT!AH61*AE$188+KKV!AH61*AE$189+HCVgas!AH61*AE$190+SPolie!AH60*AE$191+SPgas!AH60*AE$192+GeoEL!AH59*AE$193+GeoVa!AH59*AE$194+VP!AH66*AE$195+Sol!AH58*AE$196) -> 0.01393795939 | AF38: =IF(Sammenligning!$G$9="GJ",1,(1*3.6))*(AMV1træ!AI63*AF$179+AMV1træBP!AI62*AF$180+AMV3kul!AI61*AF$181+AMV4træ!AI61*AF$182+AMV4træBP!AI60*AF$183+AVV1træ!AI61*AF$184+AVV1kul!AI60*AF$185+AVV2træ!AI61*AF$186+AVV2halm!AI61*AF$187+AVV2gasGT!AI61*AF$188+KKV!AI61*AF$189+HCVgas!AI61*AF$190+SPolie!AI60*AF$191+SPgas!AI60*AF$192+GeoEL!AI59*AF$193+GeoVa!AI59*AF$194+VP!AI66*AF$195+Sol!AI58*AF$196) -> 0.01393795939 | AG38: =IF(Sammenligning!$G$9="GJ",1,(1*3.6))*(AMV1træ!AJ63*AG$179+AMV1træBP!AJ62*AG$180+AMV3kul!AJ61*AG$181+AMV4træ!AJ61*AG$182+AMV4træBP!AJ60*AG$183+AVV1træ!AJ61*AG$184+AVV1kul!AJ60*AG$185+AVV2træ!AJ61*AG$186+AVV2halm!AJ61*AG$187+AVV2gasGT!AJ61*AG$188+KKV!AJ61*AG$189+HCVgas!AJ61*AG$190+SPolie!AJ60*AG$191+SPgas!AJ60*AG$192+GeoEL!AJ59*AG$193+GeoVa!AJ59*AG$194+VP!AJ66*AG$195+Sol!AJ58*AG$196) -> 0.01393795939 | AH38: =IF(Sammenligning!$G$9="GJ",1,(1*3.6))*(AMV1træ!AK63*AH$179+AMV1træBP!AK62*AH$180+AMV3kul!AK61*AH$181+AMV4træ!AK61*AH$182+AMV4træBP!AK60*AH$183+AVV1træ!AK61*AH$184+AVV1kul!AK60*AH$185+AVV2træ!AK61*AH$186+AVV2halm!AK61*AH$187+AVV2gasGT!AK61*AH$188+KKV!AK61*AH$189+HCVgas!AK61*AH$190+SPolie!AK60*AH$191+SPgas!AK60*AH$192+GeoEL!AK59*AH$193+GeoVa!AK59*AH$194+VP!AK66*AH$195+Sol!AK58*AH$196) -> 0.01393795939 | AI38: =IF(Sammenligning!$G$9="GJ",1,(1*3.6))*(AMV1træ!AL63*AI$179+AMV1træBP!AL62*AI$180+AMV3kul!AL61*AI$181+AMV4træ!AL61*AI$182+AMV4træBP!AL60*AI$183+AVV1træ!AL61*AI$184+AVV1kul!AL60*AI$185+AVV2træ!AL61*AI$186+AVV2halm!AL61*AI$187+AVV2gasGT!AL61*AI$188+KKV!AL61*AI$189+HCVgas!AL61*AI$190+SPolie!AL60*AI$191+SPgas!AL60*AI$192+GeoEL!AL59*AI$193+GeoVa!AL59*AI$194+VP!AL66*AI$195+Sol!AL58*AI$196) -> 0.01393795939 | AJ38: =IF(Sammenligning!$G$9="GJ",1,(1*3.6))*(AMV1træ!AM63*AJ$179+AMV1træBP!AM62*AJ$180+AMV3kul!AM61*AJ$181+AMV4træ!AM61*AJ$182+AMV4træBP!AM60*AJ$183+AVV1træ!AM61*AJ$184+AVV1kul!AM60*AJ$185+AVV2træ!AM61*AJ$186+AVV2halm!AM61*AJ$187+AVV2gasGT!AM61*AJ$188+KKV!AM61*AJ$189+HCVgas!AM61*AJ$190+SPolie!AM60*AJ$191+SPgas!AM60*AJ$192+GeoEL!AM59*AJ$193+GeoVa!AM59*AJ$194+VP!AM66*AJ$195+Sol!AM58*AJ$196) -> 0.01393795939 | AK38: =IF(Sammenligning!$G$9="GJ",1,(1*3.6))*(AMV1træ!AN63*AK$179+AMV1træBP!AN62*AK$180+AMV3kul!AN61*AK$181+AMV4træ!AN61*AK$182+AMV4træBP!AN60*AK$183+AVV1træ!AN61*AK$184+AVV1kul!AN60*AK$185+AVV2træ!AN61*AK$186+AVV2halm!AN61*AK$187+AVV2gasGT!AN61*AK$188+KKV!AN61*AK$189+HCVgas!AN61*AK$190+SPolie!AN60*AK$191+SPgas!AN60*AK$192+GeoEL!AN59*AK$193+GeoVa!AN59*AK$194+VP!AN66*AK$195+Sol!AN58*AK$196) -> 0.01393795939 | AL38: =IF(Sammenligning!$G$9="GJ",1,(1*3.6))*(AMV1træ!AO63*AL$179+AMV1træBP!AO62*AL$180+AMV3kul!AO61*AL$181+AMV4træ!AO61*AL$182+AMV4træBP!AO60*AL$183+AVV1træ!AO61*AL$184+AVV1kul!AO60*AL$185+AVV2træ!AO61*AL$186+AVV2halm!AO61*AL$187+AVV2gasGT!AO61*AL$188+KKV!AO61*AL$189+HCVgas!AO61*AL$190+SPolie!AO60*AL$191+SPgas!AO60*AL$192+GeoEL!AO59*AL$193+GeoVa!AO59*AL$194+VP!AO66*AL$195+Sol!AO58*AL$196) -> 0.01393795939 | AM38: =IF(Sammenligning!$G$9="GJ",1,(1*3.6))*(AMV1træ!AP63*AM$179+AMV1træBP!AP62*AM$180+AMV3kul!AP61*AM$181+AMV4træ!AP61*AM$182+AMV4træBP!AP60*AM$183+AVV1træ!AP61*AM$184+AVV1kul!AP60*AM$185+AVV2træ!AP61*AM$186+AVV2halm!AP61*AM$187+AVV2gasGT!AP61*AM$188+KKV!AP61*AM$189+HCVgas!AP61*AM$190+SPolie!AP60*AM$191+SPgas!AP60*AM$192+GeoEL!AP59*AM$193+GeoVa!AP59*AM$194+VP!AP66*AM$195+Sol!AP58*AM$196) -> 0.01393795939
C39: NOx-omkostning | D39: ="Kr/"&Sammenligning!$G$9 -> Kr/GJ | E39: =IF(Sammenligning!$G$9="GJ",1,(1*3.6))*(AMV1træ!H64*E$179+AMV1træBP!H63*E$180+AMV3kul!H62*E$181+AMV4træ!H62*E$182+AMV4træBP!H61*E$183+AVV1træ!H62*E$184+AVV1kul!H61*E$185+AVV2træ!H62*E$186+AVV2halm!H62*E$187+AVV2gasGT!H62*E$188+KKV!H62*E$189+HCVgas!H62*E$190+SPolie!H61*E$191+SPgas!H61*E$192+GeoEL!H60*E$193+GeoVa!H60*E$194+VP!H67*E$195+Sol!H59*E$196) -> 0.7451464978 | F39: =IF(Sammenligning!$G$9="GJ",1,(1*3.6))*(AMV1træ!I64*F$179+AMV1træBP!I63*F$180+AMV3kul!I62*F$181+AMV4træ!I62*F$182+AMV4træBP!I61*F$183+AVV1træ!I62*F$184+AVV1kul!I61*F$185+AVV2træ!I62*F$186+AVV2halm!I62*F$187+AVV2gasGT!I62*F$188+KKV!I62*F$189+HCVgas!I62*F$190+SPolie!I61*F$191+SPgas!I61*F$192+GeoEL!I60*F$193+GeoVa!I60*F$194+VP!I67*F$195+Sol!I59*F$196) -> 0.7451464978 | G39: =IF(Sammenligning!$G$9="GJ",1,(1*3.6))*(AMV1træ!J64*G$179+AMV1træBP!J63*G$180+AMV3kul!J62*G$181+AMV4træ!J62*G$182+AMV4træBP!J61*G$183+AVV1træ!J62*G$184+AVV1kul!J61*G$185+AVV2træ!J62*G$186+AVV2halm!J62*G$187+AVV2gasGT!J62*G$188+KKV!J62*G$189+HCVgas!J62*G$190+SPolie!J61*G$191+SPgas!J61*G$192+GeoEL!J60*G$193+GeoVa!J60*G$194+VP!J67*G$195+Sol!J59*G$196) -> 0.7451464978 | H39: =IF(Sammenligning!$G$9="GJ",1,(1*3.6))*(AMV1træ!K64*H$179+AMV1træBP!K63*H$180+AMV3kul!K62*H$181+AMV4træ!K62*H$182+AMV4træBP!K61*H$183+AVV1træ!K62*H$184+AVV1kul!K61*H$185+AVV2træ!K62*H$186+AVV2halm!K62*H$187+AVV2gasGT!K62*H$188+KKV!K62*H$189+HCVgas!K62*H$190+SPolie!K61*H$191+SPgas!K61*H$192+GeoEL!K60*H$193+GeoVa!K60*H$194+VP!K67*H$195+Sol!K59*H$196) -> 0.7451464978 | I39: =IF(Sammenligning!$G$9="GJ",1,(1*3.6))*(AMV1træ!L64*I$179+AMV1træBP!L63*I$180+AMV3kul!L62*I$181+AMV4træ!L62*I$182+AMV4træBP!L61*I$183+AVV1træ!L62*I$184+AVV1kul!L61*I$185+AVV2træ!L62*I$186+AVV2halm!L62*I$187+AVV2gasGT!L62*I$188+KKV!L62*I$189+HCVgas!L62*I$190+SPolie!L61*I$191+SPgas!L61*I$192+GeoEL!L60*I$193+GeoVa!L60*I$194+VP!L67*I$195+Sol!L59*I$196) -> 0.7451464978 | J39: =IF(Sammenligning!$G$9="GJ",1,(1*3.6))*(AMV1træ!M64*J$179+AMV1træBP!M63*J$180+AMV3kul!M62*J$181+AMV4træ!M62*J$182+AMV4træBP!M61*J$183+AVV1træ!M62*J$184+AVV1kul!M61*J$185+AVV2træ!M62*J$186+AVV2halm!M62*J$187+AVV2gasGT!M62*J$188+KKV!M62*J$189+HCVgas!M62*J$190+SPolie!M61*J$191+SPgas!M61*J$192+GeoEL!M60*J$193+GeoVa!M60*J$194+VP!M67*J$195+Sol!M59*J$196) -> 0.7476233235 | K39: =IF(Sammenligning!$G$9="GJ",1,(1*3.6))*(AMV1træ!N64*K$179+AMV1træBP!N63*K$180+AMV3kul!N62*K$181+AMV4træ!N62*K$182+AMV4træBP!N61*K$183+AVV1træ!N62*K$184+AVV1kul!N61*K$185+AVV2træ!N62*K$186+AVV2halm!N62*K$187+AVV2gasGT!N62*K$188+KKV!N62*K$189+HCVgas!N62*K$190+SPolie!N61*K$191+SPgas!N61*K$192+GeoEL!N60*K$193+GeoVa!N60*K$194+VP!N67*K$195+Sol!N59*K$196) -> 0.749285416 | L39: =IF(Sammenligning!$G$9="GJ",1,(1*3.6))*(AMV1træ!O64*L$179+AMV1træBP!O63*L$180+AMV3kul!O62*L$181+AMV4træ!O62*L$182+AMV4træBP!O61*L$183+AVV1træ!O62*L$184+AVV1kul!O61*L$185+AVV2træ!O62*L$186+AVV2halm!O62*L$187+AVV2gasGT!O62*L$188+KKV!O62*L$189+HCVgas!O62*L$190+SPolie!O61*L$191+SPgas!O61*L$192+GeoEL!O60*L$193+GeoVa!O60*L$194+VP!O67*L$195+Sol!O59*L$196) -> 0.7504779969 | M39: =IF(Sammenligning!$G$9="GJ",1,(1*3.6))*(AMV1træ!P64*M$179+AMV1træBP!P63*M$180+AMV3kul!P62*M$181+AMV4træ!P62*M$182+AMV4træBP!P61*M$183+AVV1træ!P62*M$184+AVV1kul!P61*M$185+AVV2træ!P62*M$186+AVV2halm!P62*M$187+AVV2gasGT!P62*M$188+KKV!P62*M$189+HCVgas!P62*M$190+SPolie!P61*M$191+SPgas!P61*M$192+GeoEL!P60*M$193+GeoVa!P60*M$194+VP!P67*M$195+Sol!P59*M$196) -> 0.7513753878 | N39: =IF(Sammenligning!$G$9="GJ",1,(1*3.6))*(AMV1træ!Q64*N$179+AMV1træBP!Q63*N$180+AMV3kul!Q62*N$181+AMV4træ!Q62*N$182+AMV4træBP!Q61*N$183+AVV1træ!Q62*N$184+AVV1kul!Q61*N$185+AVV2træ!Q62*N$186+AVV2halm!Q62*N$187+AVV2gasGT!Q62*N$188+KKV!Q62*N$189+HCVgas!Q62*N$190+SPolie!Q61*N$191+SPgas!Q61*N$192+GeoEL!Q60*N$193+GeoVa!Q60*N$194+VP!Q67*N$195+Sol!Q59*N$196) -> 0.7477331272 | O39: =IF(Sammenligning!$G$9="GJ",1,(1*3.6))*(AMV1træ!R64*O$179+AMV1træBP!R63*O$180+AMV3kul!R62*O$181+AMV4træ!R62*O$182+AMV4træBP!R61*O$183+AVV1træ!R62*O$184+AVV1kul!R61*O$185+AVV2træ!R62*O$186+AVV2halm!R62*O$187+AVV2gasGT!R62*O$188+KKV!R62*O$189+HCVgas!R62*O$190+SPolie!R61*O$191+SPgas!R61*O$192+GeoEL!R60*O$193+GeoVa!R60*O$194+VP!R67*O$195+Sol!R59*O$196) -> 0.7455812988 | P39: =IF(Sammenligning!$G$9="GJ",1,(1*3.6))*(AMV1træ!S64*P$179+AMV1træBP!S63*P$180+AMV3kul!S62*P$181+AMV4træ!S62*P$182+AMV4træBP!S61*P$183+AVV1træ!S62*P$184+AVV1kul!S61*P$185+AVV2træ!S62*P$186+AVV2halm!S62*P$187+AVV2gasGT!S62*P$188+KKV!S62*P$189+HCVgas!S62*P$190+SPolie!S61*P$191+SPgas!S61*P$192+GeoEL!S60*P$193+GeoVa!S60*P$194+VP!S67*P$195+Sol!S59*P$196) -> 0.743422468 | Q39: =IF(Sammenligning!$G$9="GJ",1,(1*3.6))*(AMV1træ!T64*Q$179+AMV1træBP!T63*Q$180+AMV3kul!T62*Q$181+AMV4træ!T62*Q$182+AMV4træBP!T61*Q$183+AVV1træ!T62*Q$184+AVV1kul!T61*Q$185+AVV2træ!T62*Q$186+AVV2halm!T62*Q$187+AVV2gasGT!T62*Q$188+KKV!T62*Q$189+HCVgas!T62*Q$190+SPolie!T61*Q$191+SPgas!T61*Q$192+GeoEL!T60*Q$193+GeoVa!T60*Q$194+VP!T67*Q$195+Sol!T59*Q$196) -> 0.7412566008 | R39: =IF(Sammenligning!$G$9="GJ",1,(1*3.6))*(AMV1træ!U64*R$179+AMV1træBP!U63*R$180+AMV3kul!U62*R$181+AMV4træ!U62*R$182+AMV4træBP!U61*R$183+AVV1træ!U62*R$184+AVV1kul!U61*R$185+AVV2træ!U62*R$186+AVV2halm!U62*R$187+AVV2gasGT!U62*R$188+KKV!U62*R$189+HCVgas!U62*R$190+SPolie!U61*R$191+SPgas!U61*R$192+GeoEL!U60*R$193+GeoVa!U60*R$194+VP!U67*R$195+Sol!U59*R$196) -> 0.7390836626 | S39: =IF(Sammenligning!$G$9="GJ",1,(1*3.6))*(AMV1træ!V64*S$179+AMV1træBP!V63*S$180+AMV3kul!V62*S$181+AMV4træ!V62*S$182+AMV4træBP!V61*S$183+AVV1træ!V62*S$184+AVV1kul!V61*S$185+AVV2træ!V62*S$186+AVV2halm!V62*S$187+AVV2gasGT!V62*S$188+KKV!V62*S$189+HCVgas!V62*S$190+SPolie!V61*S$191+SPgas!V61*S$192+GeoEL!V60*S$193+GeoVa!V60*S$194+VP!V67*S$195+Sol!V59*S$196) -> 0.7369036188 | T39: =IF(Sammenligning!$G$9="GJ",1,(1*3.6))*(AMV1træ!W64*T$179+AMV1træBP!W63*T$180+AMV3kul!W62*T$181+AMV4træ!W62*T$182+AMV4træBP!W61*T$183+AVV1træ!W62*T$184+AVV1kul!W61*T$185+AVV2træ!W62*T$186+AVV2halm!W62*T$187+AVV2gasGT!W62*T$188+KKV!W62*T$189+HCVgas!W62*T$190+SPolie!W61*T$191+SPgas!W61*T$192+GeoEL!W60*T$193+GeoVa!W60*T$194+VP!W67*T$195+Sol!W59*T$196) -> 0.6969592076 | U39: =IF(Sammenligning!$G$9="GJ",1,(1*3.6))*(AMV1træ!X64*U$179+AMV1træBP!X63*U$180+AMV3kul!X62*U$181+AMV4træ!X62*U$182+AMV4træBP!X61*U$183+AVV1træ!X62*U$184+AVV1kul!X61*U$185+AVV2træ!X62*U$186+AVV2halm!X62*U$187+AVV2gasGT!X62*U$188+KKV!X62*U$189+HCVgas!X62*U$190+SPolie!X61*U$191+SPgas!X61*U$192+GeoEL!X60*U$193+GeoVa!X60*U$194+VP!X67*U$195+Sol!X59*U$196) -> 0.6445352071 | V39: =IF(Sammenligning!$G$9="GJ",1,(1*3.6))*(AMV1træ!Y64*V$179+AMV1træBP!Y63*V$180+AMV3kul!Y62*V$181+AMV4træ!Y62*V$182+AMV4træBP!Y61*V$183+AVV1træ!Y62*V$184+AVV1kul!Y61*V$185+AVV2træ!Y62*V$186+AVV2halm!Y62*V$187+AVV2gasGT!Y62*V$188+KKV!Y62*V$189+HCVgas!Y62*V$190+SPolie!Y61*V$191+SPgas!Y61*V$192+GeoEL!Y60*V$193+GeoVa!Y60*V$194+VP!Y67*V$195+Sol!Y59*V$196) -> 0.5820936337 | W39: =IF(Sammenligning!$G$9="GJ",1,(1*3.6))*(AMV1træ!Z64*W$179+AMV1træBP!Z63*W$180+AMV3kul!Z62*W$181+AMV4træ!Z62*W$182+AMV4træBP!Z61*W$183+AVV1træ!Z62*W$184+AVV1kul!Z61*W$185+AVV2træ!Z62*W$186+AVV2halm!Z62*W$187+AVV2gasGT!Z62*W$188+KKV!Z62*W$189+HCVgas!Z62*W$190+SPolie!Z61*W$191+SPgas!Z61*W$192+GeoEL!Z60*W$193+GeoVa!Z60*W$194+VP!Z67*W$195+Sol!Z59*W$196) -> 0.236634275 | X39: =IF(Sammenligning!$G$9="GJ",1,(1*3.6))*(AMV1træ!AA64*X$179+AMV1træBP!AA63*X$180+AMV3kul!AA62*X$181+AMV4træ!AA62*X$182+AMV4træBP!AA61*X$183+AVV1træ!AA62*X$184+AVV1kul!AA61*X$185+AVV2træ!AA62*X$186+AVV2halm!AA62*X$187+AVV2gasGT!AA62*X$188+KKV!AA62*X$189+HCVgas!AA62*X$190+SPolie!AA61*X$191+SPgas!AA61*X$192+GeoEL!AA60*X$193+GeoVa!AA60*X$194+VP!AA67*X$195+Sol!AA59*X$196) -> 0.2498847039 | Y39: =IF(Sammenligning!$G$9="GJ",1,(1*3.6))*(AMV1træ!AB64*Y$179+AMV1træBP!AB63*Y$180+AMV3kul!AB62*Y$181+AMV4træ!AB62*Y$182+AMV4træBP!AB61*Y$183+AVV1træ!AB62*Y$184+AVV1kul!AB61*Y$185+AVV2træ!AB62*Y$186+AVV2halm!AB62*Y$187+AVV2gasGT!AB62*Y$188+KKV!AB62*Y$189+HCVgas!AB62*Y$190+SPolie!AB61*Y$191+SPgas!AB61*Y$192+GeoEL!AB60*Y$193+GeoVa!AB60*Y$194+VP!AB67*Y$195+Sol!AB59*Y$196) -> 0.25021958 | Z39: =IF(Sammenligning!$G$9="GJ",1,(1*3.6))*(AMV1træ!AC64*Z$179+AMV1træBP!AC63*Z$180+AMV3kul!AC62*Z$181+AMV4træ!AC62*Z$182+AMV4træBP!AC61*Z$183+AVV1træ!AC62*Z$184+AVV1kul!AC61*Z$185+AVV2træ!AC62*Z$186+AVV2halm!AC62*Z$187+AVV2gasGT!AC62*Z$188+KKV!AC62*Z$189+HCVgas!AC62*Z$190+SPolie!AC61*Z$191+SPgas!AC61*Z$192+GeoEL!AC60*Z$193+GeoVa!AC60*Z$194+VP!AC67*Z$195+Sol!AC59*Z$196) -> 0.2505525367 | AA39: =IF(Sammenligning!$G$9="GJ",1,(1*3.6))*(AMV1træ!AD64*AA$179+AMV1træBP!AD63*AA$180+AMV3kul!AD62*AA$181+AMV4træ!AD62*AA$182+AMV4træBP!AD61*AA$183+AVV1træ!AD62*AA$184+AVV1kul!AD61*AA$185+AVV2træ!AD62*AA$186+AVV2halm!AD62*AA$187+AVV2gasGT!AD62*AA$188+KKV!AD62*AA$189+HCVgas!AD62*AA$190+SPolie!AD61*AA$191+SPgas!AD61*AA$192+GeoEL!AD60*AA$193+GeoVa!AD60*AA$194+VP!AD67*AA$195+Sol!AD59*AA$196) -> 0.2508835906 | AB39: =IF(Sammenligning!$G$9="GJ",1,(1*3.6))*(AMV1træ!AE64*AB$179+AMV1træBP!AE63*AB$180+AMV3kul!AE62*AB$181+AMV4træ!AE62*AB$182+AMV4træBP!AE61*AB$183+AVV1træ!AE62*AB$184+AVV1kul!AE61*AB$185+AVV2træ!AE62*AB$186+AVV2halm!AE62*AB$187+AVV2gasGT!AE62*AB$188+KKV!AE62*AB$189+HCVgas!AE62*AB$190+SPolie!AE61*AB$191+SPgas!AE61*AB$192+GeoEL!AE60*AB$193+GeoVa!AE60*AB$194+VP!AE67*AB$195+Sol!AE59*AB$196) -> 0.2512127579 | AC39: =IF(Sammenligning!$G$9="GJ",1,(1*3.6))*(AMV1træ!AF64*AC$179+AMV1træBP!AF63*AC$180+AMV3kul!AF62*AC$181+AMV4træ!AF62*AC$182+AMV4træBP!AF61*AC$183+AVV1træ!AF62*AC$184+AVV1kul!AF61*AC$185+AVV2træ!AF62*AC$186+AVV2halm!AF62*AC$187+AVV2gasGT!AF62*AC$188+KKV!AF62*AC$189+HCVgas!AF62*AC$190+SPolie!AF61*AC$191+SPgas!AF61*AC$192+GeoEL!AF60*AC$193+GeoVa!AF60*AC$194+VP!AF67*AC$195+Sol!AF59*AC$196) -> 0.2515400547 | AD39: =IF(Sammenligning!$G$9="GJ",1,(1*3.6))*(AMV1træ!AG64*AD$179+AMV1træBP!AG63*AD$180+AMV3kul!AG62*AD$181+AMV4træ!AG62*AD$182+AMV4træBP!AG61*AD$183+AVV1træ!AG62*AD$184+AVV1kul!AG61*AD$185+AVV2træ!AG62*AD$186+AVV2halm!AG62*AD$187+AVV2gasGT!AG62*AD$188+KKV!AG62*AD$189+HCVgas!AG62*AD$190+SPolie!AG61*AD$191+SPgas!AG61*AD$192+GeoEL!AG60*AD$193+GeoVa!AG60*AD$194+VP!AG67*AD$195+Sol!AG59*AD$196) -> 0.2515400547 | AE39: =IF(Sammenligning!$G$9="GJ",1,(1*3.6))*(AMV1træ!AH64*AE$179+AMV1træBP!AH63*AE$180+AMV3kul!AH62*AE$181+AMV4træ!AH62*AE$182+AMV4træBP!AH61*AE$183+AVV1træ!AH62*AE$184+AVV1kul!AH61*AE$185+AVV2træ!AH62*AE$186+AVV2halm!AH62*AE$187+AVV2gasGT!AH62*AE$188+KKV!AH62*AE$189+HCVgas!AH62*AE$190+SPolie!AH61*AE$191+SPgas!AH61*AE$192+GeoEL!AH60*AE$193+GeoVa!AH60*AE$194+VP!AH67*AE$195+Sol!AH59*AE$196) -> 0.2515400547 | AF39: =IF(Sammenligning!$G$9="GJ",1,(1*3.6))*(AMV1træ!AI64*AF$179+AMV1træBP!AI63*AF$180+AMV3kul!AI62*AF$181+AMV4træ!AI62*AF$182+AMV4træBP!AI61*AF$183+AVV1træ!AI62*AF$184+AVV1kul!AI61*AF$185+AVV2træ!AI62*AF$186+AVV2halm!AI62*AF$187+AVV2gasGT!AI62*AF$188+KKV!AI62*AF$189+HCVgas!AI62*AF$190+SPolie!AI61*AF$191+SPgas!AI61*AF$192+GeoEL!AI60*AF$193+GeoVa!AI60*AF$194+VP!AI67*AF$195+Sol!AI59*AF$196) -> 0.2515400547 | AG39: =IF(Sammenligning!$G$9="GJ",1,(1*3.6))*(AMV1træ!AJ64*AG$179+AMV1træBP!AJ63*AG$180+AMV3kul!AJ62*AG$181+AMV4træ!AJ62*AG$182+AMV4træBP!AJ61*AG$183+AVV1træ!AJ62*AG$184+AVV1kul!AJ61*AG$185+AVV2træ!AJ62*AG$186+AVV2halm!AJ62*AG$187+AVV2gasGT!AJ62*AG$188+KKV!AJ62*AG$189+HCVgas!AJ62*AG$190+SPolie!AJ61*AG$191+SPgas!AJ61*AG$192+GeoEL!AJ60*AG$193+GeoVa!AJ60*AG$194+VP!AJ67*AG$195+Sol!AJ59*AG$196) -> 0.2515400547 | AH39: =IF(Sammenligning!$G$9="GJ",1,(1*3.6))*(AMV1træ!AK64*AH$179+AMV1træBP!AK63*AH$180+AMV3kul!AK62*AH$181+AMV4træ!AK62*AH$182+AMV4træBP!AK61*AH$183+AVV1træ!AK62*AH$184+AVV1kul!AK61*AH$185+AVV2træ!AK62*AH$186+AVV2halm!AK62*AH$187+AVV2gasGT!AK62*AH$188+KKV!AK62*AH$189+HCVgas!AK62*AH$190+SPolie!AK61*AH$191+SPgas!AK61*AH$192+GeoEL!AK60*AH$193+GeoVa!AK60*AH$194+VP!AK67*AH$195+Sol!AK59*AH$196) -> 0.2515400547 | AI39: =IF(Sammenligning!$G$9="GJ",1,(1*3.6))*(AMV1træ!AL64*AI$179+AMV1træBP!AL63*AI$180+AMV3kul!AL62*AI$181+AMV4træ!AL62*AI$182+AMV4træBP!AL61*AI$183+AVV1træ!AL62*AI$184+AVV1kul!AL61*AI$185+AVV2træ!AL62*AI$186+AVV2halm!AL62*AI$187+AVV2gasGT!AL62*AI$188+KKV!AL62*AI$189+HCVgas!AL62*AI$190+SPolie!AL61*AI$191+SPgas!AL61*AI$192+GeoEL!AL60*AI$193+GeoVa!AL60*AI$194+VP!AL67*AI$195+Sol!AL59*AI$196) -> 0.2515400547 | AJ39: =IF(Sammenligning!$G$9="GJ",1,(1*3.6))*(AMV1træ!AM64*AJ$179+AMV1træBP!AM63*AJ$180+AMV3kul!AM62*AJ$181+AMV4træ!AM62*AJ$182+AMV4træBP!AM61*AJ$183+AVV1træ!AM62*AJ$184+AVV1kul!AM61*AJ$185+AVV2træ!AM62*AJ$186+AVV2halm!AM62*AJ$187+AVV2gasGT!AM62*AJ$188+KKV!AM62*AJ$189+HCVgas!AM62*AJ$190+SPolie!AM61*AJ$191+SPgas!AM61*AJ$192+GeoEL!AM60*AJ$193+GeoVa!AM60*AJ$194+VP!AM67*AJ$195+Sol!AM59*AJ$196) -> 0.2515400547 | AK39: =IF(Sammenligning!$G$9="GJ",1,(1*3.6))*(AMV1træ!AN64*AK$179+AMV1træBP!AN63*AK$180+AMV3kul!AN62*AK$181+AMV4træ!AN62*AK$182+AMV4træBP!AN61*AK$183+AVV1træ!AN62*AK$184+AVV1kul!AN61*AK$185+AVV2træ!AN62*AK$186+AVV2halm!AN62*AK$187+AVV2gasGT!AN62*AK$188+KKV!AN62*AK$189+HCVgas!AN62*AK$190+SPolie!AN61*AK$191+SPgas!AN61*AK$192+GeoEL!AN60*AK$193+GeoVa!AN60*AK$194+VP!AN67*AK$195+Sol!AN59*AK$196) -> 0.2515400547 | AL39: =IF(Sammenligning!$G$9="GJ",1,(1*3.6))*(AMV1træ!AO64*AL$179+AMV1træBP!AO63*AL$180+AMV3kul!AO62*AL$181+AMV4træ!AO62*AL$182+AMV4træBP!AO61*AL$183+AVV1træ!AO62*AL$184+AVV1kul!AO61*AL$185+AVV2træ!AO62*AL$186+AVV2halm!AO62*AL$187+AVV2gasGT!AO62*AL$188+KKV!AO62*AL$189+HCVgas!AO62*AL$190+SPolie!AO61*AL$191+SPgas!AO61*AL$192+GeoEL!AO60*AL$193+GeoVa!AO60*AL$194+VP!AO67*AL$195+Sol!AO59*AL$196) -> 0.2515400547 | AM39: =IF(Sammenligning!$G$9="GJ",1,(1*3.6))*(AMV1træ!AP64*AM$179+AMV1træBP!AP63*AM$180+AMV3kul!AP62*AM$181+AMV4træ!AP62*AM$182+AMV4træBP!AP61*AM$183+AVV1træ!AP62*AM$184+AVV1kul!AP61*AM$185+AVV2træ!AP62*AM$186+AVV2halm!AP62*AM$187+AVV2gasGT!AP62*AM$188+KKV!AP62*AM$189+HCVgas!AP62*AM$190+SPolie!AP61*AM$191+SPgas!AP61*AM$192+GeoEL!AP60*AM$193+GeoVa!AP60*AM$194+VP!AP67*AM$195+Sol!AP59*AM$196) -> 0.2515400547
C40: PM2,5-omkostning | D40: ="Kr/"&Sammenligning!$G$9 -> Kr/GJ | E40: =IF(Sammenligning!$G$9="GJ",1,(1*3.6))*(AMV1træ!H65*E$179+AMV1træBP!H64*E$180+AMV3kul!H63*E$181+AMV4træ!H63*E$182+AMV4træBP!H62*E$183+AVV1træ!H63*E$184+AVV1kul!H62*E$185+AVV2træ!H63*E$186+AVV2halm!H63*E$187+AVV2gasGT!H63*E$188+KKV!H63*E$189+HCVgas!H63*E$190+SPolie!H62*E$191+SPgas!H62*E$192+GeoEL!H61*E$193+GeoVa!H61*E$194+VP!H68*E$195+Sol!H60*E$196) -> 0.1879668152 | F40: =IF(Sammenligning!$G$9="GJ",1,(1*3.6))*(AMV1træ!I65*F$179+AMV1træBP!I64*F$180+AMV3kul!I63*F$181+AMV4træ!I63*F$182+AMV4træBP!I62*F$183+AVV1træ!I63*F$184+AVV1kul!I62*F$185+AVV2træ!I63*F$186+AVV2halm!I63*F$187+AVV2gasGT!I63*F$188+KKV!I63*F$189+HCVgas!I63*F$190+SPolie!I62*F$191+SPgas!I62*F$192+GeoEL!I61*F$193+GeoVa!I61*F$194+VP!I68*F$195+Sol!I60*F$196) -> 0.1879668152 | G40: =IF(Sammenligning!$G$9="GJ",1,(1*3.6))*(AMV1træ!J65*G$179+AMV1træBP!J64*G$180+AMV3kul!J63*G$181+AMV4træ!J63*G$182+AMV4træBP!J62*G$183+AVV1træ!J63*G$184+AVV1kul!J62*G$185+AVV2træ!J63*G$186+AVV2halm!J63*G$187+AVV2gasGT!J63*G$188+KKV!J63*G$189+HCVgas!J63*G$190+SPolie!J62*G$191+SPgas!J62*G$192+GeoEL!J61*G$193+GeoVa!J61*G$194+VP!J68*G$195+Sol!J60*G$196) -> 0.1879668152 | H40: =IF(Sammenligning!$G$9="GJ",1,(1*3.6))*(AMV1træ!K65*H$179+AMV1træBP!K64*H$180+AMV3kul!K63*H$181+AMV4træ!K63*H$182+AMV4træBP!K62*H$183+AVV1træ!K63*H$184+AVV1kul!K62*H$185+AVV2træ!K63*H$186+AVV2halm!K63*H$187+AVV2gasGT!K63*H$188+KKV!K63*H$189+HCVgas!K63*H$190+SPolie!K62*H$191+SPgas!K62*H$192+GeoEL!K61*H$193+GeoVa!K61*H$194+VP!K68*H$195+Sol!K60*H$196) -> 0.1879668152 | I40: =IF(Sammenligning!$G$9="GJ",1,(1*3.6))*(AMV1træ!L65*I$179+AMV1træBP!L64*I$180+AMV3kul!L63*I$181+AMV4træ!L63*I$182+AMV4træBP!L62*I$183+AVV1træ!L63*I$184+AVV1kul!L62*I$185+AVV2træ!L63*I$186+AVV2halm!L63*I$187+AVV2gasGT!L63*I$188+KKV!L63*I$189+HCVgas!L63*I$190+SPolie!L62*I$191+SPgas!L62*I$192+GeoEL!L61*I$193+GeoVa!L61*I$194+VP!L68*I$195+Sol!L60*I$196) -> 0.1879668152 | J40: =IF(Sammenligning!$G$9="GJ",1,(1*3.6))*(AMV1træ!M65*J$179+AMV1træBP!M64*J$180+AMV3kul!M63*J$181+AMV4træ!M63*J$182+AMV4træBP!M62*J$183+AVV1træ!M63*J$184+AVV1kul!M62*J$185+AVV2træ!M63*J$186+AVV2halm!M63*J$187+AVV2gasGT!M63*J$188+KKV!M63*J$189+HCVgas!M63*J$190+SPolie!M62*J$191+SPgas!M62*J$192+GeoEL!M61*J$193+GeoVa!M61*J$194+VP!M68*J$195+Sol!M60*J$196) -> 0.1896781887 | K40: =IF(Sammenligning!$G$9="GJ",1,(1*3.6))*(AMV1træ!N65*K$179+AMV1træBP!N64*K$180+AMV3kul!N63*K$181+AMV4træ!N63*K$182+AMV4træBP!N62*K$183+AVV1træ!N63*K$184+AVV1kul!N62*K$185+AVV2træ!N63*K$186+AVV2halm!N63*K$187+AVV2gasGT!N63*K$188+KKV!N63*K$189+HCVgas!N63*K$190+SPolie!N62*K$191+SPgas!N62*K$192+GeoEL!N61*K$193+GeoVa!N61*K$194+VP!N68*K$195+Sol!N60*K$196) -> 0.1908266188 | L40: =IF(Sammenligning!$G$9="GJ",1,(1*3.6))*(AMV1træ!O65*L$179+AMV1træBP!O64*L$180+AMV3kul!O63*L$181+AMV4træ!O63*L$182+AMV4træBP!O62*L$183+AVV1træ!O63*L$184+AVV1kul!O62*L$185+AVV2træ!O63*L$186+AVV2halm!O63*L$187+AVV2gasGT!O63*L$188+KKV!O63*L$189+HCVgas!O63*L$190+SPolie!O62*L$191+SPgas!O62*L$192+GeoEL!O61*L$193+GeoVa!O61*L$194+VP!O68*L$195+Sol!O60*L$196) -> 0.1916506377 | M40: =IF(Sammenligning!$G$9="GJ",1,(1*3.6))*(AMV1træ!P65*M$179+AMV1træBP!P64*M$180+AMV3kul!P63*M$181+AMV4træ!P63*M$182+AMV4træBP!P62*M$183+AVV1træ!P63*M$184+AVV1kul!P62*M$185+AVV2træ!P63*M$186+AVV2halm!P63*M$187+AVV2gasGT!P63*M$188+KKV!P63*M$189+HCVgas!P63*M$190+SPolie!P62*M$191+SPgas!P62*M$192+GeoEL!P61*M$193+GeoVa!P61*M$194+VP!P68*M$195+Sol!P60*M$196) -> 0.1922706939 | N40: =IF(Sammenligning!$G$9="GJ",1,(1*3.6))*(AMV1træ!Q65*N$179+AMV1træBP!Q64*N$180+AMV3kul!Q63*N$181+AMV4træ!Q63*N$182+AMV4træBP!Q62*N$183+AVV1træ!Q63*N$184+AVV1kul!Q62*N$185+AVV2træ!Q63*N$186+AVV2halm!Q63*N$187+AVV2gasGT!Q63*N$188+KKV!Q63*N$189+HCVgas!Q63*N$190+SPolie!Q62*N$191+SPgas!Q62*N$192+GeoEL!Q61*N$193+GeoVa!Q61*N$194+VP!Q68*N$195+Sol!Q60*N$196) -> 0.1916413385 | O40: =IF(Sammenligning!$G$9="GJ",1,(1*3.6))*(AMV1træ!R65*O$179+AMV1træBP!R64*O$180+AMV3kul!R63*O$181+AMV4træ!R63*O$182+AMV4træBP!R62*O$183+AVV1træ!R63*O$184+AVV1kul!R62*O$185+AVV2træ!R63*O$186+AVV2halm!R63*O$187+AVV2gasGT!R63*O$188+KKV!R63*O$189+HCVgas!R63*O$190+SPolie!R62*O$191+SPgas!R62*O$192+GeoEL!R61*O$193+GeoVa!R61*O$194+VP!R68*O$195+Sol!R60*O$196) -> 0.1914869299 | P40: =IF(Sammenligning!$G$9="GJ",1,(1*3.6))*(AMV1træ!S65*P$179+AMV1træBP!S64*P$180+AMV3kul!S63*P$181+AMV4træ!S63*P$182+AMV4træBP!S62*P$183+AVV1træ!S63*P$184+AVV1kul!S62*P$185+AVV2træ!S63*P$186+AVV2halm!S63*P$187+AVV2gasGT!S63*P$188+KKV!S63*P$189+HCVgas!S63*P$190+SPolie!S62*P$191+SPgas!S62*P$192+GeoEL!S61*P$193+GeoVa!S61*P$194+VP!S68*P$195+Sol!S60*P$196) -> 0.1913320189 | Q40: =IF(Sammenligning!$G$9="GJ",1,(1*3.6))*(AMV1træ!T65*Q$179+AMV1træBP!T64*Q$180+AMV3kul!T63*Q$181+AMV4træ!T63*Q$182+AMV4træBP!T62*Q$183+AVV1træ!T63*Q$184+AVV1kul!T62*Q$185+AVV2træ!T63*Q$186+AVV2halm!T63*Q$187+AVV2gasGT!T63*Q$188+KKV!T63*Q$189+HCVgas!T63*Q$190+SPolie!T62*Q$191+SPgas!T62*Q$192+GeoEL!T61*Q$193+GeoVa!T61*Q$194+VP!T68*Q$195+Sol!T60*Q$196) -> 0.191176603 | R40: =IF(Sammenligning!$G$9="GJ",1,(1*3.6))*(AMV1træ!U65*R$179+AMV1træBP!U64*R$180+AMV3kul!U63*R$181+AMV4træ!U63*R$182+AMV4træBP!U62*R$183+AVV1træ!U63*R$184+AVV1kul!U62*R$185+AVV2træ!U63*R$186+AVV2halm!U63*R$187+AVV2gasGT!U63*R$188+KKV!U63*R$189+HCVgas!U63*R$190+SPolie!U62*R$191+SPgas!U62*R$192+GeoEL!U61*R$193+GeoVa!U61*R$194+VP!U68*R$195+Sol!U60*R$196) -> 0.1910206797 | S40: =IF(Sammenligning!$G$9="GJ",1,(1*3.6))*(AMV1træ!V65*S$179+AMV1træBP!V64*S$180+AMV3kul!V63*S$181+AMV4træ!V63*S$182+AMV4træBP!V62*S$183+AVV1træ!V63*S$184+AVV1kul!V62*S$185+AVV2træ!V63*S$186+AVV2halm!V63*S$187+AVV2gasGT!V63*S$188+KKV!V63*S$189+HCVgas!V63*S$190+SPolie!V62*S$191+SPgas!V62*S$192+GeoEL!V61*S$193+GeoVa!V61*S$194+VP!V68*S$195+Sol!V60*S$196) -> 0.1908642465 | T40: =IF(Sammenligning!$G$9="GJ",1,(1*3.6))*(AMV1træ!W65*T$179+AMV1træBP!W64*T$180+AMV3kul!W63*T$181+AMV4træ!W63*T$182+AMV4træBP!W62*T$183+AVV1træ!W63*T$184+AVV1kul!W62*T$185+AVV2træ!W63*T$186+AVV2halm!W63*T$187+AVV2gasGT!W63*T$188+KKV!W63*T$189+HCVgas!W63*T$190+SPolie!W62*T$191+SPgas!W62*T$192+GeoEL!W61*T$193+GeoVa!W61*T$194+VP!W68*T$195+Sol!W60*T$196) -> 0.1829385795 | U40: =IF(Sammenligning!$G$9="GJ",1,(1*3.6))*(AMV1træ!X65*U$179+AMV1træBP!X64*U$180+AMV3kul!X63*U$181+AMV4træ!X63*U$182+AMV4træBP!X62*U$183+AVV1træ!X63*U$184+AVV1kul!X62*U$185+AVV2træ!X63*U$186+AVV2halm!X63*U$187+AVV2gasGT!X63*U$188+KKV!X63*U$189+HCVgas!X63*U$190+SPolie!X62*U$191+SPgas!X62*U$192+GeoEL!X61*U$193+GeoVa!X61*U$194+VP!X68*U$195+Sol!X60*U$196) -> 0.1711728097 | V40: =IF(Sammenligning!$G$9="GJ",1,(1*3.6))*(AMV1træ!Y65*V$179+AMV1træBP!Y64*V$180+AMV3kul!Y63*V$181+AMV4træ!Y63*V$182+AMV4træBP!Y62*V$183+AVV1træ!Y63*V$184+AVV1kul!Y62*V$185+AVV2træ!Y63*V$186+AVV2halm!Y63*V$187+AVV2gasGT!Y63*V$188+KKV!Y63*V$189+HCVgas!Y63*V$190+SPolie!Y62*V$191+SPgas!Y62*V$192+GeoEL!Y61*V$193+GeoVa!Y61*V$194+VP!Y68*V$195+Sol!Y60*V$196) -> 0.1546166704 | W40: =IF(Sammenligning!$G$9="GJ",1,(1*3.6))*(AMV1træ!Z65*W$179+AMV1træBP!Z64*W$180+AMV3kul!Z63*W$181+AMV4træ!Z63*W$182+AMV4træBP!Z62*W$183+AVV1træ!Z63*W$184+AVV1kul!Z62*W$185+AVV2træ!Z63*W$186+AVV2halm!Z63*W$187+AVV2gasGT!Z63*W$188+KKV!Z63*W$189+HCVgas!Z63*W$190+SPolie!Z62*W$191+SPgas!Z62*W$192+GeoEL!Z61*W$193+GeoVa!Z61*W$194+VP!Z68*W$195+Sol!Z60*W$196) -> 0.06726189034 | X40: =IF(Sammenligning!$G$9="GJ",1,(1*3.6))*(AMV1træ!AA65*X$179+AMV1træBP!AA64*X$180+AMV3kul!AA63*X$181+AMV4træ!AA63*X$182+AMV4træBP!AA62*X$183+AVV1træ!AA63*X$184+AVV1kul!AA62*X$185+AVV2træ!AA63*X$186+AVV2halm!AA63*X$187+AVV2gasGT!AA63*X$188+KKV!AA63*X$189+HCVgas!AA63*X$190+SPolie!AA62*X$191+SPgas!AA62*X$192+GeoEL!AA61*X$193+GeoVa!AA61*X$194+VP!AA68*X$195+Sol!AA60*X$196) -> 0.07043443448 | Y40: =IF(Sammenligning!$G$9="GJ",1,(1*3.6))*(AMV1træ!AB65*Y$179+AMV1træBP!AB64*Y$180+AMV3kul!AB63*Y$181+AMV4træ!AB63*Y$182+AMV4træBP!AB62*Y$183+AVV1træ!AB63*Y$184+AVV1kul!AB62*Y$185+AVV2træ!AB63*Y$186+AVV2halm!AB63*Y$187+AVV2gasGT!AB63*Y$188+KKV!AB63*Y$189+HCVgas!AB63*Y$190+SPolie!AB62*Y$191+SPgas!AB62*Y$192+GeoEL!AB61*Y$193+GeoVa!AB61*Y$194+VP!AB68*Y$195+Sol!AB60*Y$196) -> 0.07038659139 | Z40: =IF(Sammenligning!$G$9="GJ",1,(1*3.6))*(AMV1træ!AC65*Z$179+AMV1træBP!AC64*Z$180+AMV3kul!AC63*Z$181+AMV4træ!AC63*Z$182+AMV4træBP!AC62*Z$183+AVV1træ!AC63*Z$184+AVV1kul!AC62*Z$185+AVV2træ!AC63*Z$186+AVV2halm!AC63*Z$187+AVV2gasGT!AC63*Z$188+KKV!AC63*Z$189+HCVgas!AC63*Z$190+SPolie!AC62*Z$191+SPgas!AC62*Z$192+GeoEL!AC61*Z$193+GeoVa!AC61*Z$194+VP!AC68*Z$195+Sol!AC60*Z$196) -> 0.0703390225 | AA40: =IF(Sammenligning!$G$9="GJ",1,(1*3.6))*(AMV1træ!AD65*AA$179+AMV1træBP!AD64*AA$180+AMV3kul!AD63*AA$181+AMV4træ!AD63*AA$182+AMV4træBP!AD62*AA$183+AVV1træ!AD63*AA$184+AVV1kul!AD62*AA$185+AVV2træ!AD63*AA$186+AVV2halm!AD63*AA$187+AVV2gasGT!AD63*AA$188+KKV!AD63*AA$189+HCVgas!AD63*AA$190+SPolie!AD62*AA$191+SPgas!AD62*AA$192+GeoEL!AD61*AA$193+GeoVa!AD61*AA$194+VP!AD68*AA$195+Sol!AD60*AA$196) -> 0.07029172548 | AB40: =IF(Sammenligning!$G$9="GJ",1,(1*3.6))*(AMV1træ!AE65*AB$179+AMV1træBP!AE64*AB$180+AMV3kul!AE63*AB$181+AMV4træ!AE63*AB$182+AMV4træBP!AE62*AB$183+AVV1træ!AE63*AB$184+AVV1kul!AE62*AB$185+AVV2træ!AE63*AB$186+AVV2halm!AE63*AB$187+AVV2gasGT!AE63*AB$188+KKV!AE63*AB$189+HCVgas!AE63*AB$190+SPolie!AE62*AB$191+SPgas!AE62*AB$192+GeoEL!AE61*AB$193+GeoVa!AE61*AB$194+VP!AE68*AB$195+Sol!AE60*AB$196) -> 0.07024469799 | AC40: =IF(Sammenligning!$G$9="GJ",1,(1*3.6))*(AMV1træ!AF65*AC$179+AMV1træBP!AF64*AC$180+AMV3kul!AF63*AC$181+AMV4træ!AF63*AC$182+AMV4træBP!AF62*AC$183+AVV1træ!AF63*AC$184+AVV1kul!AF62*AC$185+AVV2træ!AF63*AC$186+AVV2halm!AF63*AC$187+AVV2gasGT!AF63*AC$188+KKV!AF63*AC$189+HCVgas!AF63*AC$190+SPolie!AF62*AC$191+SPgas!AF62*AC$192+GeoEL!AF61*AC$193+GeoVa!AF61*AC$194+VP!AF68*AC$195+Sol!AF60*AC$196) -> 0.07019793774 | AD40: =IF(Sammenligning!$G$9="GJ",1,(1*3.6))*(AMV1træ!AG65*AD$179+AMV1træBP!AG64*AD$180+AMV3kul!AG63*AD$181+AMV4træ!AG63*AD$182+AMV4træBP!AG62*AD$183+AVV1træ!AG63*AD$184+AVV1kul!AG62*AD$185+AVV2træ!AG63*AD$186+AVV2halm!AG63*AD$187+AVV2gasGT!AG63*AD$188+KKV!AG63*AD$189+HCVgas!AG63*AD$190+SPolie!AG62*AD$191+SPgas!AG62*AD$192+GeoEL!AG61*AD$193+GeoVa!AG61*AD$194+VP!AG68*AD$195+Sol!AG60*AD$196) -> 0.07019793774 | AE40: =IF(Sammenligning!$G$9="GJ",1,(1*3.6))*(AMV1træ!AH65*AE$179+AMV1træBP!AH64*AE$180+AMV3kul!AH63*AE$181+AMV4træ!AH63*AE$182+AMV4træBP!AH62*AE$183+AVV1træ!AH63*AE$184+AVV1kul!AH62*AE$185+AVV2træ!AH63*AE$186+AVV2halm!AH63*AE$187+AVV2gasGT!AH63*AE$188+KKV!AH63*AE$189+HCVgas!AH63*AE$190+SPolie!AH62*AE$191+SPgas!AH62*AE$192+GeoEL!AH61*AE$193+GeoVa!AH61*AE$194+VP!AH68*AE$195+Sol!AH60*AE$196) -> 0.07019793774 | AF40: =IF(Sammenligning!$G$9="GJ",1,(1*3.6))*(AMV1træ!AI65*AF$179+AMV1træBP!AI64*AF$180+AMV3kul!AI63*AF$181+AMV4træ!AI63*AF$182+AMV4træBP!AI62*AF$183+AVV1træ!AI63*AF$184+AVV1kul!AI62*AF$185+AVV2træ!AI63*AF$186+AVV2halm!AI63*AF$187+AVV2gasGT!AI63*AF$188+KKV!AI63*AF$189+HCVgas!AI63*AF$190+SPolie!AI62*AF$191+SPgas!AI62*AF$192+GeoEL!AI61*AF$193+GeoVa!AI61*AF$194+VP!AI68*AF$195+Sol!AI60*AF$196) -> 0.07019793774 | AG40: =IF(Sammenligning!$G$9="GJ",1,(1*3.6))*(AMV1træ!AJ65*AG$179+AMV1træBP!AJ64*AG$180+AMV3kul!AJ63*AG$181+AMV4træ!AJ63*AG$182+AMV4træBP!AJ62*AG$183+AVV1træ!AJ63*AG$184+AVV1kul!AJ62*AG$185+AVV2træ!AJ63*AG$186+AVV2halm!AJ63*AG$187+AVV2gasGT!AJ63*AG$188+KKV!AJ63*AG$189+HCVgas!AJ63*AG$190+SPolie!AJ62*AG$191+SPgas!AJ62*AG$192+GeoEL!AJ61*AG$193+GeoVa!AJ61*AG$194+VP!AJ68*AG$195+Sol!AJ60*AG$196) -> 0.07019793774 | AH40: =IF(Sammenligning!$G$9="GJ",1,(1*3.6))*(AMV1træ!AK65*AH$179+AMV1træBP!AK64*AH$180+AMV3kul!AK63*AH$181+AMV4træ!AK63*AH$182+AMV4træBP!AK62*AH$183+AVV1træ!AK63*AH$184+AVV1kul!AK62*AH$185+AVV2træ!AK63*AH$186+AVV2halm!AK63*AH$187+AVV2gasGT!AK63*AH$188+KKV!AK63*AH$189+HCVgas!AK63*AH$190+SPolie!AK62*AH$191+SPgas!AK62*AH$192+GeoEL!AK61*AH$193+GeoVa!AK61*AH$194+VP!AK68*AH$195+Sol!AK60*AH$196) -> 0.07019793774 | AI40: =IF(Sammenligning!$G$9="GJ",1,(1*3.6))*(AMV1træ!AL65*AI$179+AMV1træBP!AL64*AI$180+AMV3kul!AL63*AI$181+AMV4træ!AL63*AI$182+AMV4træBP!AL62*AI$183+AVV1træ!AL63*AI$184+AVV1kul!AL62*AI$185+AVV2træ!AL63*AI$186+AVV2halm!AL63*AI$187+AVV2gasGT!AL63*AI$188+KKV!AL63*AI$189+HCVgas!AL63*AI$190+SPolie!AL62*AI$191+SPgas!AL62*AI$192+GeoEL!AL61*AI$193+GeoVa!AL61*AI$194+VP!AL68*AI$195+Sol!AL60*AI$196) -> 0.07019793774 | AJ40: =IF(Sammenligning!$G$9="GJ",1,(1*3.6))*(AMV1træ!AM65*AJ$179+AMV1træBP!AM64*AJ$180+AMV3kul!AM63*AJ$181+AMV4træ!AM63*AJ$182+AMV4træBP!AM62*AJ$183+AVV1træ!AM63*AJ$184+AVV1kul!AM62*AJ$185+AVV2træ!AM63*AJ$186+AVV2halm!AM63*AJ$187+AVV2gasGT!AM63*AJ$188+KKV!AM63*AJ$189+HCVgas!AM63*AJ$190+SPolie!AM62*AJ$191+SPgas!AM62*AJ$192+GeoEL!AM61*AJ$193+GeoVa!AM61*AJ$194+VP!AM68*AJ$195+Sol!AM60*AJ$196) -> 0.07019793774 | AK40: =IF(Sammenligning!$G$9="GJ",1,(1*3.6))*(AMV1træ!AN65*AK$179+AMV1træBP!AN64*AK$180+AMV3kul!AN63*AK$181+AMV4træ!AN63*AK$182+AMV4træBP!AN62*AK$183+AVV1træ!AN63*AK$184+AVV1kul!AN62*AK$185+AVV2træ!AN63*AK$186+AVV2halm!AN63*AK$187+AVV2gasGT!AN63*AK$188+KKV!AN63*AK$189+HCVgas!AN63*AK$190+SPolie!AN62*AK$191+SPgas!AN62*AK$192+GeoEL!AN61*AK$193+GeoVa!AN61*AK$194+VP!AN68*AK$195+Sol!AN60*AK$196) -> 0.07019793774 | AL40: =IF(Sammenligning!$G$9="GJ",1,(1*3.6))*(AMV1træ!AO65*AL$179+AMV1træBP!AO64*AL$180+AMV3kul!AO63*AL$181+AMV4træ!AO63*AL$182+AMV4træBP!AO62*AL$183+AVV1træ!AO63*AL$184+AVV1kul!AO62*AL$185+AVV2træ!AO63*AL$186+AVV2halm!AO63*AL$187+AVV2gasGT!AO63*AL$188+KKV!AO63*AL$189+HCVgas!AO63*AL$190+SPolie!AO62*AL$191+SPgas!AO62*AL$192+GeoEL!AO61*AL$193+GeoVa!AO61*AL$194+VP!AO68*AL$195+Sol!AO60*AL$196) -> 0.07019793774 | AM40: =IF(Sammenligning!$G$9="GJ",1,(1*3.6))*(AMV1træ!AP65*AM$179+AMV1træBP!AP64*AM$180+AMV3kul!AP63*AM$181+AMV4træ!AP63*AM$182+AMV4træBP!AP62*AM$183+AVV1træ!AP63*AM$184+AVV1kul!AP62*AM$185+AVV2træ!AP63*AM$186+AVV2halm!AP63*AM$187+AVV2gasGT!AP63*AM$188+KKV!AP63*AM$189+HCVgas!AP63*AM$190+SPolie!AP62*AM$191+SPgas!AP62*AM$192+GeoEL!AP61*AM$193+GeoVa!AP61*AM$194+VP!AP68*AM$195+Sol!AP60*AM$196) -> 0.07019793774
C41: Indtægt elsalg | D41: ="Kr/"&Sammenligning!$G$9 -> Kr/GJ | E41: =IF(Sammenligning!$G$9="GJ",1,(1*3.6))*(AMV1træ!H66*E$179+AMV1træBP!H65*E$180+AMV3kul!H64*E$181+AMV4træ!H64*E$182+AMV4træBP!H63*E$183+AVV1træ!H64*E$184+AVV1kul!H63*E$185+AVV2træ!H64*E$186+AVV2halm!H64*E$187+AVV2gasGT!H64*E$188+KKV!H64*E$189+HCVgas!H64*E$190+SPolie!H63*E$191+SPgas!H63*E$192+GeoEL!H62*E$193+GeoVa!H62*E$194+VP!H69*E$195+Sol!H61*E$196) -> -15.7910723 | F41: =IF(Sammenligning!$G$9="GJ",1,(1*3.6))*(AMV1træ!I66*F$179+AMV1træBP!I65*F$180+AMV3kul!I64*F$181+AMV4træ!I64*F$182+AMV4træBP!I63*F$183+AVV1træ!I64*F$184+AVV1kul!I63*F$185+AVV2træ!I64*F$186+AVV2halm!I64*F$187+AVV2gasGT!I64*F$188+KKV!I64*F$189+HCVgas!I64*F$190+SPolie!I63*F$191+SPgas!I63*F$192+GeoEL!I62*F$193+GeoVa!I62*F$194+VP!I69*F$195+Sol!I61*F$196) -> -15.47378075 | G41: =IF(Sammenligning!$G$9="GJ",1,(1*3.6))*(AMV1træ!J66*G$179+AMV1træBP!J65*G$180+AMV3kul!J64*G$181+AMV4træ!J64*G$182+AMV4træBP!J63*G$183+AVV1træ!J64*G$184+AVV1kul!J63*G$185+AVV2træ!J64*G$186+AVV2halm!J64*G$187+AVV2gasGT!J64*G$188+KKV!J64*G$189+HCVgas!J64*G$190+SPolie!J63*G$191+SPgas!J63*G$192+GeoEL!J62*G$193+GeoVa!J62*G$194+VP!J69*G$195+Sol!J61*G$196) -> -22.12801978 | H41: =IF(Sammenligning!$G$9="GJ",1,(1*3.6))*(AMV1træ!K66*H$179+AMV1træBP!K65*H$180+AMV3kul!K64*H$181+AMV4træ!K64*H$182+AMV4træBP!K63*H$183+AVV1træ!K64*H$184+AVV1kul!K63*H$185+AVV2træ!K64*H$186+AVV2halm!K64*H$187+AVV2gasGT!K64*H$188+KKV!K64*H$189+HCVgas!K64*H$190+SPolie!K63*H$191+SPgas!K63*H$192+GeoEL!K62*H$193+GeoVa!K62*H$194+VP!K69*H$195+Sol!K61*H$196) -> -29.09349118 | I41: =IF(Sammenligning!$G$9="GJ",1,(1*3.6))*(AMV1træ!L66*I$179+AMV1træBP!L65*I$180+AMV3kul!L64*I$181+AMV4træ!L64*I$182+AMV4træBP!L63*I$183+AVV1træ!L64*I$184+AVV1kul!L63*I$185+AVV2træ!L64*I$186+AVV2halm!L64*I$187+AVV2gasGT!L64*I$188+KKV!L64*I$189+HCVgas!L64*I$190+SPolie!L63*I$191+SPgas!L63*I$192+GeoEL!L62*I$193+GeoVa!L62*I$194+VP!L69*I$195+Sol!L61*I$196) -> -30.75597639 | J41: =IF(Sammenligning!$G$9="GJ",1,(1*3.6))*(AMV1træ!M66*J$179+AMV1træBP!M65*J$180+AMV3kul!M64*J$181+AMV4træ!M64*J$182+AMV4træBP!M63*J$183+AVV1træ!M64*J$184+AVV1kul!M63*J$185+AVV2træ!M64*J$186+AVV2halm!M64*J$187+AVV2gasGT!M64*J$188+KKV!M64*J$189+HCVgas!M64*J$190+SPolie!M63*J$191+SPgas!M63*J$192+GeoEL!M62*J$193+GeoVa!M62*J$194+VP!M69*J$195+Sol!M61*J$196) -> -30.11493125 | K41: =IF(Sammenligning!$G$9="GJ",1,(1*3.6))*(AMV1træ!N66*K$179+AMV1træBP!N65*K$180+AMV3kul!N64*K$181+AMV4træ!N64*K$182+AMV4træBP!N63*K$183+AVV1træ!N64*K$184+AVV1kul!N63*K$185+AVV2træ!N64*K$186+AVV2halm!N64*K$187+AVV2gasGT!N64*K$188+KKV!N64*K$189+HCVgas!N64*K$190+SPolie!N63*K$191+SPgas!N63*K$192+GeoEL!N62*K$193+GeoVa!N62*K$194+VP!N69*K$195+Sol!N61*K$196) -> -105.8762367 | L41: =IF(Sammenligning!$G$9="GJ",1,(1*3.6))*(AMV1træ!O66*L$179+AMV1træBP!O65*L$180+AMV3kul!O64*L$181+AMV4træ!O64*L$182+AMV4træBP!O63*L$183+AVV1træ!O64*L$184+AVV1kul!O63*L$185+AVV2træ!O64*L$186+AVV2halm!O64*L$187+AVV2gasGT!O64*L$188+KKV!O64*L$189+HCVgas!O64*L$190+SPolie!O63*L$191+SPgas!O63*L$192+GeoEL!O62*L$193+GeoVa!O62*L$194+VP!O69*L$195+Sol!O61*L$196) -> -55.64938445 | M41: =IF(Sammenligning!$G$9="GJ",1,(1*3.6))*(AMV1træ!P66*M$179+AMV1træBP!P65*M$180+AMV3kul!P64*M$181+AMV4træ!P64*M$182+AMV4træBP!P63*M$183+AVV1træ!P64*M$184+AVV1kul!P63*M$185+AVV2træ!P64*M$186+AVV2halm!P64*M$187+AVV2gasGT!P64*M$188+KKV!P64*M$189+HCVgas!P64*M$190+SPolie!P63*M$191+SPgas!P63*M$192+GeoEL!P62*M$193+GeoVa!P62*M$194+VP!P69*M$195+Sol!P61*M$196) -> -47.34834241 | N41: =IF(Sammenligning!$G$9="GJ",1,(1*3.6))*(AMV1træ!Q66*N$179+AMV1træBP!Q65*N$180+AMV3kul!Q64*N$181+AMV4træ!Q64*N$182+AMV4træBP!Q63*N$183+AVV1træ!Q64*N$184+AVV1kul!Q63*N$185+AVV2træ!Q64*N$186+AVV2halm!Q64*N$187+AVV2gasGT!Q64*N$188+KKV!Q64*N$189+HCVgas!Q64*N$190+SPolie!Q63*N$191+SPgas!Q63*N$192+GeoEL!Q62*N$193+GeoVa!Q62*N$194+VP!Q69*N$195+Sol!Q61*N$196) -> -45.49920432 | O41: =IF(Sammenligning!$G$9="GJ",1,(1*3.6))*(AMV1træ!R66*O$179+AMV1træBP!R65*O$180+AMV3kul!R64*O$181+AMV4træ!R64*O$182+AMV4træBP!R63*O$183+AVV1træ!R64*O$184+AVV1kul!R63*O$185+AVV2træ!R64*O$186+AVV2halm!R64*O$187+AVV2gasGT!R64*O$188+KKV!R64*O$189+HCVgas!R64*O$190+SPolie!R63*O$191+SPgas!R63*O$192+GeoEL!R62*O$193+GeoVa!R62*O$194+VP!R69*O$195+Sol!R61*O$196) -> -44.27136346 | P41: =IF(Sammenligning!$G$9="GJ",1,(1*3.6))*(AMV1træ!S66*P$179+AMV1træBP!S65*P$180+AMV3kul!S64*P$181+AMV4træ!S64*P$182+AMV4træBP!S63*P$183+AVV1træ!S64*P$184+AVV1kul!S63*P$185+AVV2træ!S64*P$186+AVV2halm!S64*P$187+AVV2gasGT!S64*P$188+KKV!S64*P$189+HCVgas!S64*P$190+SPolie!S63*P$191+SPgas!S63*P$192+GeoEL!S62*P$193+GeoVa!S62*P$194+VP!S69*P$195+Sol!S61*P$196) -> -41.99979268 | Q41: =IF(Sammenligning!$G$9="GJ",1,(1*3.6))*(AMV1træ!T66*Q$179+AMV1træBP!T65*Q$180+AMV3kul!T64*Q$181+AMV4træ!T64*Q$182+AMV4træBP!T63*Q$183+AVV1træ!T64*Q$184+AVV1kul!T63*Q$185+AVV2træ!T64*Q$186+AVV2halm!T64*Q$187+AVV2gasGT!T64*Q$188+KKV!T64*Q$189+HCVgas!T64*Q$190+SPolie!T63*Q$191+SPgas!T63*Q$192+GeoEL!T62*Q$193+GeoVa!T62*Q$194+VP!T69*Q$195+Sol!T61*Q$196) -> -39.55307407 | R41: =IF(Sammenligning!$G$9="GJ",1,(1*3.6))*(AMV1træ!U66*R$179+AMV1træBP!U65*R$180+AMV3kul!U64*R$181+AMV4træ!U64*R$182+AMV4træBP!U63*R$183+AVV1træ!U64*R$184+AVV1kul!U63*R$185+AVV2træ!U64*R$186+AVV2halm!U64*R$187+AVV2gasGT!U64*R$188+KKV!U64*R$189+HCVgas!U64*R$190+SPolie!U63*R$191+SPgas!U63*R$192+GeoEL!U62*R$193+GeoVa!U62*R$194+VP!U69*R$195+Sol!U61*R$196) -> -35.38472714 | S41: =IF(Sammenligning!$G$9="GJ",1,(1*3.6))*(AMV1træ!V66*S$179+AMV1træBP!V65*S$180+AMV3kul!V64*S$181+AMV4træ!V64*S$182+AMV4træBP!V63*S$183+AVV1træ!V64*S$184+AVV1kul!V63*S$185+AVV2træ!V64*S$186+AVV2halm!V64*S$187+AVV2gasGT!V64*S$188+KKV!V64*S$189+HCVgas!V64*S$190+SPolie!V63*S$191+SPgas!V63*S$192+GeoEL!V62*S$193+GeoVa!V62*S$194+VP!V69*S$195+Sol!V61*S$196) -> -29.67385261 | T41: =IF(Sammenligning!$G$9="GJ",1,(1*3.6))*(AMV1træ!W66*T$179+AMV1træBP!W65*T$180+AMV3kul!W64*T$181+AMV4træ!W64*T$182+AMV4træBP!W63*T$183+AVV1træ!W64*T$184+AVV1kul!W63*T$185+AVV2træ!W64*T$186+AVV2halm!W64*T$187+AVV2gasGT!W64*T$188+KKV!W64*T$189+HCVgas!W64*T$190+SPolie!W63*T$191+SPgas!W63*T$192+GeoEL!W62*T$193+GeoVa!W62*T$194+VP!W69*T$195+Sol!W61*T$196) -> -31.3106103 | U41: =IF(Sammenligning!$G$9="GJ",1,(1*3.6))*(AMV1træ!X66*U$179+AMV1træBP!X65*U$180+AMV3kul!X64*U$181+AMV4træ!X64*U$182+AMV4træBP!X63*U$183+AVV1træ!X64*U$184+AVV1kul!X63*U$185+AVV2træ!X64*U$186+AVV2halm!X64*U$187+AVV2gasGT!X64*U$188+KKV!X64*U$189+HCVgas!X64*U$190+SPolie!X63*U$191+SPgas!X63*U$192+GeoEL!X62*U$193+GeoVa!X62*U$194+VP!X69*U$195+Sol!X61*U$196) -> -30.9219011 | V41: =IF(Sammenligning!$G$9="GJ",1,(1*3.6))*(AMV1træ!Y66*V$179+AMV1træBP!Y65*V$180+AMV3kul!Y64*V$181+AMV4træ!Y64*V$182+AMV4træBP!Y63*V$183+AVV1træ!Y64*V$184+AVV1kul!Y63*V$185+AVV2træ!Y64*V$186+AVV2halm!Y64*V$187+AVV2gasGT!Y64*V$188+KKV!Y64*V$189+HCVgas!Y64*V$190+SPolie!Y63*V$191+SPgas!Y63*V$192+GeoEL!Y62*V$193+GeoVa!Y62*V$194+VP!Y69*V$195+Sol!Y61*V$196) -> -31.64898038 | W41: =IF(Sammenligning!$G$9="GJ",1,(1*3.6))*(AMV1træ!Z66*W$179+AMV1træBP!Z65*W$180+AMV3kul!Z64*W$181+AMV4træ!Z64*W$182+AMV4træBP!Z63*W$183+AVV1træ!Z64*W$184+AVV1kul!Z63*W$185+AVV2træ!Z64*W$186+AVV2halm!Z64*W$187+AVV2gasGT!Z64*W$188+KKV!Z64*W$189+HCVgas!Z64*W$190+SPolie!Z63*W$191+SPgas!Z63*W$192+GeoEL!Z62*W$193+GeoVa!Z62*W$194+VP!Z69*W$195+Sol!Z61*W$196) -> -24.29282987 | X41: =IF(Sammenligning!$G$9="GJ",1,(1*3.6))*(AMV1træ!AA66*X$179+AMV1træBP!AA65*X$180+AMV3kul!AA64*X$181+AMV4træ!AA64*X$182+AMV4træBP!AA63*X$183+AVV1træ!AA64*X$184+AVV1kul!AA63*X$185+AVV2træ!AA64*X$186+AVV2halm!AA64*X$187+AVV2gasGT!AA64*X$188+KKV!AA64*X$189+HCVgas!AA64*X$190+SPolie!AA63*X$191+SPgas!AA63*X$192+GeoEL!AA62*X$193+GeoVa!AA62*X$194+VP!AA69*X$195+Sol!AA61*X$196) -> -26.68940311 | Y41: =IF(Sammenligning!$G$9="GJ",1,(1*3.6))*(AMV1træ!AB66*Y$179+AMV1træBP!AB65*Y$180+AMV3kul!AB64*Y$181+AMV4træ!AB64*Y$182+AMV4træBP!AB63*Y$183+AVV1træ!AB64*Y$184+AVV1kul!AB63*Y$185+AVV2træ!AB64*Y$186+AVV2halm!AB64*Y$187+AVV2gasGT!AB64*Y$188+KKV!AB64*Y$189+HCVgas!AB64*Y$190+SPolie!AB63*Y$191+SPgas!AB63*Y$192+GeoEL!AB62*Y$193+GeoVa!AB62*Y$194+VP!AB69*Y$195+Sol!AB61*Y$196) -> -25.81569447 | Z41: =IF(Sammenligning!$G$9="GJ",1,(1*3.6))*(AMV1træ!AC66*Z$179+AMV1træBP!AC65*Z$180+AMV3kul!AC64*Z$181+AMV4træ!AC64*Z$182+AMV4træBP!AC63*Z$183+AVV1træ!AC64*Z$184+AVV1kul!AC63*Z$185+AVV2træ!AC64*Z$186+AVV2halm!AC64*Z$187+AVV2gasGT!AC64*Z$188+KKV!AC64*Z$189+HCVgas!AC64*Z$190+SPolie!AC63*Z$191+SPgas!AC63*Z$192+GeoEL!AC62*Z$193+GeoVa!AC62*Z$194+VP!AC69*Z$195+Sol!AC61*Z$196) -> -24.94213843 | AA41: =IF(Sammenligning!$G$9="GJ",1,(1*3.6))*(AMV1træ!AD66*AA$179+AMV1træBP!AD65*AA$180+AMV3kul!AD64*AA$181+AMV4træ!AD64*AA$182+AMV4træBP!AD63*AA$183+AVV1træ!AD64*AA$184+AVV1kul!AD63*AA$185+AVV2træ!AD64*AA$186+AVV2halm!AD64*AA$187+AVV2gasGT!AD64*AA$188+KKV!AD64*AA$189+HCVgas!AD64*AA$190+SPolie!AD63*AA$191+SPgas!AD63*AA$192+GeoEL!AD62*AA$193+GeoVa!AD62*AA$194+VP!AD69*AA$195+Sol!AD61*AA$196) -> -24.06873369 | AB41: =IF(Sammenligning!$G$9="GJ",1,(1*3.6))*(AMV1træ!AE66*AB$179+AMV1træBP!AE65*AB$180+AMV3kul!AE64*AB$181+AMV4træ!AE64*AB$182+AMV4træBP!AE63*AB$183+AVV1træ!AE64*AB$184+AVV1kul!AE63*AB$185+AVV2træ!AE64*AB$186+AVV2halm!AE64*AB$187+AVV2gasGT!AE64*AB$188+KKV!AE64*AB$189+HCVgas!AE64*AB$190+SPolie!AE63*AB$191+SPgas!AE63*AB$192+GeoEL!AE62*AB$193+GeoVa!AE62*AB$194+VP!AE69*AB$195+Sol!AE61*AB$196) -> -23.19547895 | AC41: =IF(Sammenligning!$G$9="GJ",1,(1*3.6))*(AMV1træ!AF66*AC$179+AMV1træBP!AF65*AC$180+AMV3kul!AF64*AC$181+AMV4træ!AF64*AC$182+AMV4træBP!AF63*AC$183+AVV1træ!AF64*AC$184+AVV1kul!AF63*AC$185+AVV2træ!AF64*AC$186+AVV2halm!AF64*AC$187+AVV2gasGT!AF64*AC$188+KKV!AF64*AC$189+HCVgas!AF64*AC$190+SPolie!AF63*AC$191+SPgas!AF63*AC$192+GeoEL!AF62*AC$193+GeoVa!AF62*AC$194+VP!AF69*AC$195+Sol!AF61*AC$196) -> -22.32237295 | AD41: =IF(Sammenligning!$G$9="GJ",1,(1*3.6))*(AMV1træ!AG66*AD$179+AMV1træBP!AG65*AD$180+AMV3kul!AG64*AD$181+AMV4træ!AG64*AD$182+AMV4træBP!AG63*AD$183+AVV1træ!AG64*AD$184+AVV1kul!AG63*AD$185+AVV2træ!AG64*AD$186+AVV2halm!AG64*AD$187+AVV2gasGT!AG64*AD$188+KKV!AG64*AD$189+HCVgas!AG64*AD$190+SPolie!AG63*AD$191+SPgas!AG63*AD$192+GeoEL!AG62*AD$193+GeoVa!AG62*AD$194+VP!AG69*AD$195+Sol!AG61*AD$196) -> -22.32237295 | AE41: =IF(Sammenligning!$G$9="GJ",1,(1*3.6))*(AMV1træ!AH66*AE$179+AMV1træBP!AH65*AE$180+AMV3kul!AH64*AE$181+AMV4træ!AH64*AE$182+AMV4træBP!AH63*AE$183+AVV1træ!AH64*AE$184+AVV1kul!AH63*AE$185+AVV2træ!AH64*AE$186+AVV2halm!AH64*AE$187+AVV2gasGT!AH64*AE$188+KKV!AH64*AE$189+HCVgas!AH64*AE$190+SPolie!AH63*AE$191+SPgas!AH63*AE$192+GeoEL!AH62*AE$193+GeoVa!AH62*AE$194+VP!AH69*AE$195+Sol!AH61*AE$196) -> -22.32237295 | AF41: =IF(Sammenligning!$G$9="GJ",1,(1*3.6))*(AMV1træ!AI66*AF$179+AMV1træBP!AI65*AF$180+AMV3kul!AI64*AF$181+AMV4træ!AI64*AF$182+AMV4træBP!AI63*AF$183+AVV1træ!AI64*AF$184+AVV1kul!AI63*AF$185+AVV2træ!AI64*AF$186+AVV2halm!AI64*AF$187+AVV2gasGT!AI64*AF$188+KKV!AI64*AF$189+HCVgas!AI64*AF$190+SPolie!AI63*AF$191+SPgas!AI63*AF$192+GeoEL!AI62*AF$193+GeoVa!AI62*AF$194+VP!AI69*AF$195+Sol!AI61*AF$196) -> -22.32237295 | AG41: =IF(Sammenligning!$G$9="GJ",1,(1*3.6))*(AMV1træ!AJ66*AG$179+AMV1træBP!AJ65*AG$180+AMV3kul!AJ64*AG$181+AMV4træ!AJ64*AG$182+AMV4træBP!AJ63*AG$183+AVV1træ!AJ64*AG$184+AVV1kul!AJ63*AG$185+AVV2træ!AJ64*AG$186+AVV2halm!AJ64*AG$187+AVV2gasGT!AJ64*AG$188+KKV!AJ64*AG$189+HCVgas!AJ64*AG$190+SPolie!AJ63*AG$191+SPgas!AJ63*AG$192+GeoEL!AJ62*AG$193+GeoVa!AJ62*AG$194+VP!AJ69*AG$195+Sol!AJ61*AG$196) -> -22.32237295 | AH41: =IF(Sammenligning!$G$9="GJ",1,(1*3.6))*(AMV1træ!AK66*AH$179+AMV1træBP!AK65*AH$180+AMV3kul!AK64*AH$181+AMV4træ!AK64*AH$182+AMV4træBP!AK63*AH$183+AVV1træ!AK64*AH$184+AVV1kul!AK63*AH$185+AVV2træ!AK64*AH$186+AVV2halm!AK64*AH$187+AVV2gasGT!AK64*AH$188+KKV!AK64*AH$189+HCVgas!AK64*AH$190+SPolie!AK63*AH$191+SPgas!AK63*AH$192+GeoEL!AK62*AH$193+GeoVa!AK62*AH$194+VP!AK69*AH$195+Sol!AK61*AH$196) -> -22.32237295 | AI41: =IF(Sammenligning!$G$9="GJ",1,(1*3.6))*(AMV1træ!AL66*AI$179+AMV1træBP!AL65*AI$180+AMV3kul!AL64*AI$181+AMV4træ!AL64*AI$182+AMV4træBP!AL63*AI$183+AVV1træ!AL64*AI$184+AVV1kul!AL63*AI$185+AVV2træ!AL64*AI$186+AVV2halm!AL64*AI$187+AVV2gasGT!AL64*AI$188+KKV!AL64*AI$189+HCVgas!AL64*AI$190+SPolie!AL63*AI$191+SPgas!AL63*AI$192+GeoEL!AL62*AI$193+GeoVa!AL62*AI$194+VP!AL69*AI$195+Sol!AL61*AI$196) -> -22.32237295 | AJ41: =IF(Sammenligning!$G$9="GJ",1,(1*3.6))*(AMV1træ!AM66*AJ$179+AMV1træBP!AM65*AJ$180+AMV3kul!AM64*AJ$181+AMV4træ!AM64*AJ$182+AMV4træBP!AM63*AJ$183+AVV1træ!AM64*AJ$184+AVV1kul!AM63*AJ$185+AVV2træ!AM64*AJ$186+AVV2halm!AM64*AJ$187+AVV2gasGT!AM64*AJ$188+KKV!AM64*AJ$189+HCVgas!AM64*AJ$190+SPolie!AM63*AJ$191+SPgas!AM63*AJ$192+GeoEL!AM62*AJ$193+GeoVa!AM62*AJ$194+VP!AM69*AJ$195+Sol!AM61*AJ$196) -> -22.32237295 | AK41: =IF(Sammenligning!$G$9="GJ",1,(1*3.6))*(AMV1træ!AN66*AK$179+AMV1træBP!AN65*AK$180+AMV3kul!AN64*AK$181+AMV4træ!AN64*AK$182+AMV4træBP!AN63*AK$183+AVV1træ!AN64*AK$184+AVV1kul!AN63*AK$185+AVV2træ!AN64*AK$186+AVV2halm!AN64*AK$187+AVV2gasGT!AN64*AK$188+KKV!AN64*AK$189+HCVgas!AN64*AK$190+SPolie!AN63*AK$191+SPgas!AN63*AK$192+GeoEL!AN62*AK$193+GeoVa!AN62*AK$194+VP!AN69*AK$195+Sol!AN61*AK$196) -> -22.32237295 | AL41: =IF(Sammenligning!$G$9="GJ",1,(1*3.6))*(AMV1træ!AO66*AL$179+AMV1træBP!AO65*AL$180+AMV3kul!AO64*AL$181+AMV4træ!AO64*AL$182+AMV4træBP!AO63*AL$183+AVV1træ!AO64*AL$184+AVV1kul!AO63*AL$185+AVV2træ!AO64*AL$186+AVV2halm!AO64*AL$187+AVV2gasGT!AO64*AL$188+KKV!AO64*AL$189+HCVgas!AO64*AL$190+SPolie!AO63*AL$191+SPgas!AO63*AL$192+GeoEL!AO62*AL$193+GeoVa!AO62*AL$194+VP!AO69*AL$195+Sol!AO61*AL$196) -> -22.32237295 | AM41: =IF(Sammenligning!$G$9="GJ",1,(1*3.6))*(AMV1træ!AP66*AM$179+AMV1træBP!AP65*AM$180+AMV3kul!AP64*AM$181+AMV4træ!AP64*AM$182+AMV4træBP!AP63*AM$183+AVV1træ!AP64*AM$184+AVV1kul!AP63*AM$185+AVV2træ!AP64*AM$186+AVV2halm!AP64*AM$187+AVV2gasGT!AP64*AM$188+KKV!AP64*AM$189+HCVgas!AP64*AM$190+SPolie!AP63*AM$191+SPgas!AP63*AM$192+GeoEL!AP62*AM$193+GeoVa!AP62*AM$194+VP!AP69*AM$195+Sol!AP61*AM$196) -> -22.32237295
C42: Indtægt eltilskud | D42: ="Kr/"&Sammenligning!$G$9 -> Kr/GJ | E42: =IF(Sammenligning!$G$9="GJ",1,(1*3.6))*(AMV1træ!H67*E$179+AMV1træBP!H66*E$180+AMV3kul!H65*E$181+AMV4træ!H65*E$182+AMV4træBP!H64*E$183+AVV1træ!H65*E$184+AVV1kul!H64*E$185+AVV2træ!H65*E$186+AVV2halm!H65*E$187+AVV2gasGT!H65*E$188+KKV!H65*E$189+HCVgas!H65*E$190+SPolie!H64*E$191+SPgas!H64*E$192+GeoEL!H63*E$193+GeoVa!H63*E$194+VP!H70*E$195+Sol!H62*E$196) -> -13.69006765 | F42: =IF(Sammenligning!$G$9="GJ",1,(1*3.6))*(AMV1træ!I67*F$179+AMV1træBP!I66*F$180+AMV3kul!I65*F$181+AMV4træ!I65*F$182+AMV4træBP!I64*F$183+AVV1træ!I65*F$184+AVV1kul!I64*F$185+AVV2træ!I65*F$186+AVV2halm!I65*F$187+AVV2gasGT!I65*F$188+KKV!I65*F$189+HCVgas!I65*F$190+SPolie!I64*F$191+SPgas!I64*F$192+GeoEL!I63*F$193+GeoVa!I63*F$194+VP!I70*F$195+Sol!I62*F$196) -> -13.51640928 | G42: =IF(Sammenligning!$G$9="GJ",1,(1*3.6))*(AMV1træ!J67*G$179+AMV1træBP!J66*G$180+AMV3kul!J65*G$181+AMV4træ!J65*G$182+AMV4træBP!J64*G$183+AVV1træ!J65*G$184+AVV1kul!J64*G$185+AVV2træ!J65*G$186+AVV2halm!J65*G$187+AVV2gasGT!J65*G$188+KKV!J65*G$189+HCVgas!J65*G$190+SPolie!J64*G$191+SPgas!J64*G$192+GeoEL!J63*G$193+GeoVa!J63*G$194+VP!J70*G$195+Sol!J62*G$196) -> -13.41712821 | H42: =IF(Sammenligning!$G$9="GJ",1,(1*3.6))*(AMV1træ!K67*H$179+AMV1træBP!K66*H$180+AMV3kul!K65*H$181+AMV4træ!K65*H$182+AMV4træBP!K64*H$183+AVV1træ!K65*H$184+AVV1kul!K64*H$185+AVV2træ!K65*H$186+AVV2halm!K65*H$187+AVV2gasGT!K65*H$188+KKV!K65*H$189+HCVgas!K65*H$190+SPolie!K64*H$191+SPgas!K64*H$192+GeoEL!K63*H$193+GeoVa!K63*H$194+VP!K70*H$195+Sol!K62*H$196) -> -13.27780185 | I42: =IF(Sammenligning!$G$9="GJ",1,(1*3.6))*(AMV1træ!L67*I$179+AMV1træBP!L66*I$180+AMV3kul!L65*I$181+AMV4træ!L65*I$182+AMV4træBP!L64*I$183+AVV1træ!L65*I$184+AVV1kul!L64*I$185+AVV2træ!L65*I$186+AVV2halm!L65*I$187+AVV2gasGT!L65*I$188+KKV!L65*I$189+HCVgas!L65*I$190+SPolie!L64*I$191+SPgas!L64*I$192+GeoEL!L63*I$193+GeoVa!L63*I$194+VP!L70*I$195+Sol!L62*I$196) -> -12.91567998 | J42: =IF(Sammenligning!$G$9="GJ",1,(1*3.6))*(AMV1træ!M67*J$179+AMV1træBP!M66*J$180+AMV3kul!M65*J$181+AMV4træ!M65*J$182+AMV4træBP!M64*J$183+AVV1træ!M65*J$184+AVV1kul!M64*J$185+AVV2træ!M65*J$186+AVV2halm!M65*J$187+AVV2gasGT!M65*J$188+KKV!M65*J$189+HCVgas!M65*J$190+SPolie!M64*J$191+SPgas!M64*J$192+GeoEL!M63*J$193+GeoVa!M63*J$194+VP!M70*J$195+Sol!M62*J$196) -> -12.91341565 | K42: =IF(Sammenligning!$G$9="GJ",1,(1*3.6))*(AMV1træ!N67*K$179+AMV1træBP!N66*K$180+AMV3kul!N65*K$181+AMV4træ!N65*K$182+AMV4træBP!N64*K$183+AVV1træ!N65*K$184+AVV1kul!N64*K$185+AVV2træ!N65*K$186+AVV2halm!N65*K$187+AVV2gasGT!N65*K$188+KKV!N65*K$189+HCVgas!N65*K$190+SPolie!N64*K$191+SPgas!N64*K$192+GeoEL!N63*K$193+GeoVa!N63*K$194+VP!N70*K$195+Sol!N62*K$196) -> -12.84443459 | L42: =IF(Sammenligning!$G$9="GJ",1,(1*3.6))*(AMV1træ!O67*L$179+AMV1træBP!O66*L$180+AMV3kul!O65*L$181+AMV4træ!O65*L$182+AMV4træBP!O64*L$183+AVV1træ!O65*L$184+AVV1kul!O64*L$185+AVV2træ!O65*L$186+AVV2halm!O65*L$187+AVV2gasGT!O65*L$188+KKV!O65*L$189+HCVgas!O65*L$190+SPolie!O64*L$191+SPgas!O64*L$192+GeoEL!O63*L$193+GeoVa!O63*L$194+VP!O70*L$195+Sol!O62*L$196) -> -12.70395523 | M42: =IF(Sammenligning!$G$9="GJ",1,(1*3.6))*(AMV1træ!P67*M$179+AMV1træBP!P66*M$180+AMV3kul!P65*M$181+AMV4træ!P65*M$182+AMV4træBP!P64*M$183+AVV1træ!P65*M$184+AVV1kul!P64*M$185+AVV2træ!P65*M$186+AVV2halm!P65*M$187+AVV2gasGT!P65*M$188+KKV!P65*M$189+HCVgas!P65*M$190+SPolie!P64*M$191+SPgas!P64*M$192+GeoEL!P63*M$193+GeoVa!P63*M$194+VP!P70*M$195+Sol!P62*M$196) -> -12.56533175 | N42: =IF(Sammenligning!$G$9="GJ",1,(1*3.6))*(AMV1træ!Q67*N$179+AMV1træBP!Q66*N$180+AMV3kul!Q65*N$181+AMV4træ!Q65*N$182+AMV4træBP!Q64*N$183+AVV1træ!Q65*N$184+AVV1kul!Q64*N$185+AVV2træ!Q65*N$186+AVV2halm!Q65*N$187+AVV2gasGT!Q65*N$188+KKV!Q65*N$189+HCVgas!Q65*N$190+SPolie!Q64*N$191+SPgas!Q64*N$192+GeoEL!Q63*N$193+GeoVa!Q63*N$194+VP!Q70*N$195+Sol!Q62*N$196) -> -12.27971722 | O42: =IF(Sammenligning!$G$9="GJ",1,(1*3.6))*(AMV1træ!R67*O$179+AMV1træBP!R66*O$180+AMV3kul!R65*O$181+AMV4træ!R65*O$182+AMV4træBP!R64*O$183+AVV1træ!R65*O$184+AVV1kul!R64*O$185+AVV2træ!R65*O$186+AVV2halm!R65*O$187+AVV2gasGT!R65*O$188+KKV!R65*O$189+HCVgas!R65*O$190+SPolie!R64*O$191+SPgas!R64*O$192+GeoEL!R63*O$193+GeoVa!R63*O$194+VP!R70*O$195+Sol!R62*O$196) -> -12.05540434 | P42: =IF(Sammenligning!$G$9="GJ",1,(1*3.6))*(AMV1træ!S67*P$179+AMV1træBP!S66*P$180+AMV3kul!S65*P$181+AMV4træ!S65*P$182+AMV4træBP!S64*P$183+AVV1træ!S65*P$184+AVV1kul!S64*P$185+AVV2træ!S65*P$186+AVV2halm!S65*P$187+AVV2gasGT!S65*P$188+KKV!S65*P$189+HCVgas!S65*P$190+SPolie!S64*P$191+SPgas!S64*P$192+GeoEL!S63*P$193+GeoVa!S63*P$194+VP!S70*P$195+Sol!S62*P$196) -> -11.84955076 | Q42: =IF(Sammenligning!$G$9="GJ",1,(1*3.6))*(AMV1træ!T67*Q$179+AMV1træBP!T66*Q$180+AMV3kul!T65*Q$181+AMV4træ!T65*Q$182+AMV4træBP!T64*Q$183+AVV1træ!T65*Q$184+AVV1kul!T64*Q$185+AVV2træ!T65*Q$186+AVV2halm!T65*Q$187+AVV2gasGT!T65*Q$188+KKV!T65*Q$189+HCVgas!T65*Q$190+SPolie!T64*Q$191+SPgas!T64*Q$192+GeoEL!T63*Q$193+GeoVa!T63*Q$194+VP!T70*Q$195+Sol!T62*Q$196) -> -11.65029172 | R42: =IF(Sammenligning!$G$9="GJ",1,(1*3.6))*(AMV1træ!U67*R$179+AMV1træBP!U66*R$180+AMV3kul!U65*R$181+AMV4træ!U65*R$182+AMV4træBP!U64*R$183+AVV1træ!U65*R$184+AVV1kul!U64*R$185+AVV2træ!U65*R$186+AVV2halm!U65*R$187+AVV2gasGT!U65*R$188+KKV!U65*R$189+HCVgas!U65*R$190+SPolie!U64*R$191+SPgas!U64*R$192+GeoEL!U63*R$193+GeoVa!U63*R$194+VP!U70*R$195+Sol!U62*R$196) -> -11.44724594 | S42: =IF(Sammenligning!$G$9="GJ",1,(1*3.6))*(AMV1træ!V67*S$179+AMV1træBP!V66*S$180+AMV3kul!V65*S$181+AMV4træ!V65*S$182+AMV4træBP!V64*S$183+AVV1træ!V65*S$184+AVV1kul!V64*S$185+AVV2træ!V65*S$186+AVV2halm!V65*S$187+AVV2gasGT!V65*S$188+KKV!V65*S$189+HCVgas!V65*S$190+SPolie!V64*S$191+SPgas!V64*S$192+GeoEL!V63*S$193+GeoVa!V63*S$194+VP!V70*S$195+Sol!V62*S$196) -> -11.25084146 | T42: =IF(Sammenligning!$G$9="GJ",1,(1*3.6))*(AMV1træ!W67*T$179+AMV1træBP!W66*T$180+AMV3kul!W65*T$181+AMV4træ!W65*T$182+AMV4træBP!W64*T$183+AVV1træ!W65*T$184+AVV1kul!W64*T$185+AVV2træ!W65*T$186+AVV2halm!W65*T$187+AVV2gasGT!W65*T$188+KKV!W65*T$189+HCVgas!W65*T$190+SPolie!W64*T$191+SPgas!W64*T$192+GeoEL!W63*T$193+GeoVa!W63*T$194+VP!W70*T$195+Sol!W62*T$196) -> -11.28090325 | U42: =IF(Sammenligning!$G$9="GJ",1,(1*3.6))*(AMV1træ!X67*U$179+AMV1træBP!X66*U$180+AMV3kul!X65*U$181+AMV4træ!X65*U$182+AMV4træBP!X64*U$183+AVV1træ!X65*U$184+AVV1kul!X64*U$185+AVV2træ!X65*U$186+AVV2halm!X65*U$187+AVV2gasGT!X65*U$188+KKV!X65*U$189+HCVgas!X65*U$190+SPolie!X64*U$191+SPgas!X64*U$192+GeoEL!X63*U$193+GeoVa!X63*U$194+VP!X70*U$195+Sol!X62*U$196) -> -10.59865481 | V42: =IF(Sammenligning!$G$9="GJ",1,(1*3.6))*(AMV1træ!Y67*V$179+AMV1træBP!Y66*V$180+AMV3kul!Y65*V$181+AMV4træ!Y65*V$182+AMV4træBP!Y64*V$183+AVV1træ!Y65*V$184+AVV1kul!Y64*V$185+AVV2træ!Y65*V$186+AVV2halm!Y65*V$187+AVV2gasGT!Y65*V$188+KKV!Y65*V$189+HCVgas!Y65*V$190+SPolie!Y64*V$191+SPgas!Y64*V$192+GeoEL!Y63*V$193+GeoVa!Y63*V$194+VP!Y70*V$195+Sol!Y62*V$196) -> -10.04584615 | W42: =IF(Sammenligning!$G$9="GJ",1,(1*3.6))*(AMV1træ!Z67*W$179+AMV1træBP!Z66*W$180+AMV3kul!Z65*W$181+AMV4træ!Z65*W$182+AMV4træBP!Z64*W$183+AVV1træ!Z65*W$184+AVV1kul!Z64*W$185+AVV2træ!Z65*W$186+AVV2halm!Z65*W$187+AVV2gasGT!Z65*W$188+KKV!Z65*W$189+HCVgas!Z65*W$190+SPolie!Z64*W$191+SPgas!Z64*W$192+GeoEL!Z63*W$193+GeoVa!Z63*W$194+VP!Z70*W$195+Sol!Z62*W$196) -> -5.047553578 | X42: =IF(Sammenligning!$G$9="GJ",1,(1*3.6))*(AMV1træ!AA67*X$179+AMV1træBP!AA66*X$180+AMV3kul!AA65*X$181+AMV4træ!AA65*X$182+AMV4træBP!AA64*X$183+AVV1træ!AA65*X$184+AVV1kul!AA64*X$185+AVV2træ!AA65*X$186+AVV2halm!AA65*X$187+AVV2gasGT!AA65*X$188+KKV!AA65*X$189+HCVgas!AA65*X$190+SPolie!AA64*X$191+SPgas!AA64*X$192+GeoEL!AA63*X$193+GeoVa!AA63*X$194+VP!AA70*X$195+Sol!AA62*X$196) -> -5.035010198 | Y42: =IF(Sammenligning!$G$9="GJ",1,(1*3.6))*(AMV1træ!AB67*Y$179+AMV1træBP!AB66*Y$180+AMV3kul!AB65*Y$181+AMV4træ!AB65*Y$182+AMV4træBP!AB64*Y$183+AVV1træ!AB65*Y$184+AVV1kul!AB64*Y$185+AVV2træ!AB65*Y$186+AVV2halm!AB65*Y$187+AVV2gasGT!AB65*Y$188+KKV!AB65*Y$189+HCVgas!AB65*Y$190+SPolie!AB64*Y$191+SPgas!AB64*Y$192+GeoEL!AB63*Y$193+GeoVa!AB63*Y$194+VP!AB70*Y$195+Sol!AB62*Y$196) -> -4.915733726 | Z42: =IF(Sammenligning!$G$9="GJ",1,(1*3.6))*(AMV1træ!AC67*Z$179+AMV1træBP!AC66*Z$180+AMV3kul!AC65*Z$181+AMV4træ!AC65*Z$182+AMV4træBP!AC64*Z$183+AVV1træ!AC65*Z$184+AVV1kul!AC64*Z$185+AVV2træ!AC65*Z$186+AVV2halm!AC65*Z$187+AVV2gasGT!AC65*Z$188+KKV!AC65*Z$189+HCVgas!AC65*Z$190+SPolie!AC64*Z$191+SPgas!AC64*Z$192+GeoEL!AC63*Z$193+GeoVa!AC63*Z$194+VP!AC70*Z$195+Sol!AC62*Z$196) -> -4.797466466 | AA42: =IF(Sammenligning!$G$9="GJ",1,(1*3.6))*(AMV1træ!AD67*AA$179+AMV1træBP!AD66*AA$180+AMV3kul!AD65*AA$181+AMV4træ!AD65*AA$182+AMV4træBP!AD64*AA$183+AVV1træ!AD65*AA$184+AVV1kul!AD64*AA$185+AVV2træ!AD65*AA$186+AVV2halm!AD65*AA$187+AVV2gasGT!AD65*AA$188+KKV!AD65*AA$189+HCVgas!AD65*AA$190+SPolie!AD64*AA$191+SPgas!AD64*AA$192+GeoEL!AD63*AA$193+GeoVa!AD63*AA$194+VP!AD70*AA$195+Sol!AD62*AA$196) -> -4.683903364 | AB42: =IF(Sammenligning!$G$9="GJ",1,(1*3.6))*(AMV1træ!AE67*AB$179+AMV1træBP!AE66*AB$180+AMV3kul!AE65*AB$181+AMV4træ!AE65*AB$182+AMV4træBP!AE64*AB$183+AVV1træ!AE65*AB$184+AVV1kul!AE64*AB$185+AVV2træ!AE65*AB$186+AVV2halm!AE65*AB$187+AVV2gasGT!AE65*AB$188+KKV!AE65*AB$189+HCVgas!AE65*AB$190+SPolie!AE64*AB$191+SPgas!AE64*AB$192+GeoEL!AE63*AB$193+GeoVa!AE63*AB$194+VP!AE70*AB$195+Sol!AE62*AB$196) -> -4.57143088 | AC42: =IF(Sammenligning!$G$9="GJ",1,(1*3.6))*(AMV1træ!AF67*AC$179+AMV1træBP!AF66*AC$180+AMV3kul!AF65*AC$181+AMV4træ!AF65*AC$182+AMV4træBP!AF64*AC$183+AVV1træ!AF65*AC$184+AVV1kul!AF64*AC$185+AVV2træ!AF65*AC$186+AVV2halm!AF65*AC$187+AVV2gasGT!AF65*AC$188+KKV!AF65*AC$189+HCVgas!AF65*AC$190+SPolie!AF64*AC$191+SPgas!AF64*AC$192+GeoEL!AF63*AC$193+GeoVa!AF63*AC$194+VP!AF70*AC$195+Sol!AF62*AC$196) -> -4.460226477 | AD42: =IF(Sammenligning!$G$9="GJ",1,(1*3.6))*(AMV1træ!AG67*AD$179+AMV1træBP!AG66*AD$180+AMV3kul!AG65*AD$181+AMV4træ!AG65*AD$182+AMV4træBP!AG64*AD$183+AVV1træ!AG65*AD$184+AVV1kul!AG64*AD$185+AVV2træ!AG65*AD$186+AVV2halm!AG65*AD$187+AVV2gasGT!AG65*AD$188+KKV!AG65*AD$189+HCVgas!AG65*AD$190+SPolie!AG64*AD$191+SPgas!AG64*AD$192+GeoEL!AG63*AD$193+GeoVa!AG63*AD$194+VP!AG70*AD$195+Sol!AG62*AD$196) -> -4.372525395 | AE42: =IF(Sammenligning!$G$9="GJ",1,(1*3.6))*(AMV1træ!AH67*AE$179+AMV1træBP!AH66*AE$180+AMV3kul!AH65*AE$181+AMV4træ!AH65*AE$182+AMV4træBP!AH64*AE$183+AVV1træ!AH65*AE$184+AVV1kul!AH64*AE$185+AVV2træ!AH65*AE$186+AVV2halm!AH65*AE$187+AVV2gasGT!AH65*AE$188+KKV!AH65*AE$189+HCVgas!AH65*AE$190+SPolie!AH64*AE$191+SPgas!AH64*AE$192+GeoEL!AH63*AE$193+GeoVa!AH63*AE$194+VP!AH70*AE$195+Sol!AH62*AE$196) -> -4.288206723 | AF42: =IF(Sammenligning!$G$9="GJ",1,(1*3.6))*(AMV1træ!AI67*AF$179+AMV1træBP!AI66*AF$180+AMV3kul!AI65*AF$181+AMV4træ!AI65*AF$182+AMV4træBP!AI64*AF$183+AVV1træ!AI65*AF$184+AVV1kul!AI64*AF$185+AVV2træ!AI65*AF$186+AVV2halm!AI65*AF$187+AVV2gasGT!AI65*AF$188+KKV!AI65*AF$189+HCVgas!AI65*AF$190+SPolie!AI64*AF$191+SPgas!AI64*AF$192+GeoEL!AI63*AF$193+GeoVa!AI63*AF$194+VP!AI70*AF$195+Sol!AI62*AF$196) -> -4.204237787 | AG42: =IF(Sammenligning!$G$9="GJ",1,(1*3.6))*(AMV1træ!AJ67*AG$179+AMV1træBP!AJ66*AG$180+AMV3kul!AJ65*AG$181+AMV4træ!AJ65*AG$182+AMV4træBP!AJ64*AG$183+AVV1træ!AJ65*AG$184+AVV1kul!AJ64*AG$185+AVV2træ!AJ65*AG$186+AVV2halm!AJ65*AG$187+AVV2gasGT!AJ65*AG$188+KKV!AJ65*AG$189+HCVgas!AJ65*AG$190+SPolie!AJ64*AG$191+SPgas!AJ64*AG$192+GeoEL!AJ63*AG$193+GeoVa!AJ63*AG$194+VP!AJ70*AG$195+Sol!AJ62*AG$196) -> -4.123494147 | AH42: =IF(Sammenligning!$G$9="GJ",1,(1*3.6))*(AMV1træ!AK67*AH$179+AMV1træBP!AK66*AH$180+AMV3kul!AK65*AH$181+AMV4træ!AK65*AH$182+AMV4træBP!AK64*AH$183+AVV1træ!AK65*AH$184+AVV1kul!AK64*AH$185+AVV2træ!AK65*AH$186+AVV2halm!AK65*AH$187+AVV2gasGT!AK65*AH$188+KKV!AK65*AH$189+HCVgas!AK65*AH$190+SPolie!AK64*AH$191+SPgas!AK64*AH$192+GeoEL!AK63*AH$193+GeoVa!AK63*AH$194+VP!AK70*AH$195+Sol!AK62*AH$196) -> -4.043166339 | AI42: =IF(Sammenligning!$G$9="GJ",1,(1*3.6))*(AMV1træ!AL67*AI$179+AMV1træBP!AL66*AI$180+AMV3kul!AL65*AI$181+AMV4træ!AL65*AI$182+AMV4træBP!AL64*AI$183+AVV1træ!AL65*AI$184+AVV1kul!AL64*AI$185+AVV2træ!AL65*AI$186+AVV2halm!AL65*AI$187+AVV2gasGT!AL65*AI$188+KKV!AL65*AI$189+HCVgas!AL65*AI$190+SPolie!AL64*AI$191+SPgas!AL64*AI$192+GeoEL!AL63*AI$193+GeoVa!AL63*AI$194+VP!AL70*AI$195+Sol!AL62*AI$196) -> -3.964277222 | AJ42: =IF(Sammenligning!$G$9="GJ",1,(1*3.6))*(AMV1træ!AM67*AJ$179+AMV1træBP!AM66*AJ$180+AMV3kul!AM65*AJ$181+AMV4træ!AM65*AJ$182+AMV4træBP!AM64*AJ$183+AVV1træ!AM65*AJ$184+AVV1kul!AM64*AJ$185+AVV2træ!AM65*AJ$186+AVV2halm!AM65*AJ$187+AVV2gasGT!AM65*AJ$188+KKV!AM65*AJ$189+HCVgas!AM65*AJ$190+SPolie!AM64*AJ$191+SPgas!AM64*AJ$192+GeoEL!AM63*AJ$193+GeoVa!AM63*AJ$194+VP!AM70*AJ$195+Sol!AM62*AJ$196) -> -3.886927368 | AK42: =IF(Sammenligning!$G$9="GJ",1,(1*3.6))*(AMV1træ!AN67*AK$179+AMV1træBP!AN66*AK$180+AMV3kul!AN65*AK$181+AMV4træ!AN65*AK$182+AMV4træBP!AN64*AK$183+AVV1træ!AN65*AK$184+AVV1kul!AN64*AK$185+AVV2træ!AN65*AK$186+AVV2halm!AN65*AK$187+AVV2gasGT!AN65*AK$188+KKV!AN65*AK$189+HCVgas!AN65*AK$190+SPolie!AN64*AK$191+SPgas!AN64*AK$192+GeoEL!AN63*AK$193+GeoVa!AN63*AK$194+VP!AN70*AK$195+Sol!AN62*AK$196) -> -3.811086742 | AL42: =IF(Sammenligning!$G$9="GJ",1,(1*3.6))*(AMV1træ!AO67*AL$179+AMV1træBP!AO66*AL$180+AMV3kul!AO65*AL$181+AMV4træ!AO65*AL$182+AMV4træBP!AO64*AL$183+AVV1træ!AO65*AL$184+AVV1kul!AO64*AL$185+AVV2træ!AO65*AL$186+AVV2halm!AO65*AL$187+AVV2gasGT!AO65*AL$188+KKV!AO65*AL$189+HCVgas!AO65*AL$190+SPolie!AO64*AL$191+SPgas!AO64*AL$192+GeoEL!AO63*AL$193+GeoVa!AO63*AL$194+VP!AO70*AL$195+Sol!AO62*AL$196) -> -3.736725896 | AM42: =IF(Sammenligning!$G$9="GJ",1,(1*3.6))*(AMV1træ!AP67*AM$179+AMV1træBP!AP66*AM$180+AMV3kul!AP65*AM$181+AMV4træ!AP65*AM$182+AMV4træBP!AP64*AM$183+AVV1træ!AP65*AM$184+AVV1kul!AP64*AM$185+AVV2træ!AP65*AM$186+AVV2halm!AP65*AM$187+AVV2gasGT!AP65*AM$188+KKV!AP65*AM$189+HCVgas!AP65*AM$190+SPolie!AP64*AM$191+SPgas!AP64*AM$192+GeoEL!AP63*AM$193+GeoVa!AP63*AM$194+VP!AP70*AM$195+Sol!AP62*AM$196) -> -3.663815959
C43: Afgifter | D43: ="Kr/"&Sammenligning!$G$9 -> Kr/GJ | E43: =IF(Sammenligning!$G$9="GJ",1,(1*3.6))*(AMV1træ!H68*E$179+AMV1træBP!H67*E$180+AMV3kul!H66*E$181+AMV4træ!H66*E$182+AMV4træBP!H65*E$183+AVV1træ!H66*E$184+AVV1kul!H65*E$185+AVV2træ!H66*E$186+AVV2halm!H66*E$187+AVV2gasGT!H66*E$188+KKV!H66*E$189+HCVgas!H66*E$190+SPolie!H65*E$191+SPgas!H65*E$192+GeoEL!H64*E$193+GeoVa!H64*E$194+VP!H71*E$195+Sol!H63*E$196) -> 14.78853898 | F43: =IF(Sammenligning!$G$9="GJ",1,(1*3.6))*(AMV1træ!I68*F$179+AMV1træBP!I67*F$180+AMV3kul!I66*F$181+AMV4træ!I66*F$182+AMV4træBP!I65*F$183+AVV1træ!I66*F$184+AVV1kul!I65*F$185+AVV2træ!I66*F$186+AVV2halm!I66*F$187+AVV2gasGT!I66*F$188+KKV!I66*F$189+HCVgas!I66*F$190+SPolie!I65*F$191+SPgas!I65*F$192+GeoEL!I64*F$193+GeoVa!I64*F$194+VP!I71*F$195+Sol!I63*F$196) -> 14.78853898 | G43: =IF(Sammenligning!$G$9="GJ",1,(1*3.6))*(AMV1træ!J68*G$179+AMV1træBP!J67*G$180+AMV3kul!J66*G$181+AMV4træ!J66*G$182+AMV4træBP!J65*G$183+AVV1træ!J66*G$184+AVV1kul!J65*G$185+AVV2træ!J66*G$186+AVV2halm!J66*G$187+AVV2gasGT!J66*G$188+KKV!J66*G$189+HCVgas!J66*G$190+SPolie!J65*G$191+SPgas!J65*G$192+GeoEL!J64*G$193+GeoVa!J64*G$194+VP!J71*G$195+Sol!J63*G$196) -> 14.78853898 | H43: =IF(Sammenligning!$G$9="GJ",1,(1*3.6))*(AMV1træ!K68*H$179+AMV1træBP!K67*H$180+AMV3kul!K66*H$181+AMV4træ!K66*H$182+AMV4træBP!K65*H$183+AVV1træ!K66*H$184+AVV1kul!K65*H$185+AVV2træ!K66*H$186+AVV2halm!K66*H$187+AVV2gasGT!K66*H$188+KKV!K66*H$189+HCVgas!K66*H$190+SPolie!K65*H$191+SPgas!K65*H$192+GeoEL!K64*H$193+GeoVa!K64*H$194+VP!K71*H$195+Sol!K63*H$196) -> 14.78853898 | I43: =IF(Sammenligning!$G$9="GJ",1,(1*3.6))*(AMV1træ!L68*I$179+AMV1træBP!L67*I$180+AMV3kul!L66*I$181+AMV4træ!L66*I$182+AMV4træBP!L65*I$183+AVV1træ!L66*I$184+AVV1kul!L65*I$185+AVV2træ!L66*I$186+AVV2halm!L66*I$187+AVV2gasGT!L66*I$188+KKV!L66*I$189+HCVgas!L66*I$190+SPolie!L65*I$191+SPgas!L65*I$192+GeoEL!L64*I$193+GeoVa!L64*I$194+VP!L71*I$195+Sol!L63*I$196) -> 14.78853898 | J43: =IF(Sammenligning!$G$9="GJ",1,(1*3.6))*(AMV1træ!M68*J$179+AMV1træBP!M67*J$180+AMV3kul!M66*J$181+AMV4træ!M66*J$182+AMV4træBP!M65*J$183+AVV1træ!M66*J$184+AVV1kul!M65*J$185+AVV2træ!M66*J$186+AVV2halm!M66*J$187+AVV2gasGT!M66*J$188+KKV!M66*J$189+HCVgas!M66*J$190+SPolie!M65*J$191+SPgas!M65*J$192+GeoEL!M64*J$193+GeoVa!M64*J$194+VP!M71*J$195+Sol!M63*J$196) -> 13.37926559 | K43: =IF(Sammenligning!$G$9="GJ",1,(1*3.6))*(AMV1træ!N68*K$179+AMV1træBP!N67*K$180+AMV3kul!N66*K$181+AMV4træ!N66*K$182+AMV4træBP!N65*K$183+AVV1træ!N66*K$184+AVV1kul!N65*K$185+AVV2træ!N66*K$186+AVV2halm!N66*K$187+AVV2gasGT!N66*K$188+KKV!N66*K$189+HCVgas!N66*K$190+SPolie!N65*K$191+SPgas!N65*K$192+GeoEL!N64*K$193+GeoVa!N64*K$194+VP!N71*K$195+Sol!N63*K$196) -> 12.52478919 | L43: =IF(Sammenligning!$G$9="GJ",1,(1*3.6))*(AMV1træ!O68*L$179+AMV1træBP!O67*L$180+AMV3kul!O66*L$181+AMV4træ!O66*L$182+AMV4træBP!O65*L$183+AVV1træ!O66*L$184+AVV1kul!O65*L$185+AVV2træ!O66*L$186+AVV2halm!O66*L$187+AVV2gasGT!O66*L$188+KKV!O66*L$189+HCVgas!O66*L$190+SPolie!O65*L$191+SPgas!O65*L$192+GeoEL!O64*L$193+GeoVa!O64*L$194+VP!O71*L$195+Sol!O63*L$196) -> 11.91168722 | M43: =IF(Sammenligning!$G$9="GJ",1,(1*3.6))*(AMV1træ!P68*M$179+AMV1træBP!P67*M$180+AMV3kul!P66*M$181+AMV4træ!P66*M$182+AMV4træBP!P65*M$183+AVV1træ!P66*M$184+AVV1kul!P65*M$185+AVV2træ!P66*M$186+AVV2halm!P66*M$187+AVV2gasGT!P66*M$188+KKV!P66*M$189+HCVgas!P66*M$190+SPolie!P65*M$191+SPgas!P65*M$192+GeoEL!P64*M$193+GeoVa!P64*M$194+VP!P71*M$195+Sol!P63*M$196) -> 11.45034145 | N43: =IF(Sammenligning!$G$9="GJ",1,(1*3.6))*(AMV1træ!Q68*N$179+AMV1træBP!Q67*N$180+AMV3kul!Q66*N$181+AMV4træ!Q66*N$182+AMV4træBP!Q65*N$183+AVV1træ!Q66*N$184+AVV1kul!Q65*N$185+AVV2træ!Q66*N$186+AVV2halm!Q66*N$187+AVV2gasGT!Q66*N$188+KKV!Q66*N$189+HCVgas!Q66*N$190+SPolie!Q65*N$191+SPgas!Q65*N$192+GeoEL!Q64*N$193+GeoVa!Q64*N$194+VP!Q71*N$195+Sol!Q63*N$196) -> 11.0280576 | O43: =IF(Sammenligning!$G$9="GJ",1,(1*3.6))*(AMV1træ!R68*O$179+AMV1træBP!R67*O$180+AMV3kul!R66*O$181+AMV4træ!R66*O$182+AMV4træBP!R65*O$183+AVV1træ!R66*O$184+AVV1kul!R65*O$185+AVV2træ!R66*O$186+AVV2halm!R66*O$187+AVV2gasGT!R66*O$188+KKV!R66*O$189+HCVgas!R66*O$190+SPolie!R65*O$191+SPgas!R65*O$192+GeoEL!R64*O$193+GeoVa!R64*O$194+VP!R71*O$195+Sol!R63*O$196) -> 10.21300897 | P43: =IF(Sammenligning!$G$9="GJ",1,(1*3.6))*(AMV1træ!S68*P$179+AMV1træBP!S67*P$180+AMV3kul!S66*P$181+AMV4træ!S66*P$182+AMV4træBP!S65*P$183+AVV1træ!S66*P$184+AVV1kul!S65*P$185+AVV2træ!S66*P$186+AVV2halm!S66*P$187+AVV2gasGT!S66*P$188+KKV!S66*P$189+HCVgas!S66*P$190+SPolie!S65*P$191+SPgas!S65*P$192+GeoEL!S64*P$193+GeoVa!S64*P$194+VP!S71*P$195+Sol!S63*P$196) -> 9.395308085 | Q43: =IF(Sammenligning!$G$9="GJ",1,(1*3.6))*(AMV1træ!T68*Q$179+AMV1træBP!T67*Q$180+AMV3kul!T66*Q$181+AMV4træ!T66*Q$182+AMV4træBP!T65*Q$183+AVV1træ!T66*Q$184+AVV1kul!T65*Q$185+AVV2træ!T66*Q$186+AVV2halm!T66*Q$187+AVV2gasGT!T66*Q$188+KKV!T66*Q$189+HCVgas!T66*Q$190+SPolie!T65*Q$191+SPgas!T65*Q$192+GeoEL!T64*Q$193+GeoVa!T64*Q$194+VP!T71*Q$195+Sol!T63*Q$196) -> 8.574941984 | R43: =IF(Sammenligning!$G$9="GJ",1,(1*3.6))*(AMV1træ!U68*R$179+AMV1træBP!U67*R$180+AMV3kul!U66*R$181+AMV4træ!U66*R$182+AMV4træBP!U65*R$183+AVV1træ!U66*R$184+AVV1kul!U65*R$185+AVV2træ!U66*R$186+AVV2halm!U66*R$187+AVV2gasGT!U66*R$188+KKV!U66*R$189+HCVgas!U66*R$190+SPolie!U65*R$191+SPgas!U65*R$192+GeoEL!U64*R$193+GeoVa!U64*R$194+VP!U71*R$195+Sol!U63*R$196) -> 7.751897614 | S43: =IF(Sammenligning!$G$9="GJ",1,(1*3.6))*(AMV1træ!V68*S$179+AMV1træBP!V67*S$180+AMV3kul!V66*S$181+AMV4træ!V66*S$182+AMV4træBP!V65*S$183+AVV1træ!V66*S$184+AVV1kul!V65*S$185+AVV2træ!V66*S$186+AVV2halm!V66*S$187+AVV2gasGT!V66*S$188+KKV!V66*S$189+HCVgas!V66*S$190+SPolie!V65*S$191+SPgas!V65*S$192+GeoEL!V64*S$193+GeoVa!V64*S$194+VP!V71*S$195+Sol!V63*S$196) -> 6.926161839 | T43: =IF(Sammenligning!$G$9="GJ",1,(1*3.6))*(AMV1træ!W68*T$179+AMV1træBP!W67*T$180+AMV3kul!W66*T$181+AMV4træ!W66*T$182+AMV4træBP!W65*T$183+AVV1træ!W66*T$184+AVV1kul!W65*T$185+AVV2træ!W66*T$186+AVV2halm!W66*T$187+AVV2gasGT!W66*T$188+KKV!W66*T$189+HCVgas!W66*T$190+SPolie!W65*T$191+SPgas!W65*T$192+GeoEL!W64*T$193+GeoVa!W64*T$194+VP!W71*T$195+Sol!W63*T$196) -> 5.61642852 | U43: =IF(Sammenligning!$G$9="GJ",1,(1*3.6))*(AMV1træ!X68*U$179+AMV1træBP!X67*U$180+AMV3kul!X66*U$181+AMV4træ!X66*U$182+AMV4træBP!X65*U$183+AVV1træ!X66*U$184+AVV1kul!X65*U$185+AVV2træ!X66*U$186+AVV2halm!X66*U$187+AVV2gasGT!X66*U$188+KKV!X66*U$189+HCVgas!X66*U$190+SPolie!X65*U$191+SPgas!X65*U$192+GeoEL!X64*U$193+GeoVa!X64*U$194+VP!X71*U$195+Sol!X63*U$196) -> 4.689868537 | V43: =IF(Sammenligning!$G$9="GJ",1,(1*3.6))*(AMV1træ!Y68*V$179+AMV1træBP!Y67*V$180+AMV3kul!Y66*V$181+AMV4træ!Y66*V$182+AMV4træBP!Y65*V$183+AVV1træ!Y66*V$184+AVV1kul!Y65*V$185+AVV2træ!Y66*V$186+AVV2halm!Y66*V$187+AVV2gasGT!Y66*V$188+KKV!Y66*V$189+HCVgas!Y66*V$190+SPolie!Y65*V$191+SPgas!Y65*V$192+GeoEL!Y64*V$193+GeoVa!Y64*V$194+VP!Y71*V$195+Sol!Y63*V$196) -> 4.005014232 | W43: =IF(Sammenligning!$G$9="GJ",1,(1*3.6))*(AMV1træ!Z68*W$179+AMV1træBP!Z67*W$180+AMV3kul!Z66*W$181+AMV4træ!Z66*W$182+AMV4træBP!Z65*W$183+AVV1træ!Z66*W$184+AVV1kul!Z65*W$185+AVV2træ!Z66*W$186+AVV2halm!Z66*W$187+AVV2gasGT!Z66*W$188+KKV!Z66*W$189+HCVgas!Z66*W$190+SPolie!Z65*W$191+SPgas!Z65*W$192+GeoEL!Z64*W$193+GeoVa!Z64*W$194+VP!Z71*W$195+Sol!Z63*W$196) -> 4.965339487 | X43: =IF(Sammenligning!$G$9="GJ",1,(1*3.6))*(AMV1træ!AA68*X$179+AMV1træBP!AA67*X$180+AMV3kul!AA66*X$181+AMV4træ!AA66*X$182+AMV4træBP!AA65*X$183+AVV1træ!AA66*X$184+AVV1kul!AA65*X$185+AVV2træ!AA66*X$186+AVV2halm!AA66*X$187+AVV2gasGT!AA66*X$188+KKV!AA66*X$189+HCVgas!AA66*X$190+SPolie!AA65*X$191+SPgas!AA65*X$192+GeoEL!AA64*X$193+GeoVa!AA64*X$194+VP!AA71*X$195+Sol!AA63*X$196) -> 4.695178292 | Y43: =IF(Sammenligning!$G$9="GJ",1,(1*3.6))*(AMV1træ!AB68*Y$179+AMV1træBP!AB67*Y$180+AMV3kul!AB66*Y$181+AMV4træ!AB66*Y$182+AMV4træBP!AB65*Y$183+AVV1træ!AB66*Y$184+AVV1kul!AB65*Y$185+AVV2træ!AB66*Y$186+AVV2halm!AB66*Y$187+AVV2gasGT!AB66*Y$188+KKV!AB66*Y$189+HCVgas!AB66*Y$190+SPolie!AB65*Y$191+SPgas!AB65*Y$192+GeoEL!AB64*Y$193+GeoVa!AB64*Y$194+VP!AB71*Y$195+Sol!AB63*Y$196) -> 4.349185098 | Z43: =IF(Sammenligning!$G$9="GJ",1,(1*3.6))*(AMV1træ!AC68*Z$179+AMV1træBP!AC67*Z$180+AMV3kul!AC66*Z$181+AMV4træ!AC66*Z$182+AMV4træBP!AC65*Z$183+AVV1træ!AC66*Z$184+AVV1kul!AC65*Z$185+AVV2træ!AC66*Z$186+AVV2halm!AC66*Z$187+AVV2gasGT!AC66*Z$188+KKV!AC66*Z$189+HCVgas!AC66*Z$190+SPolie!AC65*Z$191+SPgas!AC65*Z$192+GeoEL!AC64*Z$193+GeoVa!AC64*Z$194+VP!AC71*Z$195+Sol!AC63*Z$196) -> 4.005174947 | AA43: =IF(Sammenligning!$G$9="GJ",1,(1*3.6))*(AMV1træ!AD68*AA$179+AMV1træBP!AD67*AA$180+AMV3kul!AD66*AA$181+AMV4træ!AD66*AA$182+AMV4træBP!AD65*AA$183+AVV1træ!AD66*AA$184+AVV1kul!AD65*AA$185+AVV2træ!AD66*AA$186+AVV2halm!AD66*AA$187+AVV2gasGT!AD66*AA$188+KKV!AD66*AA$189+HCVgas!AD66*AA$190+SPolie!AD65*AA$191+SPgas!AD65*AA$192+GeoEL!AD64*AA$193+GeoVa!AD64*AA$194+VP!AD71*AA$195+Sol!AD63*AA$196) -> 3.663130839 | AB43: =IF(Sammenligning!$G$9="GJ",1,(1*3.6))*(AMV1træ!AE68*AB$179+AMV1træBP!AE67*AB$180+AMV3kul!AE66*AB$181+AMV4træ!AE66*AB$182+AMV4træBP!AE65*AB$183+AVV1træ!AE66*AB$184+AVV1kul!AE65*AB$185+AVV2træ!AE66*AB$186+AVV2halm!AE66*AB$187+AVV2gasGT!AE66*AB$188+KKV!AE66*AB$189+HCVgas!AE66*AB$190+SPolie!AE65*AB$191+SPgas!AE65*AB$192+GeoEL!AE64*AB$193+GeoVa!AE64*AB$194+VP!AE71*AB$195+Sol!AE63*AB$196) -> 3.323035967 | AC43: =IF(Sammenligning!$G$9="GJ",1,(1*3.6))*(AMV1træ!AF68*AC$179+AMV1træBP!AF67*AC$180+AMV3kul!AF66*AC$181+AMV4træ!AF66*AC$182+AMV4træBP!AF65*AC$183+AVV1træ!AF66*AC$184+AVV1kul!AF65*AC$185+AVV2træ!AF66*AC$186+AVV2halm!AF66*AC$187+AVV2gasGT!AF66*AC$188+KKV!AF66*AC$189+HCVgas!AF66*AC$190+SPolie!AF65*AC$191+SPgas!AF65*AC$192+GeoEL!AF64*AC$193+GeoVa!AF64*AC$194+VP!AF71*AC$195+Sol!AF63*AC$196) -> 2.984873717 | AD43: =IF(Sammenligning!$G$9="GJ",1,(1*3.6))*(AMV1træ!AG68*AD$179+AMV1træBP!AG67*AD$180+AMV3kul!AG66*AD$181+AMV4træ!AG66*AD$182+AMV4træBP!AG65*AD$183+AVV1træ!AG66*AD$184+AVV1kul!AG65*AD$185+AVV2træ!AG66*AD$186+AVV2halm!AG66*AD$187+AVV2gasGT!AG66*AD$188+KKV!AG66*AD$189+HCVgas!AG66*AD$190+SPolie!AG65*AD$191+SPgas!AG65*AD$192+GeoEL!AG64*AD$193+GeoVa!AG64*AD$194+VP!AG71*AD$195+Sol!AG63*AD$196) -> 2.984873717 | AE43: =IF(Sammenligning!$G$9="GJ",1,(1*3.6))*(AMV1træ!AH68*AE$179+AMV1træBP!AH67*AE$180+AMV3kul!AH66*AE$181+AMV4træ!AH66*AE$182+AMV4træBP!AH65*AE$183+AVV1træ!AH66*AE$184+AVV1kul!AH65*AE$185+AVV2træ!AH66*AE$186+AVV2halm!AH66*AE$187+AVV2gasGT!AH66*AE$188+KKV!AH66*AE$189+HCVgas!AH66*AE$190+SPolie!AH65*AE$191+SPgas!AH65*AE$192+GeoEL!AH64*AE$193+GeoVa!AH64*AE$194+VP!AH71*AE$195+Sol!AH63*AE$196) -> 2.984873717 | AF43: =IF(Sammenligning!$G$9="GJ",1,(1*3.6))*(AMV1træ!AI68*AF$179+AMV1træBP!AI67*AF$180+AMV3kul!AI66*AF$181+AMV4træ!AI66*AF$182+AMV4træBP!AI65*AF$183+AVV1træ!AI66*AF$184+AVV1kul!AI65*AF$185+AVV2træ!AI66*AF$186+AVV2halm!AI66*AF$187+AVV2gasGT!AI66*AF$188+KKV!AI66*AF$189+HCVgas!AI66*AF$190+SPolie!AI65*AF$191+SPgas!AI65*AF$192+GeoEL!AI64*AF$193+GeoVa!AI64*AF$194+VP!AI71*AF$195+Sol!AI63*AF$196) -> 2.984873717 | AG43: =IF(Sammenligning!$G$9="GJ",1,(1*3.6))*(AMV1træ!AJ68*AG$179+AMV1træBP!AJ67*AG$180+AMV3kul!AJ66*AG$181+AMV4træ!AJ66*AG$182+AMV4træBP!AJ65*AG$183+AVV1træ!AJ66*AG$184+AVV1kul!AJ65*AG$185+AVV2træ!AJ66*AG$186+AVV2halm!AJ66*AG$187+AVV2gasGT!AJ66*AG$188+KKV!AJ66*AG$189+HCVgas!AJ66*AG$190+SPolie!AJ65*AG$191+SPgas!AJ65*AG$192+GeoEL!AJ64*AG$193+GeoVa!AJ64*AG$194+VP!AJ71*AG$195+Sol!AJ63*AG$196) -> 2.984873717 | AH43: =IF(Sammenligning!$G$9="GJ",1,(1*3.6))*(AMV1træ!AK68*AH$179+AMV1træBP!AK67*AH$180+AMV3kul!AK66*AH$181+AMV4træ!AK66*AH$182+AMV4træBP!AK65*AH$183+AVV1træ!AK66*AH$184+AVV1kul!AK65*AH$185+AVV2træ!AK66*AH$186+AVV2halm!AK66*AH$187+AVV2gasGT!AK66*AH$188+KKV!AK66*AH$189+HCVgas!AK66*AH$190+SPolie!AK65*AH$191+SPgas!AK65*AH$192+GeoEL!AK64*AH$193+GeoVa!AK64*AH$194+VP!AK71*AH$195+Sol!AK63*AH$196) -> 2.984873717 | AI43: =IF(Sammenligning!$G$9="GJ",1,(1*3.6))*(AMV1træ!AL68*AI$179+AMV1træBP!AL67*AI$180+AMV3kul!AL66*AI$181+AMV4træ!AL66*AI$182+AMV4træBP!AL65*AI$183+AVV1træ!AL66*AI$184+AVV1kul!AL65*AI$185+AVV2træ!AL66*AI$186+AVV2halm!AL66*AI$187+AVV2gasGT!AL66*AI$188+KKV!AL66*AI$189+HCVgas!AL66*AI$190+SPolie!AL65*AI$191+SPgas!AL65*AI$192+GeoEL!AL64*AI$193+GeoVa!AL64*AI$194+VP!AL71*AI$195+Sol!AL63*AI$196) -> 2.984873717 | AJ43: =IF(Sammenligning!$G$9="GJ",1,(1*3.6))*(AMV1træ!AM68*AJ$179+AMV1træBP!AM67*AJ$180+AMV3kul!AM66*AJ$181+AMV4træ!AM66*AJ$182+AMV4træBP!AM65*AJ$183+AVV1træ!AM66*AJ$184+AVV1kul!AM65*AJ$185+AVV2træ!AM66*AJ$186+AVV2halm!AM66*AJ$187+AVV2gasGT!AM66*AJ$188+KKV!AM66*AJ$189+HCVgas!AM66*AJ$190+SPolie!AM65*AJ$191+SPgas!AM65*AJ$192+GeoEL!AM64*AJ$193+GeoVa!AM64*AJ$194+VP!AM71*AJ$195+Sol!AM63*AJ$196) -> 2.984873717 | AK43: =IF(Sammenligning!$G$9="GJ",1,(1*3.6))*(AMV1træ!AN68*AK$179+AMV1træBP!AN67*AK$180+AMV3kul!AN66*AK$181+AMV4træ!AN66*AK$182+AMV4træBP!AN65*AK$183+AVV1træ!AN66*AK$184+AVV1kul!AN65*AK$185+AVV2træ!AN66*AK$186+AVV2halm!AN66*AK$187+AVV2gasGT!AN66*AK$188+KKV!AN66*AK$189+HCVgas!AN66*AK$190+SPolie!AN65*AK$191+SPgas!AN65*AK$192+GeoEL!AN64*AK$193+GeoVa!AN64*AK$194+VP!AN71*AK$195+Sol!AN63*AK$196) -> 2.984873717 | AL43: =IF(Sammenligning!$G$9="GJ",1,(1*3.6))*(AMV1træ!AO68*AL$179+AMV1træBP!AO67*AL$180+AMV3kul!AO66*AL$181+AMV4træ!AO66*AL$182+AMV4træBP!AO65*AL$183+AVV1træ!AO66*AL$184+AVV1kul!AO65*AL$185+AVV2træ!AO66*AL$186+AVV2halm!AO66*AL$187+AVV2gasGT!AO66*AL$188+KKV!AO66*AL$189+HCVgas!AO66*AL$190+SPolie!AO65*AL$191+SPgas!AO65*AL$192+GeoEL!AO64*AL$193+GeoVa!AO64*AL$194+VP!AO71*AL$195+Sol!AO63*AL$196) -> 2.984873717 | AM43: =IF(Sammenligning!$G$9="GJ",1,(1*3.6))*(AMV1træ!AP68*AM$179+AMV1træBP!AP67*AM$180+AMV3kul!AP66*AM$181+AMV4træ!AP66*AM$182+AMV4træBP!AP65*AM$183+AVV1træ!AP66*AM$184+AVV1kul!AP65*AM$185+AVV2træ!AP66*AM$186+AVV2halm!AP66*AM$187+AVV2gasGT!AP66*AM$188+KKV!AP66*AM$189+HCVgas!AP66*AM$190+SPolie!AP65*AM$191+SPgas!AP65*AM$192+GeoEL!AP64*AM$193+GeoVa!AP64*AM$194+VP!AP71*AM$195+Sol!AP63*AM$196) -> 2.984873717
C44: Total, langsigtede | D44: ="Kr/"&Sammenligning!$G$9 -> Kr/GJ | E44: =SUM(E30:E41) -> 75.43772081 | F44: =SUM(F30:F41) -> 64.17074635 | G44: 77.32883837 | H44: 73.03624736 | I44: 69.64858933 | J44: 68.21062794 | K44: 41.75312875 | L44: 73.76553641 | M44: 67.19306594 | N44: 67.3305944 | O44: 67.95149053 | P44: 69.36682974 | Q44: 70.91124403 | R44: 73.80665036 | S44: 81.31057986 | T44: 81.21006306 | U44: 80.79625808 | V44: 78.25953127 | W44: 84.07501874 | X44: 81.43155966 | Y44: 80.53747731 | Z44: 79.61628426 | AA44: 78.73897302 | AB44: 77.87039908 | AC44: 77.01858383 | AD44: =SUM(AD30:AD41) -> 77.01858383 | AE44: 77.01858383 | AF44: 77.01858383 | AG44: 77.01858383 | AH44: 77.01858383 | AI44: 77.01858383 | AJ44: 77.01858383 | AK44: 77.01858383 | AL44: 77.01858383 | AM44: 77.01858383
C45: Total, kortsigtede | D45: ="Kr/"&Sammenligning!$G$9 -> Kr/GJ | E45: =SUM(E32:E41) -> 75.43772081 | F45: 64.17074635 | G45: 77.32883837 | H45: 73.03624736 | I45: 69.64858933 | J45: 68.21062794 | K45: 41.75312875 | L45: 73.76553641 | M45: 67.19306594 | N45: 67.3305944 | O45: 67.95149053 | P45: 69.36682974 | Q45: 70.91124403 | R45: 73.80665036 | S45: 78.0550455 | T45: 74.71238525 | U45: 70.97308742 | V45: 65.40094623 | W45: 58.34589734 | X45: 55.5818424 | Y45: 54.76205113 | Z45: 53.91472336 | AA45: 53.11085525 | AB45: 52.31530592 | AC45: 51.53610029 | AD45: =SUM(AD32:AD41) -> 51.53610029 | AE45: 51.53610029 | AF45: 51.53610029 | AG45: 51.53610029 | AH45: 51.53610029 | AI45: 51.53610029 | AJ45: 51.53610029 | AK45: 51.53610029 | AL45: 51.53610029 | AM45: 51.53610029
H46: =SUM(H36:H41) -> -28.10751343 | I46: =SUM(I36:I40) -> 0.9859777499 | J46: 0.9918458794 | K46: 0.9957837319 | L46: 0.9986092109 | M46: 1.000735322 | N46: 0.9966059681 | O46: 0.9934127927 | P46: 0.9902092265 | Q46: 0.9869952186 | R46: 0.9837707177 | S46: 0.9805356726 | T46: 0.931506597 | U46: 0.8632734209
C47: Summary, samlede pris, langsigtede (i grundscenarie -uden konverteringer)
C48: ="Enhed: Kr/"&Sammenligning!$G$9 -> Enhed: Kr/GJ | E48: 2016 | F48: 2017 | G48: 2018 | H48: 2019 | I48: 2020 | J48: 2021 | K48: 2022 | L48: 2023 | M48: 2024 | N48: 2025 | O48: 2026 | P48: 2027 | Q48: 2028 | R48: 2029 | S48: 2030 | T48: 2031 | U48: 2032 | V48: 2033 | W48: 2034 | X48: 2035 | Y48: 2036 | Z48: 2037 | AA48: 2038 | AB48: 2039 | AC48: 2040 | AD48: 2041 | AE48: 2042 | AF48: 2043 | AG48: 2044 | AH48: 2045 | AI48: 2046 | AJ48: 2047 | AK48: 2048 | AL48: 2049 | AM48: 2050
C49: =C71 -> AMV1træ | E49: =E222*E120 -> 100.6174901 | F49: 97.21773149 | G49: 98.81227094 | H49: 98.22900249 | I49: 97.85213864 | J49: 60.03069929 | K49: 38.72558926 | L49: 31.98191862 | M49: 25.06497288 | N49: 20.04118783 | O49: 18.19391743 | P49: 16.4663868 | Q49: 14.81840835 | R49: 13.33931953 | S49: 12.02895006 | T49: 12.16318302 | U49: 11.71035004 | V49: 10.31481647 | W49: 12.93452083 | X49: 13.02190523 | Y49: 12.90384635 | Z49: 12.78298234 | AA49: 12.67428068 | AB49: 12.56992025 | AC49: 12.46969506 | AD49: =AD222*AD120 -> 12.46969506 | AE49: 12.46969506 | AF49: 12.46969506 | AG49: 12.46969506 | AH49: 12.46969506 | AI49: 12.46969506 | AJ49: 12.46969506 | AK49: 12.46969506 | AL49: 12.46969506 | AM49: 12.46969506
C50: =C72 -> AMV1træBP | E50: =E223*E121 -> 1.567420855 | F50: 1.262136822 | G50: 1.631802331 | H50: 1.622150111 | I50: 1.602925345 | J50: 1.806704178 | K50: 2.540116778 | L50: 2.687492221 | M50: 2.715529568 | N50: 2.91320953 | O50: 3.247760223 | P50: 3.581509849 | Q50: 3.923084732 | R50: 4.263075952 | S50: 4.611755609 | T50: 4.530365348 | U50: 4.657218106 | V50: 5.233133148 | W50: 6.45490486 | X50: 6.417267519 | Y50: 6.348748954 | Z50: 6.270028299 | AA50: 6.196408187 | AB50: 6.120058125 | AC50: 6.040891497 | AD50: =AD223*AD121 -> 6.107779496 | AE50: 6.174667496 | AF50: 6.241555495 | AG50: 6.308443494 | AH50: 6.375331493 | AI50: 6.442219492 | AJ50: 6.509107491 | AK50: 6.575995491 | AL50: 6.64288349 | AM50: 6.709771489
C51: AMV3kul | E51: =E224*E122 -> 0 | F51: 0 | G51: 0 | H51: 0 | I51: 0 | J51: 0 | K51: 0 | L51: 0 | M51: 0 | N51: 0 | O51: 0 | P51: 0 | Q51: 0 | R51: 0 | S51: 0 | T51: 0 | U51: 0 | V51: 0 | W51: 0 | X51: 0 | Y51: 0 | Z51: 0 | AA51: 0 | AB51: 0 | AC51: 0 | AD51: =AD224*AD122 -> 0 | AE51: 0 | AF51: 0 | AG51: 0 | AH51: 0 | AI51: 0 | AJ51: 0 | AK51: 0 | AL51: 0 | AM51: 0
C52: AMV4træ | E52: =E225*E123 -> 29.84401112 | F52: 30.42854688 | G52: 27.10017209 | H52: 23.35993013 | I52: 22.59901869 | J52: 22.33885046 | K52: -23.82824849 | L52: 5.203904261 | M52: 9.155295765 | N52: 8.781552165 | O52: 10.84972734 | P52: 13.36604135 | Q52: 15.72958093 | R52: 18.91320545 | S52: 22.74979664 | T52: 24.57861051 | U52: 24.06887095 | V52: 23.59502538 | W52: 24.45442285 | X52: 23.79071621 | Y52: 23.75905799 | Z52: 23.71349387 | AA52: 23.65359179 | AB52: 23.57890159 | AC52: 23.51708317 | AD52: =AD225*AD123 -> 23.51708317 | AE52: 23.51708317 | AF52: 23.51708317 | AG52: 23.51708317 | AH52: 23.51708317 | AI52: 23.51708317 | AJ52: 23.51708317 | AK52: 23.51708317 | AL52: 23.51708317 | AM52: 23.51708317
C53: AMV4træBP | E53: =E226*E124 -> 3.193997374 | F53: 3.251991312 | G53: 3.290970683 | H53: 3.295779577 | I53: 3.315432109 | J53: 3.459866217 | K53: 3.717982506 | L53: 3.859664484 | M53: 3.997338238 | N53: 4.099943695 | O53: 4.320586791 | P53: 4.544027939 | Q53: 4.770283427 | R53: 4.999369674 | S53: 5.231303222 | T53: 5.438327874 | U53: 5.719211252 | V53: 6.924164733 | W53: 7.778511869 | X53: 7.873597407 | Y53: 8.692152468 | Z53: 9.534286497 | AA53: 10.40073211 | AB53: 11.29225261 | AC53: 12.22882696 | AD53: =AD226*AD124 -> 12.22882696 | AE53: 12.22882696 | AF53: 12.22882696 | AG53: 12.22882696 | AH53: 12.22882696 | AI53: 12.22882696 | AJ53: 12.22882696 | AK53: 12.22882696 | AL53: 12.22882696 | AM53: 12.22882696
C54: AVV1træ | E54: =E227*E125 -> 11.25747558 | F54: 8.748207905 | G54: 11.11930158 | H54: 10.29350859 | I54: 9.960432818 | J54: 11.37669306 | K54: 5.252648025 | L54: 13.23758479 | M54: 13.83587308 | N54: 14.76056867 | O54: 15.16716899 | P54: 15.76514686 | Q54: 16.40719803 | R54: 17.47279467 | S54: 19.04414242 | T54: 19.06956219 | U54: 11.23275616 | V54: 11.27107915 | W54: 0 | X54: 0 | Y54: 0 | Z54: 0 | AA54: 0 | AB54: 0 | AC54: =AC227*AC125 -> 0 | AD54: =AD227*AD125 -> 0 | AE54: 0 | AF54: 0 | AG54: 0 | AH54: =AH227*AH125 -> 0 | AI54: =AI227*AI125 -> 0 | AJ54: 0 | AK54: 0 | AL54: 0 | AM54: =AM227*AM125 -> 0
C55: AVV1kul | E55: =E228*E126 -> 0 | F55: 0 | G55: 0 | H55: 0 | I55: 0 | J55: 0 | K55: 0 | L55: 0 | M55: 0 | N55: 0 | O55: 0 | P55: 0 | Q55: 0 | R55: 0 | S55: 0 | T55: 0 | U55: 0 | V55: 0 | W55: 0 | X55: 0 | Y55: 0 | Z55: 0 | AA55: 0 | AB55: 0 | AC55: 0 | AD55: =AD228*AD126 -> 0 | AE55: 0 | AF55: 0 | AG55: 0 | AH55: 0 | AI55: 0 | AJ55: 0 | AK55: 0 | AL55: 0 | AM55: 0
C56: AVV2træ | E56: =E229*E127 -> 45.06081836 | F56: 39.43611613 | G56: 43.56210142 | H56: 40.40948466 | I56: 39.32259886 | J56: 38.62039517 | K56: 17.82051155 | L56: 33.42488292 | M56: 33.08793046 | N56: 32.2579662 | O56: 32.91053397 | P56: 33.7288531 | Q56: 34.5629384 | R56: 35.73327993 | S56: 37.26869609 | T56: 37.21398169 | U56: 42.17613927 | V56: 42.16997465 | W56: 44.85763452 | X56: 44.39964061 | Y56: 44.40519324 | Z56: 44.37541401 | AA56: 44.39068659 | AB56: 44.41108441 | AC56: 44.43677008 | AD56: =AD229*AD127 -> 44.43677008 | AE56: 44.43677008 | AF56: 44.43677008 | AG56: 44.43677008 | AH56: 44.43677008 | AI56: 44.43677008 | AJ56: 44.43677008 | AK56: 44.43677008 | AL56: 44.43677008 | AM56: 44.43677008
C57: AVV2halm | E57: =E230*E128 -> 4.682382849 | F57: 4.76100973 | G57: 4.337969518 | H57: 3.860790329 | I57: 3.763980347 | J57: 3.876724951 | K57: -0.3259768024 | L57: 2.715641603 | M57: 3.244038589 | N57: 3.361303262 | O57: 3.519612003 | P57: 3.71549994 | Q57: 3.903272351 | R57: 4.1516859 | S57: 4.445819414 | T57: 4.339816011 | U57: 4.810433536 | V57: 4.664660143 | W57: 3.794804853 | X57: 4.015172007 | Y57: 4.064824827 | Z57: 4.108619268 | AA57: 4.160083125 | AB57: 4.212517113 | AC57: 4.259047081 | AD57: =AD230*AD128 -> 4.259047081 | AE57: 4.259047081 | AF57: 4.259047081 | AG57: 4.259047081 | AH57: 4.259047081 | AI57: 4.259047081 | AJ57: 4.259047081 | AK57: 4.259047081 | AL57: 4.259047081 | AM57: 4.259047081
C58: AVV2gasGT | E58: =E231*E129 -> 5.669757879 | F58: 5.672523215 | G58: 5.690194881 | H58: 5.660253198 | I58: 5.598959313 | J58: 5.609643706 | K58: 5.411803147 | L58: 5.791625379 | M58: 5.711665533 | N58: 5.713526324 | O58: 5.70915251 | P58: 5.720286153 | Q58: 5.734850392 | R58: 5.764946832 | S58: 5.800901489 | T58: 5.863317639 | U58: 5.959094028 | V58: 5.937996577 | W58: 8.450909038 | X58: 7.871537591 | Y58: 7.734276042 | Z58: 7.600058529 | AA58: 7.468979635 | AB58: 7.341137898 | AC58: 7.216636029 | AD58: =AD231*AD129 -> 7.216636029 | AE58: 7.216636029 | AF58: 7.216636029 | AG58: 7.216636029 | AH58: 7.216636029 | AI58: 7.216636029 | AJ58: 7.216636029 | AK58: 7.216636029 | AL58: 7.216636029 | AM58: 7.216636029
C59: KKV | E59: =E232*E130 -> 4.720124882 | F59: 4.795945884 | G59: 4.511354564 | H59: 4.176950822 | I59: 4.115225774 | J59: 4.282588747 | K59: 1.458952323 | L59: 3.697844138 | M59: 4.16575647 | N59: 4.331822485 | O59: 4.201742534 | P59: 4.108369525 | Q59: 4.026989483 | R59: 4.020415669 | S59: 4.097853262 | T59: 3.85673769 | U59: 4.261746171 | V59: 3.71611716 | W59: 4.91852667 | X59: 4.713631116 | Y59: 4.568434068 | Z59: 4.420082647 | AA59: 4.268478843 | AB59: 4.113520545 | AC59: 3.961490818 | AD59: =AD232*AD130 -> 3.961490818 | AE59: 3.961490818 | AF59: 3.961490818 | AG59: 3.961490818 | AH59: 3.961490818 | AI59: 3.961490818 | AJ59: 3.961490818 | AK59: 3.961490818 | AL59: 3.961490818 | AM59: 3.961490818
C60: HCVgas | E60: =E233*E131 -> 1.953181788 | F60: 1.95867812 | G60: 2.346176223 | H60: 2.386000358 | I60: 2.090144737 | J60: 1.646039185 | K60: 2.114055295 | L60: 1.850067962 | M60: 1.144344876 | N60: 0 | O60: 0 | P60: 0 | Q60: 0 | R60: 0 | S60: 0 | T60: 0 | U60: 0 | V60: 0 | W60: 0 | X60: 0 | Y60: 0 | Z60: 0 | AA60: 0 | AB60: 0 | AC60: 0 | AD60: =AD233*AD131 -> 0 | AE60: 0 | AF60: 0 | AG60: 0 | AH60: 0 | AI60: 0 | AJ60: 0 | AK60: 0 | AL60: 0 | AM60: 0
C61: SPolie | E61: =E234*E132 -> 0.4811518826 | F61: 0.4906480939 | G61: 0.5634746014 | H61: 0.6275760164 | I61: 0.6459879425 | J61: 0.6678046741 | K61: 0.8930701656 | L61: 0.89597543 | M61: 0.8940175539 | N61: 0.8850729904 | O61: 0.7399923847 | P61: 0.5943109035 | Q61: 0.4461482386 | R61: 0.2942211492 | S61: 0.138382793 | T61: 0.1419320522 | U61: 0.1461843591 | V61: 0.1501002315 | W61: 0.155055508 | X61: 0.1597979155 | Y61: 0.1638737167 | Z61: 0.1679992012 | AA61: 0.172415377 | AB61: 0.17713029 | AC61: 0.1819814602 | AD61: =AD234*AD132 -> 0.1819814602 | AE61: 0.1819814602 | AF61: 0.1819814602 | AG61: 0.1819814602 | AH61: 0.1819814602 | AI61: 0.1819814602 | AJ61: 0.1819814602 | AK61: 0.1819814602 | AL61: 0.1819814602 | AM61: 0.1819814602
C62: SPgas | E62: =E235*E133 -> 1.95871417 | F62: 1.947623393 | G62: 2.699011677 | H62: 3.108893242 | I62: 2.890628598 | J62: 2.745815382 | K62: 9.013862598 | L62: 6.792181665 | M62: 5.133793872 | N62: 5.192940419 | O62: 5.259184363 | P62: 5.327511308 | Q62: 5.394333883 | R62: 5.457047265 | S62: 5.523518401 | T62: 5.583005791 | U62: 5.818429934 | V62: 5.921285242 | W62: 12.11408704 | X62: 11.76420483 | Y62: 11.53432439 | Z62: 11.29973103 | AA62: 11.06027831 | AB62: 10.81581368 | AC62: 10.56617811 | AD62: =AD235*AD133 -> 10.56617811 | AE62: 10.56617811 | AF62: 10.56617811 | AG62: 10.56617811 | AH62: 10.56617811 | AI62: 10.56617811 | AJ62: 10.56617811 | AK62: 10.56617811 | AL62: 10.56617811 | AM62: 10.56617811
C63: GeoEl | E63: =E236*E134 -> 0 | F63: 0 | G63: 0 | H63: 0 | I63: 0 | J63: 0 | K63: 0 | L63: 0 | M63: 0 | N63: 3.906930918 | O63: 1.17794054 | P63: 1.837290705 | Q63: 2.499885153 | R63: 3.151622593 | S63: 3.792817422 | T63: 4.518846879 | U63: 4.60584294 | V63: 4.595706925 | W63: 4.743708131 | X63: 4.78044414 | Y63: 4.850054017 | Z63: 4.921541105 | AA63: 4.994963732 | AB63: 5.070382664 | AC63: 5.147861242 | AD63: =AD236*AD134 -> 5.147861242 | AE63: 5.147861242 | AF63: 5.147861242 | AG63: 5.147861242 | AH63: 5.147861242 | AI63: 5.147861242 | AJ63: 5.147861242 | AK63: 5.147861242 | AL63: 5.147861242 | AM63: 5.147861242
C64: GeoVa | E64: =E237*E135 -> 0.8900560397 | F64: 0.8743325545 | G64: 0.8847150815 | H64: 0.8920016024 | I64: 0.8944878964 | J64: 0.8752928317 | K64: 0.9565068652 | L64: 0.8621347966 | M64: 0.8293370472 | N64: 0 | O64: 0 | P64: 0 | Q64: 0 | R64: 0 | S64: 0 | T64: 0 | U64: 0 | V64: 0 | W64: 0 | X64: 0 | Y64: 0 | Z64: 0 | AA64: 0 | AB64: 0 | AC64: 0 | AD64: =AD237*AD135 -> 0 | AE64: 0 | AF64: 0 | AG64: 0 | AH64: 0 | AI64: 0 | AJ64: 0 | AK64: 0 | AL64: 0 | AM64: 0
C65: VP | E65: =E238*E136 -> 0.6741907729 | F65: 0.8599976912 | G65: 1.186241178 | H65: 1.494889365 | I65: 0.7324828948 | J65: 1.279725798 | K65: 3.829805727 | L65: 3.232700657 | M65: 3.624916239 | N65: 4.177260026 | O65: 3.988720397 | P65: 3.77111867 | Q65: 3.56088597 | R65: 3.297084329 | S65: 3.103234194 | T65: 3.025269852 | U65: 3.1038039 | V65: 2.994213496 | W65: 3.608147336 | X65: 3.447176169 | Y65: 3.51239542 | Z65: 3.578669336 | AA65: 3.646034234 | AB65: 3.714527732 | AC65: 3.78418883 | AD65: =AD238*AD136 -> 3.78418883 | AE65: 3.78418883 | AF65: 3.78418883 | AG65: 3.78418883 | AH65: 3.78418883 | AI65: 3.78418883 | AJ65: 3.78418883 | AK65: 3.78418883 | AL65: 3.78418883 | AM65: 3.78418883
C66: =C88 -> Sol | E66: =E239*E137 -> 0.002301763119 | F66: 0.01101778268 | G66: 0.01973380223 | H66: 0 | I66: 0.03716584135 | J66: 0.04823821501 | K66: 0.07584510779 | L66: 0.1037928882 | M66: 0.1320879092 | N66: 0.1592807358 | O66: 0.1899570125 | P66: 0.2456799841 | Q66: 0.3016192319 | R66: 0.3577760175 | S66: 0.4141516123 | T66: 0.5007003423 | U66: 0.9337757535 | V66: 0.9421356154 | W66: 0.9545492748 | X66: 0.9772033044 | Y66: 0.9871187828 | Z66: 0.9972375445 | AA66: 1.007565906 | AB66: 1.018110447 | AC66: 1.028878027 | AD66: =AD239*AD137 -> 1.028878027 | AE66: 1.028878027 | AF66: 1.028878027 | AG66: 1.028878027 | AH66: 1.028878027 | AI66: 1.028878027 | AJ66: 1.028878027 | AK66: 1.028878027 | AL66: 1.028878027 | AM66: 1.028878027
C67: Total | E67: =SUM(E49:E66) -> 212.5730754 | F67: 201.716507 | G67: 207.7554906 | H67: 199.4172105 | I67: 195.4216098 | J67: 158.6650819 | K67: 67.65652406 | L67: 116.3374118 | M67: 112.7368981 | N67: 110.5825653 | O67: 109.4759965 | P67: 112.7720331 | Q67: 116.0794786 | R67: 121.215845 | S67: 128.2513226 | T67: 130.8236569 | U67: 129.2038564 | V67: 128.4304089 | W67: 135.2197828 | X67: 133.2322941 | Y67: 133.5243003 | Z67: 133.7701437 | AA67: 134.0944985 | AB67: 134.4353574 | AC67: 134.8395284 | AD67: =SUM(AD49:AD66) -> 134.9064164 | AE67: 134.9733044 | AF67: 135.0401924 | AG67: 135.1070804 | AH67: 135.1739684 | AI67: 135.2408564 | AJ67: 135.3077444 | AK67: 135.3746324 | AL67: 135.4415204 | AM67: 135.5084084
C69: Summary, samlede pris, kortsigtede (i grundscenarie -uden konverteringer)
C70: ="Enhed: Kr/"&Sammenligning!$G$9 -> Enhed: Kr/GJ | E70: 2016 | F70: 2017 | G70: 2018 | H70: 2019 | I70: 2020 | J70: 2021 | K70: 2022 | L70: 2023 | M70: 2024 | N70: 2025 | O70: 2026 | P70: 2027 | Q70: 2028 | R70: 2029 | S70: 2030 | T70: 2031 | U70: 2032 | V70: 2033 | W70: 2034 | X70: 2035 | Y70: 2036 | Z70: 2037 | AA70: 2038 | AB70: 2039 | AC70: 2040 | AD70: 2041 | AE70: 2042 | AF70: 2043 | AG70: 2044 | AH70: 2045 | AI70: 2046 | AJ70: 2047 | AK70: 2048 | AL70: 2049 | AM70: 2050
C71: =C94 -> AMV1træ | E71: =E222*E94 -> 7.830828133 | F71: 6.041025258 | G71: 7.635564706 | H71: 6.938421522 | I71: 6.675432404 | J71: 6.3307838 | K71: 2.181471015 | L71: 5.291482902 | M71: 4.781323552 | N71: 4.408015771 | O71: 3.822584042 | P71: 3.336503485 | Q71: 2.910202355 | R71: 2.633610573 | S71: 2.507128045 | T71: 2.796082881 | U71: 2.848103785 | V71: 2.713878513 | W71: 4.217877317 | X71: 4.251033695 | Y71: 4.280049855 | Z71: 4.301449799 | AA71: 4.330435099 | AB71: 4.35940382 | AC71: 4.388355434 | AD71: =AD222*AD94 -> 4.388355434 | AE71: 4.388355434 | AF71: 4.388355434 | AG71: 4.388355434 | AH71: 4.388355434 | AI71: 4.388355434 | AJ71: 4.388355434 | AK71: 4.388355434 | AL71: 4.388355434 | AM71: 4.388355434
C72: =C95 -> AMV1træBP | E72: =E223*E95 -> 1.567420855 | F72: 1.262136822 | G72: 1.631802331 | H72: 1.622150111 | I72: 1.602925345 | J72: 1.806704178 | K72: 2.540116778 | L72: 2.687492221 | M72: 2.715529568 | N72: 2.91320953 | O72: 3.247760223 | P72: 3.581509849 | Q72: 3.923084732 | R72: 4.263075952 | S72: 4.611755609 | T72: 4.530365348 | U72: 4.657218106 | V72: 5.233133148 | W72: 6.45490486 | X72: 6.417267519 | Y72: 6.348748954 | Z72: 6.270028299 | AA72: 6.196408187 | AB72: 6.120058125 | AC72: 6.040891497 | AD72: =AD223*AD95 -> 6.040891497 | AE72: 6.040891497 | AF72: 6.040891497 | AG72: 6.040891497 | AH72: 6.040891497 | AI72: 6.040891497 | AJ72: 6.040891497 | AK72: 6.040891497 | AL72: 6.040891497 | AM72: 6.040891497
C73: AMV3kul | E73: =E224*E96 -> 0 | F73: 0 | G73: 0 | H73: 0 | I73: 0 | J73: 0 | K73: 0 | L73: 0 | M73: 0 | N73: 0 | O73: 0 | P73: 0 | Q73: 0 | R73: 0 | S73: 0 | T73: 0 | U73: 0 | V73: 0 | W73: 0 | X73: 0 | Y73: 0 | Z73: 0 | AA73: 0 | AB73: 0 | AC73: 0 | AD73: =AD224*AD96 -> 0 | AE73: 0 | AF73: 0 | AG73: 0 | AH73: 0 | AI73: 0 | AJ73: 0 | AK73: 0 | AL73: 0 | AM73: 0
C74: AMV4træ | E74: =E225*E97 -> 13.95129875 | F74: 14.53583451 | G74: 11.20745972 | H74: 7.447368627 | I74: 6.706306321 | J74: 6.349213963 | K74: -39.91599859 | L74: -10.98317093 | M74: -7.132338595 | N74: -7.459443523 | O74: -5.422664382 | P74: -2.93786803 | Q74: -0.6059684322 | R74: 2.545893061 | S74: 6.350597456 | T74: 8.026875722 | U74: 7.314587785 | V74: 6.690745286 | W74: 7.32741051 | X74: 6.527407249 | Y74: 6.320581824 | Z74: 6.096259296 | AA74: 5.853896013 | AB74: 5.592925568 | AC74: 5.340886684 | AD74: =AD225*AD97 -> 5.340886684 | AE74: 5.340886684 | AF74: 5.340886684 | AG74: 5.340886684 | AH74: 5.340886684 | AI74: 5.340886684 | AJ74: 5.340886684 | AK74: 5.340886684 | AL74: 5.340886684 | AM74: 5.340886684
C75: AMV4træBP | E75: =E226*E98 -> 3.193997374 | F75: 3.251991312 | G75: 3.290970683 | H75: 3.295779577 | I75: 3.315432109 | J75: 3.459866217 | K75: 3.717982506 | L75: 3.859664484 | M75: 3.997338238 | N75: 4.099943695 | O75: 4.320586791 | P75: 4.544027939 | Q75: 4.770283427 | R75: 4.999369674 | S75: 5.231303222 | T75: 5.438327874 | U75: 5.719211252 | V75: 6.924164733 | W75: 7.778511869 | X75: 7.873597407 | Y75: 8.692152468 | Z75: 9.534286497 | AA75: 10.40073211 | AB75: 11.29225261 | AC75: 12.22882696 | AD75: =AD226*AD98 -> 12.22882696 | AE75: 12.22882696 | AF75: 12.22882696 | AG75: 12.22882696 | AH75: 12.22882696 | AI75: 12.22882696 | AJ75: 12.22882696 | AK75: 12.22882696 | AL75: 12.22882696 | AM75: 12.22882696
C76: AVV1træ | E76: =E227*E99 -> 11.25747558 | F76: 8.748207905 | G76: 11.11930158 | H76: 10.29350859 | I76: 9.960432818 | J76: 11.37669306 | K76: 5.252648025 | L76: 13.23758479 | M76: 13.83587308 | N76: 14.76056867 | O76: 15.16716899 | P76: 15.76514686 | Q76: 16.40719803 | R76: 17.47279467 | S76: 19.04414242 | T76: 19.06956219 | U76: 11.23275616 | V76: 11.27107915 | W76: 0 | X76: 0 | Y76: 0 | Z76: 0 | AA76: 0 | AB76: 0 | AC76: 0 | AD76: =AD227*AD99 -> 0 | AE76: 0 | AF76: 0 | AG76: 0 | AH76: 0 | AI76: 0 | AJ76: 0 | AK76: 0 | AL76: 0 | AM76: 0
C77: AVV1kul | E77: =E228*E100 -> 0 | F77: 0 | G77: 0 | H77: 0 | I77: 0 | J77: 0 | K77: 0 | L77: 0 | M77: 0 | N77: 0 | O77: 0 | P77: 0 | Q77: 0 | R77: 0 | S77: 0 | T77: 0 | U77: 0 | V77: 0 | W77: 0 | X77: 0 | Y77: 0 | Z77: 0 | AA77: 0 | AB77: 0 | AC77: 0 | AD77: =AD228*AD100 -> 0 | AE77: 0 | AF77: 0 | AG77: 0 | AH77: 0 | AI77: 0 | AJ77: 0 | AK77: 0 | AL77: 0 | AM77: 0
C78: AVV2træ | E78: =E229*E101 -> 22.54559397 | F78: 16.92089175 | G78: 21.04687703 | H78: 17.86613998 | I78: 16.80737447 | J78: 15.96785825 | K78: -4.971023012 | L78: 10.49263438 | M78: 10.01321963 | N78: 9.249328429 | O78: 9.857417397 | P78: 10.63108543 | Q78: 11.42034633 | R78: 12.54568914 | S78: 14.03593125 | T78: 13.76511948 | U78: 18.44032652 | V78: 18.22166107 | W78: 20.59377592 | X78: 19.94269042 | Y78: 19.70008347 | Z78: 19.41705698 | AA78: 19.17383656 | AB78: 18.93033094 | AC78: 18.68653105 | AD78: =AD229*AD101 -> 18.68653105 | AE78: 18.68653105 | AF78: 18.68653105 | AG78: 18.68653105 | AH78: 18.68653105 | AI78: 18.68653105 | AJ78: 18.68653105 | AK78: 18.68653105 | AL78: 18.68653105 | AM78: 18.68653105
C79: AVV2halm | E79: =E230*E102 -> 2.050188857 | F79: 2.128815738 | G79: 1.705775527 | H79: 1.225308871 | I79: 1.131786356 | J79: 1.228478124 | K79: -2.990473469 | L79: 0.03469444549 | M79: 0.5464365507 | N79: 0.6714256467 | O79: 0.8245344915 | P79: 1.015202389 | Q79: 1.197734499 | R79: 1.44088737 | S79: 1.729739708 | T79: 1.598472946 | U79: 2.03554386 | V79: 1.86492757 | W79: 0.9581827645 | X79: 1.155976103 | Y79: 1.176617257 | Z79: 1.190805246 | AA79: 1.212049386 | AB79: 1.233631136 | AC79: 1.248656276 | AD79: =AD230*AD102 -> 1.248656276 | AE79: 1.248656276 | AF79: 1.248656276 | AG79: 1.248656276 | AH79: 1.248656276 | AI79: 1.248656276 | AJ79: 1.248656276 | AK79: 1.248656276 | AL79: 1.248656276 | AM79: 1.248656276
C80: AVV2gasGT | E80: =E231*E103 -> 0.0730240427 | F80: 0.07578937892 | G80: 0.09346104463 | H80: 0.05652934677 | I80: 0.002225477586 | J80: -0.02122266401 | K80: -0.2536146365 | L80: 0.09122954388 | M80: -0.02414294254 | N80: -0.005858005111 | O80: -0.02128816018 | P80: -0.02125368881 | Q80: -0.01783170001 | R80: 0.001079159483 | S80: 0.02580465302 | T80: 0.03450428499 | U80: 0.05895179225 | V80: -0.01496816293 | W80: 2.419507525 | X80: 1.792138234 | Y80: 1.593190285 | Z80: 1.396021702 | AA80: 1.200687773 | AB80: 1.007246097 | AC80: 0.8157567136 | AD80: =AD231*AD103 -> 0.8157567136 | AE80: 0.8157567136 | AF80: 0.8157567136 | AG80: 0.8157567136 | AH80: 0.8157567136 | AI80: 0.8157567136 | AJ80: 0.8157567136 | AK80: 0.8157567136 | AL80: 0.8157567136 | AM80: 0.8157567136
C81: KKV | E81: =E232*E104 -> 2.517094758 | F81: 2.59291576 | G81: 2.308324441 | H81: 1.971169234 | I81: 1.91219565 | J81: 2.066123109 | K81: -0.7711137123 | L81: 1.454009768 | M81: 1.9079827 | N81: 2.080513716 | O81: 1.946081681 | P81: 1.84833973 | Q81: 1.762573788 | R81: 1.751597018 | S81: 1.8246145 | T81: 1.562354613 | U81: 1.939286062 | V81: 1.372864643 | W81: 2.544399257 | X81: 2.320610417 | Y81: 2.151131886 | Z81: 1.978001173 | AA81: 1.8011048 | AB81: 1.620324541 | AC81: 1.441926665 | AD81: =AD232*AD104 -> 1.441926665 | AE81: 1.441926665 | AF81: 1.441926665 | AG81: 1.441926665 | AH81: 1.441926665 | AI81: 1.441926665 | AJ81: 1.441926665 | AK81: 1.441926665 | AL81: 1.441926665 | AM81: 1.441926665
C82: HCVgas | E82: =E233*E105 -> 1.081744036 | F82: 1.087240368 | G82: 1.474738471 | H82: 1.513474228 | I82: 1.218706985 | J82: 0.7692868378 | K82: 1.23192313 | L82: 0.9624895498 | M82: 0.2512525493 | N82: 0 | O82: 0 | P82: 0 | Q82: 0 | R82: 0 | S82: 0 | T82: 0 | U82: 0 | V82: 0 | W82: 0 | X82: 0 | Y82: 0 | Z82: 0 | AA82: 0 | AB82: 0 | AC82: 0 | AD82: =AD233*AD105 -> 0 | AE82: 0 | AF82: 0 | AG82: 0 | AH82: 0 | AI82: 0 | AJ82: 0 | AK82: 0 | AL82: 0 | AM82: 0
C83: SPolie | E83: =E234*E106 -> 0.4811518826 | F83: 0.4906480939 | G83: 0.5634746014 | H83: 0.6275760164 | I83: 0.6459879425 | J83: 0.6678046741 | K83: 0.8930701656 | L83: 0.89597543 | M83: 0.8940175539 | N83: 0.8850729904 | O83: 0.7399923847 | P83: 0.5943109035 | Q83: 0.4461482386 | R83: 0.2942211492 | S83: 0.138382793 | T83: 0.1419320522 | U83: 0.1461843591 | V83: 0.1501002315 | W83: 0.155055508 | X83: 0.1597979155 | Y83: 0.1638737167 | Z83: 0.1679992012 | AA83: 0.172415377 | AB83: 0.17713029 | AC83: 0.1819814602 | AD83: =AD234*AD106 -> 0.1819814602 | AE83: 0.1819814602 | AF83: 0.1819814602 | AG83: 0.1819814602 | AH83: 0.1819814602 | AI83: 0.1819814602 | AJ83: 0.1819814602 | AK83: 0.1819814602 | AL83: 0.1819814602 | AM83: 0.1819814602
C84: SPgas | E84: =E235*E107 -> 1.95871417 | F84: 1.947623393 | G84: 2.699011677 | H84: 3.108893242 | I84: 2.890628598 | J84: 2.745815382 | K84: 9.013862598 | L84: 6.792181665 | M84: 5.133793872 | N84: 5.192940419 | O84: 5.259184363 | P84: 5.327511308 | Q84: 5.394333883 | R84: 5.457047265 | S84: 5.523518401 | T84: 5.583005791 | U84: 5.818429934 | V84: 5.921285242 | W84: 12.11408704 | X84: 11.76420483 | Y84: 11.53432439 | Z84: 11.29973103 | AA84: 11.06027831 | AB84: 10.81581368 | AC84: 10.56617811 | AD84: =AD235*AD107 -> 10.56617811 | AE84: 10.56617811 | AF84: 10.56617811 | AG84: 10.56617811 | AH84: 10.56617811 | AI84: 10.56617811 | AJ84: 10.56617811 | AK84: 10.56617811 | AL84: 10.56617811 | AM84: 10.56617811
C85: GeoEl | E85: =E236*E108 -> 0 | F85: 0 | G85: 0 | H85: 0 | I85: 0 | J85: 0 | K85: 0 | L85: 0 | M85: 0 | N85: 0.5144884259 | O85: 0.4977266667 | P85: 0.4742279742 | Q85: 0.4513232403 | R85: 0.4148957134 | S85: 0.3652442103 | T85: 0.3675015257 | U85: 0.4036963691 | V85: 0.3559395816 | W85: 0.4480772503 | X85: 0.4506286632 | Y85: 0.4763048041 | Z85: 0.502957444 | AA85: 0.5306169238 | AB85: 0.5593148541 | AC85: 0.5890841831 | AD85: =AD236*AD108 -> 0.5890841831 | AE85: 0.5890841831 | AF85: 0.5890841831 | AG85: 0.5890841831 | AH85: 0.5890841831 | AI85: 0.5890841831 | AJ85: 0.5890841831 | AK85: 0.5890841831 | AL85: 0.5890841831 | AM85: 0.5890841831
C86: =C109 -> GeoVa | E86: =E237*E109 -> 0.1108651307 | F86: 0.09514164547 | G86: 0.1055241724 | H86: 0.1118375265 | I86: 0.1152969874 | J86: 0.09134990822 | K86: 0.1677536098 | L86: 0.06851181169 | M86: 0.03078382832 | N86: 0 | O86: 0 | P86: 0 | Q86: 0 | R86: 0 | S86: 0 | T86: 0 | U86: 0 | V86: 0 | W86: 0 | X86: 0 | Y86: 0 | Z86: 0 | AA86: 0 | AB86: 0 | AC86: 0 | AD86: =AD237*AD109 -> 0 | AE86: 0 | AF86: 0 | AG86: 0 | AH86: 0 | AI86: 0 | AJ86: 0 | AK86: 0 | AL86: 0 | AM86: 0
C87: =C110 -> VP | E87: =E238*E110 -> 0.4678384191 | F87: 0.3918564995 | G87: 0.4563111482 | H87: 0.5019318948 | I87: 0.5222206977 | J87: 0.8014834696 | K87: 3.082049459 | L87: 2.212737044 | M87: 2.329664625 | N87: 2.61770138 | O87: 2.482812098 | P87: 2.318144108 | Q87: 2.160151227 | R87: 1.947917326 | S87: 1.689697682 | T87: 1.542234209 | U87: 1.558088529 | V87: 1.415541937 | W87: 1.899666802 | X87: 1.868131621 | Y87: 1.914993922 | Z87: 1.962609439 | AA87: 2.011001575 | AB87: 2.060194713 | AC87: 2.110214268 | AD87: =AD238*AD110 -> 2.110214268 | AE87: 2.110214268 | AF87: 2.110214268 | AG87: 2.110214268 | AH87: 2.110214268 | AI87: 2.110214268 | AJ87: 2.110214268 | AK87: 2.110214268 | AL87: 2.110214268 | AM87: 2.110214268
C88: =C111 -> Sol | E88: =E239*E111 -> 0.001685658859 | F88: 0.001685658859 | G88: 0.001685658859 | H88: 0 | I88: 0.001685658859 | J88: 0.002532752355 | K88: 0.003390241507 | L88: 0.004258318864 | M88: 0.005137181756 | N88: 0.005972439804 | O88: 0.007687187228 | P88: 0.00940857717 | Q88: 0.0111366483 | R88: 0.01287143959 | S88: 0.01461299033 | T88: 0.01474891168 | U88: 0.01492939839 | V88: 0.01506305758 | W88: 0.01526152971 | X88: 0.03044071489 | Y88: 0.03074959049 | Z88: 0.03106479853 | AA88: 0.03138653577 | AB88: 0.03171500721 | AC88: 0.03205042651 | AD88: =AD239*AD111 -> 0.03205042651 | AE88: 0.03205042651 | AF88: 0.03205042651 | AG88: 0.03205042651 | AH88: 0.03205042651 | AI88: 0.03205042651 | AJ88: 0.03205042651 | AK88: 0.03205042651 | AL88: 0.03205042651 | AM88: 0.03205042651
C89: Total | E89: =SUM(E71:E88) -> 69.08892161 | F89: 59.57180409 | G89: 65.34028279 | H89: 56.58008877 | I89: 53.50863782 | J89: 53.64277106 | K89: -20.81795589 | L89: 37.10177542 | M89: 39.28587139 | N89: 39.93387959 | O89: 42.72958378 | P89: 46.48629683 | Q89: 50.23071627 | R89: 55.78094951 | S89: 63.09247294 | T89: 64.47108782 | U89: 62.18731391 | V89: 62.13541601 | W89: 66.92671816 | X89: 64.55392478 | Y89: 64.38280242 | Z89: 64.1482709 | AA89: 63.97484866 | AB89: 63.80034138 | AC89: 63.67133974 | AD89: =SUM(AD71:AD88) -> 63.67133974 | AE89: 63.67133974 | AF89: 63.67133974 | AG89: 63.67133974 | AH89: 63.67133974 | AI89: 63.67133974 | AJ89: 63.67133974 | AK89: 63.67133974 | AL89: 63.67133974 | AM89: 63.67133974
C92: Samfundsøkonomiske pris per værk, kortsigtede
C93: ="Enhed: Kr/"&Sammenligning!$G$9 -> Enhed: Kr/GJ | E93: 2016 | F93: 2017 | G93: 2018 | H93: 2019 | I93: 2020 | J93: 2021 | K93: 2022 | L93: 2023 | M93: 2024 | N93: 2025 | O93: 2026 | P93: 2027 | Q93: 2028 | R93: 2029 | S93: 2030 | T93: 2031 | U93: 2032 | V93: 2033 | W93: 2034 | X93: 2035 | Y93: 2036 | Z93: 2037 | AA93: 2038 | AB93: 2039 | AC93: 2040 | AD93: 2041 | AE93: 2042 | AF93: 2043 | AG93: 2044 | AH93: 2045 | AI93: 2046 | AJ93: 2047 | AK93: 2048 | AL93: 2049 | AM93: 2050
C94: =C120 -> AMV1træ | E94: =IF(Sammenligning!$G$9="GJ",1,(1*3.6))*AMV1træ!H70 -> 80.53016983 | F94: =IF(Sammenligning!$G$9="GJ",1,(1*3.6))*AMV1træ!I70 -> 62.12430943 | G94: =IF(Sammenligning!$G$9="GJ",1,(1*3.6))*AMV1træ!J70 -> 78.52213229 | H94: =IF(Sammenligning!$G$9="GJ",1,(1*3.6))*AMV1træ!K70 -> 71.26389105 | I94: =IF(Sammenligning!$G$9="GJ",1,(1*3.6))*AMV1træ!L70 -> 68.64838509 | J94: =IF(Sammenligning!$G$9="GJ",1,(1*3.6))*AMV1træ!M70 -> 69.33701711 | K94: =IF(Sammenligning!$G$9="GJ",1,(1*3.6))*AMV1træ!N70 -> 25.57551711 | L94: =IF(Sammenligning!$G$9="GJ",1,(1*3.6))*AMV1træ!O70 -> 66.80166855 | M94: =IF(Sammenligning!$G$9="GJ",1,(1*3.6))*AMV1træ!P70 -> 65.4502388 | N94: =IF(Sammenligning!$G$9="GJ",1,(1*3.6))*AMV1træ!Q70 -> 66.57472828 | O94: =IF(Sammenligning!$G$9="GJ",1,(1*3.6))*AMV1træ!R70 -> 62.18282466 | P94: =IF(Sammenligning!$G$9="GJ",1,(1*3.6))*AMV1træ!S70 -> 58.82751395 | Q94: =IF(Sammenligning!$G$9="GJ",1,(1*3.6))*AMV1træ!T70 -> 56.02828563 | R94: =IF(Sammenligning!$G$9="GJ",1,(1*3.6))*AMV1træ!U70 -> 55.85832553 | S94: =IF(Sammenligning!$G$9="GJ",1,(1*3.6))*AMV1træ!V70 -> 59.22013194 | T94: =IF(Sammenligning!$G$9="GJ",1,(1*3.6))*AMV1træ!W70 -> 67.01927334 | U94: =IF(Sammenligning!$G$9="GJ",1,(1*3.6))*AMV1træ!X70 -> 67.52335834 | V94: =IF(Sammenligning!$G$9="GJ",1,(1*3.6))*AMV1træ!Y70 -> 73.79139663 | W94: =IF(Sammenligning!$G$9="GJ",1,(1*3.6))*AMV1træ!Z70 -> 75.01695894 | X94: =IF(Sammenligning!$G$9="GJ",1,(1*3.6))*AMV1træ!AA70 -> 76.46781643 | Y94: =IF(Sammenligning!$G$9="GJ",1,(1*3.6))*AMV1træ!AB70 -> 76.99791892 | Z94: =IF(Sammenligning!$G$9="GJ",1,(1*3.6))*AMV1træ!AC70 -> 77.39127196 | AA94: =IF(Sammenligning!$G$9="GJ",1,(1*3.6))*AMV1træ!AD70 -> 77.92137445 | AB94: =IF(Sammenligning!$G$9="GJ",1,(1*3.6))*AMV1træ!AE70 -> 78.45147694 | AC94: =IF(Sammenligning!$G$9="GJ",1,(1*3.6))*AMV1træ!AF70 -> 78.98157943 | AD94: =IF(Sammenligning!$G$9="GJ",1,(1*3.6))*AMV1træ!AG70 -> 78.98157943 | AE94: =IF(Sammenligning!$G$9="GJ",1,(1*3.6))*AMV1træ!AH70 -> 78.98157943 | AF94: =IF(Sammenligning!$G$9="GJ",1,(1*3.6))*AMV1træ!AI70 -> 78.98157943 | AG94: =IF(Sammenligning!$G$9="GJ",1,(1*3.6))*AMV1træ!AJ70 -> 78.98157943 | AH94: =IF(Sammenligning!$G$9="GJ",1,(1*3.6))*AMV1træ!AK70 -> 78.98157943 | AI94: =IF(Sammenligning!$G$9="GJ",1,(1*3.6))*AMV1træ!AL70 -> 78.98157943 | AJ94: =IF(Sammenligning!$G$9="GJ",1,(1*3.6))*AMV1træ!AM70 -> 78.98157943 | AK94: =IF(Sammenligning!$G$9="GJ",1,(1*3.6))*AMV1træ!AN70 -> 78.98157943 | AL94: =IF(Sammenligning!$G$9="GJ",1,(1*3.6))*AMV1træ!AO70 -> 78.98157943 | AM94: =IF(Sammenligning!$G$9="GJ",1,(1*3.6))*AMV1træ!AP70 -> 78.98157943
C95: =C121 -> AMV1træBP | E95: =IF(Sammenligning!$G$9="GJ",1,(1*3.6))*AMV1træBP!H69 -> 76.36906167 | F95: =IF(Sammenligning!$G$9="GJ",1,(1*3.6))*AMV1træBP!I69 -> 61.49478265 | G95: =IF(Sammenligning!$G$9="GJ",1,(1*3.6))*AMV1træBP!J69 -> 79.50590451 | H95: =IF(Sammenligning!$G$9="GJ",1,(1*3.6))*AMV1træBP!K69 -> 78.93703369 | I95: =IF(Sammenligning!$G$9="GJ",1,(1*3.6))*AMV1træBP!L69 -> 78.09893819 | J95: =IF(Sammenligning!$G$9="GJ",1,(1*3.6))*AMV1træBP!M69 -> 77.87214897 | K95: =IF(Sammenligning!$G$9="GJ",1,(1*3.6))*AMV1træBP!N69 -> 98.03478265 | L95: =IF(Sammenligning!$G$9="GJ",1,(1*3.6))*AMV1træBP!O69 -> 93.79353265 | M95: =IF(Sammenligning!$G$9="GJ",1,(1*3.6))*AMV1træBP!P69 -> 86.39853265 | N95: =IF(Sammenligning!$G$9="GJ",1,(1*3.6))*AMV1træBP!Q69 -> 85.85478265 | O95: =IF(Sammenligning!$G$9="GJ",1,(1*3.6))*AMV1træBP!R69 -> 86.18103265 | P95: =IF(Sammenligning!$G$9="GJ",1,(1*3.6))*AMV1træBP!S69 -> 86.39853265 | Q95: =IF(Sammenligning!$G$9="GJ",1,(1*3.6))*AMV1træBP!T69 -> 86.72478265 | R95: =IF(Sammenligning!$G$9="GJ",1,(1*3.6))*AMV1træBP!U69 -> 86.94228265 | S95: =IF(Sammenligning!$G$9="GJ",1,(1*3.6))*AMV1træBP!V69 -> 87.26853265 | T95: =IF(Sammenligning!$G$9="GJ",1,(1*3.6))*AMV1træBP!W69 -> 87.59478265 | U95: =IF(Sammenligning!$G$9="GJ",1,(1*3.6))*AMV1træBP!X69 -> 87.92103265 | V95: =IF(Sammenligning!$G$9="GJ",1,(1*3.6))*AMV1træBP!Y69 -> 88.13853265 | W95: =IF(Sammenligning!$G$9="GJ",1,(1*3.6))*AMV1træBP!Z69 -> 88.46478265 | X95: =IF(Sammenligning!$G$9="GJ",1,(1*3.6))*AMV1træBP!AA69 -> 88.79103265 | Y95: =IF(Sammenligning!$G$9="GJ",1,(1*3.6))*AMV1træBP!AB69 -> 89.11728265 | Z95: =IF(Sammenligning!$G$9="GJ",1,(1*3.6))*AMV1træBP!AC69 -> 89.33478265 | AA95: =IF(Sammenligning!$G$9="GJ",1,(1*3.6))*AMV1træBP!AD69 -> 89.66103265 | AB95: =IF(Sammenligning!$G$9="GJ",1,(1*3.6))*AMV1træBP!AE69 -> 89.98728265 | AC95: =IF(Sammenligning!$G$9="GJ",1,(1*3.6))*AMV1træBP!AF69 -> 90.31353265 | AD95: =IF(Sammenligning!$G$9="GJ",1,(1*3.6))*AMV1træBP!AG69 -> 90.31353265 | AE95: =IF(Sammenligning!$G$9="GJ",1,(1*3.6))*AMV1træBP!AH69 -> 90.31353265 | AF95: =IF(Sammenligning!$G$9="GJ",1,(1*3.6))*AMV1træBP!AI69 -> 90.31353265 | AG95: =IF(Sammenligning!$G$9="GJ",1,(1*3.6))*AMV1træBP!AJ69 -> 90.31353265 | AH95: =IF(Sammenligning!$G$9="GJ",1,(1*3.6))*AMV1træBP!AK69 -> 90.31353265 | AI95: =IF(Sammenligning!$G$9="GJ",1,(1*3.6))*AMV1træBP!AL69 -> 90.31353265 | AJ95: =IF(Sammenligning!$G$9="GJ",1,(1*3.6))*AMV1træBP!AM69 -> 90.31353265 | AK95: =IF(Sammenligning!$G$9="GJ",1,(1*3.6))*AMV1træBP!AN69 -> 90.31353265 | AL95: =IF(Sammenligning!$G$9="GJ",1,(1*3.6))*AMV1træBP!AO69 -> 90.31353265 | AM95: =IF(Sammenligning!$G$9="GJ",1,(1*3.6))*AMV1træBP!AP69 -> 90.31353265
C96: AMV3kul | E96: =IF(Sammenligning!$G$9="GJ",1,(1*3.6))*AMV3kul!H68 -> 5.215528335 | F96: =IF(Sammenligning!$G$9="GJ",1,(1*3.6))*AMV3kul!I68 -> 6.011469259 | G96: =IF(Sammenligning!$G$9="GJ",1,(1*3.6))*AMV3kul!J68 -> 9.046662333 | H96: =IF(Sammenligning!$G$9="GJ",1,(1*3.6))*AMV3kul!K68 -> 10.9176389 | I96: =IF(Sammenligning!$G$9="GJ",1,(1*3.6))*AMV3kul!L68 -> 11.20066113 | J96: =IF(Sammenligning!$G$9="GJ",1,(1*3.6))*AMV3kul!M68 -> 11.24039554 | K96: =IF(Sammenligning!$G$9="GJ",1,(1*3.6))*AMV3kul!N68 -> 26.10797967 | L96: =IF(Sammenligning!$G$9="GJ",1,(1*3.6))*AMV3kul!O68 -> 20.76881881 | M96: =IF(Sammenligning!$G$9="GJ",1,(1*3.6))*AMV3kul!P68 -> 19.30070061 | N96: =IF(Sammenligning!$G$9="GJ",1,(1*3.6))*AMV3kul!Q68 -> 19.28485409 | O96: =IF(Sammenligning!$G$9="GJ",1,(1*3.6))*AMV3kul!R68 -> 21.15097022 | P96: =IF(Sammenligning!$G$9="GJ",1,(1*3.6))*AMV3kul!S68 -> 23.59847364 | Q96: =IF(Sammenligning!$G$9="GJ",1,(1*3.6))*AMV3kul!T68 -> 26.65680139 | R96: =IF(Sammenligning!$G$9="GJ",1,(1*3.6))*AMV3kul!U68 -> 30.95930282 | S96: =IF(Sammenligning!$G$9="GJ",1,(1*3.6))*AMV3kul!V68 -> 36.91027014 | T96: =IF(Sammenligning!$G$9="GJ",1,(1*3.6))*AMV3kul!W68 -> 38.00304434 | U96: =IF(Sammenligning!$G$9="GJ",1,(1*3.6))*AMV3kul!X68 -> 39.29761912 | V96: =IF(Sammenligning!$G$9="GJ",1,(1*3.6))*AMV3kul!Y68 -> 40.58907953 | W96: =IF(Sammenligning!$G$9="GJ",1,(1*3.6))*AMV3kul!Z68 -> 41.93021149 | X96: =IF(Sammenligning!$G$9="GJ",1,(1*3.6))*AMV3kul!AA68 -> 43.42035812 | Y96: =IF(Sammenligning!$G$9="GJ",1,(1*3.6))*AMV3kul!AB68 -> 45.00984786 | Z96: =IF(Sammenligning!$G$9="GJ",1,(1*3.6))*AMV3kul!AC68 -> 46.59622322 | AA96: =IF(Sammenligning!$G$9="GJ",1,(1*3.6))*AMV3kul!AD68 -> 48.38439918 | AB96: =IF(Sammenligning!$G$9="GJ",1,(1*3.6))*AMV3kul!AE68 -> 50.26880387 | AC96: =IF(Sammenligning!$G$9="GJ",1,(1*3.6))*AMV3kul!AF68 -> 52.25255167 | AD96: =IF(Sammenligning!$G$9="GJ",1,(1*3.6))*AMV3kul!AG68 -> 52.25255167 | AE96: =IF(Sammenligning!$G$9="GJ",1,(1*3.6))*AMV3kul!AH68 -> 52.25255167 | AF96: =IF(Sammenligning!$G$9="GJ",1,(1*3.6))*AMV3kul!AI68 -> 52.25255167 | AG96: =IF(Sammenligning!$G$9="GJ",1,(1*3.6))*AMV3kul!AJ68 -> 52.25255167 | AH96: =IF(Sammenligning!$G$9="GJ",1,(1*3.6))*AMV3kul!AK68 -> 52.25255167 | AI96: =IF(Sammenligning!$G$9="GJ",1,(1*3.6))*AMV3kul!AL68 -> 52.25255167 | AJ96: =IF(Sammenligning!$G$9="GJ",1,(1*3.6))*AMV3kul!AM68 -> 52.25255167 | AK96: =IF(Sammenligning!$G$9="GJ",1,(1*3.6))*AMV3kul!AN68 -> 52.25255167 | AL96: =IF(Sammenligning!$G$9="GJ",1,(1*3.6))*AMV3kul!AO68 -> 52.25255167 | AM96: =IF(Sammenligning!$G$9="GJ",1,(1*3.6))*AMV3kul!AP68 -> 52.25255167
C97: AMV4træ | E97: =IF(Sammenligning!$G$9="GJ",1,(1*3.6))*AMV4træ!H68 -> 46.36927215 | F97: =IF(Sammenligning!$G$9="GJ",1,(1*3.6))*AMV4træ!I68 -> 48.31206603 | G97: =IF(Sammenligning!$G$9="GJ",1,(1*3.6))*AMV4træ!J68 -> 37.24970408 | H97: =IF(Sammenligning!$G$9="GJ",1,(1*3.6))*AMV4træ!K68 -> 24.72159114 | I97: =IF(Sammenligning!$G$9="GJ",1,(1*3.6))*AMV4træ!L68 -> 22.2894333 | J97: =IF(Sammenligning!$G$9="GJ",1,(1*3.6))*AMV4træ!M68 -> 21.00949972 | K97: =IF(Sammenligning!$G$9="GJ",1,(1*3.6))*AMV4træ!N68 -> -131.4945944 | L97: =IF(Sammenligning!$G$9="GJ",1,(1*3.6))*AMV4træ!O68 -> -36.01958017 | M97: =IF(Sammenligning!$G$9="GJ",1,(1*3.6))*AMV4træ!P68 -> -23.28506799 | N97: =IF(Sammenligning!$G$9="GJ",1,(1*3.6))*AMV4træ!Q68 -> -24.46373927 | O97: =IF(Sammenligning!$G$9="GJ",1,(1*3.6))*AMV4træ!R68 -> -18.0135031 | P97: =IF(Sammenligning!$G$9="GJ",1,(1*3.6))*AMV4træ!S68 -> -9.887377531 | Q97: =IF(Sammenligning!$G$9="GJ",1,(1*3.6))*AMV4træ!T68 -> -2.066614467 | R97: =IF(Sammenligning!$G$9="GJ",1,(1*3.6))*AMV4træ!U68 -> 8.800564894 | S97: =IF(Sammenligning!$G$9="GJ",1,(1*3.6))*AMV4træ!V68 -> 22.25611679 | T97: =IF(Sammenligning!$G$9="GJ",1,(1*3.6))*AMV4træ!W68 -> 28.11866989 | U97: =IF(Sammenligning!$G$9="GJ",1,(1*3.6))*AMV4træ!X68 -> 25.26926256 | V97: =IF(Sammenligning!$G$9="GJ",1,(1*3.6))*AMV4træ!Y68 -> 24.3389781 | W97: =IF(Sammenligning!$G$9="GJ",1,(1*3.6))*AMV4træ!Z68 -> 27.14045845 | X97: =IF(Sammenligning!$G$9="GJ",1,(1*3.6))*AMV4træ!AA68 -> 24.51174884 | Y97: =IF(Sammenligning!$G$9="GJ",1,(1*3.6))*AMV4træ!AB68 -> 24.93467985 | Z97: =IF(Sammenligning!$G$9="GJ",1,(1*3.6))*AMV4træ!AC68 -> 25.35761086 | AA97: =IF(Sammenligning!$G$9="GJ",1,(1*3.6))*AMV4træ!AD68 -> 25.78054187 | AB97: =IF(Sammenligning!$G$9="GJ",1,(1*3.6))*AMV4træ!AE68 -> 26.20347288 | AC97: =IF(Sammenligning!$G$9="GJ",1,(1*3.6))*AMV4træ!AF68 -> 26.7673809 | AD97: =IF(Sammenligning!$G$9="GJ",1,(1*3.6))*AMV4træ!AG68 -> 26.7673809 | AE97: =IF(Sammenligning!$G$9="GJ",1,(1*3.6))*AMV4træ!AH68 -> 26.7673809 | AF97: =IF(Sammenligning!$G$9="GJ",1,(1*3.6))*AMV4træ!AI68 -> 26.7673809 | AG97: =IF(Sammenligning!$G$9="GJ",1,(1*3.6))*AMV4træ!AJ68 -> 26.7673809 | AH97: =IF(Sammenligning!$G$9="GJ",1,(1*3.6))*AMV4træ!AK68 -> 26.7673809 | AI97: =IF(Sammenligning!$G$9="GJ",1,(1*3.6))*AMV4træ!AL68 -> 26.7673809 | AJ97: =IF(Sammenligning!$G$9="GJ",1,(1*3.6))*AMV4træ!AM68 -> 26.7673809 | AK97: =IF(Sammenligning!$G$9="GJ",1,(1*3.6))*AMV4træ!AN68 -> 26.7673809 | AL97: =IF(Sammenligning!$G$9="GJ",1,(1*3.6))*AMV4træ!AO68 -> 26.7673809 | AM97: =IF(Sammenligning!$G$9="GJ",1,(1*3.6))*AMV4træ!AP68 -> 26.7673809
C98: AMV4træBP | E98: =IF(Sammenligning!$G$9="GJ",1,(1*3.6))*AMV4træBP!H67 -> 51.35613255 | F98: =IF(Sammenligning!$G$9="GJ",1,(1*3.6))*AMV4træBP!I67 -> 52.28861432 | G98: =IF(Sammenligning!$G$9="GJ",1,(1*3.6))*AMV4træBP!J67 -> 52.91536178 | H98: =IF(Sammenligning!$G$9="GJ",1,(1*3.6))*AMV4træBP!K67 -> 52.92658135 | I98: =IF(Sammenligning!$G$9="GJ",1,(1*3.6))*AMV4træBP!L67 -> 53.3086759 | J98: =IF(Sammenligning!$G$9="GJ",1,(1*3.6))*AMV4træBP!M67 -> 53.79099075 | K98: =IF(Sammenligning!$G$9="GJ",1,(1*3.6))*AMV4træBP!N67 -> 55.93128948 | L98: =IF(Sammenligning!$G$9="GJ",1,(1*3.6))*AMV4træBP!O67 -> 56.2188691 | M98: =IF(Sammenligning!$G$9="GJ",1,(1*3.6))*AMV4træBP!P67 -> 56.41058885 | N98: =IF(Sammenligning!$G$9="GJ",1,(1*3.6))*AMV4træBP!Q67 -> 56.60230859 | O98: =IF(Sammenligning!$G$9="GJ",1,(1*3.6))*AMV4træBP!R67 -> 56.88988821 | P98: =IF(Sammenligning!$G$9="GJ",1,(1*3.6))*AMV4træBP!S67 -> 57.17746783 | Q98: =IF(Sammenligning!$G$9="GJ",1,(1*3.6))*AMV4træBP!T67 -> 57.46504745 | R98: =IF(Sammenligning!$G$9="GJ",1,(1*3.6))*AMV4træBP!U67 -> 57.75262706 | S98: =IF(Sammenligning!$G$9="GJ",1,(1*3.6))*AMV4træBP!V67 -> 58.04020668 | T98: =IF(Sammenligning!$G$9="GJ",1,(1*3.6))*AMV4træBP!W67 -> 58.3277863 | U98: =IF(Sammenligning!$G$9="GJ",1,(1*3.6))*AMV4træBP!X67 -> 58.71122579 | V98: =IF(Sammenligning!$G$9="GJ",1,(1*3.6))*AMV4træBP!Y67 -> 58.99880541 | W98: =IF(Sammenligning!$G$9="GJ",1,(1*3.6))*AMV4træBP!Z67 -> 59.28638503 | X98: =IF(Sammenligning!$G$9="GJ",1,(1*3.6))*AMV4træBP!AA67 -> 59.57396464 | Y98: =IF(Sammenligning!$G$9="GJ",1,(1*3.6))*AMV4træBP!AB67 -> 59.86154426 | Z98: =IF(Sammenligning!$G$9="GJ",1,(1*3.6))*AMV4træBP!AC67 -> 60.14912388 | AA98: =IF(Sammenligning!$G$9="GJ",1,(1*3.6))*AMV4træBP!AD67 -> 60.4367035 | AB98: =IF(Sammenligning!$G$9="GJ",1,(1*3.6))*AMV4træBP!AE67 -> 60.72428311 | AC98: =IF(Sammenligning!$G$9="GJ",1,(1*3.6))*AMV4træBP!AF67 -> 61.1077226 | AD98: =IF(Sammenligning!$G$9="GJ",1,(1*3.6))*AMV4træBP!AG67 -> 61.1077226 | AE98: =IF(Sammenligning!$G$9="GJ",1,(1*3.6))*AMV4træBP!AH67 -> 61.1077226 | AF98: =IF(Sammenligning!$G$9="GJ",1,(1*3.6))*AMV4træBP!AI67 -> 61.1077226 | AG98: =IF(Sammenligning!$G$9="GJ",1,(1*3.6))*AMV4træBP!AJ67 -> 61.1077226 | AH98: =IF(Sammenligning!$G$9="GJ",1,(1*3.6))*AMV4træBP!AK67 -> 61.1077226 | AI98: =IF(Sammenligning!$G$9="GJ",1,(1*3.6))*AMV4træBP!AL67 -> 61.1077226 | AJ98: =IF(Sammenligning!$G$9="GJ",1,(1*3.6))*AMV4træBP!AM67 -> 61.1077226 | AK98: =IF(Sammenligning!$G$9="GJ",1,(1*3.6))*AMV4træBP!AN67 -> 61.1077226 | AL98: =IF(Sammenligning!$G$9="GJ",1,(1*3.6))*AMV4træBP!AO67 -> 61.1077226 | AM98: =IF(Sammenligning!$G$9="GJ",1,(1*3.6))*AMV4træBP!AP67 -> 61.1077226
C99: AVV1træ | E99: =IF(Sammenligning!$G$9="GJ",1,(1*3.6))*AVV1træ!H68 -> 105.3976207 | F99: =IF(Sammenligning!$G$9="GJ",1,(1*3.6))*AVV1træ!I68 -> 81.90471234 | G99: =IF(Sammenligning!$G$9="GJ",1,(1*3.6))*AVV1træ!J68 -> 104.1039728 | H99: =IF(Sammenligning!$G$9="GJ",1,(1*3.6))*AVV1træ!K68 -> 96.25230824 | I99: =IF(Sammenligning!$G$9="GJ",1,(1*3.6))*AVV1træ!L68 -> 93.25411486 | J99: =IF(Sammenligning!$G$9="GJ",1,(1*3.6))*AVV1træ!M68 -> 91.66905309 | K99: =IF(Sammenligning!$G$9="GJ",1,(1*3.6))*AVV1træ!N68 -> 37.09104749 | L99: =IF(Sammenligning!$G$9="GJ",1,(1*3.6))*AVV1træ!O68 -> 83.07759281 | M99: =IF(Sammenligning!$G$9="GJ",1,(1*3.6))*AVV1træ!P68 -> 78.04299187 | N99: =IF(Sammenligning!$G$9="GJ",1,(1*3.6))*AVV1træ!Q68 -> 76.20935784 | O99: =IF(Sammenligning!$G$9="GJ",1,(1*3.6))*AVV1træ!R68 -> 77.71965056 | P99: =IF(Sammenligning!$G$9="GJ",1,(1*3.6))*AVV1træ!S68 -> 80.17841121 | Q99: =IF(Sammenligning!$G$9="GJ",1,(1*3.6))*AVV1træ!T68 -> 82.82068356 | R99: =IF(Sammenligning!$G$9="GJ",1,(1*3.6))*AVV1træ!U68 -> 87.54340346 | S99: =IF(Sammenligning!$G$9="GJ",1,(1*3.6))*AVV1træ!V68 -> 94.7088759 | T99: =IF(Sammenligning!$G$9="GJ",1,(1*3.6))*AVV1træ!W68 -> 95.3868527 | U99: =IF(Sammenligning!$G$9="GJ",1,(1*3.6))*AVV1træ!X68 -> 83.51068779 | V99: =IF(Sammenligning!$G$9="GJ",1,(1*3.6))*AVV1træ!Y68 -> 82.74753548 | W99: =IF(Sammenligning!$G$9="GJ",1,(1*3.6))*AVV1træ!Z68 -> 140.494878 | X99: =IF(Sammenligning!$G$9="GJ",1,(1*3.6))*AVV1træ!AA68 -> 141.0171027 | Y99: =IF(Sammenligning!$G$9="GJ",1,(1*3.6))*AVV1træ!AB68 -> 141.5393273 | Z99: =IF(Sammenligning!$G$9="GJ",1,(1*3.6))*AVV1træ!AC68 -> 141.8874771 | AA99: =IF(Sammenligning!$G$9="GJ",1,(1*3.6))*AVV1træ!AD68 -> 142.4097017 | AB99: =IF(Sammenligning!$G$9="GJ",1,(1*3.6))*AVV1træ!AE68 -> 142.9319264 | AC99: =IF(Sammenligning!$G$9="GJ",1,(1*3.6))*AVV1træ!AF68 -> 143.454151 | AD99: =IF(Sammenligning!$G$9="GJ",1,(1*3.6))*AVV1træ!AG68 -> 143.454151 | AE99: =IF(Sammenligning!$G$9="GJ",1,(1*3.6))*AVV1træ!AH68 -> 143.454151 | AF99: =IF(Sammenligning!$G$9="GJ",1,(1*3.6))*AVV1træ!AI68 -> 143.454151 | AG99: =IF(Sammenligning!$G$9="GJ",1,(1*3.6))*AVV1træ!AJ68 -> 143.454151 | AH99: =IF(Sammenligning!$G$9="GJ",1,(1*3.6))*AVV1træ!AK68 -> 143.454151 | AI99: =IF(Sammenligning!$G$9="GJ",1,(1*3.6))*AVV1træ!AL68 -> 143.454151 | AJ99: =IF(Sammenligning!$G$9="GJ",1,(1*3.6))*AVV1træ!AM68 -> 143.454151 | AK99: =IF(Sammenligning!$G$9="GJ",1,(1*3.6))*AVV1træ!AN68 -> 143.454151 | AL99: =IF(Sammenligning!$G$9="GJ",1,(1*3.6))*AVV1træ!AO68 -> 143.454151 | AM99: =IF(Sammenligning!$G$9="GJ",1,(1*3.6))*AVV1træ!AP68 -> 143.454151
C100: AVV1kul | E100: =IF(Sammenligning!$G$9="GJ",1,(1*3.6))*AVV1kul!H67 -> 87.49324095 | F100: =IF(Sammenligning!$G$9="GJ",1,(1*3.6))*AVV1kul!I67 -> 64.13336552 | G100: =IF(Sammenligning!$G$9="GJ",1,(1*3.6))*AVV1kul!J67 -> 79.41045761 | H100: =IF(Sammenligning!$G$9="GJ",1,(1*3.6))*AVV1kul!K67 -> 64.03981392 | I100: =IF(Sammenligning!$G$9="GJ",1,(1*3.6))*AVV1kul!L67 -> 59.23715331 | J100: =IF(Sammenligning!$G$9="GJ",1,(1*3.6))*AVV1kul!M67 -> 60.59562035 | K100: =IF(Sammenligning!$G$9="GJ",1,(1*3.6))*AVV1kul!N67 -> -62.06750986 | L100: =IF(Sammenligning!$G$9="GJ",1,(1*3.6))*AVV1kul!O67 -> 34.56439884 | M100: =IF(Sammenligning!$G$9="GJ",1,(1*3.6))*AVV1kul!P67 -> 39.87008758 | N100: =IF(Sammenligning!$G$9="GJ",1,(1*3.6))*AVV1kul!Q67 -> 42.4414174 | O100: =IF(Sammenligning!$G$9="GJ",1,(1*3.6))*AVV1kul!R67 -> 44.69290282 | P100: =IF(Sammenligning!$G$9="GJ",1,(1*3.6))*AVV1kul!S67 -> 48.49345876 | Q100: =IF(Sammenligning!$G$9="GJ",1,(1*3.6))*AVV1kul!T67 -> 52.46961842 | R100: =IF(Sammenligning!$G$9="GJ",1,(1*3.6))*AVV1kul!U67 -> 59.71952282 | S100: =IF(Sammenligning!$G$9="GJ",1,(1*3.6))*AVV1kul!V67 -> 70.59437942 | T100: =IF(Sammenligning!$G$9="GJ",1,(1*3.6))*AVV1kul!W67 -> 71.12119061 | U100: =IF(Sammenligning!$G$9="GJ",1,(1*3.6))*AVV1kul!X67 -> 71.6480018 | V100: =IF(Sammenligning!$G$9="GJ",1,(1*3.6))*AVV1kul!Y67 -> 71.99920926 | W100: =IF(Sammenligning!$G$9="GJ",1,(1*3.6))*AVV1kul!Z67 -> 72.52602045 | X100: =IF(Sammenligning!$G$9="GJ",1,(1*3.6))*AVV1kul!AA67 -> 73.05283164 | Y100: =IF(Sammenligning!$G$9="GJ",1,(1*3.6))*AVV1kul!AB67 -> 73.57964283 | Z100: =IF(Sammenligning!$G$9="GJ",1,(1*3.6))*AVV1kul!AC67 -> 73.93085029 | AA100: =IF(Sammenligning!$G$9="GJ",1,(1*3.6))*AVV1kul!AD67 -> 74.45766148 | AB100: =IF(Sammenligning!$G$9="GJ",1,(1*3.6))*AVV1kul!AE67 -> 74.98447267 | AC100: =IF(Sammenligning!$G$9="GJ",1,(1*3.6))*AVV1kul!AF67 -> 75.51128386 | AD100: =IF(Sammenligning!$G$9="GJ",1,(1*3.6))*AVV1kul!AG67 -> 75.51128386 | AE100: =IF(Sammenligning!$G$9="GJ",1,(1*3.6))*AVV1kul!AH67 -> 75.51128386 | AF100: =IF(Sammenligning!$G$9="GJ",1,(1*3.6))*AVV1kul!AI67 -> 75.51128386 | AG100: =IF(Sammenligning!$G$9="GJ",1,(1*3.6))*AVV1kul!AJ67 -> 75.51128386 | AH100: =IF(Sammenligning!$G$9="GJ",1,(1*3.6))*AVV1kul!AK67 -> 75.51128386 | AI100: =IF(Sammenligning!$G$9="GJ",1,(1*3.6))*AVV1kul!AL67 -> 75.51128386 | AJ100: =IF(Sammenligning!$G$9="GJ",1,(1*3.6))*AVV1kul!AM67 -> 75.51128386 | AK100: =IF(Sammenligning!$G$9="GJ",1,(1*3.6))*AVV1kul!AN67 -> 75.51128386 | AL100: =IF(Sammenligning!$G$9="GJ",1,(1*3.6))*AVV1kul!AO67 -> 75.51128386 | AM100: =IF(Sammenligning!$G$9="GJ",1,(1*3.6))*AVV1kul!AP67 -> 75.51128386
C101: AVV2træ | E101: =IF(Sammenligning!$G$9="GJ",1,(1*3.6))*AVV2træ!H68 -> 93.38620154 | F101: =IF(Sammenligning!$G$9="GJ",1,(1*3.6))*AVV2træ!I68 -> 70.08809831 | G101: =IF(Sammenligning!$G$9="GJ",1,(1*3.6))*AVV2træ!J68 -> 87.17835967 | H101: =IF(Sammenligning!$G$9="GJ",1,(1*3.6))*AVV2træ!K68 -> 73.91110415 | I101: =IF(Sammenligning!$G$9="GJ",1,(1*3.6))*AVV2træ!L68 -> 69.61789791 | J101: =IF(Sammenligning!$G$9="GJ",1,(1*3.6))*AVV2træ!M68 -> 71.49647068 | K101: =IF(Sammenligning!$G$9="GJ",1,(1*3.6))*AVV2træ!N68 -> -24.24530963 | L101: =IF(Sammenligning!$G$9="GJ",1,(1*3.6))*AVV2træ!O68 -> 56.26173326 | M101: =IF(Sammenligning!$G$9="GJ",1,(1*3.6))*AVV2træ!P68 -> 59.6973477 | N101: =IF(Sammenligning!$G$9="GJ",1,(1*3.6))*AVV2træ!Q68 -> 62.75517419 | O101: =IF(Sammenligning!$G$9="GJ",1,(1*3.6))*AVV2træ!R68 -> 66.43638847 | P101: =IF(Sammenligning!$G$9="GJ",1,(1*3.6))*AVV2træ!S68 -> 71.17575607 | Q101: =IF(Sammenligning!$G$9="GJ",1,(1*3.6))*AVV2træ!T68 -> 75.95447221 | R101: =IF(Sammenligning!$G$9="GJ",1,(1*3.6))*AVV2træ!U68 -> 82.88884355 | S101: =IF(Sammenligning!$G$9="GJ",1,(1*3.6))*AVV2træ!V68 -> 92.12511969 | T101: =IF(Sammenligning!$G$9="GJ",1,(1*3.6))*AVV2træ!W68 -> 90.38472504 | U101: =IF(Sammenligning!$G$9="GJ",1,(1*3.6))*AVV2træ!X68 -> 94.16621489 | V101: =IF(Sammenligning!$G$9="GJ",1,(1*3.6))*AVV2træ!Y68 -> 96.02522465 | W101: =IF(Sammenligning!$G$9="GJ",1,(1*3.6))*AVV2træ!Z68 -> 88.71748648 | X101: =IF(Sammenligning!$G$9="GJ",1,(1*3.6))*AVV2træ!AA68 -> 86.94676213 | Y101: =IF(Sammenligning!$G$9="GJ",1,(1*3.6))*AVV2træ!AB68 -> 85.74171687 | Z101: =IF(Sammenligning!$G$9="GJ",1,(1*3.6))*AVV2træ!AC68 -> 84.36221803 | AA101: =IF(Sammenligning!$G$9="GJ",1,(1*3.6))*AVV2træ!AD68 -> 83.15717277 | AB101: =IF(Sammenligning!$G$9="GJ",1,(1*3.6))*AVV2træ!AE68 -> 81.95212751 | AC101: =IF(Sammenligning!$G$9="GJ",1,(1*3.6))*AVV2træ!AF68 -> 80.74708225 | AD101: =IF(Sammenligning!$G$9="GJ",1,(1*3.6))*AVV2træ!AG68 -> 80.74708225 | AE101: =IF(Sammenligning!$G$9="GJ",1,(1*3.6))*AVV2træ!AH68 -> 80.74708225 | AF101: =IF(Sammenligning!$G$9="GJ",1,(1*3.6))*AVV2træ!AI68 -> 80.74708225 | AG101: =IF(Sammenligning!$G$9="GJ",1,(1*3.6))*AVV2træ!AJ68 -> 80.74708225 | AH101: =IF(Sammenligning!$G$9="GJ",1,(1*3.6))*AVV2træ!AK68 -> 80.74708225 | AI101: =IF(Sammenligning!$G$9="GJ",1,(1*3.6))*AVV2træ!AL68 -> 80.74708225 | AJ101: =IF(Sammenligning!$G$9="GJ",1,(1*3.6))*AVV2træ!AM68 -> 80.74708225 | AK101: =IF(Sammenligning!$G$9="GJ",1,(1*3.6))*AVV2træ!AN68 -> 80.74708225 | AL101: =IF(Sammenligning!$G$9="GJ",1,(1*3.6))*AVV2træ!AO68 -> 80.74708225 | AM101: =IF(Sammenligning!$G$9="GJ",1,(1*3.6))*AVV2træ!AP68 -> 80.74708225
C102: AVV2halm | E102: =IF(Sammenligning!$G$9="GJ",1,(1*3.6))*AVV2halm!H68 -> 56.82480061 | F102: =IF(Sammenligning!$G$9="GJ",1,(1*3.6))*AVV2halm!I68 -> 59.00409099 | G102: =IF(Sammenligning!$G$9="GJ",1,(1*3.6))*AVV2halm!J68 -> 47.27874403 | H102: =IF(Sammenligning!$G$9="GJ",1,(1*3.6))*AVV2halm!K68 -> 33.91935286 | I102: =IF(Sammenligning!$G$9="GJ",1,(1*3.6))*AVV2halm!L68 -> 31.36956568 | J102: =IF(Sammenligning!$G$9="GJ",1,(1*3.6))*AVV2halm!M68 -> 35.81063643 | K102: =IF(Sammenligning!$G$9="GJ",1,(1*3.6))*AVV2halm!N68 -> -91.98970808 | L102: =IF(Sammenligning!$G$9="GJ",1,(1*3.6))*AVV2halm!O68 -> 1.130460225 | M102: =IF(Sammenligning!$G$9="GJ",1,(1*3.6))*AVV2halm!P68 -> 18.94078888 | N102: =IF(Sammenligning!$G$9="GJ",1,(1*3.6))*AVV2halm!Q68 -> 25.10805049 | O102: =IF(Sammenligning!$G$9="GJ",1,(1*3.6))*AVV2halm!R68 -> 30.42977403 | P102: =IF(Sammenligning!$G$9="GJ",1,(1*3.6))*AVV2halm!S68 -> 36.98027265 | Q102: =IF(Sammenligning!$G$9="GJ",1,(1*3.6))*AVV2halm!T68 -> 43.06824321 | R102: =IF(Sammenligning!$G$9="GJ",1,(1*3.6))*AVV2halm!U68 -> 51.15123586 | S102: =IF(Sammenligning!$G$9="GJ",1,(1*3.6))*AVV2halm!V68 -> 60.62972556 | T102: =IF(Sammenligning!$G$9="GJ",1,(1*3.6))*AVV2halm!W68 -> 56.346194 | U102: =IF(Sammenligning!$G$9="GJ",1,(1*3.6))*AVV2halm!X68 -> 61.45108192 | V102: =IF(Sammenligning!$G$9="GJ",1,(1*3.6))*AVV2halm!Y68 -> 55.8127191 | W102: =IF(Sammenligning!$G$9="GJ",1,(1*3.6))*AVV2halm!Z68 -> 26.55342021 | X102: =IF(Sammenligning!$G$9="GJ",1,(1*3.6))*AVV2halm!AA68 -> 32.59172199 | Y102: =IF(Sammenligning!$G$9="GJ",1,(1*3.6))*AVV2halm!AB68 -> 32.96751867 | Z102: =IF(Sammenligning!$G$9="GJ",1,(1*3.6))*AVV2halm!AC68 -> 33.1547813 | AA102: =IF(Sammenligning!$G$9="GJ",1,(1*3.6))*AVV2halm!AD68 -> 33.53057798 | AB102: =IF(Sammenligning!$G$9="GJ",1,(1*3.6))*AVV2halm!AE68 -> 33.90637466 | AC102: =IF(Sammenligning!$G$9="GJ",1,(1*3.6))*AVV2halm!AF68 -> 34.09363729 | AD102: =IF(Sammenligning!$G$9="GJ",1,(1*3.6))*AVV2halm!AG68 -> 34.09363729 | AE102: =IF(Sammenligning!$G$9="GJ",1,(1*3.6))*AVV2halm!AH68 -> 34.09363729 | AF102: =IF(Sammenligning!$G$9="GJ",1,(1*3.6))*AVV2halm!AI68 -> 34.09363729 | AG102: =IF(Sammenligning!$G$9="GJ",1,(1*3.6))*AVV2halm!AJ68 -> 34.09363729 | AH102: =IF(Sammenligning!$G$9="GJ",1,(1*3.6))*AVV2halm!AK68 -> 34.09363729 | AI102: =IF(Sammenligning!$G$9="GJ",1,(1*3.6))*AVV2halm!AL68 -> 34.09363729 | AJ102: =IF(Sammenligning!$G$9="GJ",1,(1*3.6))*AVV2halm!AM68 -> 34.09363729 | AK102: =IF(Sammenligning!$G$9="GJ",1,(1*3.6))*AVV2halm!AN68 -> 34.09363729 | AL102: =IF(Sammenligning!$G$9="GJ",1,(1*3.6))*AVV2halm!AO68 -> 34.09363729 | AM102: =IF(Sammenligning!$G$9="GJ",1,(1*3.6))*AVV2halm!AP68 -> 34.09363729
C103: AVV2gasGT | E103: =IF(Sammenligning!$G$9="GJ",1,(1*3.6))*AVV2gasGT!H68 -> 31.62475993 | F103: =IF(Sammenligning!$G$9="GJ",1,(1*3.6))*AVV2gasGT!I68 -> 32.8223531 | G103: =IF(Sammenligning!$G$9="GJ",1,(1*3.6))*AVV2gasGT!J68 -> 40.4754789 | H103: =IF(Sammenligning!$G$9="GJ",1,(1*3.6))*AVV2gasGT!K68 -> 24.45081053 | I103: =IF(Sammenligning!$G$9="GJ",1,(1*3.6))*AVV2gasGT!L68 -> 0.9637948242 | J103: =IF(Sammenligning!$G$9="GJ",1,(1*3.6))*AVV2gasGT!M68 -> -9.111312155 | K103: =IF(Sammenligning!$G$9="GJ",1,(1*3.6))*AVV2gasGT!N68 -> -107.9348851 | L103: =IF(Sammenligning!$G$9="GJ",1,(1*3.6))*AVV2gasGT!O68 -> 38.4871836 | M103: =IF(Sammenligning!$G$9="GJ",1,(1*3.6))*AVV2gasGT!P68 -> -10.09602308 | N103: =IF(Sammenligning!$G$9="GJ",1,(1*3.6))*AVV2gasGT!Q68 -> -2.450345423 | O103: =IF(Sammenligning!$G$9="GJ",1,(1*3.6))*AVV2gasGT!R68 -> -10.16902491 | P103: =IF(Sammenligning!$G$9="GJ",1,(1*3.6))*AVV2gasGT!S68 -> -11.84031912 | Q103: =IF(Sammenligning!$G$9="GJ",1,(1*3.6))*AVV2gasGT!T68 -> -11.92386271 | R103: =IF(Sammenligning!$G$9="GJ",1,(1*3.6))*AVV2gasGT!U68 -> 0.9032625435 | S103: =IF(Sammenligning!$G$9="GJ",1,(1*3.6))*AVV2gasGT!V68 -> 28.90192479 | T103: =IF(Sammenligning!$G$9="GJ",1,(1*3.6))*AVV2gasGT!W68 -> 46.51455891 | U103: =IF(Sammenligning!$G$9="GJ",1,(1*3.6))*AVV2gasGT!X68 -> 85.43799354 | V103: =IF(Sammenligning!$G$9="GJ",1,(1*3.6))*AVV2gasGT!Y68 -> -22.59863648 | W103: =IF(Sammenligning!$G$9="GJ",1,(1*3.6))*AVV2gasGT!Z68 -> 240.0733448 | X103: =IF(Sammenligning!$G$9="GJ",1,(1*3.6))*AVV2gasGT!AA68 -> 193.7203236 | Y103: =IF(Sammenligning!$G$9="GJ",1,(1*3.6))*AVV2gasGT!AB68 -> 190.807285 | Z103: =IF(Sammenligning!$G$9="GJ",1,(1*3.6))*AVV2gasGT!AC68 -> 187.8942465 | AA103: =IF(Sammenligning!$G$9="GJ",1,(1*3.6))*AVV2gasGT!AD68 -> 184.9812079 | AB103: =IF(Sammenligning!$G$9="GJ",1,(1*3.6))*AVV2gasGT!AE68 -> 182.0681693 | AC103: =IF(Sammenligning!$G$9="GJ",1,(1*3.6))*AVV2gasGT!AF68 -> 179.1551308 | AD103: =IF(Sammenligning!$G$9="GJ",1,(1*3.6))*AVV2gasGT!AG68 -> 179.1551308 | AE103: =IF(Sammenligning!$G$9="GJ",1,(1*3.6))*AVV2gasGT!AH68 -> 179.1551308 | AF103: =IF(Sammenligning!$G$9="GJ",1,(1*3.6))*AVV2gasGT!AI68 -> 179.1551308 | AG103: =IF(Sammenligning!$G$9="GJ",1,(1*3.6))*AVV2gasGT!AJ68 -> 179.1551308 | AH103: =IF(Sammenligning!$G$9="GJ",1,(1*3.6))*AVV2gasGT!AK68 -> 179.1551308 | AI103: =IF(Sammenligning!$G$9="GJ",1,(1*3.6))*AVV2gasGT!AL68 -> 179.1551308 | AJ103: =IF(Sammenligning!$G$9="GJ",1,(1*3.6))*AVV2gasGT!AM68 -> 179.1551308 | AK103: =IF(Sammenligning!$G$9="GJ",1,(1*3.6))*AVV2gasGT!AN68 -> 179.1551308 | AL103: =IF(Sammenligning!$G$9="GJ",1,(1*3.6))*AVV2gasGT!AO68 -> 179.1551308 | AM103: =IF(Sammenligning!$G$9="GJ",1,(1*3.6))*AVV2gasGT!AP68 -> 179.1551308
C104: KKV | E104: =IF(Sammenligning!$G$9="GJ",1,(1*3.6))*KKV!H68 -> 59.64485045 | F104: =IF(Sammenligning!$G$9="GJ",1,(1*3.6))*KKV!I68 -> 61.44149808 | G104: =IF(Sammenligning!$G$9="GJ",1,(1*3.6))*KKV!J68 -> 54.69784783 | H104: =IF(Sammenligning!$G$9="GJ",1,(1*3.6))*KKV!K68 -> 46.65038465 | I104: =IF(Sammenligning!$G$9="GJ",1,(1*3.6))*KKV!L68 -> 45.31121572 | J104: =IF(Sammenligning!$G$9="GJ",1,(1*3.6))*KKV!M68 -> 49.52973957 | K104: =IF(Sammenligning!$G$9="GJ",1,(1*3.6))*KKV!N68 -> -18.70625005 | L104: =IF(Sammenligning!$G$9="GJ",1,(1*3.6))*KKV!O68 -> 35.70433573 | M104: =IF(Sammenligning!$G$9="GJ",1,(1*3.6))*KKV!P68 -> 47.44007846 | N104: =IF(Sammenligning!$G$9="GJ",1,(1*3.6))*KKV!Q68 -> 52.87472059 | O104: =IF(Sammenligning!$G$9="GJ",1,(1*3.6))*KKV!R68 -> 50.452107 | P104: =IF(Sammenligning!$G$9="GJ",1,(1*3.6))*KKV!S68 -> 48.90471115 | Q104: =IF(Sammenligning!$G$9="GJ",1,(1*3.6))*KKV!T68 -> 47.61967505 | R104: =IF(Sammenligning!$G$9="GJ",1,(1*3.6))*KKV!U68 -> 48.3474342 | S104: =IF(Sammenligning!$G$9="GJ",1,(1*3.6))*KKV!V68 -> 51.48152823 | T104: =IF(Sammenligning!$G$9="GJ",1,(1*3.6))*KKV!W68 -> 43.79022669 | U104: =IF(Sammenligning!$G$9="GJ",1,(1*3.6))*KKV!X68 -> 49.30947637 | V104: =IF(Sammenligning!$G$9="GJ",1,(1*3.6))*KKV!Y68 -> 35.72609197 | W104: =IF(Sammenligning!$G$9="GJ",1,(1*3.6))*KKV!Z68 -> 61.4118106 | X104: =IF(Sammenligning!$G$9="GJ",1,(1*3.6))*KKV!AA68 -> 56.31353742 | Y104: =IF(Sammenligning!$G$9="GJ",1,(1*3.6))*KKV!AB68 -> 51.65310001 | Z104: =IF(Sammenligning!$G$9="GJ",1,(1*3.6))*KKV!AC68 -> 46.9926626 | AA104: =IF(Sammenligning!$G$9="GJ",1,(1*3.6))*KKV!AD68 -> 42.3322252 | AB104: =IF(Sammenligning!$G$9="GJ",1,(1*3.6))*KKV!AE68 -> 37.67178779 | AC104: =IF(Sammenligning!$G$9="GJ",1,(1*3.6))*KKV!AF68 -> 33.15828211 | AD104: =IF(Sammenligning!$G$9="GJ",1,(1*3.6))*KKV!AG68 -> 33.15828211 | AE104: =IF(Sammenligning!$G$9="GJ",1,(1*3.6))*KKV!AH68 -> 33.15828211 | AF104: =IF(Sammenligning!$G$9="GJ",1,(1*3.6))*KKV!AI68 -> 33.15828211 | AG104: =IF(Sammenligning!$G$9="GJ",1,(1*3.6))*KKV!AJ68 -> 33.15828211 | AH104: =IF(Sammenligning!$G$9="GJ",1,(1*3.6))*KKV!AK68 -> 33.15828211 | AI104: =IF(Sammenligning!$G$9="GJ",1,(1*3.6))*KKV!AL68 -> 33.15828211 | AJ104: =IF(Sammenligning!$G$9="GJ",1,(1*3.6))*KKV!AM68 -> 33.15828211 | AK104: =IF(Sammenligning!$G$9="GJ",1,(1*3.6))*KKV!AN68 -> 33.15828211 | AL104: =IF(Sammenligning!$G$9="GJ",1,(1*3.6))*KKV!AO68 -> 33.15828211 | AM104: =IF(Sammenligning!$G$9="GJ",1,(1*3.6))*KKV!AP68 -> 33.15828211
C105: HCVgas | E105: =IF(Sammenligning!$G$9="GJ",1,(1*3.6))*HCVgas!H68 -> 42.11475112 | F105: =IF(Sammenligning!$G$9="GJ",1,(1*3.6))*HCVgas!I68 -> 42.32873581 | G105: =IF(Sammenligning!$G$9="GJ",1,(1*3.6))*HCVgas!J68 -> 57.41491667 | H105: =IF(Sammenligning!$G$9="GJ",1,(1*3.6))*HCVgas!K68 -> 58.8494878 | I105: =IF(Sammenligning!$G$9="GJ",1,(1*3.6))*HCVgas!L68 -> 47.44702967 | J105: =IF(Sammenligning!$G$9="GJ",1,(1*3.6))*HCVgas!M68 -> 37.21066887 | K105: =IF(Sammenligning!$G$9="GJ",1,(1*3.6))*HCVgas!N68 -> 78.96684746 | L105: =IF(Sammenligning!$G$9="GJ",1,(1*3.6))*HCVgas!O68 -> 91.97618675 | M105: =IF(Sammenligning!$G$9="GJ",1,(1*3.6))*HCVgas!P68 -> 47.72327315 | N105: =IF(Sammenligning!$G$9="GJ",1,(1*3.6))*HCVgas!Q68 -> 45.95166789 | O105: =IF(Sammenligning!$G$9="GJ",1,(1*3.6))*HCVgas!R68 -> 69.27566476 | P105: =IF(Sammenligning!$G$9="GJ",1,(1*3.6))*HCVgas!S68 -> 93.12491767 | Q105: =IF(Sammenligning!$G$9="GJ",1,(1*3.6))*HCVgas!T68 -> 115.7456242 | R105: =IF(Sammenligning!$G$9="GJ",1,(1*3.6))*HCVgas!U68 -> 137.7272476 | S105: =IF(Sammenligning!$G$9="GJ",1,(1*3.6))*HCVgas!V68 -> 157.1548364 | T105: =IF(Sammenligning!$G$9="GJ",1,(1*3.6))*HCVgas!W68 -> 161.3302356 | U105: =IF(Sammenligning!$G$9="GJ",1,(1*3.6))*HCVgas!X68 -> 165.6262377 | V105: =IF(Sammenligning!$G$9="GJ",1,(1*3.6))*HCVgas!Y68 -> 170.1894048 | W105: =IF(Sammenligning!$G$9="GJ",1,(1*3.6))*HCVgas!Z68 -> 234.09148 | X105: =IF(Sammenligning!$G$9="GJ",1,(1*3.6))*HCVgas!AA68 -> 234.09148 | Y105: =IF(Sammenligning!$G$9="GJ",1,(1*3.6))*HCVgas!AB68 -> 234.09148 | Z105: =IF(Sammenligning!$G$9="GJ",1,(1*3.6))*HCVgas!AC68 -> 234.09148 | AA105: =IF(Sammenligning!$G$9="GJ",1,(1*3.6))*HCVgas!AD68 -> 234.09148 | AB105: =IF(Sammenligning!$G$9="GJ",1,(1*3.6))*HCVgas!AE68 -> 234.09148 | AC105: =IF(Sammenligning!$G$9="GJ",1,(1*3.6))*HCVgas!AF68 -> 234.09148 | AD105: =IF(Sammenligning!$G$9="GJ",1,(1*3.6))*HCVgas!AG68 -> 234.09148 | AE105: =IF(Sammenligning!$G$9="GJ",1,(1*3.6))*HCVgas!AH68 -> 234.09148 | AF105: =IF(Sammenligning!$G$9="GJ",1,(1*3.6))*HCVgas!AI68 -> 234.09148 | AG105: =IF(Sammenligning!$G$9="GJ",1,(1*3.6))*HCVgas!AJ68 -> 234.09148 | AH105: =IF(Sammenligning!$G$9="GJ",1,(1*3.6))*HCVgas!AK68 -> 234.09148 | AI105: =IF(Sammenligning!$G$9="GJ",1,(1*3.6))*HCVgas!AL68 -> 234.09148 | AJ105: =IF(Sammenligning!$G$9="GJ",1,(1*3.6))*HCVgas!AM68 -> 234.09148 | AK105: =IF(Sammenligning!$G$9="GJ",1,(1*3.6))*HCVgas!AN68 -> 234.09148 | AL105: =IF(Sammenligning!$G$9="GJ",1,(1*3.6))*HCVgas!AO68 -> 234.09148 | AM105: =IF(Sammenligning!$G$9="GJ",1,(1*3.6))*HCVgas!AP68 -> 234.09148
C106: SPolie | E106: =IF(Sammenligning!$G$9="GJ",1,(1*3.6))*SPolie!H67 -> 95.67547967 | F106: =IF(Sammenligning!$G$9="GJ",1,(1*3.6))*SPolie!I67 -> 97.56377026 | G106: =IF(Sammenligning!$G$9="GJ",1,(1*3.6))*SPolie!J67 -> 112.0450833 | H106: =IF(Sammenligning!$G$9="GJ",1,(1*3.6))*SPolie!K67 -> 124.6357769 | I106: =IF(Sammenligning!$G$9="GJ",1,(1*3.6))*SPolie!L67 -> 128.4525916 | J106: =IF(Sammenligning!$G$9="GJ",1,(1*3.6))*SPolie!M67 -> 130.9439691 | K106: =IF(Sammenligning!$G$9="GJ",1,(1*3.6))*SPolie!N67 -> 172.6832147 | L106: =IF(Sammenligning!$G$9="GJ",1,(1*3.6))*SPolie!O67 -> 170.8438814 | M106: =IF(Sammenligning!$G$9="GJ",1,(1*3.6))*SPolie!P67 -> 168.1116592 | N106: =IF(Sammenligning!$G$9="GJ",1,(1*3.6))*SPolie!Q67 -> 165.6304369 | O106: =IF(Sammenligning!$G$9="GJ",1,(1*3.6))*SPolie!R67 -> 166.6144369 | P106: =IF(Sammenligning!$G$9="GJ",1,(1*3.6))*SPolie!S67 -> 168.0964369 | Q106: =IF(Sammenligning!$G$9="GJ",1,(1*3.6))*SPolie!T67 -> 169.8829925 | R106: =IF(Sammenligning!$G$9="GJ",1,(1*3.6))*SPolie!U67 -> 171.7231036 | S106: =IF(Sammenligning!$G$9="GJ",1,(1*3.6))*SPolie!V67 -> 173.645548 | T106: =IF(Sammenligning!$G$9="GJ",1,(1*3.6))*SPolie!W67 -> 176.4568814 | U106: =IF(Sammenligning!$G$9="GJ",1,(1*3.6))*SPolie!X67 -> 179.5152147 | V106: =IF(Sammenligning!$G$9="GJ",1,(1*3.6))*SPolie!Y67 -> 182.5447703 | W106: =IF(Sammenligning!$G$9="GJ",1,(1*3.6))*SPolie!Z67 -> 185.6566592 | X106: =IF(Sammenligning!$G$9="GJ",1,(1*3.6))*SPolie!AA67 -> 188.9044369 | Y106: =IF(Sammenligning!$G$9="GJ",1,(1*3.6))*SPolie!AB67 -> 192.0946592 | Z106: =IF(Sammenligning!$G$9="GJ",1,(1*3.6))*SPolie!AC67 -> 195.2561036 | AA106: =IF(Sammenligning!$G$9="GJ",1,(1*3.6))*SPolie!AD67 -> 198.664548 | AB106: =IF(Sammenligning!$G$9="GJ",1,(1*3.6))*SPolie!AE67 -> 202.3199925 | AC106: =IF(Sammenligning!$G$9="GJ",1,(1*3.6))*SPolie!AF67 -> 206.0289925 | AD106: =IF(Sammenligning!$G$9="GJ",1,(1*3.6))*SPolie!AG67 -> 206.0289925 | AE106: =IF(Sammenligning!$G$9="GJ",1,(1*3.6))*SPolie!AH67 -> 206.0289925 | AF106: =IF(Sammenligning!$G$9="GJ",1,(1*3.6))*SPolie!AI67 -> 206.0289925 | AG106: =IF(Sammenligning!$G$9="GJ",1,(1*3.6))*SPolie!AJ67 -> 206.0289925 | AH106: =IF(Sammenligning!$G$9="GJ",1,(1*3.6))*SPolie!AK67 -> 206.0289925 | AI106: =IF(Sammenligning!$G$9="GJ",1,(1*3.6))*SPolie!AL67 -> 206.0289925 | AJ106: =IF(Sammenligning!$G$9="GJ",1,(1*3.6))*SPolie!AM67 -> 206.0289925 | AK106: =IF(Sammenligning!$G$9="GJ",1,(1*3.6))*SPolie!AN67 -> 206.0289925 | AL106: =IF(Sammenligning!$G$9="GJ",1,(1*3.6))*SPolie!AO67 -> 206.0289925 | AM106: =IF(Sammenligning!$G$9="GJ",1,(1*3.6))*SPolie!AP67 -> 206.0289925
C107: SPgas | E107: =IF(Sammenligning!$G$9="GJ",1,(1*3.6))*SPgas!H67 -> 48.23845544 | F107: =IF(Sammenligning!$G$9="GJ",1,(1*3.6))*SPgas!I67 -> 47.96531606 | G107: =IF(Sammenligning!$G$9="GJ",1,(1*3.6))*SPgas!J67 -> 66.47021628 | H107: =IF(Sammenligning!$G$9="GJ",1,(1*3.6))*SPgas!K67 -> 76.46911526 | I107: =IF(Sammenligning!$G$9="GJ",1,(1*3.6))*SPgas!L67 -> 71.18928374 | J107: =IF(Sammenligning!$G$9="GJ",1,(1*3.6))*SPgas!M67 -> 63.42611854 | K107: =IF(Sammenligning!$G$9="GJ",1,(1*3.6))*SPgas!N67 -> 195.9055938 | L107: =IF(Sammenligning!$G$9="GJ",1,(1*3.6))*SPgas!O67 -> 139.2852605 | M107: =IF(Sammenligning!$G$9="GJ",1,(1*3.6))*SPgas!P67 -> 99.58470495 | N107: =IF(Sammenligning!$G$9="GJ",1,(1*3.6))*SPgas!Q67 -> 96.37642717 | O107: =IF(Sammenligning!$G$9="GJ",1,(1*3.6))*SPgas!R67 -> 99.05553828 | P107: =IF(Sammenligning!$G$9="GJ",1,(1*3.6))*SPgas!S67 -> 101.8612049 | Q107: =IF(Sammenligning!$G$9="GJ",1,(1*3.6))*SPgas!T67 -> 104.7301494 | R107: =IF(Sammenligning!$G$9="GJ",1,(1*3.6))*SPgas!U67 -> 107.6145383 | S107: =IF(Sammenligning!$G$9="GJ",1,(1*3.6))*SPgas!V67 -> 110.6733161 | T107: =IF(Sammenligning!$G$9="GJ",1,(1*3.6))*SPgas!W67 -> 113.3987605 | U107: =IF(Sammenligning!$G$9="GJ",1,(1*3.6))*SPgas!X67 -> 116.2029272 | V107: =IF(Sammenligning!$G$9="GJ",1,(1*3.6))*SPgas!Y67 -> 119.1814827 | W107: =IF(Sammenligning!$G$9="GJ",1,(1*3.6))*SPgas!Z67 -> 160.5503272 | X107: =IF(Sammenligning!$G$9="GJ",1,(1*3.6))*SPgas!AA67 -> 160.5503272 | Y107: =IF(Sammenligning!$G$9="GJ",1,(1*3.6))*SPgas!AB67 -> 160.5503272 | Z107: =IF(Sammenligning!$G$9="GJ",1,(1*3.6))*SPgas!AC67 -> 160.5503272 | AA107: =IF(Sammenligning!$G$9="GJ",1,(1*3.6))*SPgas!AD67 -> 160.5503272 | AB107: =IF(Sammenligning!$G$9="GJ",1,(1*3.6))*SPgas!AE67 -> 160.5503272 | AC107: =IF(Sammenligning!$G$9="GJ",1,(1*3.6))*SPgas!AF67 -> 160.5503272 | AD107: =IF(Sammenligning!$G$9="GJ",1,(1*3.6))*SPgas!AG67 -> 160.5503272 | AE107: =IF(Sammenligning!$G$9="GJ",1,(1*3.6))*SPgas!AH67 -> 160.5503272 | AF107: =IF(Sammenligning!$G$9="GJ",1,(1*3.6))*SPgas!AI67 -> 160.5503272 | AG107: =IF(Sammenligning!$G$9="GJ",1,(1*3.6))*SPgas!AJ67 -> 160.5503272 | AH107: =IF(Sammenligning!$G$9="GJ",1,(1*3.6))*SPgas!AK67 -> 160.5503272 | AI107: =IF(Sammenligning!$G$9="GJ",1,(1*3.6))*SPgas!AL67 -> 160.5503272 | AJ107: =IF(Sammenligning!$G$9="GJ",1,(1*3.6))*SPgas!AM67 -> 160.5503272 | AK107: =IF(Sammenligning!$G$9="GJ",1,(1*3.6))*SPgas!AN67 -> 160.5503272 | AL107: =IF(Sammenligning!$G$9="GJ",1,(1*3.6))*SPgas!AO67 -> 160.5503272 | AM107: =IF(Sammenligning!$G$9="GJ",1,(1*3.6))*SPgas!AP67 -> 160.5503272
C108: GeoEl | E108: =IF(Sammenligning!$G$9="GJ",1,(1*3.6))*GeoEL!H66 -> 37.21442708 | F108: =IF(Sammenligning!$G$9="GJ",1,(1*3.6))*GeoEL!I66 -> 31.3146229 | G108: =IF(Sammenligning!$G$9="GJ",1,(1*3.6))*GeoEL!J66 -> 36.6111253 | H108: =IF(Sammenligning!$G$9="GJ",1,(1*3.6))*GeoEL!K66 -> 40.41454216 | I108: =IF(Sammenligning!$G$9="GJ",1,(1*3.6))*GeoEL!L66 -> 42.11050701 | J108: =IF(Sammenligning!$G$9="GJ",1,(1*3.6))*GeoEL!M66 -> 41.26167643 | K108: =IF(Sammenligning!$G$9="GJ",1,(1*3.6))*GeoEL!N66 -> 117.8586347 | L108: =IF(Sammenligning!$G$9="GJ",1,(1*3.6))*GeoEL!O66 -> 66.95520911 | M108: =IF(Sammenligning!$G$9="GJ",1,(1*3.6))*GeoEL!P66 -> 58.48173766 | N108: =IF(Sammenligning!$G$9="GJ",1,(1*3.6))*GeoEL!Q66 -> 56.79956275 | O108: =IF(Sammenligning!$G$9="GJ",1,(1*3.6))*GeoEL!R66 -> 55.68152481 | P108: =IF(Sammenligning!$G$9="GJ",1,(1*3.6))*GeoEL!S66 -> 53.77223765 | Q108: =IF(Sammenligning!$G$9="GJ",1,(1*3.6))*GeoEL!T66 -> 51.88149026 | R108: =IF(Sammenligning!$G$9="GJ",1,(1*3.6))*GeoEL!U66 -> 48.36418729 | S108: =IF(Sammenligning!$G$9="GJ",1,(1*3.6))*GeoEL!V66 -> 43.1855415 | T108: =IF(Sammenligning!$G$9="GJ",1,(1*3.6))*GeoEL!W66 -> 43.07708937 | U108: =IF(Sammenligning!$G$9="GJ",1,(1*3.6))*GeoEL!X66 -> 44.25373971 | V108: =IF(Sammenligning!$G$9="GJ",1,(1*3.6))*GeoEL!Y66 -> 41.63721001 | W108: =IF(Sammenligning!$G$9="GJ",1,(1*3.6))*GeoEL!Z66 -> 43.44690927 | X108: =IF(Sammenligning!$G$9="GJ",1,(1*3.6))*GeoEL!AA66 -> 44.12069541 | Y108: =IF(Sammenligning!$G$9="GJ",1,(1*3.6))*GeoEL!AB66 -> 44.86542939 | Z108: =IF(Sammenligning!$G$9="GJ",1,(1*3.6))*GeoEL!AC66 -> 45.61016336 | AA108: =IF(Sammenligning!$G$9="GJ",1,(1*3.6))*GeoEL!AD66 -> 46.35489733 | AB108: =IF(Sammenligning!$G$9="GJ",1,(1*3.6))*GeoEL!AE66 -> 47.09963131 | AC108: =IF(Sammenligning!$G$9="GJ",1,(1*3.6))*GeoEL!AF66 -> 47.84436528 | AD108: =IF(Sammenligning!$G$9="GJ",1,(1*3.6))*GeoEL!AG66 -> 47.84436528 | AE108: =IF(Sammenligning!$G$9="GJ",1,(1*3.6))*GeoEL!AH66 -> 47.84436528 | AF108: =IF(Sammenligning!$G$9="GJ",1,(1*3.6))*GeoEL!AI66 -> 47.84436528 | AG108: =IF(Sammenligning!$G$9="GJ",1,(1*3.6))*GeoEL!AJ66 -> 47.84436528 | AH108: =IF(Sammenligning!$G$9="GJ",1,(1*3.6))*GeoEL!AK66 -> 47.84436528 | AI108: =IF(Sammenligning!$G$9="GJ",1,(1*3.6))*GeoEL!AL66 -> 47.84436528 | AJ108: =IF(Sammenligning!$G$9="GJ",1,(1*3.6))*GeoEL!AM66 -> 47.84436528 | AK108: =IF(Sammenligning!$G$9="GJ",1,(1*3.6))*GeoEL!AN66 -> 47.84436528 | AL108: =IF(Sammenligning!$G$9="GJ",1,(1*3.6))*GeoEL!AO66 -> 47.84436528 | AM108: =IF(Sammenligning!$G$9="GJ",1,(1*3.6))*GeoEL!AP66 -> 47.84436528
C109: GeoVa | E109: =IF(Sammenligning!$G$9="GJ",1,(1*3.6))*GeoVa!H66 -> 14.5952678 | F109: =IF(Sammenligning!$G$9="GJ",1,(1*3.6))*GeoVa!I66 -> 12.52528894 | G109: =IF(Sammenligning!$G$9="GJ",1,(1*3.6))*GeoVa!J66 -> 13.89213675 | H109: =IF(Sammenligning!$G$9="GJ",1,(1*3.6))*GeoVa!K66 -> 14.70491696 | I109: =IF(Sammenligning!$G$9="GJ",1,(1*3.6))*GeoVa!L66 -> 15.17871667 | J109: =IF(Sammenligning!$G$9="GJ",1,(1*3.6))*GeoVa!M66 -> 14.94151572 | K109: =IF(Sammenligning!$G$9="GJ",1,(1*3.6))*GeoVa!N66 -> 36.36138617 | L109: =IF(Sammenligning!$G$9="GJ",1,(1*3.6))*GeoVa!O66 -> 22.13870407 | M109: =IF(Sammenligning!$G$9="GJ",1,(1*3.6))*GeoVa!P66 -> 19.77196075 | N109: =IF(Sammenligning!$G$9="GJ",1,(1*3.6))*GeoVa!Q66 -> 19.30305654 | O109: =IF(Sammenligning!$G$9="GJ",1,(1*3.6))*GeoVa!R66 -> 7.22042042 | P109: =IF(Sammenligning!$G$9="GJ",1,(1*3.6))*GeoVa!S66 -> 7.198198198 | Q109: =IF(Sammenligning!$G$9="GJ",1,(1*3.6))*GeoVa!T66 -> 7.175975976 | R109: =IF(Sammenligning!$G$9="GJ",1,(1*3.6))*GeoVa!U66 -> 7.131531532 | S109: =IF(Sammenligning!$G$9="GJ",1,(1*3.6))*GeoVa!V66 -> 7.042642643 | T109: =IF(Sammenligning!$G$9="GJ",1,(1*3.6))*GeoVa!W66 -> 7.042642643 | U109: =IF(Sammenligning!$G$9="GJ",1,(1*3.6))*GeoVa!X66 -> 7.042642643 | V109: =IF(Sammenligning!$G$9="GJ",1,(1*3.6))*GeoVa!Y66 -> 7.042642643 | W109: =IF(Sammenligning!$G$9="GJ",1,(1*3.6))*GeoVa!Z66 -> 7.042642643 | X109: =IF(Sammenligning!$G$9="GJ",1,(1*3.6))*GeoVa!AA66 -> 7.042642643 | Y109: =IF(Sammenligning!$G$9="GJ",1,(1*3.6))*GeoVa!AB66 -> 7.042642643 | Z109: =IF(Sammenligning!$G$9="GJ",1,(1*3.6))*GeoVa!AC66 -> 7.042642643 | AA109: =IF(Sammenligning!$G$9="GJ",1,(1*3.6))*GeoVa!AD66 -> 7.042642643 | AB109: =IF(Sammenligning!$G$9="GJ",1,(1*3.6))*GeoVa!AE66 -> 7.042642643 | AC109: =IF(Sammenligning!$G$9="GJ",1,(1*3.6))*GeoVa!AF66 -> 7.042642643 | AD109: =IF(Sammenligning!$G$9="GJ",1,(1*3.6))*GeoVa!AG66 -> 7.042642643 | AE109: =IF(Sammenligning!$G$9="GJ",1,(1*3.6))*GeoVa!AH66 -> 7.042642643 | AF109: =IF(Sammenligning!$G$9="GJ",1,(1*3.6))*GeoVa!AI66 -> 7.042642643 | AG109: =IF(Sammenligning!$G$9="GJ",1,(1*3.6))*GeoVa!AJ66 -> 7.042642643 | AH109: =IF(Sammenligning!$G$9="GJ",1,(1*3.6))*GeoVa!AK66 -> 7.042642643 | AI109: =IF(Sammenligning!$G$9="GJ",1,(1*3.6))*GeoVa!AL66 -> 7.042642643 | AJ109: =IF(Sammenligning!$G$9="GJ",1,(1*3.6))*GeoVa!AM66 -> 7.042642643 | AK109: =IF(Sammenligning!$G$9="GJ",1,(1*3.6))*GeoVa!AN66 -> 7.042642643 | AL109: =IF(Sammenligning!$G$9="GJ",1,(1*3.6))*GeoVa!AO66 -> 7.042642643 | AM109: =IF(Sammenligning!$G$9="GJ",1,(1*3.6))*GeoVa!AP66 -> 7.042642643
C110: =C136 -> VP | E110: =IF(Sammenligning!$G$9="GJ",1,(1*3.6))*VP!H76 -> 45.94426287 | F110: =IF(Sammenligning!$G$9="GJ",1,(1*3.6))*VP!I76 -> 38.48242745 | G110: =IF(Sammenligning!$G$9="GJ",1,(1*3.6))*VP!J76 -> 44.81222254 | H110: =IF(Sammenligning!$G$9="GJ",1,(1*3.6))*VP!K76 -> 49.23093981 | I110: =IF(Sammenligning!$G$9="GJ",1,(1*3.6))*VP!L76 -> 51.28489674 | J110: =IF(Sammenligning!$G$9="GJ",1,(1*3.6))*VP!M76 -> 49.71654583 | K110: =IF(Sammenligning!$G$9="GJ",1,(1*3.6))*VP!N76 -> 139.2559791 | L110: =IF(Sammenligning!$G$9="GJ",1,(1*3.6))*VP!O76 -> 78.4166792 | M110: =IF(Sammenligning!$G$9="GJ",1,(1*3.6))*VP!P76 -> 67.76473455 | N110: =IF(Sammenligning!$G$9="GJ",1,(1*3.6))*VP!Q76 -> 65.03788194 | O110: =IF(Sammenligning!$G$9="GJ",1,(1*3.6))*VP!R76 -> 61.43909692 | P110: =IF(Sammenligning!$G$9="GJ",1,(1*3.6))*VP!S76 -> 57.13422616 | Q110: =IF(Sammenligning!$G$9="GJ",1,(1*3.6))*VP!T76 -> 53.02678237 | R110: =IF(Sammenligning!$G$9="GJ",1,(1*3.6))*VP!U76 -> 47.62522899 | S110: =IF(Sammenligning!$G$9="GJ",1,(1*3.6))*VP!V76 -> 41.14634138 | T110: =IF(Sammenligning!$G$9="GJ",1,(1*3.6))*VP!W76 -> 37.27597789 | U110: =IF(Sammenligning!$G$9="GJ",1,(1*3.6))*VP!X76 -> 35.86906972 | V110: =IF(Sammenligning!$G$9="GJ",1,(1*3.6))*VP!Y76 -> 32.98479719 | W110: =IF(Sammenligning!$G$9="GJ",1,(1*3.6))*VP!Z76 -> 36.52711035 | X110: =IF(Sammenligning!$G$9="GJ",1,(1*3.6))*VP!AA76 -> 36.26262091 | Y110: =IF(Sammenligning!$G$9="GJ",1,(1*3.6))*VP!AB76 -> 36.15226606 | Z110: =IF(Sammenligning!$G$9="GJ",1,(1*3.6))*VP!AC76 -> 36.0419112 | AA110: =IF(Sammenligning!$G$9="GJ",1,(1*3.6))*VP!AD76 -> 35.93155635 | AB110: =IF(Sammenligning!$G$9="GJ",1,(1*3.6))*VP!AE76 -> 35.8212015 | AC110: =IF(Sammenligning!$G$9="GJ",1,(1*3.6))*VP!AF76 -> 35.71084664 | AD110: =IF(Sammenligning!$G$9="GJ",1,(1*3.6))*VP!AG76 -> 35.71084664 | AE110: =IF(Sammenligning!$G$9="GJ",1,(1*3.6))*VP!AH76 -> 35.71084664 | AF110: =IF(Sammenligning!$G$9="GJ",1,(1*3.6))*VP!AI76 -> 35.71084664 | AG110: =IF(Sammenligning!$G$9="GJ",1,(1*3.6))*VP!AJ76 -> 35.71084664 | AH110: =IF(Sammenligning!$G$9="GJ",1,(1*3.6))*VP!AK76 -> 35.71084664 | AI110: =IF(Sammenligning!$G$9="GJ",1,(1*3.6))*VP!AL76 -> 35.71084664 | AJ110: =IF(Sammenligning!$G$9="GJ",1,(1*3.6))*VP!AM76 -> 35.71084664 | AK110: =IF(Sammenligning!$G$9="GJ",1,(1*3.6))*VP!AN76 -> 35.71084664 | AL110: =IF(Sammenligning!$G$9="GJ",1,(1*3.6))*VP!AO76 -> 35.71084664 | AM110: =IF(Sammenligning!$G$9="GJ",1,(1*3.6))*VP!AP76 -> 35.71084664
C111: =C137 -> Sol | E111: =IF(Sammenligning!$G$9="GJ",1,(1*3.6))*Sol!H65 -> 1.351351351 | F111: =IF(Sammenligning!$G$9="GJ",1,(1*3.6))*Sol!I65 -> 1.351351351 | G111: =IF(Sammenligning!$G$9="GJ",1,(1*3.6))*Sol!J65 -> 1.351351351 | H111: =IF(Sammenligning!$G$9="GJ",1,(1*3.6))*Sol!K65 -> 1.351351351 | I111: =IF(Sammenligning!$G$9="GJ",1,(1*3.6))*Sol!L65 -> 1.351351351 | J111: =IF(Sammenligning!$G$9="GJ",1,(1*3.6))*Sol!M65 -> 1.351351351 | K111: =IF(Sammenligning!$G$9="GJ",1,(1*3.6))*Sol!N65 -> 1.351351351 | L111: =IF(Sammenligning!$G$9="GJ",1,(1*3.6))*Sol!O65 -> 1.351351351 | M111: =IF(Sammenligning!$G$9="GJ",1,(1*3.6))*Sol!P65 -> 1.351351351 | N111: =IF(Sammenligning!$G$9="GJ",1,(1*3.6))*Sol!Q65 -> 1.351351351 | O111: =IF(Sammenligning!$G$9="GJ",1,(1*3.6))*Sol!R65 -> 1.351351351 | P111: =IF(Sammenligning!$G$9="GJ",1,(1*3.6))*Sol!S65 -> 1.351351351 | Q111: =IF(Sammenligning!$G$9="GJ",1,(1*3.6))*Sol!T65 -> 1.351351351 | R111: =IF(Sammenligning!$G$9="GJ",1,(1*3.6))*Sol!U65 -> 1.351351351 | S111: =IF(Sammenligning!$G$9="GJ",1,(1*3.6))*Sol!V65 -> 1.351351351 | T111: =IF(Sammenligning!$G$9="GJ",1,(1*3.6))*Sol!W65 -> 1.351351351 | U111: =IF(Sammenligning!$G$9="GJ",1,(1*3.6))*Sol!X65 -> 1.351351351 | V111: =IF(Sammenligning!$G$9="GJ",1,(1*3.6))*Sol!Y65 -> 1.351351351 | W111: =IF(Sammenligning!$G$9="GJ",1,(1*3.6))*Sol!Z65 -> 1.351351351 | X111: =IF(Sammenligning!$G$9="GJ",1,(1*3.6))*Sol!AA65 -> 1.351351351 | Y111: =IF(Sammenligning!$G$9="GJ",1,(1*3.6))*Sol!AB65 -> 1.351351351 | Z111: =IF(Sammenligning!$G$9="GJ",1,(1*3.6))*Sol!AC65 -> 1.351351351 | AA111: =IF(Sammenligning!$G$9="GJ",1,(1*3.6))*Sol!AD65 -> 1.351351351 | AB111: =IF(Sammenligning!$G$9="GJ",1,(1*3.6))*Sol!AE65 -> 1.351351351 | AC111: =IF(Sammenligning!$G$9="GJ",1,(1*3.6))*Sol!AF65 -> 1.351351351 | AD111: =IF(Sammenligning!$G$9="GJ",1,(1*3.6))*Sol!AG65 -> 1.351351351 | AE111: =IF(Sammenligning!$G$9="GJ",1,(1*3.6))*Sol!AH65 -> 1.351351351 | AF111: =IF(Sammenligning!$G$9="GJ",1,(1*3.6))*Sol!AI65 -> 1.351351351 | AG111: =IF(Sammenligning!$G$9="GJ",1,(1*3.6))*Sol!AJ65 -> 1.351351351 | AH111: =IF(Sammenligning!$G$9="GJ",1,(1*3.6))*Sol!AK65 -> 1.351351351 | AI111: =IF(Sammenligning!$G$9="GJ",1,(1*3.6))*Sol!AL65 -> 1.351351351 | AJ111: =IF(Sammenligning!$G$9="GJ",1,(1*3.6))*Sol!AM65 -> 1.351351351 | AK111: =IF(Sammenligning!$G$9="GJ",1,(1*3.6))*Sol!AN65 -> 1.351351351 | AL111: =IF(Sammenligning!$G$9="GJ",1,(1*3.6))*Sol!AO65 -> 1.351351351 | AM111: =IF(Sammenligning!$G$9="GJ",1,(1*3.6))*Sol!AP65 -> 1.351351351
C113: VPer langsigtede pris for nye kunder
C114: ="Enhed: Kr/"&Sammenligning!$G$9 -> Enhed: Kr/GJ | E114: 2016 | F114: 2017 | G114: 2018 | H114: 2019 | I114: 2020 | J114: 2021 | K114: 2022 | L114: 2023 | M114: 2024 | N114: 2025 | O114: 2026 | P114: 2027 | Q114: 2028 | R114: 2029 | S114: 2030 | T114: 2031 | U114: 2032 | V114: 2033 | W114: 2034 | X114: 2035 | Y114: 2036 | Z114: 2037 | AA114: 2038 | AB114: 2039 | AC114: 2040 | AD114: 2041 | AE114: 2042 | AF114: 2043 | AG114: 2044 | AH114: 2045 | AI114: 2046 | AJ114: 2047 | AK114: 2048 | AL114: 2049 | AM114: 2050
C115: VP | E115: =VP!H78 -> 45.94426287 | F115: =VP!I78 -> 38.48242745 | G115: =VP!J78 -> 44.81222254 | H115: =VP!K78 -> 49.23093981 | I115: =VP!L78 -> 51.28489674 | J115: =VP!M78 -> 49.71654583 | K115: =VP!N78 -> 139.2559791 | L115: =VP!O78 -> 78.4166792 | M115: =VP!P78 -> 67.76473455 | N115: =VP!Q78 -> 65.03788194 | O115: =VP!R78 -> 61.43909692 | P115: =VP!S78 -> 57.13422616 | Q115: =VP!T78 -> 53.02678237 | R115: =VP!U78 -> 47.62522899 | S115: =VP!V78 -> 76.78348503 | T115: =VP!W78 -> 84.44846344 | U115: =VP!X78 -> 85.03099956 | V115: =VP!Y78 -> 81.65564745 | W115: =VP!Z78 -> 78.98935305 | X115: =VP!AA78 -> 79.49753969 | Y115: =VP!AB78 -> 78.82164105 | Z115: =VP!AC78 -> 78.16034681 | AA115: =VP!AD78 -> 77.51309848 | AB115: =VP!AE78 -> 76.87936568 | AC115: =VP!AF78 -> 76.25864439 | AD115: =VP!AG78 -> 76.25864439 | AE115: =VP!AH78 -> 76.25864439 | AF115: =VP!AI78 -> 76.25864439 | AG115: =VP!AJ78 -> 76.25864439 | AH115: =VP!AK78 -> 76.25864439 | AI115: =VP!AL78 -> 76.25864439 | AJ115: =VP!AM78 -> 76.25864439 | AK115: =VP!AN78 -> 76.25864439 | AL115: =VP!AO78 -> 76.25864439 | AM115: =VP!AP78 -> 76.25864439
C118: Samfundsøkonomiske pris per værk, langsigtede (i grundscenarie -uden konverteringer)
C119: ="Enhed: Kr/"&Sammenligning!$G$9 -> Enhed: Kr/GJ | E119: 2016 | F119: 2017 | G119: 2018 | H119: 2019 | I119: 2020 | J119: 2021 | K119: 2022 | L119: 2023 | M119: 2024 | N119: 2025 | O119: 2026 | P119: 2027 | Q119: 2028 | R119: 2029 | S119: 2030 | T119: 2031 | U119: 2032 | V119: 2033 | W119: 2034 | X119: 2035 | Y119: 2036 | Z119: 2037 | AA119: 2038 | AB119: 2039 | AC119: 2040 | AD119: 2041 | AE119: 2042 | AF119: 2043 | AG119: 2044 | AH119: 2045 | AI119: 2046 | AJ119: 2047 | AK119: 2048 | AL119: 2049 | AM119: 2050
C120: =C222 -> AMV1træ | E120: =IF(Sammenligning!$G$9="GJ",1,(1/3.6))*AMV1træ!H69 -> 1034.723713 | F120: =IF(Sammenligning!$G$9="GJ",1,(1/3.6))*AMV1træ!I69 -> 999.7614933 | G120: =IF(Sammenligning!$G$9="GJ",1,(1/3.6))*AMV1træ!J69 -> 1016.159316 | H120: =IF(Sammenligning!$G$9="GJ",1,(1/3.6))*AMV1træ!K69 -> 1008.901075 | I120: =IF(Sammenligning!$G$9="GJ",1,(1/3.6))*AMV1træ!L69 -> 1006.285569 | J120: =IF(Sammenligning!$G$9="GJ",1,(1/3.6))*AMV1træ!M69 -> 657.4777713 | K120: =IF(Sammenligning!$G$9="GJ",1,(1/3.6))*AMV1træ!N69 -> 454.0179373 | L120: =IF(Sammenligning!$G$9="GJ",1,(1/3.6))*AMV1træ!O69 -> 403.7517586 | M120: =IF(Sammenligning!$G$9="GJ",1,(1/3.6))*AMV1træ!P69 -> 343.1076025 | N120: =IF(Sammenligning!$G$9="GJ",1,(1/3.6))*AMV1træ!Q69 -> 302.684179 | O120: =IF(Sammenligning!$G$9="GJ",1,(1/3.6))*AMV1træ!R69 -> 295.9645007 | P120: =IF(Sammenligning!$G$9="GJ",1,(1/3.6))*AMV1træ!S69 -> 290.3268658 | Q120: =IF(Sammenligning!$G$9="GJ",1,(1/3.6))*AMV1træ!T69 -> 285.2894453 | R120: =IF(Sammenligning!$G$9="GJ",1,(1/3.6))*AMV1træ!U69 -> 282.9241575 | S120: =IF(Sammenligning!$G$9="GJ",1,(1/3.6))*AMV1træ!V69 -> 284.1322808 | T120: =IF(Sammenligning!$G$9="GJ",1,(1/3.6))*AMV1træ!W69 -> 291.5391717 | U120: =IF(Sammenligning!$G$9="GJ",1,(1/3.6))*AMV1træ!X69 -> 277.6310913 | V120: =IF(Sammenligning!$G$9="GJ",1,(1/3.6))*AMV1træ!Y69 -> 280.4638121 | W120: =IF(Sammenligning!$G$9="GJ",1,(1/3.6))*AMV1træ!Z69 -> 230.0466194 | X120: =IF(Sammenligning!$G$9="GJ",1,(1/3.6))*AMV1træ!AA69 -> 234.2387124 | Y120: =IF(Sammenligning!$G$9="GJ",1,(1/3.6))*AMV1træ!AB69 -> 232.1396592 | Z120: =IF(Sammenligning!$G$9="GJ",1,(1/3.6))*AMV1træ!AC69 -> 229.9901914 | AA120: =IF(Sammenligning!$G$9="GJ",1,(1/3.6))*AMV1træ!AD69 -> 228.0596171 | AB120: =IF(Sammenligning!$G$9="GJ",1,(1/3.6))*AMV1træ!AE69 -> 226.2072634 | AC120: =IF(Sammenligning!$G$9="GJ",1,(1/3.6))*AMV1træ!AF69 -> 224.4294534 | AD120: =IF(Sammenligning!$G$9="GJ",1,(1/3.6))*AMV1træ!AG69 -> 224.4294534 | AE120: =IF(Sammenligning!$G$9="GJ",1,(1/3.6))*AMV1træ!AH69 -> 224.4294534 | AF120: =IF(Sammenligning!$G$9="GJ",1,(1/3.6))*AMV1træ!AI69 -> 224.4294534 | AG120: =IF(Sammenligning!$G$9="GJ",1,(1/3.6))*AMV1træ!AJ69 -> 224.4294534 | AH120: =IF(Sammenligning!$G$9="GJ",1,(1/3.6))*AMV1træ!AK69 -> 224.4294534 | AI120: =IF(Sammenligning!$G$9="GJ",1,(1/3.6))*AMV1træ!AL69 -> 224.4294534 | AJ120: =IF(Sammenligning!$G$9="GJ",1,(1/3.6))*AMV1træ!AM69 -> 224.4294534 | AK120: =IF(Sammenligning!$G$9="GJ",1,(1/3.6))*AMV1træ!AN69 -> 224.4294534 | AL120: =IF(Sammenligning!$G$9="GJ",1,(1/3.6))*AMV1træ!AO69 -> 224.4294534 | AM120: =IF(Sammenligning!$G$9="GJ",1,(1/3.6))*AMV1træ!AP69 -> 224.4294534
